Workbook

Sheet Template G (hidden)
B2: APPENDIX 1: SUMMARY OF PROFIT & LOSS ACCOUNTS UNDER GENERAL INSURANCE BUSINESS FOR THE YEAR ENDED 31.12.2014
B3: Company | C3: Profit Transferred from Revenue | D3: Investment Income | E3: Other Income | F3: Total Income | G3: Loss Transferred From Revenue | H3: Management Expenses | I3: Total Outgo | J3: Profit / (Loss) Before Taxation | K3: Provision for Taxation | L3: Profit/(Loss) After Taxation | M3: Unappropriated Profit/(Loss) BF | N3: Transfer To Reserves | O3: Other Appropriations | P3: Dividend | Q3: Unappropriated Profit /(Loss) CF
B4: INSURERS
B5: AAR INSURANCE KENYA | C5: 130234 | D5: 0 | E5: 0 | F5: 130234 | G5: 0 | H5: 0 | I5: 0 | J5: 130234 | K5: 46204 | L5: 84030 | M5: 44501 | N5: 634323 | O5: 0 | P5: 0 | Q5: -505792
B6: AFRICAN MERCHANT ASSURANCE | C6: 142654 | D6: 0 | E6: 0 | F6: 142654 | G6: 0 | H6: 0 | I6: 0 | J6: 142654 | K6: 39308 | L6: 103346 | M6: 318291 | N6: 0 | O6: 0 | P6: 0 | Q6: 421637
B7: AIG INSURANCE COMPANY | C7: 170766 | D7: 670630 | E7: 0 | F7: 841396 | G7: 0 | H7: 0 | I7: 0 | J7: 841396 | K7: 146702 | L7: 694694 | M7: 954171 | N7: 0 | O7: 0 | P7: 400000 | Q7: 1248865
B8: ALLIANZ INSURANCE COMPANY
B9: APA INSURANCE COMPANY | C9: 38749 | D9: 1034052 | E9: 0 | F9: 1072800 | G9: 0 | H9: -2138 | I9: 234936 | J9: 837864 | K9: 61671 | L9: 776193 | M9: 2283021 | N9: 0 | O9: 0 | P9: 80000 | Q9: 2979214
B10: BRITISH AMERICAN INSURANCE | C10: 339613 | D10: 251553 | E10: 0 | F10: 591166 | G10: 0 | H10: 0 | I10: 0 | J10: 591166 | K10: 78039 | L10: 513127 | M10: 825170 | N10: 0 | O10: 0 | P10: 0 | Q10: 1338298
B11: CANNON ASSURANCE COMPANY | C11: 74763 | D11: 0 | E11: 46931 | F11: 191885 | G11: 0 | H11: 0 | I11: 70189 | J11: 121695 | K11: 1928 | L11: 119767 | M11: 1084652 | N11: 0 | O11: 0 | P11: 781269 | Q11: 423150
B12: CIC GENERAL INSURANCE COMPANY | C12: 125132 | D12: 719643 | E12: 0 | F12: 844775 | G12: 0 | H12: 0 | I12: 0 | J12: 844775 | K12: 241425 | L12: 603350 | M12: 1877149 | N12: 0 | O12: 0 | P12: 405000 | Q12: 2075499
B13: CORPORATE INSURANCE COMPANY | C13: 205038 | D13: 0 | E13: 0 | F13: 205038 | G13: 0 | H13: 0 | I13: 0 | J13: 205038 | K13: 46383 | L13: 158655 | M13: 385905 | N13: 0 | O13: 0 | P13: 39000 | Q13: 505560
B14: DIRECTLINE ASSURANCE COMPANY | C14: 0 | D14: 638364 | E14: 0 | F14: 638365 | G14: 79947 | H14: 24146 | I14: 187546 | J14: 450818 | K14: 70096 | L14: 380723 | M14: 0 | N14: 0 | O14: 0 | P14: 0 | Q14: 380723
B15: FIDELITY SHIELD INSURANCE | C15: 101808 | D15: 179215 | E15: 7034 | F15: 288058 | G15: 0 | H15: 29416 | I15: 86512 | J15: 201545 | K15: 51745 | L15: 149800 | M15: 537207 | N15: 149548 | O15: 0 | P15: 45000 | Q15: 492459
B16: FIRST ASSURANCE COMPANY | C16: 67728 | D16: 447203 | E16: 0 | F16: 514930 | G16: 0 | H16: 0 | I16: 0 | J16: 514930 | K16: 98026 | L16: 416904 | M16: 827541 | N16: 0 | O16: 8093 | P16: 80251 | Q16: 1156101
B17: GA INSURANCE COMPANY | C17: 603861 | D17: 0 | E17: 0 | F17: 603861 | G17: 0 | H17: 0 | I17: 0 | J17: 603861 | K17: 158971 | L17: 444890 | M17: 677157 | N17: 6241 | O17: 0 | P17: 225000 | Q17: 890806
B18: GATEWAY INSURANCE COMPANY | C18: 25450 | D18: 0 | E18: 0 | F18: 25450 | G18: 0 | H18: 0 | I18: 0 | J18: 25450 | K18: 5318 | L18: 20132 | M18: 279570 | N18: 0 | O18: 0 | P18: 0 | Q18: 299702
B19: GEMINIA INSURANCE COMPANY | C19: 345161 | D19: 0 | E19: 291 | F19: 345452 | G19: 0 | H19: 633 | I19: 6435 | J19: 339017 | K19: 103330 | L19: 235686 | M19: 409368 | N19: 0 | O19: 2886 | P19: 90000 | Q19: 552169
B20: HERITAGE INSURANCE COMPANY | C20: 714803 | D20: 0 | E20: 1654 | F20: 716456 | G20: 0 | H20: 4023 | I20: 14466 | J20: 701990 | K20: 187852 | L20: 514138 | M20: 1285450 | N20: 0 | O20: 0 | P20: 230000 | Q20: 1569588
B21: ICEA LION GENERAL INSURANCE | C21: 300512 | D21: 742458 | E21: 0 | F21: 1042969 | G21: 0 | H21: 174555 | I21: 216797 | J21: 826173 | K21: 242956 | L21: 583217 | M21: 1850557 | N21: 0 | O21: 0 | P21: 200000 | Q21: 2233774
B22: INTRA-AFRICA ASSURANCE | C22: 0 | D22: 25075 | E22: 35589 | F22: 60664 | G22: 11756 | H22: 6540 | I22: 44468 | J22: 16196 | K22: 1648 | L22: 14548 | M22: 137625 | N22: 28100 | O22: -21036 | P22: 7500 | Q22: 137608
B23: INVESCO ASSURANCE COMPANY | C23: 0 | D23: 31010 | E23: 1443 | F23: 32453 | G23: 28200 | H23: 0 | I23: 101914 | J23: -69461 | K23: 26760 | L23: -96221 | M23: -1210798 | N23: 0 | O23: 0 | P23: 0 | Q23: -1307019
B24: JUBILEE INSURANCE COMPANY | C24: 1732918 | D24: 0 | E24: 139646 | F24: 1872564 | G24: 0 | H24: 0 | I24: 0 | J24: 1872564 | K24: 412337 | L24: 1460227 | M24: 3374754 | N24: -48 | O24: 1200000 | P24: 1000000 | Q24: 2635029
B25: KENINDIA ASSURANCE COMPANY | C25: 0 | D25: 0 | E25: 7636 | F25: 7636 | G25: 273201 | H25: 14741 | I25: 368270 | J25: -360634 | K25: -107940 | L25: -252694 | M25: 1172502 | N25: 0 | O25: -3585 | P25: 28069 | Q25: 895324
B26: KENYA ORIENT INSURANCE | C26: 237761 | D26: 0 | E26: 2666 | F26: 240427 | G26: 0 | H26: 98497 | I26: 98497 | J26: 141930 | K26: 52814 | L26: 89116 | M26: -17547 | N26: 0 | O26: 0 | P26: 0 | Q26: 71569
B27: MADISON INSURANCE COMPANY | C27: 12753 | D27: 0 | E27: 21396 | F27: 34149 | G27: 0 | H27: 0 | I27: 0 | J27: 34149 | K27: 0 | L27: 34149 | M27: 381408 | N27: 0 | O27: 0 | P27: 0 | Q27: 415557
B28: MAYFAIR INSURANCE COMPANY | C28: 188190 | D28: 192898 | E28: 1359 | F28: 382447 | G28: 0 | H28: 1286 | I28: 22336 | J28: 360110 | K28: 102410 | L28: 257701 | M28: 275513 | N28: 0 | O28: 0 | P28: 20000 | Q28: 513214
B29: OCCIDENTAL INSURANCE COMPANY | C29: 311911 | D29: 0 | E29: 34062 | F29: 345973 | G29: 0 | H29: 32976 | I29: 34373 | J29: 311600 | K29: 67905 | L29: 243695 | M29: 323724 | N29: 0 | O29: 0 | P29: 79695 | Q29: 487724
B30: PACIS INSURANCE COMPANY | C30: 119902 | D30: 0 | E30: 70627 | F30: 190529 | G30: 0 | H30: 19908 | I30: 19908 | J30: 170621 | K30: 50513 | L30: 120108 | M30: 352876 | N30: 0 | O30: 0 | P30: 0 | Q30: 472984
B31: PHOENIX OF EAST AFRICA | C31: 0 | D31: 113772 | E31: 943479 | F31: 1057251 | G31: 179641 | H31: 77166 | I31: 256807 | J31: 800444 | K31: 21357 | L31: 779087 | M31: 647918 | N31: 0 | O31: 0 | P31: 305000 | Q31: 1122005
B32: REAL INSURANCE COMPANY | C32: -58634 | D32: 102770 | E32: 58505 | F32: 102640 | G32: 0 | H32: 5420 | I32: 77089 | J32: 25552 | K32: 10450 | L32: 15101 | M32: 37508 | N32: 0 | O32: -8204 | P32: 25898 | Q32: 34916
B33: RESOLUTION HEALTH INSURANCE | C33: 0 | D33: 0 | E33: 0 | F33: 0 | G33: 138004 | H33: 0 | I33: 138004 | J33: -138004 | K33: -37685 | L33: -100319 | M33: 45411 | N33: 0 | O33: 0 | P33: 0 | Q33: -54908
B34: SAHAM ASSURANCE | C34: 21354 | D34: 0 | E34: 0 | F34: 21354 | G34: 0 | H34: 0 | I34: 0 | J34: 21354 | K34: 2544 | L34: 18810 | M34: 139368 | N34: 8988 | O34: 0 | P34: 9000 | Q34: 140190
B35: TAKAFUL INSURANCE OF AFRICA | C35: 0 | D35: 0 | E35: 0 | F35: 0 | G35: 20487 | H35: -22351 | I35: -1864 | J35: 1864 | K35: 4966 | L35: -3102 | M35: -139324 | N35: 0 | O35: 0 | P35: 0 | Q35: -142426
B36: TAUSI ASSURANCE COMPANY | C36: 35509 | D36: 170757 | E36: 0 | F36: 206265 | G36: 0 | H36: 5631 | I36: 19943 | J36: 186323 | K36: 53012 | L36: 133310 | M36: 176183 | N36: 0 | O36: -2999 | P36: 50224 | Q36: 262268
B37: THE KENYAN ALLIANCE INSURANCE | C37: 175734 | D37: 0 | E37: 0 | F37: 175734 | G37: 0 | H37: 0 | I37: 0 | J37: 175734 | K37: 73633 | L37: 102102 | M37: 955596 | N37: 0 | O37: 0 | P37: 10526 | Q37: 1047171
B38: THE MONARCH INSURANCE | C38: 99555 | D38: 9578 | E38: 46957 | F38: 156091 | G38: 0 | H38: 3702 | I38: 27420 | J38: 128672 | K38: 36001 | L38: 92671 | M38: 10403 | N38: 0 | O38: 0 | P38: 50000 | Q38: 53074
B39: TRIDENT INSURANCE COMPANY | C39: 47022 | D39: 155654 | E39: 21399 | F39: 224074 | G39: 0 | H39: 30356 | I39: 38052 | J39: 186022 | K39: 43613 | L39: 142409 | M39: 1246161 | N39: -4181 | O39: 0 | P39: 0 | Q39: 1392751
B40: UAP INSURANCE COMPANY | C40: 303159 | D40: 1138224 | E40: 6032 | F40: 1447415 | G40: 0 | H40: 310003 | I40: 343343 | J40: 1104072 | K40: 249503 | L40: 854569 | M40: 3178379 | N40: -1916845 | O40: -50810 | P40: 1000000 | Q40: 5000603
B41: XPLICO INSURANCE COMPANY | C41: -54329 | D41: 34591 | E41: 0 | F41: -19739 | G41: 0 | H41: 0 | I41: 0 | J41: -19739 | K41: -3519 | L41: -16220 | M41: 71835 | N41: 0 | O41: 0 | P41: 0 | Q41: 55615
B42: TOTAL | C42: =SUM(C5:C41) -> 6559077 | D42: =SUM(D5:D41) -> 6657447 | E42: =SUM(E5:E41) -> 1446706 | F42: 14733416 | G42: 731236 | H42: 814510 | I42: 2405441 | J42: 12327975 | K42: 2640276 | L42: 9687699 | M42: 24799205 | N42: -1093874 | O42: 1124345 | P42: 5161432 | Q42: 29295002
B43: REINSURERS
B44: CONTINENTAL REINSURANCE | C44: 147757 | D44: 52992 | E44: 1081 | F44: 201830 | G44: 0 | H44: 51501 | I44: 71033 | J44: 130797 | K44: 39763 | L44: 91034 | M44: 53655 | N44: 0 | O44: 0 | P44: 53215 | Q44: 91474
B45: EAST AFRICA REINSURANCE | C45: 151629 | D45: 322940 | E45: 35273 | F45: 509842 | G45: 0 | H45: 24718 | I45: 63308 | J45: 446534 | K45: 125724 | L45: 320810 | M45: 880517 | N45: 0 | O45: 0 | P45: 60000 | Q45: 1141326
B46: KENYA REINSURANCE CORPORATION | C46: 2245528 | D46: 144921 | E46: 906884 | F46: 3297333 | G46: 0 | H46: 0 | I46: 0 | J46: 3297333 | K46: 569810 | L46: 2727523 | M46: 11098665 | N46: -35689 | O46: 0 | P46: 419959 | Q46: 13441918
B47: TOTAL | C47: =SUM(C44:C46) -> 2544914 | D47: =SUM(D44:D46) -> 520853 | E47: =SUM(E44:E46) -> 943238 | F47: 4009005 | G47: 0 | H47: 76219 | I47: 134341 | J47: 3874664 | K47: 735297 | L47: 3139367 | M47: 12032837 | N47: -35689 | O47: 0 | P47: 533174 | Q47: 14674718
B48: GRAND TOTAL | C48: =C42+C47 -> 9103991 | D48: =D42+D47 -> 7178300 | E48: 2389944 | F48: 18742421 | G48: 731236 | H48: 890729 | I48: 2539782 | J48: 16202639 | K48: 3375573 | L48: 12827066 | M48: 36832042 | N48: -1129563 | O48: 1124345 | P48: 5694606 | Q48: 43969720
B49: Amounts in Thousand Shillings

Sheet Details
E7: INSURANCE REGULATORY AUTHORITY | L7: Quarterly | M7: 2010
L8: Annual | M8: 2011
M9: 2012
M10: 2013
M11: 2015
E12: TYPE OF INDUSTRY STATISTICS | F12: ANNUAL AUDITED | M12: 2016
M13: 2017
M14: 2018
M15: 2019
E16: FOR THE YEAR | F16: 2019 | M16: 2020
M17: 2021
E19: PERIOD ENDED | F19: 31st DECEMBER 2019 | M19: 2022
M20: 2023
E22: PREPARED BY | F22: INSURANCE REGULATORY AUTHORITY
F23: SEPTEMBER, 2020
M24: 2024
M25: 2025
M26: 2026
M27: 2027
M28: 2028
M29: 2029
M30: 2030
M31: 2031
M32: 2032
M33: 2033
M34: 2034
M35: 2035
M36: 2036
M37: 2037
M38: 2038
M39: 2039
M40: 2040
M41: 2041
M42: 2042
M43: 2043
M44: 2044
M45: 2045
M46: 2046
M47: 2047
M48: 2048
M49: 2049
M50: 2050
M51: 2051
M52: 2052

Sheet Reliance & Limitations
B3: RELIANCE AND LIMITATIONS
B4: The insurance information contained in this workbook has been extracted from the annual audited returns submitted to the Authority in line with Section 54 of the Insurance Act. No adjustments have been made to the returns’ data except where necessary in consultation with the affected insurer(s) or reinsurer(s). The publication of any summary of the returns in this report does not necessarily mean that the returns so summarized have satisfied all the requirements of the Insurance Act, or that the Commissioner of Insurance approves the accuracy or the contents of the returns Where necessary, figures have been adjusted to eliminate errors in totals due to rounding off, and are given in thousands Kenya shillings (‘000’ KES) except where otherwise stated. In addition, the report incorporated data from 97% of the regulated general insurance companies and 96% of the regulated long term insurance companies who had submitted their returns by the date of this report

Sheet Contents
B2: INSURANCE REGULATORY AUTHORITY
B4: 2019 DATA
B5: TABLE of CONTENTS
B6: Link | C6: Description
B8: Trends 1 | C8: Economy and Insurance Industry Trends
B9: Trends 2 | C9: Trends in Long-Term Insurance Business
B10: Trends 3 | C10: Trends in General Insurance Business
B11: Trends 4 | C11: Trends in Re-Insurance Business
B12: APPENDIX 1 | C12: Summary of Profit & Loss Accounts under General Insurance Business for the Year Ended 31.12.2019
B13: APPENDIX 2 | C13: Summary of Profit & Loss Accounts Long-Term Insurance Business for the Year Ended 31.12.2019
B14: APPENDIX 3 | C14: Summary of Net Commissions And Management Expenses for the Year Ended 31.12.2019
B15: APPENDIX 4 I | C15: Summary of Long Term Insurance Business Balance Sheets as at 31.12.2019
B16: APPENDIX 4 II | C16: Summary of Long Term Insurance Business Balance Sheets as at 31.12.2019
B17: APPENDIX 4 III | C17: Summary of Long Term Insurance Business Balance Sheets as at 31.12.2019
B18: APPENDIX 5 I | C18: Summary of General Insurance Business Balance Sheets as at 31.12.2019
B19: APPENDIX 5 II | C19: Summary of General Insurance Business Balance Sheets as at 31.12.2019
B20: APPENDIX 5 III | C20: Summary of General Insurance Business Balance Sheets as at 31.12.2019
B21: APPENDIX 5 IV | C21: Summary of General Insurance Business Balance Sheets as at 31.12.2019
B22: APPENDIX 6 | C22: Summary of Long Term Business Gross Direct Premiums for the Year Ended 31.12.2019
B23: APPENDIX 7 | C23: Summary of Long Term Business Inward Reinsurance Premiums for the Year Ended 31.12.2019
B24: APPENDIX 8 | C24: Summary of Long Term Business Outward Reinsurance Premiums for the Year Ended 31.12.2019
B25: APPENDIX 9 | C25: Summary of Life assurances Business Revenue Accounts for the Year Ended 31.12.2019
B26: APPENDIX 10 | C26: Summary of Annuities Business Revenue Accounts for the Year Ended 31.12.2019
B27: APPENDIX 11 | C27: Summary of Group Life Business Revenue Accounts for the Year Ended 31.12.2019
B28: APPENDIX 12 | C28: Summary of Pensions Business Revenue Accounts for the Year Ended 31.12.2019
B29: APPENDIX 13 | C29: Summary of Group Credit Business Revenue Accounts for the Year Ended 31.12.2019
B30: APPENDIX 14 | C30: Summary of Permanent Health Business Revenue Accounts for the Year Ended 31.12.2019
B31: APPENDIX 15 | C31: Summary of Investments Business Revenue Accounts for the Year Ended 31.12.2019
B32: APPENDIX 16 | C32: Summary of Long Term Business Combined Revenue Accounts for the Year Ended 31.12.2019
B33: APPENDIX 17 | C33: Summary of Long Term Insurance Business Actuarial Valuations as at 31.12.2019
B34: APPENDIX 18 | C34: Summary of Gross Direct Premiums under General Insurance Business for the Year Ended 31.12.2019
B35: APPENDIX 19 | C35: Summary of Inward Reinsurance Premiums under General Insurance Business for the Year Ended 31.12.2019
B36: APPENDIX 20 | C36: Summary of Gross Premium Incomes under General Insurance Business for the Year Ended 31.12.2019
B37: APPENDIX 21 | C37: Summary of Outward Reinsurance Premiums under General Insurance Business for the Year Ended 31.12.2019
B38: APPENDIX 22 | C38: Summary of Aviation Business Revenue Accounts for the Year Ended 31.12.2019
B39: APPENDIX 23 | C39: Summary of Engineering Business Revenue Accounts for the Year Ended 31.12.2019
B40: APPENDIX 24 | C40: Summary of Fire Domestic Business Revenue Accounts for the Year Ended 31.12.2019
B41: APPENDIX 25 | C41: Summary of Fire Industrial Business Revenue Accounts for the Year Ended 31.12.2019
B42: APPENDIX 26 | C42: Summary of Liability Business Revenue Accounts for the Year Ended 31.12.2019
B43: APPENDIX 27 | C43: Summary of Marine Business Revenue Accounts for the Year Ended 31.12.2019
B44: APPENDIX 28 | C44: Summary of Motor Private Business Revenue Accounts for the Year Ended 31.12.2019
B45: APPENDIX 29 | C45: Summary of Motor Commercial Business Revenue Accounts for the Year Ended 31.12.2019
B46: APPENDIX 30 | C46: Summary of Motor Psv Business Revenue Accounts for the Year Ended 31.12.2017
B47: APPENDIX 31 | C47: Summary of Personal Accident Business Revenue Accounts for the Year Ended 31.12.2019
B48: APPENDIX 32 | C48: Summary of Theft Business Revenue Accounts for the Year Ended 31.12.2019
B49: APPENDIX 33 | C49: Summary of Workmen'S Compensation Business Revenue Accounts for the Year Ended 31.12.2019
B50: APPENDIX 34 | C50: Summary of Medical Insurance Business Revenue Accounts for the Year Ended 31.12.2019
B51: APPENDIX 35 | C51: Summary of Miscellaneous Business Revenue Accounts for the Year Ended 31.12.2019
B52: APPENDIX 36 | C52: Summary of General Business Combined Revenue Accounts for the Year Ended 31.12.2019
B53: APPENDIX 37 | C53: Summary of Net Earned Premiums under General Insurance Business for the Year Ended 31.12.2019
B54: APPENDIX 38 | C54: Summary of Net Paid Claims under General Insurance Business for the Year Ended 31.12.2019
B55: APPENDIX 39 | C55: Summary of Net Incurred Claims under General Insurance Business for the Year Ended 31.12.2019
B56: APPENDIX 40 | C56: Summary of Incurred Claims Ratios under General Insurance Business for the Year Ended 31.12.2019
B57: APPENDIX 41 | C57: Summary of Underwriting Profits under General Insurance Business for the Year Ended 31.12.2019
B58: APPENDIX 42 | C58: Summary of Business in Force For General Insurers as at 31.12.2019
B59: APPENDIX 43 | C59: Summary of Business in Force for Long term Insurers as at 31.12.2019
B60: APPENDIX 44 | C60: Summary of Insurance Premium per County During the Year Ended 31.12.2019

Sheet T1
C3: Table 1: Economy and Insurance Industry Trends
C6: a) Economy and Insurance Indicators
D7: Years
D8: 2013 | E8: 2014 | F8: 2015 | G8: 2016 | H8: 2017 | I8: 2018 | J8: 2019
C9: Gross Direct Premium (KES Billion) | D9: 129.19 | E9: 155.8 | F9: 172.540122 | G9: 195.229647 | H9: 207.587451 | I9: 214.9 | J9: =('APPENDIX 6'!J32+'APPENDIX 18'!Q44)/1000000 -> 227.911571
C10: Gross Direct Premium Growth Rate (%) | F10: 10.74462259 | G10: 13.15028918 | H10: 6.32988083 | I10: 3.522635383 | J10: =(J9/I9-1)*100 -> 6.054709632
C11: GDP (Market Prices) KES Billion | D11: 4745.1434 | E11: 5402.41 | F11: 6284.2 | G11: 7022.96 | H11: 8144.37 | I11: 8904.98 | J11: 9740.4
C12: GDP (%) growth rate (at market prices) | D12: 11.35253217 | E12: 13.85135379 | F12: 16.32215992 | G12: 11.8 | H12: 15.96 | I12: 9.3 | J12: =(J11/I11-1)*100 -> 9.381492154
C13: Insurance Penetration ratio (%) (at current prices) | D13: 2.722573147 | E13: 2.883898112 | F13: 2.745617931 | G13: 2.78 | H13: 2.55 | I13: 2.43 | J13: =(J9/J11)*100 -> 2.339858435
C14: Population (Million) | D14: 41.8 | E14: 43 | F14: 44.2 | G14: 45.4 | H14: 46.6 | I14: 47.8 | J14: 47.6
C15: Insurance Density (KES) | D15: 3090.669856 | E15: 3623.255814 | F15: 3903.62267 | G15: 4300.212489 | H15: 4454.6 | I15: 4525 | J15: =(J9/J14)*1000 -> 4788.058214
C16: Lives Covered (Million) | D16: 2.058619 | E16: 2.470662 | F16: 4.390843 | G16: 3.82463 | H16: 4.262338 | I16: 4.3 | J16: 11.65
C17: Policies (Million) | D17: 2.77243 | E17: 3.815534 | F17: 2.702272 | G17: 3.390335 | H17: 3.139984 | I17: 3.43 | J17: 3.96
C18: Insurance cover (Lives/population) % | D18: 4.924925837 | E18: 5.745725581 | F18: 9.934033937 | G18: 8.424295154 | H18: 9.1 | I18: 8.9958159 | J18: =(J16/J14)*100 -> 24.47478992
C19: Insurance Cover (policies/population) % | D19: 6.632607656 | E19: 8.873334884 | F19: 6.113737557 | G19: 7.467698238 | H19: 6.7 | I19: 7.1 | J19: =(J17/J14)*100 -> 8.319327731
C20: Rate of Inflation (%) | D20: 5.7 | E20: 6.9 | F20: 6.6 | G20: 6.3 | H20: 8 | I20: 4.7 | J20: 5.2
C21: Real Gross Direct Premium growth (%) | D21: 9.215685297 | E21: 12.81344198 | F21: 3.88801369 | G21: 6.444298385 | H21: -1.546406639 | I21: -1.124512528 | J21: =(((100+J10)/(100+J20))-1)*100 -> 0.8124616277
C22: Sources: KNBS and IRA Statistics
D23: =D20/100 -> 0.057 | E23: =E20/100 -> 0.069 | G23: =G20/100 -> 0.063 | J23: =J20/100 -> 0.052 | K23: =H11*K20 -> 0
B24: GDP 2011 | C24: 90.2 | D24: 0.2407 | E24: =(E9-D9)/D9 -> 0.2059756947 | F24: =(F9-E9)/E9 -> 0.1074462259 | G24: =(G9-F9)/F9 -> 0.1315028918 | H24: =(H9-G9)/G9 -> 0.0632988083 | J24: =(J9-H9)/H9 -> 0.09790630359
C25: =((1+D24)/(1+D23)-1)*100 -> 17.37937559 | E25: =((1+E24)/(1+E23)-1)*100 -> 12.81344198 | F25: =((1+F24)/(1+F23)-1)*100 -> 10.74462259 | G25: =((1+G24)/(1+G23)-1)*100 -> 6.444298385 | J25: =((1+J24)/(1+J23)-1)*100 -> 4.363717072
C28: b) Trend in some key insurance indicators
C29: Item | D29: Years
D30: 2013 | E30: 2014 | F30: 2015 | G30: 2016 | H30: 2017 | I30: 2018 | J30: 2019
C31: Gross Premium Income | D31: 135384923 | E31: 157732058 | F31: 174039164 | G31: 196635836 | H31: 209001296 | I31: 216261729 | J31: ='APPENDIX 6'!$J$32+'APPENDIX 36'!$D$44+'APPENDIX 36'!$E$44 -> 229499718
C32: Net Premium Written | D32: 105013409 | E32: 126333481 | F32: 139377049 | G32: 158362431 | H32: 165852034 | I32: 172322202 | J32: ='APPENDIX 16'!$E$32+'APPENDIX 36'!$G$44 -> 182658282
C33: Claims Incurred (general business) | D33: 34170145 | E33: 42677696 | F33: 48811202 | G33: 54857495 | H33: 56151966 | I33: 56927996 | J33: =SUM('APPENDIX 39'!C44:P44) -> 58961582
C34: Net commissions | D34: 7204448 | E34: 14332657 | F34: 10833473 | G34: 12578735 | H34: 12495182 | I34: 11487628 | J34: ='APPENDIX 16'!$L$32+'APPENDIX 36'!$N$44 -> 10957562
C35: Expenses of Management | D35: 24808273 | E35: 49249464 | F35: 35991670 | G35: 39982771 | H35: 41197258 | I35: 44072857 | J35: ='APPENDIX 16'!$M$32+'APPENDIX 36'!$O$44 -> 45702207
C36: Underwriting Results (general business) | D36: 3402770 | E36: 1604507 | F36: -274188 | G36: -2125731 | H36: -1027851 | I36: -2588861 | J36: ='APPENDIX 36'!$P$44 -> -3165405
C37: Investment Income(P&L) | D37: 9429214 | E37: 11095059 | F37: 6294523 | G37: 5338509 | H37: 6596592 | I37: 6967045 | J37: ='APPENDIX 1'!$D$51+'APPENDIX 2'!$D$38 -> 9132215
C38: Operating profit/loss after taxation | D38: 20235881 | E38: 17232015 | F38: 13564434 | G38: 12835309 | H38: 13642972 | I38: 7269268 | J38: ='APPENDIX 1'!$L$51+'APPENDIX 2'!$L$38 -> 15119928
C39: Investments | D39: 296336802 | E39: 355009404 | F39: 390225346 | G39: 425304138 | H39: 483799656 | I39: 524237249 | J39: =SUM('APPENDIX 4 III'!$L$19,'APPENDIX 4 III'!$L$21:$L$33,'APPENDIX5 IV'!$N$19,'APPENDIX5 IV'!$N$21:$N$33) -> 594028115
C40: Assets | D40: 366252339 | E40: 430536097 | F40: 478752455 | G40: 528748193 | H40: 590953330 | I40: 635035110 | J40: ='APPENDIX 4 III'!$L$39+'APPENDIX5 IV'!$N$39 -> 709045429
C41: Shareholder’s Funds | D41: 100958028 | E41: 114141212 | F41: 125830028 | G41: 134455222 | H41: 147255002 | I41: 149134602 | J41: ='APPENDIX 4 III'!$L$12+'APPENDIX5 IV'!$N$12 -> 161635278
C42: Amounts in Thousands

Sheet T2
C4: Table 2: Trends in Long-Term Insurance Business
C6: a) Summary of long term insurance business performance
C7: Indicators | D7: Years
D8: 2013 | E8: 2014 | F8: 2015 | G8: 2016 | H8: 2017 | I8: 2018 | J8: 2019
C9: Gross Direct Premium | D9: 44424411 | E9: 56581380 | F9: 62064805 | G9: 73519181 | H9: 82807826 | I9: 87408352 | J9: ='APPENDIX 16'!$D$32 -> 97395510
C10: Outward Reinsurance | D10: 2731261 | E10: 3856486 | F10: 4983380 | G10: 5666993 | H10: 5860038 | I10: 7048742 | J10: =J9-J11 -> 7529611
C11: Net Premiums | D11: 41693150 | E11: 52718917 | F11: 57081418 | G11: 67852188 | H11: 76947788 | I11: 80359610 | J11: ='APPENDIX 16'!$E$32 -> 89865899
C12: Management expenses | D12: 7637766 | E12: 28460004 | F12: 11279207 | G12: 12364010 | H12: 12072033 | I12: 13928440 | J12: ='APPENDIX 16'!$M$32 -> 15362328
C13: Net Commissions | D13: 3432164 | E13: 9618165 | F13: 5152743 | G13: 5474094 | H13: 5448401 | I13: 4887507 | J13: ='APPENDIX 16'!$L$32 -> 5277712
C14: Life Fund C/F | D14: 137229500 | E14: 193293550.3 | F14: 231885634 | G14: 255648171 | H14: 301571353 | I14: 333263364 | J14: ='APPENDIX 16'!$Q$32 -> 387780599
C17: b) Summary of long term insurance business performance per class
C18: Indicators | E18: Years
D19: 2013 | E19: 2014 | F19: 2015 | G19: 2016 | H19: 2017 | I19: 2018 | J19: 2019
C20: Gross Direct Premium
C21: Life Assurances | D21: 13310197 | E21: 14363846 | F21: 16783137 | G21: 18880725 | H21: 21374928 | I21: 24331504 | J21: ='APPENDIX 9'!$D$32 -> 28187025
C22: Annuities | D22: 1331213 | E22: 6358440 | F22: 4137425 | G22: 4698479 | H22: 9834902 | I22: 6880785 | J22: ='APPENDIX 10'!$D$32 -> 7451904
C23: Pensions | D23: 16089228 | E23: 14099531 | F23: 22002402 | G23: 28118598 | H23: 29086157 | I23: 33914286 | J23: ='APPENDIX 12'!$D$32 -> 37723551
C24: Group Life | D24: 3038834 | E24: 9331736 | F24: 9858591 | G24: 10600535 | H24: 12765171 | I24: 11031270 | J24: ='APPENDIX 11'!$D$32 -> 10957689
C25: Group Credit | D25: 1943 | E25: 4265352 | F25: 4816710 | G25: 6306075 | H25: 5208397 | I25: 7740166 | J25: ='APPENDIX 13'!$D$32 -> 9516603
C26: Permanent Health | D26: 6426533 | E26: 0 | F26: 0 | G26: 0 | H26: 0 | I26: 0 | J26: ='APPENDIX 14'!$D$32 -> 0
C27: Investments | D27: 4226463 | E27: 8163684 | F27: 4422409 | G27: 4914770 | H27: 4538271 | I27: 3510341 | J27: ='APPENDIX 15'!$D$32 -> 3558738
C28: Total | D28: 44424411 | E28: 56582589 | F28: 62020674 | G28: 73519182 | H28: 82807826 | I28: 87408352 | J28: =SUM(J21:J27) -> 97395510
C29: Net Premiums
C30: Life Assurances | D30: 13114458 | E30: 14163998 | F30: 16562968 | G30: 18669399 | H30: 21122113 | I30: 24106317 | J30: ='APPENDIX 9'!$E$32 -> 27970560
C31: Annuities | D31: 1331213 | E31: 6358440 | F31: 4137425 | G31: 4698479 | H31: 9834897 | I31: 6880785 | J31: ='APPENDIX 10'!$E$32 -> 7451904
C32: Pensions | D32: 16089228 | E32: 14099531 | F32: 22002402 | G32: 28118598 | H32: 29086157 | I32: 33914286 | J32: ='APPENDIX 12'!$E$32 -> 37723551
C33: Group Life | D33: 3020236 | E33: 6020998 | F33: 5805185 | G33: 6412173 | H33: 8666923 | I33: 5633076 | J33: ='APPENDIX 11'!$E$32 -> 5561462
C34: Group Credit | D34: 1943 | E34: 3913711 | F34: 4106976 | G34: 5038769 | H34: 3699427 | I34: 6314805 | J34: ='APPENDIX 13'!$E$32 -> 7599816
C35: Permanent Health | D35: 4127806 | E35: 0 | F35: 0 | G35: 0 | H35: 0 | I35: 0 | J35: ='APPENDIX 14'!$E$32 -> 0
C36: Investments | D36: 4008265 | E36: 8163451 | F36: 4422331 | G36: 4914770 | H36: 4538271 | I36: 3510341 | J36: ='APPENDIX 15'!$E$32 -> 3558606
C37: Total | D37: 41693149 | E37: 52720129 | F37: 57037287 | G37: 67852188 | H37: 76947788 | I37: 80359610 | J37: =SUM(J30:J36) -> 89865899
C38: Net Commissions
C39: Life Assurances | D39: 2930874 | E39: 3184836 | F39: 3760565 | G39: 4314129 | H39: 4089626 | I39: 3841617 | J39: ='APPENDIX 9'!$L$32 -> 4178191
C40: Annuities | D40: 18430 | E40: 137180 | F40: 103094 | G40: 71677 | H40: 174395 | I40: 111012 | J40: ='APPENDIX 10'!$L$32 -> 156043
C41: Pensions | D41: 134547 | E41: 161911 | F41: 191723 | G41: 350075 | H41: 320131 | I41: 322807 | J41: ='APPENDIX 12'!$L$32 -> 393843
C42: Group Life | D42: 128988 | E42: 92494 | F42: 222082 | G42: 89220 | H42: 351110 | I42: -56828 | J42: ='APPENDIX 11'!$L$32 -> -338650
C43: Group Credit | D43: 13 | E43: 189041 | F43: 441028 | G43: 427617 | H43: 319000 | I43: 479268 | J43: ='APPENDIX 13'!$L$32 -> 511910
C44: Permanent Health | D44: -26090 | E44: 0 | F44: 0 | G44: 0 | H44: 0 | I44: 0 | J44: ='APPENDIX 14'!$L$32 -> 0
C45: Investments | D45: 245399 | E45: 448182 | F45: 434248 | G45: 221377 | H45: 194139 | I45: 189631 | J45: ='APPENDIX 15'!$L$32 -> 376375
C46: Total | D46: 3432161 | E46: 4213644 | F46: 5152740 | G46: 5474095 | H46: 5448401 | I46: 4887507 | J46: =SUM(J39:J45) -> 5277712
C47: Management Expenses
C48: Life Assurances | D48: 4061029 | E48: 5216983 | F48: 5978723 | G48: 6864778 | H48: 6046834 | I48: 6968920 | J48: ='APPENDIX 9'!$M$32 -> 7995319
C49: Annuities | D49: 73522 | E49: 190496 | F49: 269555 | G49: 216835 | H49: 230153 | I49: 221561 | J49: ='APPENDIX 10'!$M$32 -> 249092
C50: Pensions | D50: 955924 | E50: 1059753 | F50: 1283823 | G50: 1239403 | H50: 1462202 | I50: 1948838 | J50: ='APPENDIX 12'!$M$32 -> 1948609
C51: Group Life | D51: 678354 | E51: 1486792 | F51: 1578524 | G51: 1573914 | H51: 1830361 | I51: 2114840 | J51: ='APPENDIX 11'!$M$32 -> 1827250
C52: Group Credit | D52: 0 | E52: 937610 | F52: 1290586 | G52: 1586621 | H52: 1609944 | I52: 1709742 | J52: ='APPENDIX 13'!$M$32 -> 2519063
C53: Permanent Health | D53: 1037683 | E53: 0 | F53: 0 | G53: 0 | H53: 0 | I53: 0 | J53: ='APPENDIX 14'!$M$32 -> 0
C54: Investments | D54: 831259 | E54: 740921 | F54: 877989 | G54: 882462 | H54: 892539 | I54: 964539 | J54: ='APPENDIX 15'!$M$32 -> 822995
C55: Total | D55: 7637771 | E55: 9632555 | F55: 11279200 | G55: 12364013 | H55: 12072033 | I55: 13928440 | J55: =SUM(J48:J54) -> 15362328
C56: Amounts in '000' KES

Sheet T3
C4: Table 3: Trends in General Insurance Business
C7: a) Classwise GDP under general insurance business
C8: Class of business | D8: Years
D9: 2013 | E9: 2014 | F9: 2015 | G9: 2016 | H9: 2017 | I9: 2018 | J9: 2019
C10: Aviation | D10: 1127429 | E10: 1200632 | F10: 1484892 | G10: 1476801 | H10: 1726496 | I10: 2134254 | J10: ='APPENDIX 18'!C$44 -> 2109320
C11: Engineering | D11: 2776577 | E11: 3547973 | F11: 3794202 | G11: 3473125 | H11: 4190323 | I11: 3691508 | J11: ='APPENDIX 18'!D$44 -> 3502268
C12: Fire Domestic | D12: 1272835 | E12: 1347967 | F12: 1388204 | G12: 1482865 | H12: 1570425 | I12: 1595804 | J12: ='APPENDIX 18'!E$44 -> 1672639
C13: Fire industrial | D13: 7637802 | E13: 8757929 | F13: 9547284 | G13: 10062935 | H13: 11130626 | I13: 10824386 | J13: ='APPENDIX 18'!F$44 -> 10870577
C14: Liability | D14: 1560128 | E14: 1891331 | F14: 2191880 | G14: 2520106 | H14: 2817584 | I14: 2728902 | J14: ='APPENDIX 18'!G$44 -> 3124267
C15: Marine | D15: 2775148 | E15: 2726463 | F15: 2852402 | G15: 2604270 | H15: 3555639 | I15: 3370608 | J15: ='APPENDIX 18'!H$44 -> 3188714
C16: Motor Private | D16: 13909445 | E16: 16382944 | F16: 18430997 | G16: 20460256 | H16: 21484964 | I16: 22495605 | J16: ='APPENDIX 18'!I$44 -> 23431002
C17: Motor Commercial | D17: 19536285 | E17: 22553021 | F17: 24091465 | G17: 24025770 | H17: 23226291 | I17: 23593081 | J17: ='APPENDIX 18'!J$44+'APPENDIX 18'!K$44 -> 23049684
C18: Personal Accident | D18: 3250304 | E18: 3604559 | F18: 3882018 | G18: 3997282 | H18: 3516204 | I18: 3157233 | J18: ='APPENDIX 18'!L$44 -> 3283857
C19: Theft | D19: 3289650 | E19: 3553715 | F19: 3786845 | G19: 3774820 | H19: 3784701 | I19: 3863654 | J19: ='APPENDIX 18'!M$44 -> 3835945
C20: Workmen's Compensation | D20: 4666576 | E20: 5174648 | F20: 5346077 | G20: 5601571 | H20: 5675906 | I20: 6225354 | J20: ='APPENDIX 18'!N$44 -> 6358473
C21: Medical | D21: 20507131 | E21: 25315035 | F21: 29516467 | G21: 38520439 | H21: 38337371 | I21: 40195984 | J21: ='APPENDIX 18'!O$44 -> 42348102
C22: Miscellaneous | D22: 2456310 | E22: 3120075 | F22: 3487951 | G22: 3710221 | H22: 3763080 | I22: 3635343 | J22: ='APPENDIX 18'!P$44 -> 3741207
C23: Total | D23: 84765620 | E23: 99176292 | F23: 109800684 | G23: 121710461 | H23: 124779610 | I23: 127511716 | J23: =SUM(J10:J22) -> 130516055
C24: Amounts in '000' KES
C27: b) Incurred claims under general insurance business
C28: Class of business | D28: Years
D29: 2013 | E29: 2014 | F29: 2015 | G29: 2016 | H29: 2017 | I29: 2018 | J29: 2019
C30: Aviation | D30: 15144 | E30: 5915 | F30: 12888 | G30: 69815 | H30: -48571 | I30: 28336 | J30: ='APPENDIX 39'!C$44 -> 9285
C31: Engineering | D31: 301706 | E31: 366679 | F31: 468625 | G31: 448796 | H31: 431756 | I31: 411244 | J31: ='APPENDIX 39'!D$44 -> 597785
C32: Fire Domestic | D32: 337000 | E32: 289864 | F32: 483004 | G32: 523792 | H32: 309981 | I32: 477500 | J32: ='APPENDIX 39'!E$44 -> 414559
C33: Fire industrial | D33: 803448 | E33: 801192 | F33: 1177669 | G33: 988870 | H33: 1100373 | I33: 1141362 | J33: ='APPENDIX 39'!F$44 -> 825219
C34: Liability | D34: 253807 | E34: 316224 | F34: 430841 | G34: 661618 | H34: 340822 | I34: 597548 | J34: ='APPENDIX 39'!G$44 -> 399152
C35: Marine | D35: 560436 | E35: 566269 | F35: 631426 | G35: 503037 | H35: 725376 | I35: 669398 | J35: ='APPENDIX 39'!H$44 -> 669464
C36: Motor Private | D36: 8784204 | E36: 10957919 | F36: 12723572 | G36: 14968463 | H36: 14181895 | I36: 14301162 | J36: ='APPENDIX 39'!I$44 -> 16635527
C37: Motor Commercial | D37: 9271908 | E37: 10746378 | F37: 12858229 | G37: 12750248 | H37: 12646816 | I37: 13618583 | J37: ='APPENDIX 39'!J$44+'APPENDIX 39'!K$44 -> 15304543
C38: Personal Accident | D38: 884041 | E38: 1296968 | F38: 672415 | G38: 1237073 | H38: 1081310 | I38: 747352 | J38: ='APPENDIX 39'!L$44 -> 464566
C39: Theft | D39: 1143607 | E39: 1238056 | F39: 770640 | G39: 1192206 | H39: 969900 | I39: 1304641 | J39: ='APPENDIX 39'!M$44 -> 887812
C40: Workmen's Compensation | D40: 2024589 | E40: 2649305 | F40: 2666925 | G40: 2987368 | H40: 3126587 | I40: 2374487 | J40: ='APPENDIX 39'!N$44 -> 1548271
C41: Medical | D41: 9260252 | E41: 12774064 | F41: 15063107 | G41: 18095577 | H41: 20632162 | I41: 20515402 | J41: ='APPENDIX 39'!O$44 -> 20424313
C42: Miscellaneous | D42: 529996 | E42: 668871 | F42: 851856 | G42: 430629 | H42: 653554 | I42: 740981 | J42: ='APPENDIX 39'!P$44 -> 781086
C43: Total | D43: 34170138 | E43: 42677704 | F43: 48811197 | G43: 54857492 | H43: 56151961 | I43: 56927996 | J43: =SUM(J30:J42) -> 58961582
C44: Amounts in '000' KES
C47: c) Classwise underwriting results- General
C48: Class of business | D48: Years
D49: 2013 | E49: 2014 | F49: 2015 | G49: 2016 | H49: 2017 | I49: 2018 | J49: 2019
C50: Aviation | D50: 4944 | E50: -20306 | F50: -59485 | G50: -90552 | H50: -253123 | I50: -159479 | J50: ='APPENDIX 41'!C$44 -> -79233
C51: Engineering | D51: 80353 | E51: -121414 | F51: 75372 | G51: -58087 | H51: 70708 | I51: 25627 | J51: ='APPENDIX 41'!D$44 -> -130356
C52: Fire Domestic | D52: 145523 | E52: 258437 | F52: -19648 | G52: 44379 | H52: 238670 | I52: -275853 | J52: ='APPENDIX 41'!E$44 -> 171455
C53: Fire industrial | D53: 337267 | E53: -24125 | F53: 16134 | G53: 37031 | H53: -116886 | I53: 367656 | J53: ='APPENDIX 41'!F$44 -> 380424
C54: Liability | D54: 161704 | E54: 520157 | F54: 92095 | G54: 139993 | H54: 469143 | I54: 131790 | J54: ='APPENDIX 41'!G$44 -> -62178
C55: Marine | D55: 412861 | E55: 870568 | F55: 148713 | G55: 312675 | H55: 322049 | I55: 450260 | J55: ='APPENDIX 41'!H$44 -> 501522
C56: Motor Private | D56: -693880 | E56: -1732887 | F56: -3101547 | G56: -3291827 | H56: -2930081 | I56: -2578206 | J56: ='APPENDIX 41'!I$44 -> -4182589
C57: Motor Commercial | D57: 1403051 | E57: 1408890 | F57: 725825 | G57: 820734 | H57: 933287 | I57: -873562 | J57: ='APPENDIX 41'!J$44+'APPENDIX 41'!K$44 -> -2656785
C58: Personal Accident | D58: 192881 | E58: 91968 | F58: 832092 | G58: -341214 | H58: -178485 | I58: 235783 | J58: ='APPENDIX 41'!L$44 -> 518298
C59: Theft | D59: 185391 | E59: 396536 | F59: 617293 | G59: 180312 | H59: 473312 | I59: 216899 | J59: ='APPENDIX 41'!M$44 -> 398438
C60: Workmen's Compensation | D60: 424801 | E60: 84434 | F60: 56231 | G60: -100665 | H60: -223460 | I60: 619342 | J60: ='APPENDIX 41'!N$44 -> 1679536
C61: Medical | D61: 282523 | E61: -396895 | F61: -118033 | G61: -621635 | H61: 82523 | I61: -1008230 | J61: ='APPENDIX 41'!O$44 -> 139634
C62: Miscellaneous | D62: 465349 | E62: 269146 | F62: 508677 | G62: 843122 | H62: 84499 | I62: 259106 | J62: ='APPENDIX 41'!P$44 -> 156433
C63: Total | D63: 3402768 | E63: 1604509 | F63: -226281 | G63: -2125734 | H63: -1027844 | I63: -2588867 | J63: =SUM(J50:J62) -> -3165401
C64: Amounts in '000' KES

Sheet T4
C5: Table 4: Trends in Re-Insurance Business
C7: a) Performance for long term reinsurers
C8: Item | D8: Years
D9: 2013 | E9: 2014 | F9: 2015 | G9: 2016 | H9: 2017 | I9: 2018 | J9: 2019
C10: Life Assurances
C11: Inward reinsurance premium | D11: 174580 | E11: 134022 | F11: 114245 | G11: 152658 | H11: 179830 | I11: 239839 | J11: ='APPENDIX 9'!D37 -> 246317
C12: outward reinsurance premium | D12: 18743 | E12: 1971 | F12: 4689 | G12: 17602 | H12: 22747 | I12: 10701 | J12: =J11-J13 -> 10826
C13: Net premium income | D13: 155837 | E13: 119828 | F13: 119828 | G13: 135056 | H13: 157083 | I13: 229138 | J13: ='APPENDIX 9'!$E$37 -> 235491
C14: Management expenses | D14: 29506 | E14: 71834 | F14: 54739 | G14: 18330 | H14: 26601 | I14: 25995 | J14: ='APPENDIX 9'!$M$37 -> 27293
C15: Net commissions | D15: 50521 | E15: 21550 | F15: 21550 | G15: 59375 | H15: 47993 | I15: 29873 | J15: ='APPENDIX 9'!$L$37 -> 62932
C16: Life fund c/f | D16: 1033636 | E16: 1171464 | F16: 1177990 | G16: 1203305 | H16: 1241040 | I16: 1386391 | J16: ='APPENDIX 9'!Q37 -> 1496517
C17: Group Life
C18: Inward reinsurance premium | D18: 1318142 | E18: 1485325 | F18: 1971822 | G18: 2247254 | H18: 2591325 | I18: 3014166 | J18: ='APPENDIX 11'!$D$37 -> 3545208
C19: outward reinsurance premium | D19: 146482 | E19: 32671 | F19: 48362 | G19: 305800 | H19: 303096 | I19: 324320 | J19: =J18-J20 -> 387934
C20: Net premium income | D20: 1171660 | E20: 1301827 | F20: 1718421 | G20: 1941454 | H20: 2288229 | I20: 2689846 | J20: ='APPENDIX 11'!$E$37 -> 3157274
C21: Management expenses | D21: 218806 | E21: 558274 | F21: 699719 | G21: 249450 | H21: 325124 | I21: 302888 | J21: ='APPENDIX 11'!$M$37 -> 353897
C22: Net commissions | D22: 283922 | E22: 224720 | F22: 287252 | G22: 546986 | H22: 624144 | I22: 751119 | J22: ='APPENDIX 11'!$L$37 -> 896634
C23: Life fund | D23: 4491195 | E23: 5121829 | F23: 5748174 | G23: 5445849 | H23: 5975024 | I23: 6315119 | J23: ='APPENDIX 11'!Q37 -> 7372750
C24: Amounts in '000' KES
C27: b) Underwriting results under general reinsurance business
C28: Class of business | D28: Years
D29: 2013 | E29: 2014 | F29: 2015 | G29: 2016 | H29: 2017 | I29: 2018 | J29: 2019
C30: Aviation | D30: 3331 | E30: -22366 | F30: 74718 | G30: -19756 | H30: -12834 | I30: 4542 | J30: ='APPENDIX 41'!C$51 -> -18729
C31: Engineering | D31: 280151 | E31: 110074 | F31: 228806 | G31: 205944 | H31: 172210 | I31: 223258 | J31: ='APPENDIX 41'!D$51 -> 275016
C32: Fire Domestic | D32: -9183 | E32: 1862 | F32: 329788 | G32: -19084 | H32: 8328 | I32: 6529 | J32: ='APPENDIX 41'!E$51 -> 528720
C33: Fire industrial | D33: 560765 | E33: 629912 | F33: -691401 | G33: -671791 | H33: -612432 | I33: -38213 | J33: ='APPENDIX 41'!F$51 -> -245061
C34: Liability | D34: 39519 | E34: 85149 | F34: 46463 | G34: 63275 | H34: 51506 | I34: 109221 | J34: ='APPENDIX 41'!G$51 -> 82632
C35: Marine | D35: 140630 | E35: 286894 | F35: 80212 | G35: 47746 | H35: 152505 | I35: -88587 | J35: ='APPENDIX 41'!H$51 -> -2835
C36: Motor Private | D36: 3145 | E36: 8360 | F36: 7999 | G36: 18107 | H36: 48544 | I36: 27724 | J36: ='APPENDIX 41'!I$51 -> 29459
C37: Motor Commercial | D37: 91193 | E37: 102325 | F37: 644 | G37: 120356 | H37: 269786 | I37: -122896 | J37: ='APPENDIX 41'!J$51+'APPENDIX 41'!K51 -> -828633
C38: Personal Accident | D38: -109200 | E38: -379110 | F38: -93734 | G38: 583453 | H38: 38268 | I38: -189387 | J38: ='APPENDIX 41'!L$51 -> -2583962
C39: Theft | D39: -205259 | E39: -150893 | F39: 106261 | G39: 142121 | H39: 264811 | I39: 101026 | J39: ='APPENDIX 41'!M$51 -> 255472
C40: Workmen's Compensation | D40: -4749 | E40: 9437 | F40: 234983 | G40: 3264 | H40: 9140 | I40: 3768 | J40: ='APPENDIX 41'!N$51 -> -7463
C41: Medical | D41: -672213 | E41: -369149 | F41: -525036 | G41: -650108 | H41: -236752 | I41: -1191497 | J41: ='APPENDIX 41'!O$51 -> 1144582
C42: Miscellaneous | D42: 115441 | E42: 96243 | F42: 373455 | G42: 464570 | H42: 230594 | I42: 658724 | J42: ='APPENDIX 41'!P$51 -> -1090774
C43: Total | D43: 233571 | E43: 408738 | F43: 173158 | G43: 288097 | H43: 383674 | I43: -495788 | J43: =SUM(J30:J42) -> -2461576
C44: Amounts in '000' KES

Sheet APPENDIX 1
B2: APPENDIX 1: SUMMARY OF PROFIT & LOSS ACCOUNTS UNDER GENERAL INSURANCE BUSINESS FOR THE YEAR ENDED 31.12.2019
B3: Company | C3: Profit Transferred from Revenue | D3: Investment Income | E3: Other Income | F3: Total Income | G3: Loss Transferred From Revenue | H3: Management Expenses | I3: Total Outgo | J3: Profit / (Loss) Before Taxation | K3: Provision for Taxation | L3: Profit/(Loss) After Taxation | M3: Unappropriated Profit/(Loss) BF | N3: Transfer To Reserves | O3: Other Appropriations | P3: Dividend | Q3: Unappropriated Profit /(Loss) CF
B4: INSURERS
B5: AAR INSURANCE KENYA | C5: 756858 | D5: 0 | E5: 0 | F5: 756858 | G5: 0 | H5: 0 | I5: 0 | J5: 756858 | K5: 239628 | L5: 517230 | M5: -605955 | N5: 0 | O5: 0 | P5: 0 | Q5: -88725
B6: AFRICAN MERCHANT ASSURANCE | C6: 0 | D6: 0 | E6: 0 | F6: 0 | G6: 76217 | H6: 0 | I6: 76217 | J6: -76217 | K6: 0 | L6: -76217 | M6: 545835 | N6: 0 | O6: 0 | P6: 0 | Q6: 469618
B7: AIG INSURANCE COMPANY | C7: -1627 | D7: 421339 | E7: -3448 | F7: 416264 | G7: 0 | H7: 0 | I7: 0 | J7: 416264 | K7: 146544 | L7: 269720 | M7: 1410391 | N7: 0 | O7: 4747 | P7: 150000 | Q7: 1525365
B8: ALLIANZ INSURANCE COMPANY | C8: 0 | D8: 0 | E8: 0 | F8: 0 | G8: 62915 | H8: 0 | I8: 62915 | J8: -62915 | K8: -14723 | L8: -48192 | M8: -289750 | N8: 0 | O8: 0 | P8: 0 | Q8: -337942
B9: APA INSURANCE COMPANY | C9: 10079 | D9: 1174625 | E9: 35411 | F9: 1220116 | G9: 0 | H9: 45395 | I9: 321728 | J9: 898388 | K9: 128158 | L9: 770230 | M9: 3463395 | N9: 0 | O9: 0 | P9: 1300000 | Q9: 2933625
B10: BRITAM GENERAL INSURANCE | C10: 0 | D10: 0 | E10: 0 | F10: 0 | G10: 306347 | H10: 0 | I10: 306347 | J10: -306347 | K10: -120948 | L10: -185399 | M10: 332938 | N10: 0 | O10: 0 | P10: 100000 | Q10: 47539
B11: CIC GENERAL INSURANCE COMPANY | C11: 0 | D11: 797823 | E11: 0 | F11: 797823 | G11: 458201 | H11: 0 | I11: 458201 | J11: 339622 | K11: 61512 | L11: 278110 | M11: 2569662 | N11: 0 | O11: 0 | P11: 228000 | Q11: 2619773
B12: CORPORATE INSURANCE COMPANY | C12: -87820 | D12: 0 | E12: 0 | F12: -87820 | G12: 0 | H12: 0 | I12: 0 | J12: -87820 | K12: -46129 | L12: -41690 | M12: 520865 | N12: 0 | O12: 115485 | P12: 50000 | Q12: 313690
B13: DIRECTLINE ASSURANCE COMPANY | C13: 0 | D13: 88187 | E13: 0 | F13: 88187 | G13: 254907 | H13: 268712 | I13: 621676 | J13: -533489 | K13: -143883 | L13: -389606 | M13: 764921 | N13: 0 | O13: 0 | P13: 0 | Q13: 375315
B14: FIDELITY SHIELD INSURANCE | C14: 0 | D14: 183604 | E14: 0 | F14: 183604 | G14: 59056 | H14: 51750 | I14: 228261 | J14: -44656 | K14: -10908 | L14: -33748 | M14: 493552 | N14: 0 | O14: 0 | P14: 0 | Q14: 459803
B15: FIRST ASSURANCE COMPANY | C15: 0 | D15: 187208 | E15: 20725 | F15: 207933 | G15: 17522 | H15: 0 | I15: 17522 | J15: 190412 | K15: 60044 | L15: 130368 | M15: -35991 | N15: 0 | O15: 0 | P15: 0 | Q15: 94377
B16: GA INSURANCE COMPANY | C16: 1247854 | D16: 31000 | E16: 71648 | F16: 1350502 | G16: 0 | H16: 0 | I16: 0 | J16: 1350502 | K16: 289006 | L16: 1061496 | M16: 2410783 | N16: 119665 | O16: 0 | P16: 300000 | Q16: 3052614
B17: GEMINIA INSURANCE COMPANY | C17: 406533 | D17: 0 | E17: 0 | F17: 406533 | G17: 0 | H17: 0 | I17: 0 | J17: 406533 | K17: 146483 | L17: 260051 | M17: 0 | N17: 0 | O17: 0 | P17: 0 | Q17: 260051
B18: HERITAGE INSURANCE COMPANY | C18: 904748 | D18: 0 | E18: 13508 | F18: 918256 | G18: 0 | H18: 63754 | I18: 63754 | J18: 854502 | K18: 245369 | L18: 609133 | M18: 2585766 | N18: 500000 | O18: 0 | P18: 223000 | Q18: 2471899
B19: ICEA LION GENERAL INSURANCE | C19: 266672 | D19: 1081822 | E19: 0 | F19: 1348494 | G19: 0 | H19: 173457 | I19: 234821 | J19: 1113672 | K19: 219350 | L19: 894322 | M19: 3247157 | N19: 0 | O19: 121941 | P19: 200000 | Q19: 3819538
B20: INTRA-AFRICA ASSURANCE | C20: 105686 | D20: 35957 | E20: 47560 | F20: 189203 | G20: 0 | H20: 10806 | I20: 88833 | J20: 100370 | K20: 31209 | L20: 69161 | M20: 26526 | N20: 9000 | O20: 5431 | P20: 0 | Q20: 81256
B21: INVESCO ASSURANCE COMPANY | C21: 0 | D21: 0 | E21: 0 | F21: 0 | G21: 0 | H21: 0 | I21: 0 | J21: 0 | K21: 0 | L21: 0 | M21: 0 | N21: 0 | O21: 0 | P21: 0 | Q21: 0
B22: JUBILEE GENERAL INSURANCE | C22: -748132 | D22: 0 | E22: 0 | F22: -748132 | G22: 0 | H22: 0 | I22: 0 | J22: -748132 | K22: 0 | L22: -748132 | M22: 0 | N22: 0 | O22: -748132 | P22: 0 | Q22: 0
B23: JUBILEE HEALTH INSURANCE | C23: 1004923 | D23: 0 | E23: 0 | F23: 1004923 | G23: 0 | H23: 0 | I23: 0 | J23: 1004923 | K23: 224859 | L23: 780064 | M23: 0 | N23: 0 | O23: 780064 | P23: 0 | Q23: 0
B24: KENINDIA ASSURANCE COMPANY | C24: 0 | D24: 0 | E24: 794 | F24: 794 | G24: 259307 | H24: 12800 | I24: 551625 | J24: -550830 | K24: -163248 | L24: -387582 | M24: 2234184 | N24: 0 | O24: 0 | P24: 0 | Q24: 1846602
B25: KENYA ORIENT INSURANCE | C25: 0 | D25: -45239 | E25: 1270 | F25: -43969 | G25: 161338 | H25: 100748 | I25: 262086 | J25: -306055 | K25: -714 | L25: -305340 | M25: -760641 | N25: 0 | O25: 0 | P25: 0 | Q25: -1065981
B26: MADISON GENERAL INSURANCE COMPANY | C26: 7078 | D26: 0 | E26: 0 | F26: 7078 | G26: 0 | H26: 0 | I26: 0 | J26: 7078 | K26: -7290 | L26: 14368 | M26: 551234 | N26: 0 | O26: 0 | P26: 0 | Q26: 565602
B27: MAYFAIR INSURANCE COMPANY | C27: 270025 | D27: 281803 | E27: 27791 | F27: 579618 | G27: 0 | H27: 37923 | I27: 70187 | J27: 509432 | K27: 149939 | L27: 359493 | M27: 1265037 | N27: 0 | O27: 0 | P27: 175000 | Q27: 1449530
B28: METROPOLITAN CANNON GENERAL | C28: 0 | D28: 200289 | E28: 0 | F28: 200289 | G28: 143004 | H28: 0 | I28: 143004 | J28: 57284 | K28: 7726 | L28: 49558 | M28: -192626 | N28: 0 | O28: 0 | P28: 0 | Q28: -143067
B29: MUA INSURANCE COMPANY | C29: 8374 | D29: 0 | E29: 0 | F29: 8374 | G29: 0 | H29: 0 | I29: 0 | J29: 8374 | K29: 0 | L29: 8374 | M29: 545461 | N29: 0 | O29: 0 | P29: 0 | Q29: 553834
B30: OCCIDENTAL INSURANCE COMPANY | C30: 347529 | D30: 0 | E30: 51835 | F30: 399364 | G30: 0 | H30: 89666 | I30: 92282 | J30: 307083 | K30: 58964 | L30: 248119 | M30: 588633 | N30: 0 | O30: 21311 | P30: 85010 | Q30: 730430
B31: PACIS INSURANCE COMPANY | C31: 0 | D31: 0 | E31: 0 | F31: 0 | G31: 236109 | H31: 0 | I31: 236109 | J31: -236109 | K31: 17054 | L31: -253163 | M31: 450127 | N31: 0 | O31: 86031 | P31: 925 | Q31: 110008
B32: PIONEER GENERAL INSURANCE COMPANY | C32: 0 | D32: 52533 | E32: 0 | F32: 52533 | G32: 20396 | H32: 0 | I32: 20396 | J32: 32137 | K32: 11035 | L32: 21102 | M32: -23513 | N32: 0 | O32: 0 | P32: 0 | Q32: -2411
B33: RESOLUTION INSURANCE COMPANY | C33: 0 | D33: 0 | E33: 0 | F33: 0 | G33: 235114 | H33: 0 | I33: 235114 | J33: -235114 | K33: -62243 | L33: -172871 | M33: -2070236 | N33: 97109 | O33: 0 | P33: 0 | Q33: -2340216
B34: SAHAM INSURANCE COMPANY | C34: 0 | D34: 108291 | E34: 0 | F34: 108291 | G34: 28208 | H34: 0 | I34: 28208 | J34: 80083 | K34: 19926 | L34: 60157 | M34: 263429 | N34: 16700 | O34: 0 | P34: 0 | Q34: 306886
B35: SANLAM INSURANE COMPANY | C35: 23042 | D35: 0 | E35: 0 | F35: 23042 | G35: 0 | H35: 0 | I35: 0 | J35: 23042 | K35: 18623 | L35: 4419 | M35: -89247 | N35: 0 | O35: 0 | P35: 0 | Q35: -84829
B36: TAKAFUL INSURANCE OF AFRICA | C36: 0 | D36: 42922 | E36: 40208 | F36: 83130 | G36: 57587 | H36: 27052 | I36: 84639 | J36: -1509 | K36: 10375 | L36: -11884 | M36: -238903 | N36: 0 | O36: 0 | P36: 0 | Q36: -250787
B37: TAUSI ASSURANCE COMPANY | C37: 118397 | D37: 217986 | E37: 3839 | F37: 340222 | G37: 0 | H37: 2529 | I37: 8016 | J37: 332206 | K37: 59588 | L37: 272618 | M37: 718609 | N37: 3102 | O37: 0 | P37: 78000 | Q37: 910126
B38: THE KENYAN ALLIANCE INSURANCE | C38: 110411 | D38: 0 | E38: 0 | F38: 110411 | G38: 0 | H38: 0 | I38: 0 | J38: 110411 | K38: 47845 | L38: 62566 | M38: 949140 | N38: 0 | O38: 0 | P38: 0 | Q38: 1011705
B39: THE MONARCH INSURANCE | C39: 20703 | D39: 35516 | E39: 15072 | F39: 71291 | G39: 0 | H39: 3012 | I39: 5499 | J39: 65792 | K39: -23494 | L39: 89286 | M39: 154763 | N39: 0 | O39: 0 | P39: 0 | Q39: 244049
B40: TRIDENT INSURANCE COMPANY | C40: 0 | D40: 25055 | E40: 130076 | F40: 155131 | G40: 139208 | H40: 86816 | I40: 226024 | J40: -70893 | K40: 711 | L40: -71604 | M40: 1080557 | N40: -4180 | O40: 0 | P40: 0 | Q40: 1013134
B41: UAP INSURANCE COMPANY | C41: 1327633 | D41: 0 | E41: 15224 | F41: 1342857 | G41: 0 | H41: 0 | I41: 94255 | J41: 1248602 | K41: 278150 | L41: 970453 | M41: 5143356 | N41: 0 | O41: -5192 | P41: 0 | Q41: 6119001
B42: XPLICO INSURANCE COMPANY | C42: 0 | D42: 0 | E42: 47800 | F42: 47800 | G42: 106778 | H42: 0 | I42: 106778 | J42: -58978 | K42: 0 | L42: -58978 | M42: 164740 | N42: 0 | O42: 0 | P42: 0 | Q42: 105763
B43: TOTAL | C43: =SUM(C5:C42) -> 6098966 | D43: 4920721 | E43: 519313 | F43: 11539000 | G43: 2622214 | H43: 974420 | I43: 4644497 | J43: 6894506 | K43: 1878518 | L43: 5015992 | M43: 28174199 | N43: 741396 | O43: 381686 | P43: 2889935 | Q43: 29177175
B44: REINSURERS
B45: CONTINENTAL REINSURANCE | C45: 237477 | D45: 0 | E45: 0 | F45: 237477 | G45: 0 | H45: 0 | I45: 0 | J45: 237477 | K45: 72317 | L45: 165160 | M45: 346008 | N45: 0 | O45: 0 | P45: 0 | Q45: 511169
B46: EAST AFRICAN REINSURANCE | C46: 120696 | D46: 463884 | E46: 12560 | F46: 597140 | G46: 0 | H46: 14032 | I46: 46522 | J46: 550618 | K46: 164218 | L46: 386400 | M46: 2251662 | N46: -256887 | O46: 0 | P46: 100000 | Q46: 2794949
B47: GHANA REINSURANCE COMPANY | C47: 98097 | D47: 0 | E47: 1022 | F47: 99119 | G47: 0 | H47: 0 | I47: 0 | J47: 99119 | K47: 30365 | L47: 68754 | M47: 0 | N47: 0 | O47: 0 | P47: 0 | Q47: 68754
B48: KENYA REINSURANCE CORPORATION | C48: 127086 | D48: 2448759 | E48: 52969 | F48: 2628814 | G48: 0 | H48: 0 | I48: 0 | J48: 2628814 | K48: 158303 | L48: 2470511 | M48: 22165652 | N48: 5249618 | O48: 60119 | P48: 314977 | Q48: 19011449
B49: WAICA REINSURANCE KENYA LIMITED | C49: -12873 | D49: 0 | E49: 0 | F49: -12873 | G49: 0 | H49: 23882 | I49: 23882 | J49: -36755 | K49: -10060 | L49: -26695 | M49: -25626 | N49: 0 | O49: 0 | P49: 0 | Q49: -52321
B50: TOTAL | C50: =SUM(C45:C49) -> 570483 | D50: =SUM(D45:D49) -> 2912643 | E50: =SUM(E45:E49) -> 66551 | F50: 3549677 | G50: 0 | H50: 37914 | I50: 70404 | J50: 3479273 | K50: 415143 | L50: 3064130 | M50: 24737696 | N50: 4992731 | O50: 60119 | P50: 414977 | Q50: 22334000
B51: GRAND TOTAL | C51: =C43+C50 -> 6669449 | D51: =D43+D50 -> 7833364 | E51: 585864 | F51: 15088677 | G51: 2622214 | H51: 1012334 | I51: 4714901 | J51: 10373779 | K51: 2293661 | L51: 8080122 | M51: 52911895 | N51: 5734127 | O51: 441805 | P51: 3304912 | Q51: 51511175
B52: Amounts in Thousand Shillings

Sheet APPENDIX 2
B3: APPENDIX 2: SUMMARY OF PROFIT & LOSS ACCOUNTS UNDER LONG TERM INSURANCE BUSINESS FOR THE YEAR ENDED 31.12.2019
B4: Company | C4: Profit Transferred from Revenue | D4: Investment Income | E4: Other Income | F4: Total Income | G4: Loss Transferred From Revenue | H4: Management Expenses | I4: Total Outgo | J4: Profit / (Loss) Before Taxation | K4: Provision for Taxation | L4: Profit/(Loss) After Taxation | M4: Unappropriated Profit/(Loss) BF | N4: Transfer To Reserves | O4: Other Appropriations | P4: Dividend | Q4: Unappropriated Profit /(Loss) CF
B5: INSURERS
B6: ABSA LIFE ASSURANCE KENYA | C6: 0 | D6: 0 | E6: 0 | F6: 0 | G6: 0 | H6: 0 | I6: 0 | J6: 0 | K6: 0 | L6: 0 | M6: 0 | N6: 0 | O6: 0 | P6: 0 | Q6: 0
B7: APA LIFE ASSURANCE COMPANY | C7: 0 | D7: 74256 | E7: 0 | F7: 74256 | G7: 32402 | H7: 2906 | I7: 45572 | J7: 28684 | K7: 0 | L7: 28684 | M7: -194646 | N7: 0 | O7: 0 | P7: 0 | Q7: -165962
B8: BRITAM LIFE INSURANCE COMPANY | C8: 3640221 | D8: 0 | E8: 573568 | F8: 4213789 | G8: 0 | H8: 0 | I8: 0 | J8: 4213789 | K8: 1092066 | L8: 3121723 | M8: 0 | N8: 0 | O8: 0 | P8: 913000 | Q8: 2208723
B9: CAPEX LIFE ASSURANCE COMPANY | C9: 0 | D9: 0 | E9: -50456 | F9: -50456 | G9: 0 | H9: 0 | I9: 0 | J9: -50456 | K9: 0 | L9: -50456 | M9: 18442 | N9: 0 | O9: 0 | P9: 0 | Q9: -32014
B10: CIC LIFE ASSURANCE COMPANY | C10: 0 | D10: 0 | E10: 0 | F10: 0 | G10: 0 | H10: 0 | I10: 0 | J10: 0 | K10: 0 | L10: 0 | M10: 151861 | N10: 0 | O10: 0 | P10: 80000 | Q10: 71861
B11: CORPORATE INSURANCE COMPANY | C11: 0 | D11: 0 | E11: -109330 | F11: -109330 | G11: 0 | H11: 0 | I11: 0 | J11: -109330 | K11: 0 | L11: -109330 | M11: 103460 | N11: 0 | O11: 18227 | P11: 0 | Q11: -24096
B12: FIRST ASSURANCE COMPANY | C12: 17174 | D12: 0 | E12: 0 | F12: 17174 | G12: 0 | H12: 0 | I12: 0 | J12: 17174 | K12: 5702 | L12: 11472 | M12: 0 | N12: 0 | O12: 0 | P12: 0 | Q12: 11472
B13: GA LIFE ASSURANCE COMPANY | C13: 67294 | D13: 0 | E13: 16737 | F13: 84031 | G13: 0 | H13: 0 | I13: 0 | J13: 84031 | K13: 20827 | L13: 63204 | M13: 44337 | N13: 0 | O13: 0 | P13: 40000 | Q13: 67542
B14: GEMINIA INSURANCE COMPANY | C14: 41155 | D14: 0 | E14: 0 | F14: 41155 | G14: 0 | H14: 0 | I14: 0 | J14: 41155 | K14: 19665 | L14: 21490 | M14: 0 | N14: 0 | O14: 0 | P14: 0 | Q14: 21490
B15: ICEA LION LIFE ASSURANCE | C15: 560000 | D15: 130310 | E15: 0 | F15: 690310 | G15: 0 | H15: 65 | I15: 65 | J15: 690245 | K15: 197544 | L15: 492701 | M15: 2303415 | N15: 0 | O15: 0 | P15: 250000 | Q15: 2546116
B16: JUBILEE INSURANCE COMPANY | C16: 1250595 | D16: 250457 | E16: 697215 | F16: 2198267 | G16: 0 | H16: 0 | I16: 0 | J16: 2198267 | K16: 584343 | L16: 1613924 | M16: 1548849 | N16: 488051 | O16: -1377467 | P16: 0 | Q16: 4052190
B17: KENINDIA ASSURANCE COMPANY | C17: 40099 | D17: 0 | E17: 0 | F17: 40099 | G17: 0 | H17: 0 | I17: 0 | J17: 40099 | K17: 12030 | L17: 28069 | M17: 29214 | N17: 0 | O17: 0 | P17: 56139 | Q17: 1144
B18: KENYA ORIENT LIFE ASSURANCE | C18: 0 | D18: 30098 | E18: 38713 | F18: 68811 | G18: 0 | H18: 35758 | I18: 72582 | J18: -3771 | K18: 5370 | L18: -9140 | M18: 1350 | N18: 0 | O18: 0 | P18: 0 | Q18: -7791
B19: KUSCCO MUTUAL ASSURANCE LIMITED | C19: 12131 | D19: 0 | E19: 0 | F19: 12131 | G19: 0 | H19: 0 | I19: 0 | J19: 12131 | K19: 6170 | L19: 5960 | M19: 0 | N19: 0 | O19: 0 | P19: 0 | Q19: 5960
B20: LIBERTY LIFE ASSURANCE COMPANY | C20: 0 | D20: 0 | E20: 478613 | F20: 478613 | G20: 0 | H20: 0 | I20: 0 | J20: 478613 | K20: 158523 | L20: 320089 | M20: -315546 | N20: 37712 | O20: 0 | P20: 271000 | Q20: -304170
B21: MADISON INSURANCE COMPANY | C21: 0 | D21: 0 | E21: 0 | F21: 0 | G21: 511168 | H21: 0 | I21: 511168 | J21: -511168 | K21: -124895 | L21: -386273 | M21: 62000 | N21: -386273 | O21: 0 | P21: 0 | Q21: 62000
B22: METROPOLITAN CANNON INSURANCE | C22: 0 | D22: 0 | E22: 0 | F22: 0 | G22: 0 | H22: 0 | I22: 0 | J22: 0 | K22: 0 | L22: 0 | M22: 0 | N22: 0 | O22: 0 | P22: 0 | Q22: 0
B23: OLD MUTUAL LIFE ASSURANCE | C23: 0 | D23: 245596 | E23: 0 | F23: 245596 | G23: 62110 | H23: 7661 | I23: 69771 | J23: 175825 | K23: 41208 | L23: 134617 | M23: -2171124 | N23: 0 | O23: 0 | P23: 0 | Q23: -2036507
B24: PIONEER ASSURANCE COMPANY | C24: 142488 | D24: 0 | E24: 0 | F24: 142488 | G24: 0 | H24: 0 | I24: 0 | J24: 142488 | K24: 0 | L24: 142488 | M24: 211177 | N24: 0 | O24: 70229 | P24: 0 | Q24: 283436
B25: PRUDENTIAL LIFE ASSURANCE | C25: 0 | D25: 67946 | E25: 0 | F25: 67946 | G25: 0 | H25: 178372 | I25: 178372 | J25: -110426 | K25: 41998 | L25: -152424 | M25: -1780950 | N25: 0 | O25: 13307 | P25: 0 | Q25: -1946681
B26: SAHAM ASSURANCE | C26: 0 | D26: 15472 | E26: 0 | F26: 15472 | G26: 0 | H26: 15472 | I26: 15472 | J26: 0 | K26: 0 | L26: 0 | M26: 0 | N26: 0 | O26: 0 | P26: 0 | Q26: 0
B27: SANLAM LIFE INSURANCE | C27: 0 | D27: 0 | E27: 0 | F27: 0 | G27: 0 | H27: 0 | I27: 0 | J27: 0 | K27: 0 | L27: 0 | M27: 560253 | N27: 0 | O27: 0 | P27: 0 | Q27: 560253
B28: TAKAFUL INSURANCE OF AFRICA | C28: 0 | D28: 0 | E28: 30699 | F28: 30699 | G28: 20463 | H28: 0 | I28: 20463 | J28: 10237 | K28: 2456 | L28: 7781 | M28: 3496 | N28: 0 | O28: 0 | P28: 0 | Q28: 11277
B29: THE KENYAN ALLIANCE INSURANCE | C29: 0 | D29: 0 | E29: 0 | F29: 0 | G29: 105358 | H29: 0 | I29: 105358 | J29: -105358 | K29: 0 | L29: -105358 | M29: 72117 | N29: 0 | O29: -5467 | P29: 0 | Q29: -27774
B30: THE MONARCH INSURANCE | C30: 747 | D30: 0 | E30: 0 | F30: 747 | G30: 0 | H30: 0 | I30: 0 | J30: 747 | K30: 4742 | L30: -3996 | M30: 212522 | N30: 0 | O30: 157628 | P30: 0 | Q30: 50899
B31: UAP LIFE ASSURANCE COMPANY | C31: 0 | D31: 0 | E31: 219708 | F31: 219708 | G31: 0 | H31: 0 | I31: 0 | J31: 219708 | K31: 52885 | L31: 166822 | M31: 262104 | N31: 0 | O31: 0 | P31: 0 | Q31: 428926
B32: TOTAL | C32: =SUM(C6:C31) -> 5771904 | D32: 814135 | E32: 1895467 | F32: 8481506 | G32: 731501 | H32: 240234 | I32: 1018823 | J32: 7462684 | K32: 2120634 | L32: 5342047 | M32: 1122331 | N32: 139490 | O32: -1123543 | P32: 1610139 | Q32: =SUM(Q6:Q31) -> 5838294
B33: REINSURERS
B34: CONTINENTAL REINSURANCE | C34: 114608 | D34: 0 | E34: 0 | F34: 114608 | G34: 0 | H34: 0 | I34: 0 | J34: 114608 | K34: 10240 | L34: 104368 | M34: 156963 | N34: 0 | O34: 0 | P34: 0 | Q34: 261331
B35: EAST AFRICA REINSURANCE | C35: 115066 | D35: 169439 | E35: 193 | F35: 284698 | G35: 0 | H35: 848 | I35: 145 | J35: 284553 | K35: 81616 | L35: 202937 | M35: 530345 | N35: 236938 | O35: 0 | P35: 0 | Q35: 496345
B36: KENYA REINSURANCE CORPORATION | C36: 1097716 | D36: 315277 | E36: 0 | F36: 1412993 | G36: 0 | H36: 0 | I36: 0 | J36: 1412993 | K36: 22539 | L36: 1390454 | M36: 4320953 | N36: 0 | O36: 0 | P36: 0 | Q36: 5711407
B37: TOTAL | C37: =SUM(C34:C36) -> 1327390 | D37: =SUM(D34:D36) -> 484716 | E37: 193 | F37: 1812299 | G37: 0 | H37: 848 | I37: 145 | J37: 1812154 | K37: 114395 | L37: 1697759 | M37: 5008261 | N37: 236938 | O37: 0 | P37: 0 | Q37: 6469083
B38: GRAND TOTAL | C38: =C37+C32 -> 7099294 | D38: =D37+D32 -> 1298851 | E38: 1895660 | F38: 10293805 | G38: 731501 | H38: 241082 | I38: 1018968 | J38: 9274838 | K38: 2235029 | L38: 7039806 | M38: 6130592 | N38: 376428 | O38: -1123543 | P38: 1610139 | Q38: 12307377
B39: Amounts in Thousand Shillings

Sheet appendix 3x (hidden)
B2: APPENDIX 3: SUMMARY OF NET COMMISSIONS AND MANAGEMENT EXPENSES FOR THE YEAR ENDED 31.12.2014
C3: General Business | E3: Long Term Business
B4: INSURERS
B5: Company | C5: Commissions | D5: Management Expenses | E5: Commissions | F5: Management Expenses
B6: AAR INSURANCE KENYA | C6: 165288 | D6: 502774
B7: AFRICAN MERCHANT ASSURANCE | C7: 108669 | D7: 799815
B8: AIG INSURANCE COMPANY | C8: 91993 | D8: 808878
B9: APA INSURANCE COMPANY | C9: 497787 | D9: 1150711
B10: APA LIFE ASSURANCE COMPANY | E10: 5952 | F10: 136763
B11: BRITISH AMERICAN INSURANCE | C11: 409907 | D11: 1133785 | E11: 1393991 | F11: 1727158
B12: CANNON ASSURANCE COMPANY | C12: 87720 | D12: 319707 | E12: -13438 | F12: 67113
B13: CAPEX LIFE ASSURANCE COMPANY | E13: 926 | F13: 50788
B14: CIC GENERAL INSURANCE COMPANY | C14: 645669 | D14: 1804800
B15: CIC LIFE ASSURANCE COMPANY | E15: 186645 | F15: 1189024
B16: CORPORATE INSURANCE COMPANY | C16: 23941 | D16: 116290 | E16: 78637 | F16: 42149
B17: DIRECTLINE ASSURANCE COMPANY | C17: 219220 | D17: 739337
B18: FIDELITY SHIELD INSURANCE | C18: 81081 | D18: 304635
B19: FIRST ASSURANCE COMPANY | C19: 87720 | D19: 423394 | E19: -7079 | F19: 7511
B20: GA INSURANCE COMPANY | C20: -43764 | D20: 486215
B21: GA LIFE ASSURANCE LIMITED | E21: -3058 | F21: 13242
B22: GATEWAY INSURANCE COMPANY | C22: 27188 | D22: 339468
B23: GEMINIA INSURANCE COMPANY | C23: 49888 | D23: 283342 | E23: 1873 | F23: 7938
B24: HERITAGE INSURANCE COMPANY | C24: -25022 | D24: 1079262
B25: ICEA LION GENERAL INSURANCE | C25: 314064 | D25: 872074
B26: ICEA LION LIFE ASSURANCE COMPANY | E26: 311189 | F26: 713045
B27: INTRA-AFRICA ASSURANCE | C27: 41276 | D27: 224514
B28: INVESCO ASSURANCE COMPANY | C28: 201215 | D28: 1018143
B29: JUBILEE INSURANCE COMPANY | C29: 527610 | D29: 1145079 | E29: 612465 | F29: 719572
B30: KENINDIA ASSURANCE COMPANY | C30: 121728 | D30: 584711 | E30: 116653 | F30: 234064
B31: KENYA ORIENT INSURANCE | C31: 54696 | D31: 558149
B32: KENYA ORIENT LIFE ASSURANCE | E32: 8985 | F32: 81562
B33: LIBERTY LIFE ASSURANCE KENYA | E33: 189845 | F33: 1133473
B34: MADISON INSURANCE COMPANY | C34: 83379 | D34: 398628 | E34: 147899 | F34: 552308
B35: MAYFAIR INSURANCE COMPANY | C35: 12840 | D35: 259559
B36: METROPOLITAN LIFE ASSURANCE | E36: 38239 | F36: 153993
B37: OCCIDENTAL INSURANCE COMPANY | C37: 111840 | D37: 210299
B38: OLD MUTUAL ASSURANCE COMPANY | E38: 185386 | F38: 969433
B39: PACIS INSURANCE COMPANY | C39: 83985 | D39: 328250
B40: PAN AFRICA INSURANCE COMPANY | E40: 723713 | F40: 810331
B41: PHOENIX OF EAST AFRICA | C41: -43 | D41: 213356
B42: PIONEER ASSURANCE COMPANY | E42: 159246 | F42: 310185
B43: PRUDENTIAL LIFE ASSURANCE KENYA | E43: 20238 | F43: 72232
B44: REAL INSURANCE COMPANY | C44: 127529 | D44: 704790
B45: RESOLUTION HEALTH INSURANCE | C45: -70791 | D45: 603806
B46: SAHAM ASSURANCE | C46: -9053 | D46: 250746 | E46: 11774 | F46: 47021
B47: TAKAFUL INSURANCE OF AFRICA | C47: 61055 | D47: 265722
B48: TAUSI ASSURANCE COMPANY | C48: 57264 | D48: 172861
B49: THE KENYAN ALLIANCE INSURANCE | C49: 110974 | D49: 478426 | E49: -19313 | F49: 39504
B50: THE MONARCH INSURANCE | C50: 28626 | D50: 241389 | E50: -2682 | F50: 19233
B51: TRIDENT INSURANCE COMPANY | C51: -25524 | D51: 170220
B52: UAP INSURANCE COMPANY | C52: 427125 | D52: 1232280
B53: UAP LIFE ASSURANCE COMPANY | E53: 65555 | F53: 520521
B54: XPLICO INSURANCE COMPANY | C54: 116796 | D54: 792522
B55: TOTAL | C55: =SUM(C6:C54) -> 4803876 | D55: =SUM(D6:D54) -> 21017937 | E55: =SUM(E6:E54) -> 4213641 | F55: =SUM(F6:F54) -> 9618163
B56: REINSURERS
B57: CONTINENTAL REINSURANCE | C57: 645669 | D57: 1804800 | E57: 12636 | F57: 7066
B58: EAST AFRICA REINSURANCE | C58: 795095 | D58: 197474 | E58: 78387 | F58: 58654
B59: KENYA REINSURANCE CORPORATION | C59: 2683195 | D59: 961374 | E59: 308564 | F59: 180547
B60: TOTAL | C60: =SUM(C57:C59) -> 4123959 | D60: =SUM(D57:D59) -> 2963648 | E60: =SUM(E57:E59) -> 399587 | F60: =SUM(F57:F59) -> 246267
B61: GRAND TOTAL | C61: =C60+C55 -> 8927835 | D61: =D60+D55 -> 23981585 | E61: =E60+E55 -> 4613228 | F61: =F60+F55 -> 9864430
B62: Amounts in '000' shillings

Sheet APPENDIX 3
B3: APPENDIX 3: SUMMARY OF NET COMMISSIONS AND MANAGEMENT EXPENSES FOR THE YEAR ENDED 31.12.2019
B5: General Insurance Business | F5: Long Term Insurance Business
B6: Company | C6: Commissions | D6: Management Expenses | F6: Company | G6: Commissions | H6: Management Expenses
B7: AAR INSURANCE KENYA | C7: ='APPENDIX 36'!N6 -> -136087 | D7: ='APPENDIX 36'!O6 -> 1086493 | F7: ABSA LIFE ASSURANCE KENYA | G7: ='APPENDIX 16'!L6 -> 224995 | H7: ='APPENDIX 16'!M6 -> 583965
B8: AFRICAN MERCHANT ASSURANCE | C8: ='APPENDIX 36'!N7 -> 21932 | D8: ='APPENDIX 36'!O7 -> 776475 | F8: APA LIFE ASSURANCE COMPANY | G8: ='APPENDIX 16'!L7 -> 89980 | H8: ='APPENDIX 16'!M7 -> 239834
B9: AIG INSURANCE COMPANY | C9: ='APPENDIX 36'!N8 -> -524606 | D9: ='APPENDIX 36'!O8 -> 965719 | F9: BRITAM LIFE INSURANCE COMPANY | G9: ='APPENDIX 16'!L8 -> 1457028 | H9: ='APPENDIX 16'!M8 -> 3509923
B10: ALLIANZ INSURANCE COMPANY | C10: ='APPENDIX 36'!N9 -> 53113 | D10: ='APPENDIX 36'!O9 -> 280335 | F10: CAPEX LIFE ASSURANCE COMPANY | G10: ='APPENDIX 16'!L9 -> 680 | H10: ='APPENDIX 16'!M9 -> 150374
B11: APA INSURANCE COMPANY | C11: ='APPENDIX 36'!N10 -> 490020 | D11: ='APPENDIX 36'!O10 -> 1534654 | F11: CIC LIFE ASSURANCE COMPANY | G11: ='APPENDIX 16'!L10 -> 93306 | H11: ='APPENDIX 16'!M10 -> 1538407
B12: BRITAM GENERAL INSURANCE | C12: ='APPENDIX 36'!N11 -> 629402 | D12: ='APPENDIX 36'!O11 -> 2627371 | F12: CORPORATE INSURANCE COMPANY | G12: ='APPENDIX 16'!L11 -> 59959 | H12: ='APPENDIX 16'!M11 -> 102395
B13: CIC GENERAL INSURANCE COMPANY | C13: ='APPENDIX 36'!N12 -> 944713 | D13: ='APPENDIX 36'!O12 -> 2041898 | F13: FIRST ASSURANCE COMPANY | G13: ='APPENDIX 16'!L12 -> -13426 | H13: ='APPENDIX 16'!M12 -> 8434
B14: CORPORATE INSURANCE COMPANY | C14: ='APPENDIX 36'!N13 -> 55396 | D14: ='APPENDIX 36'!O13 -> 238031 | F14: GA LIFE ASSURANCE COMPANY | G14: ='APPENDIX 16'!L13 -> 5933 | H14: ='APPENDIX 16'!M13 -> 71812
B15: DIRECTLINE ASSURANCE COMPANY | C15: ='APPENDIX 36'!N14 -> 326928 | D15: ='APPENDIX 36'!O14 -> 830066 | F15: GEMINIA INSURANCE COMPANY | G15: ='APPENDIX 16'!L14 -> -17621 | H15: ='APPENDIX 16'!M14 -> 163331
B16: FIDELITY SHIELD INSURANCE | C16: ='APPENDIX 36'!N15 -> 153692 | D16: ='APPENDIX 36'!O15 -> 395081 | F16: ICEA LION LIFE ASSURANCE | G16: ='APPENDIX 16'!L15 -> 607578 | H16: ='APPENDIX 16'!M15 -> 1296270
B17: FIRST ASSURANCE COMPANY | C17: ='APPENDIX 36'!N16 -> 123876 | D17: ='APPENDIX 36'!O16 -> 829286 | F17: JUBILEE INSURANCE COMPANY | G17: ='APPENDIX 16'!L16 -> 892327 | H17: ='APPENDIX 16'!M16 -> 1091479
B18: GA INSURANCE COMPANY | C18: ='APPENDIX 36'!N17 -> 76574 | D18: ='APPENDIX 36'!O17 -> 897888 | F18: KENINDIA ASSURANCE COMPANY | G18: ='APPENDIX 16'!L17 -> 153657 | H18: ='APPENDIX 16'!M17 -> 447855
B19: GEMINIA INSURANCE COMPANY | C19: ='APPENDIX 36'!N18 -> 315707 | D19: ='APPENDIX 36'!O18 -> 1245928 | F19: KENYA ORIENT LIFE ASSURANCE | G19: ='APPENDIX 16'!L18 -> 35280 | H19: ='APPENDIX 16'!M18 -> 247916
B20: HERITAGE INSURANCE COMPANY | C20: ='APPENDIX 36'!N19 -> 148259 | D20: ='APPENDIX 36'!O19 -> 1448123 | F20: KUSCCO MUTUAL ASSURANCE LIMITED | G20: ='APPENDIX 16'!L19 -> 5754 | H20: ='APPENDIX 16'!M19 -> 105045
B21: ICEA LION GENERAL INSURANCE | C21: ='APPENDIX 36'!N20 -> 168026 | D21: ='APPENDIX 36'!O20 -> 1150900 | F21: LIBERTY LIFE ASSURANCE COMPANY | G21: ='APPENDIX 16'!L20 -> 364349 | H21: ='APPENDIX 16'!M20 -> 1244067
B22: INTRA-AFRICA ASSURANCE | C22: ='APPENDIX 36'!N21 -> 108732 | D22: ='APPENDIX 36'!O21 -> 296605 | F22: MADISON INSURANCE COMPANY | G22: ='APPENDIX 16'!L21 -> 296215 | H22: ='APPENDIX 16'!M21 -> 805355
B23: INVESCO ASSURANCE COMPANY | C23: ='APPENDIX 36'!N22 -> 0 | D23: ='APPENDIX 36'!O22 -> 0 | F23: METROPOLITAN CANNON INSURANCE | G23: ='APPENDIX 16'!L22 -> 0 | H23: ='APPENDIX 16'!M22 -> 0
B24: JUBILEE GENERAL INSURANCE | C24: ='APPENDIX 36'!N23 -> 197483 | D24: ='APPENDIX 36'!O23 -> 1196470 | F24: OLD MUTUAL LIFE ASSURANCE | G24: ='APPENDIX 16'!L23 -> 333420 | H24: ='APPENDIX 16'!M23 -> 786782
B25: JUBILEE HEALTH INSURANCE | C25: ='APPENDIX 36'!N24 -> 102825 | D25: ='APPENDIX 36'!O24 -> 943438 | F25: PIONEER ASSURANCE COMPANY | G25: ='APPENDIX 16'!L24 -> -73007 | H25: ='APPENDIX 16'!M24 -> 536517
B26: KENINDIA ASSURANCE COMPANY | C26: ='APPENDIX 36'!N25 -> 100729 | D26: ='APPENDIX 36'!O25 -> 628013 | F26: PRUDENTIAL LIFE ASSURANCE | G26: ='APPENDIX 16'!L25 -> 161436 | H26: ='APPENDIX 16'!M25 -> 320793
B27: KENYA ORIENT INSURANCE | C27: ='APPENDIX 36'!N26 -> 91045 | D27: ='APPENDIX 36'!O26 -> 570903 | F27: SAHAM ASSURANCE | G27: ='APPENDIX 16'!L26 -> 2381 | H27: ='APPENDIX 16'!M26 -> 32466
B28: MADISON GENERAL INSURANCE COMPANY | C28: ='APPENDIX 36'!N27 -> 365592 | D28: ='APPENDIX 36'!O27 -> 959326 | F28: SANLAM LIFE INSURANCE | G28: ='APPENDIX 16'!L27 -> 541683 | H28: ='APPENDIX 16'!M27 -> 1284859
B29: MAYFAIR INSURANCE COMPANY | C29: ='APPENDIX 36'!N28 -> 60606 | D29: ='APPENDIX 36'!O28 -> 450931 | F29: TAKAFUL INSURANCE OF AFRICA | G29: ='APPENDIX 16'!L28 -> 4931 | H29: ='APPENDIX 16'!M28 -> 32870
B30: METROPOLITAN CANNON GENERAL | C30: ='APPENDIX 36'!N29 -> 80800 | D30: ='APPENDIX 36'!O29 -> 334365 | F30: THE KENYAN ALLIANCE INSURANCE | G30: ='APPENDIX 16'!L29 -> 4154 | H30: ='APPENDIX 16'!M29 -> 109084
B31: MUA INSURANCE COMPANY | C31: ='APPENDIX 36'!N30 -> 29137 | D31: ='APPENDIX 36'!O30 -> 294671 | F31: THE MONARCH INSURANCE | G31: ='APPENDIX 16'!L30 -> 2959 | H31: ='APPENDIX 16'!M30 -> 60655
B32: OCCIDENTAL INSURANCE COMPANY | C32: ='APPENDIX 36'!N31 -> 189528 | D32: ='APPENDIX 36'!O31 -> 557733 | F32: UAP LIFE ASSURANCE COMPANY | G32: ='APPENDIX 16'!L31 -> 43761 | H32: ='APPENDIX 16'!M31 -> 591840
B33: PACIS INSURANCE COMPANY | C33: ='APPENDIX 36'!N32 -> 128831 | D33: ='APPENDIX 36'!O32 -> 530554 | F33: TOTAL | G33: =SUM(G7:G32) -> 5277712 | H33: =SUM(H7:H32) -> 15362328
B34: PIONEER GENERAL INSURANCE COMPANY | C34: ='APPENDIX 36'!N33 -> 56177 | D34: ='APPENDIX 36'!O33 -> 238937 | F34: REINSURERS
B35: RESOLUTION INSURANCE COMPANY | C35: ='APPENDIX 36'!N34 -> 45831 | D35: ='APPENDIX 36'!O34 -> 1125708 | F35: CONTINENTAL REINSURANCE | G35: ='APPENDIX 16'!L34 -> 112325 | H35: ='APPENDIX 16'!M34 -> 42454
B36: SAHAM INSURANCE COMPANY | C36: ='APPENDIX 36'!N35 -> 4276 | D36: ='APPENDIX 36'!O35 -> 482806 | F36: EAST AFRICA REINSURANCE | G36: ='APPENDIX 16'!L35 -> 277621 | H36: ='APPENDIX 16'!M35 -> 98676
B37: SANLAM INSURANE COMPANY | C37: ='APPENDIX 36'!N36 -> 127832 | D37: ='APPENDIX 36'!O36 -> 632488 | F37: KENYA REINSURANCE CORPORATION | G37: ='APPENDIX 16'!L36 -> 569620 | H37: ='APPENDIX 16'!M36 -> 240060
B38: TAKAFUL INSURANCE OF AFRICA | C38: ='APPENDIX 36'!N37 -> -34765 | D38: ='APPENDIX 36'!O37 -> 422547 | F38: TOTAL | G38: =SUM(G35:G37) -> 959566 | H38: =SUM(H35:H37) -> 381190
B39: TAUSI ASSURANCE COMPANY | C39: ='APPENDIX 36'!N38 -> 90829 | D39: ='APPENDIX 36'!O38 -> 331337 | F39: GRAND TOTAL | G39: =G38+G33 -> 6237278 | H39: =H38+H33 -> 15743518
B40: THE KENYAN ALLIANCE INSURANCE | C40: ='APPENDIX 36'!N39 -> 81179 | D40: ='APPENDIX 36'!O39 -> 771883 | F40: Amounts in Thousand shillings
B41: THE MONARCH INSURANCE | C41: ='APPENDIX 36'!N40 -> 105616 | D41: ='APPENDIX 36'!O40 -> 470034
B42: TRIDENT INSURANCE COMPANY | C42: ='APPENDIX 36'!N41 -> 46311 | D42: ='APPENDIX 36'!O41 -> 239289
B43: UAP INSURANCE COMPANY | C43: ='APPENDIX 36'!N42 -> 724512 | D43: ='APPENDIX 36'!O42 -> 1909644
B44: XPLICO INSURANCE COMPANY | C44: ='APPENDIX 36'!N43 -> 129799 | D44: ='APPENDIX 36'!O43 -> 603949
B45: TOTAL | C45: =SUM(C7:C44) -> 5679850 | D45: =SUM(D7:D44) -> 30339879
B46: REINSURERS
B47: CONTINENTAL REINSURANCE | C47: ='APPENDIX 36'!N46 -> 877208 | D47: ='APPENDIX 36'!O46 -> 332979
B48: EAST AFRICAN REINSURANCE | C48: ='APPENDIX 36'!N47 -> 817732 | D48: ='APPENDIX 36'!O47 -> 322972
B49: GHANA REINSURANCE COMPANY | C49: ='APPENDIX 36'!N48 -> 162584 | D49: ='APPENDIX 36'!O48 -> 103148
B50: KENYA REINSURANCE CORPORATION | C50: ='APPENDIX 36'!N49 -> 3189774 | D50: ='APPENDIX 36'!O49 -> 2434852
B51: WAICA REINSURANCE KENYA LIMITED | C51: ='APPENDIX 36'!N50 -> 5537 | D51: ='APPENDIX 36'!O50 -> 159610
B52: TOTAL | C52: =SUM(C47:C51) -> 5052835 | D52: =SUM(D47:D51) -> 3353561
B53: GRAND TOTAL | C53: =C52+C45 -> 10732685 | D53: =D52+D45 -> 33693440
B54: Amounts in Thousand shillings

Sheet APPENDIX 4 I
B3: APPENDIX 4: SUMMARY OF LONG TERM INSURANCE BUSINESS BALANCE SHEETS AS AT 31.12.2019
B4: Company | C4: ABSA LIFE ASSURANCE KENYA | D4: APA LIFE ASSURANCE COMPANY | E4: BRITAM LIFE ASSURANCE | F4: CAPEX LIFE ASSURANCE COMPANY | G4: CIC LIFE ASSURANCE COMPANY | H4: CONTINENTAL REINSURANCE | I4: CORPORATE INSURANCE COMPANY | J4: FIRST ASSURANCE COMPANY | K4: EAST AFRICA REINSURANCE | L4: GA LIFE INSURANCE COMPANY
B5: Share Capital | C5: 699000 | D5: 700000 | E5: 400000 | F5: 345000 | G5: 800000 | H5: 300000 | I5: 200000 | J5: 150000 | K5: 500000 | L5: 200000
B6: Share Premium | C6: 0 | D6: 0 | E6: 0 | F6: 0 | G6: 0 | H6: 0 | I6: 0 | J6: 0 | K6: 0 | L6: 0
B7: Revaluation Reserves | C7: 0 | D7: 0 | E7: 0 | F7: 1613 | G7: 0 | H7: 119 | I7: 0 | J7: 0 | K7: 0 | L7: 0
B8: Statutory Reserves | C8: 258704 | D8: 82879 | E8: 0 | F8: -32014 | G8: 1123620 | H8: 21057 | I8: 49 | J8: 193957 | K8: 0 | L8: 109914
B9: Retained Earnings | C9: 0 | D9: -165962 | E9: 0 | F9: 0 | G9: 71861 | H9: 0 | I9: 0 | J9: 0 | K9: 0 | L9: 67542
B10: Other Reserves | C10: 0 | D10: 0 | E10: 9408044 | F10: 823 | G10: 17401 | H10: 261331 | I10: 0 | J10: 0 | K10: 496345 | L10: 0
B11: Total Equity | C11: 957704 | D11: 616918 | E11: 9808044 | F11: 315422 | G11: 2012883 | H11: 582507 | I11: 200049 | J11: 343957 | K11: 996345 | L11: 377455
B12: Underwriting Provisions | C12: 0 | D12: 110981 | E12: 475696 | F12: 6240 | G12: 597944 | H12: 204844 | I12: 45002 | J12: 15951 | K12: 498640 | L12: 3722
B13: Actuarial Contract Liabilities | C13: 2060156 | D13: 4996207 | E13: 71998988 | F13: 505467 | G13: 10936927 | H13: 0 | I13: 661328 | J13: 8993 | K13: 84271 | L13: 10635369
B14: LongTerm Liabilities | C14: 0 | D14: 28550 | E14: 3735019 | F14: 0 | G14: 482814 | H14: 47757 | I14: 0 | J14: 99084 | K14: 214336 | L14: 47106
B15: Current Liabilities | C15: 1041688 | D15: 212270 | E15: 1728876 | F15: 51800 | G15: 664618 | H15: 109362 | I15: 60849 | J15: 15050 | K15: 348960 | L15: 61437
B16: Total Equity And Liabilities | C16: 4059547 | D16: 5964926 | E16: 87746623 | F16: 878929 | G16: 14695187 | H16: 944469 | I16: 967228 | J16: 483035 | K16: 2142552 | L16: 11125090
B17: Land And Buildings | C17: 0 | D17: 0 | E17: 134616 | F17: 0 | G17: 0 | H17: 0 | I17: 0 | J17: 0 | K17: 0 | L17: 0
B18: Investment Property | C18: 0 | D18: 155000 | E18: 6582479 | F18: 592000 | G18: 2181875 | H18: 0 | I18: 661435 | J18: 82000 | K18: 0 | L18: 1136800
B19: Other Fixed Assets | C19: 41532 | D19: 13276 | E19: 132457 | F19: 9080 | G19: 73139 | H19: 0 | I19: 807 | J19: 0 | K19: 0 | L19: 4234
B20: Government Securities | C20: 3176886 | D20: 3999459 | E20: 49873256 | F20: 129363 | G20: 6573791 | H20: 553167 | I20: 110610 | J20: 35530 | K20: 989962 | L20: 9267014
B21: Other Securities | C21: 0 | D21: 35923 | E21: 0 | F21: 0 | G21: 679642 | H21: 0 | I21: 0 | J21: 0 | K21: 0 | L21: 0
B22: Investment in Related Companies | C22: 0 | D22: 0 | E22: 1736329 | F22: 0 | G22: 0 | H22: 0 | I22: 0 | J22: 0 | K22: 0 | L22: 0
B23: Corporate Bonds | C23: 0 | D23: 20098 | E23: 451371 | F23: 0 | G23: 195023 | H23: 0 | I23: 0 | J23: 0 | K23: 45826 | L23: 50726
B24: Commercial Papers | C24: 0 | D24: 110111 | E24: 0 | F24: 0 | G24: 37355 | H24: 0 | I24: 0 | J24: 0 | K24: 0 | L24: 0
B25: Debentures | C25: 0 | D25: 0 | E25: 0 | F25: 0 | G25: 0 | H25: 0 | I25: 0 | J25: 0 | K25: 0 | L25: 0
B26: Ordinary Shares Quoted | C26: 0 | D26: 335196 | E26: 9869702 | F26: 2 | G26: 916274 | H26: 0 | I26: 0 | J26: 0 | K26: 22475 | L26: 113009
B27: Ordinary Shares Unquoted | C27: 0 | D27: 7613 | E27: 45146 | F27: 0 | G27: 11139 | H27: 0 | I27: 788 | J27: 0 | K27: 0 | L27: 0
B28: Preference Shares Quoted | C28: 0 | D28: 0 | E28: 0 | F28: 0 | G28: 0 | H28: 0 | I28: 0 | J28: 0 | K28: 0 | L28: 0
B29: Preference Shares Unquoted | C29: 0 | D29: 0 | E29: 0 | F29: 0 | G29: 0 | H29: 0 | I29: 0 | J29: 0 | K29: 0 | L29: 0
B30: Loans Secured & Unsecured | C30: 0 | D30: 35792 | E30: 1825068 | F30: 0 | G30: 513479 | H30: 0 | I30: 46044 | J30: 0 | K30: 0 | L30: 4599
B31: Mortgages | C31: 0 | D31: 0 | E31: 1171696 | F31: 0 | G31: 57883 | H31: 0 | I31: 0 | J31: 0 | K31: 0 | L31: 0
B32: Term Deposits | C32: 201697 | D32: 964305 | E32: 1311185 | F32: 5000 | G32: 1478296 | H32: 74690 | I32: 113315 | J32: 769 | K32: 607626 | L32: 170431
B33: Cash and Cash Balances | C33: 21123 | D33: 29655 | E33: 61657 | F33: 31725 | G33: 158713 | H33: 4206 | I33: 11015 | J33: 33478 | K33: 25037 | L33: 36779
B34: Outstanding Premiums | C34: 58731 | D34: 140762 | E34: 628241 | F34: 72824 | G34: 661651 | H34: 245360 | I34: 1387 | J34: 31903 | K34: 217272 | L34: 3622
B35: Other Receivables | C35: 89572 | D35: 45911 | E35: 1213704 | F35: 0 | G35: 443907 | H35: 0 | I35: 7923 | J35: 0 | K35: 92945 | L35: 0
B36: Other Assets | C36: 470006 | D36: 71827 | E36: 11668051 | F36: 35495 | G36: 710408 | H36: 67047 | I36: 12424 | J36: 299356 | K36: 442 | L36: 329670
B37: Intangible Assets | C37: 0 | D37: 0 | E37: 1041664 | F37: 3441 | G37: 2611 | H37: 0 | I37: 1481 | J37: 0 | K37: 140966 | L37: 8205
B38: Total Assets | C38: 4059547 | D38: 5964926 | E38: 87746623 | F38: 878929 | G38: 14695187 | H38: 944469 | I38: 967228 | J38: 483035 | K38: 2142552 | L38: 11125090
B39: Amounts in thousand Shillings | J39: Continued next page

Sheet APPENDIX 4 II
B2: Continued from previous page
B3: APPENDIX 4: SUMMARY OF LONG TERM INSURANCE BUSINESS BALANCE SHEETS AS AT 31.12.2019
B4: Company | C4: GEMINIA INSURANCE COMPANY | D4: ICEA LION LIFE ASSURANCE COMPANY | E4: JUBILEE INSURANCE COMPANY | F4: KENINDIA ASSURANCE COMPANY | G4: KENYA ORIENT LIFE ASSURANCE | H4: KUSCCO MUTUAL ASSURANCE LIMITED | I4: KENYA REINSURANCE CORPORATION | J4: LIBERTY LIFE ASSURANCE | K4: MADISON INSURANCE COMPANY | L4: METROPOLITAN CANNON INSURANCE
B5: Share Capital | C5: 255000 | D5: 450000 | E5: 500000 | F5: 161388 | G5: 183000 | H5: 500000 | I5: 401500 | J5: 612340 | K5: 450000 | L5: 0
B6: Share Premium | C6: 0 | D6: 0 | E6: 0 | F6: 0 | G6: 0 | H6: 0 | I6: 0 | J6: 0 | K6: 0 | L6: 0
B7: Revaluation Reserves | C7: 0 | D7: 0 | E7: 0 | F7: 299078 | G7: 0 | H7: 0 | I7: 0 | J7: 384903 | K7: 0 | L7: 0
B8: Statutory Reserves | C8: 88996 | D8: 8970465 | E8: 2042638 | F8: 318516 | G8: 45994 | H8: 5711407 | I8: 0 | J8: 2099696 | K8: 580462 | L8: 0
B9: Retained Earnings | C9: 0 | D9: 2796116 | E9: 4052190 | F9: 1144 | G9: -7791 | H9: 0 | I9: 5960 | J9: -304170 | K9: 62000 | L9: 0
B10: Other Reserves | C10: 0 | D10: 0 | E10: 0 | F10: 1054947 | G10: 0 | H10: -10064 | I10: 0 | J10: 0 | K10: 0 | L10: 0
B11: Total Equity | C11: 343996 | D11: 12216581 | E11: 6594828 | F11: 1835073 | G11: 221203 | H11: 6201343 | I11: 407460 | J11: 2792769 | K11: 1092462 | L11: 0
B12: Underwriting Provisions | C12: 258139 | D12: 147252 | E12: 765999 | F12: 117451 | G12: 11079 | H12: 0 | I12: 11062 | J12: 419521 | K12: 6598 | L12: 0
B13: Actuarial Contract Liabilities | C13: 977068 | D13: 77722379 | E13: 73927786 | F13: 37151619 | G13: 1012824 | H13: 2687032 | I13: 200722 | J13: 19699225 | K13: 12833064 | L13: 0
B14: LongTerm Liabilities | C14: 43622 | D14: 2098119 | E14: 938924 | F14: 13787 | G14: 19712 | H14: 0 | I14: 0 | J14: 1064840 | K14: 132177 | L14: 0
B15: Current Liabilities | C15: 339400 | D15: 1319027 | E15: 1275708 | F15: 560766 | G15: 21522 | H15: 2542198 | I15: 180754 | J15: 604855 | K15: 254082 | L15: 0
B16: Total Equity And Liabilities | C16: 1962225 | D16: 93503359 | E16: 83503246 | F16: 39678696 | G16: 1286340 | H16: 11430573 | I16: 799998 | J16: 24581210 | K16: 14318383 | L16: 0
B17: Land And Buildings | C17: 0 | D17: 0 | E17: 0 | F17: 1045218 | G17: 0 | H17: 0 | I17: 0 | J17: 731271 | K17: 0 | L17: 0
B18: Investment Property | C18: 0 | D18: 10772500 | E18: 4476000 | F18: 2011224 | G18: 140000 | H18: 1749775 | I18: 0 | J18: 1208729 | K18: 6205000 | L18: 0
B19: Other Fixed Assets | C19: 88 | D19: 99466 | E19: 38263 | F19: 16185 | G19: 13356 | H19: 0 | I19: 22967 | J19: 56708 | K19: 46468 | L19: 0
B20: Government Securities | C20: 622370 | D20: 64448813 | E20: 59484344 | F20: 34714802 | G20: 673865 | H20: 3903101 | I20: 383041 | J20: 14712704 | K20: 3769353 | L20: 0
B21: Other Securities | C21: 0 | D21: 0 | E21: 0 | F21: 0 | G21: 0 | H21: 0 | I21: 0 | J21: 0 | K21: 17580 | L21: 0
B22: Investment in Related Companies | C22: 0 | D22: 1246846 | E22: 2027390 | F22: 0 | G22: 0 | H22: 0 | I22: 0 | J22: 0 | K22: 0 | L22: 0
B23: Corporate Bonds | C23: 0 | D23: 845188 | E23: 579736 | F23: 52535 | G23: 65562 | H23: 0 | I23: 0 | J23: 397271 | K23: 26300 | L23: 0
B24: Commercial Papers | C24: 0 | D24: 0 | E24: 0 | F24: 0 | G24: 40621 | H24: 0 | I24: 0 | J24: 0 | K24: 0 | L24: 0
B25: Debentures | C25: 0 | D25: 0 | E25: 0 | F25: 0 | G25: 0 | H25: 0 | I25: 0 | J25: 0 | K25: 0 | L25: 0
B26: Ordinary Shares Quoted | C26: 0 | D26: 8071765 | E26: 4082473 | F26: 153923 | G26: 0 | H26: 346246 | I26: 0 | J26: 3876431 | K26: 0 | L26: 0
B27: Ordinary Shares Unquoted | C27: 0 | D27: 1020 | E27: 5187303 | F27: 153 | G27: 54067 | H27: 0 | I27: 0 | J27: 164664 | K27: 1907807 | L27: 0
B28: Preference Shares Quoted | C28: 0 | D28: 1223 | E28: 0 | F28: 0 | G28: 0 | H28: 0 | I28: 0 | J28: 0 | K28: 0 | L28: 0
B29: Preference Shares Unquoted | C29: 0 | D29: 0 | E29: 0 | F29: 0 | G29: 0 | H29: 0 | I29: 0 | J29: 0 | K29: 0 | L29: 0
B30: Loans Secured & Unsecured | C30: 20834 | D30: 587431 | E30: 881954 | F30: 113414 | G30: 29562 | H30: 0 | I30: 0 | J30: 1163652 | K30: 74153 | L30: 0
B31: Mortgages | C31: 0 | D31: 574701 | E31: 0 | F31: 4239 | G31: 0 | H31: 0 | I31: 0 | J31: 371482 | K31: 90148 | L31: 0
B32: Term Deposits | C32: 667736 | D32: 5855929 | E32: 2890332 | F32: 1137297 | G32: 139136 | H32: 5006346 | I32: 1986 | J32: 962523 | K32: 1122570 | L32: 0
B33: Cash and Cash Balances | C33: 272050 | D33: 17144 | E33: 2086934 | F33: 367196 | G33: 8630 | H33: 6761 | I33: 4253 | J33: 450411 | K33: 205024 | L33: 0
B34: Outstanding Premiums | C34: 247855 | D34: 13674 | E34: 726137 | F34: 1192 | G34: 49237 | H34: 124585 | I34: 79034 | J34: 114669 | K34: 92157 | L34: 0
B35: Other Receivables | C35: 0 | D35: 221511 | E35: 579136 | F35: 44731 | G35: 0 | H35: 0 | I35: 281326 | J35: 29737 | K35: 702795 | L35: 0
B36: Other Assets | C36: 131291 | D36: 729106 | E36: 419074 | F36: 0 | G36: 62613 | H36: 0 | I36: 0 | J36: 177260 | K36: 47940 | L36: 0
B37: Intangible Assets | C37: 0 | D37: 17041 | E37: 44169 | F37: 16589 | G37: 9692 | H37: 293758 | I37: 27393 | J37: 163699 | K37: 11088 | L37: 0
B38: Total Assets | C38: 1962225 | D38: 93503359 | E38: 83503246 | F38: 39678696 | G38: 1286340 | H38: 11430573 | I38: 799998 | J38: 24581210 | K38: 14318383 | L38: 0
B39: Amounts in thousand Shillings | K39: Continued next page

Sheet APPENDIX 4 III
B3: Continued from previous page
B4: APPENDIX 4: SUMMARY OF LONG TERM INSURANCE BUSINESS BALANCE SHEETS AS AT 31.12.2019
B5: Company | C5: OLD MUTUAL ASSURANCE COMPANY | D5: PIONEER ASSURANCE COMPANY | E5: PRUDENTIAL LIFE ASSURANCE | F5: SAHAM INSURANCE COMPANY | G5: SANLAM LIFE INSURANCE | H5: TAKAFUL INSURANCE OF AFRICA | I5: THE KENYAN ALLIANCE INSURANCE | J5: THE MONARCH INSURANCE COMPANY | K5: UAP LIFE ASSURANCE COMPANY | L5: TOTAL
B6: Share Capital | C6: 2174871 | D6: 400000 | E6: 412185 | F6: 150000 | G6: 843138 | H6: 150000 | I6: 400000 | J6: 154976 | K6: 1585456 | L6: 14077854
B7: Share Premium | C7: 1884957 | D7: 0 | E7: 2421891 | F7: 0 | G7: 30260 | H7: 0 | I7: 0 | J7: 0 | K7: 0 | L7: 4337108
B8: Revaluation Reserves | C8: 0 | D8: 0 | E8: 0 | F8: 3474 | G8: 0 | H8: 0 | I8: 0 | J8: 0 | K8: 27534 | L8: 716721
B9: Statutory Reserves | C9: 0 | D9: 327059 | E9: 0 | F9: 0 | G9: 1312284 | H9: 11277 | I9: 6000 | J9: 49785 | K9: 311922 | L9: 23634668
B10: Retained Earnings | C10: -2036507 | D10: 283436 | E10: -1946681 | F10: 0 | G10: 560253 | H10: 0 | I10: 0 | J10: 0 | K10: 117004 | L10: 3556397
B11: Other Reserves | C11: 0 | D11: 0 | E11: 0 | F11: 0 | G11: 0 | H11: 9000 | I11: -27774 | J11: 1114 | K11: 0 | L11: 11211168
B12: Total Equity | C12: 2023320 | D12: 1010495 | E12: 887395 | F12: 153474 | G12: 2745936 | H12: 170277 | I12: 378226 | J12: 205875 | K12: 2041916 | L12: 57533916
B13: Underwriting Provisions | C13: 328213 | D13: 834949 | E13: 16106 | F13: 9993 | G13: 0 | H13: 0 | I13: 59284 | J13: 98563 | K13: 472198 | L13: 5515430
B14: Actuarial Contract Liabilities | C14: 11837077 | D14: 3878503 | E14: 625172 | F14: 375437 | G14: 19646788 | H14: 0 | I14: 2870864 | J14: 259844 | K14: 9522404 | L14: 377115513
B15: LongTerm Liabilities | C15: 0 | D15: 166904 | E15: 0 | F15: 0 | G15: 649621 | H15: 7517 | I15: 0 | J15: 0 | K15: 183825 | L15: 9973713
B16: Current Liabilities | C16: 1134057 | D16: 1727922 | E16: 263793 | F16: 56667 | G16: 1541309 | H16: 70026 | I16: 32955 | J16: 74270 | K16: 500856 | L16: 16795077
B17: Total Equity And Liabilities | C17: 15322667 | D17: 7618773 | E17: 1792466 | F17: 595572 | G17: 24583653 | H17: 247820 | I17: 3341329 | J17: 638551 | K17: 12721199 | L17: 466933648
B18: Land And Buildings | C18: 0 | D18: 0 | E18: 0 | F18: 0 | G18: 0 | H18: 0 | I18: 135000 | J18: 0 | K18: 0 | L18: 2046104
B19: Investment Property | C19: 2340000 | D19: 1515200 | E19: 0 | F19: 80000 | G19: 3375000 | H19: 0 | I19: 1251500 | J19: 310862 | K19: 850000 | L19: 47677379
B20: Other Fixed Assets | C20: 79148 | D20: 37822 | E20: 61964 | F20: 127 | G20: 179260 | H20: 0 | I20: 715 | J20: 17583 | K20: 27413 | L20: 972057
B21: Government Securities | C21: 3904772 | D21: 773117 | E21: 1372375 | F21: 197342 | G21: 17781630 | H21: 33580 | I21: 282241 | J21: 74983 | K21: 8109137 | L21: 289950607
B22: Other Securities | C22: 22860 | D22: 0 | E22: 0 | F22: 0 | G22: 103108 | H22: 19756 | I22: 0 | J22: 0 | K22: 0 | L22: 878868
B23: Investment in Related Companies | C23: 0 | D23: 0 | E23: 0 | F23: 0 | G23: 0 | H23: 0 | I23: 0 | J23: 0 | K23: 0 | L23: 5010565
B24: Corporate Bonds | C24: 237043 | D24: 0 | E24: 0 | F24: 28283 | G24: 53695 | H24: 24920 | I24: 0 | J24: 0 | K24: 62285 | L24: 3135863
B25: Commercial Papers | C25: 0 | D25: 0 | E25: 0 | F25: 0 | G25: 0 | H25: 0 | I25: 0 | J25: 0 | K25: 0 | L25: 188087
B26: Debentures | C26: 0 | D26: 0 | E26: 0 | F26: 0 | G26: 0 | H26: 0 | I26: 0 | J26: 0 | K26: 0 | L26: 0
B27: Ordinary Shares Quoted | C27: 3939642 | D27: 23818 | E27: 0 | F27: 0 | G27: 1508425 | H27: 0 | I27: 0 | J27: 0 | K27: 2086260 | L27: 35345641
B28: Ordinary Shares Unquoted | C28: 377129 | D28: 0 | E28: 0 | F28: 0 | G28: 0 | H28: 0 | I28: 0 | J28: 0 | K28: 15701 | L28: 7772530
B29: Preference Shares Quoted | C29: 0 | D29: 0 | E29: 0 | F29: 0 | G29: 0 | H29: 0 | I29: 0 | J29: 0 | K29: 0 | L29: 1223
B30: Preference Shares Unquoted | C30: 0 | D30: 100000 | E30: 0 | F30: 0 | G30: 0 | H30: 0 | I30: 0 | J30: 0 | K30: 0 | L30: 100000
B31: Loans Secured & Unsecured | C31: 139982 | D31: 153026 | E31: 27251 | F31: 7163 | G31: 250548 | H31: 0 | I31: 0 | J31: 4547 | K31: 34086 | L31: 5912585
B32: Mortgages | C32: 2568 | D32: 0 | E32: 0 | F32: 0 | G32: 88101 | H32: 0 | I32: 0 | J32: 0 | K32: 75409 | L32: 2436226
B33: Term Deposits | C33: 3202743 | D33: 1422501 | E33: 87999 | F33: 254394 | G33: 315292 | H33: 117240 | I33: 1103455 | J33: 91701 | K33: 841382 | L33: 30147875
B34: Cash and Cash Balances | C34: 391992 | D34: 1533142 | E34: 40857 | F34: 19611 | G34: 368032 | H34: 12232 | I34: 1188 | J34: 11066 | K34: 174322 | L34: 6384231
B35: Outstanding Premiums | C35: 73613 | D35: 1582268 | E35: 14266 | F35: 3891 | G35: 164878 | H35: 0 | I35: 26389 | J35: 126162 | K35: 310785 | L35: 5812545
B36: Other Receivables | C36: 264232 | D36: 206923 | E36: 159 | F36: 0 | G36: 0 | H36: 30711 | I36: 0 | J36: 0 | K36: 15684 | L36: 4270906
B37: Other Assets | C37: 337732 | D37: 267148 | E37: 137888 | F37: 4761 | G37: 215144 | H37: 9382 | I37: 540842 | J37: 0 | K37: 118734 | L37: 16863643
B38: Intangible Assets | C38: 9212 | D38: 3808 | E38: 49706 | F38: 0 | G38: 180542 | H38: 0 | I38: 0 | J38: 1648 | K38: 0 | L38: 2026713
B39: Total Assets | C39: 15322667 | D39: 7618773 | E39: 1792466 | F39: 595572 | G39: 24583653 | H39: 247820 | I39: 3341329 | J39: 638551 | K39: 12721199 | L39: 466933648
B40: Amounts in Thousand Shillings

Sheet APPENDIX 5 I
B2: APPENDIX 5: SUMMARY OF GENERAL INSURANCE BUSINESS BALANCE SHEETS AS AT 31.12.2019
B3: Company | C3: AAR INSURANCE KENYA | D3: AFRICAN MERCHANT ASSURANCE | E3: AIG INSURANCE COMPANY | F3: ALLIANZ INSURANCE COMPANY | G3: APA INSURANCE COMPANY | H3: BRITAM GENERAL INSURANCE COMPANY | I3: CIC GENERAL INSURANCE COMPANY | J3: CONTINENTAL REINSURANCE | K3: CORPORATE INSURANCE COMPANY | L3: DIRECTLINE ASSURANCE COMPANY
B4: Share Capital | C4: 500000 | D4: 987386 | E4: 450000 | F4: 1340290 | G4: 1250000 | H4: 2668000 | I4: 1700000 | J4: 800000 | K4: 400000 | L4: 300000
B5: Share Premium | C5: 660523 | D5: 0 | E5: 0 | F5: 0 | G5: 0 | H5: 0 | I5: 0 | J5: 0 | K5: 0 | L5: 0
B6: Revaluation Reserves | C6: 0 | D6: 15885 | E6: -40521 | F6: 0 | G6: 0 | H6: 0 | I6: 0 | J6: 1012 | K6: 0 | L6: -118035
B7: Statutory Reserves | C7: 0 | D7: 0 | E7: 0 | F7: 0 | G7: 0 | H7: 0 | I7: 0 | J7: 0 | K7: 0 | L7: 0
B8: Retained Earnings | C8: -88725 | D8: 469618 | E8: 1525366 | F8: -337942 | G8: 2933625 | H8: 47539 | I8: 2619773 | J8: 511169 | K8: 313690 | L8: 375315
B9: Other Reserves | C9: 0 | D9: 0 | E9: 150000 | F9: 0 | G9: 894224 | H9: 0 | I9: -96301 | J9: 0 | K9: 0 | L9: 0
B10: Total Equity | C10: 1071797 | D10: 1472889 | E10: 2084844 | F10: 1002348 | G10: 5077849 | H10: 2715539 | I10: 4223471 | J10: 1312180 | K10: 713690 | L10: 557279
B11: Underwriting Provisions | C11: 2014487 | D11: 1429616 | E11: 1023872 | F11: 328335 | G11: 7537515 | H11: 5761604 | I11: 7298551 | J11: 1754822 | K11: 699863 | L11: 4401519
B12: Actuarial Contract Liabilities | C12: 0 | D12: 0 | E12: 0 | F12: 0 | G12: 0 | H12: 0 | I12: 0 | J12: 0 | K12: 0 | L12: 0
B13: LongTerm Liabilities | C13: 0 | D13: 0 | E13: 0 | F13: 0 | G13: 0 | H13: 0 | I13: 0 | J13: 0 | K13: 0 | L13: 0
B14: Current Liabilities | C14: 942026 | D14: 502389 | E14: 2089037 | F14: 702802 | G14: 835385 | H14: 1853074 | I14: 539634 | J14: 98153 | K14: 83460 | L14: 598869
B15: Total Equity And Liabilities | C15: 4028310 | D15: 3404894 | E15: 5197753 | F15: 2033485 | G15: 13450749 | H15: 10330217 | I15: 12061657 | J15: 3165155 | K15: 1497014 | L15: 5557667
B16: Land And Buildings | C16: 0 | D16: 725694 | E16: 0 | F16: 0 | G16: 0 | H16: 0 | I16: 234000 | J16: 0 | K16: 0 | L16: 380500
B17: Investment Property | C17: 0 | D17: 535000 | E17: 0 | F17: 0 | G17: 1020000 | H17: 0 | I17: 1602000 | J17: 0 | K17: 727523 | L17: 781516
B18: Other Fixed Assets | C18: 81154 | D18: 107865 | E18: 139590 | F18: 44603 | G18: 76802 | H18: 98292 | I18: 118227 | J18: 13511 | K18: 5272 | L18: 26692
B19: Government Securities | C19: 931673 | D19: 511184 | E19: 3794350 | F19: 912050 | G19: 6351757 | H19: 5435467 | I19: 2458715 | J19: 1052974 | K19: 107698 | L19: 811933
B20: Other Securities | C20: 0 | D20: 0 | E20: 0 | F20: 0 | G20: 30197 | H20: 0 | I20: 185670 | J20: 0 | K20: 0 | L20: 0
B21: Investment in Related Companies | C21: 0 | D21: 0 | E21: 0 | F21: 0 | G21: 662479 | H21: 0 | I21: 0 | J21: 0 | K21: 0 | L21: 516612
B22: Corporate Bonds | C22: 106067 | D22: 0 | E22: 0 | F22: 0 | G22: 223731 | H22: 170738 | I22: 96945 | J22: 0 | K22: 0 | L22: 0
B23: Commercial Papers | C23: 0 | D23: 0 | E23: 0 | F23: 0 | G23: 0 | H23: 0 | I23: 66412 | J23: 0 | K23: 0 | L23: 0
B24: Debentures | C24: 0 | D24: 0 | E24: 0 | F24: 0 | G24: 0 | H24: 0 | I24: 0 | J24: 0 | K24: 0 | L24: 0
B25: Ordinary Shares Quoted | C25: 0 | D25: 2227 | E25: 0 | F25: 0 | G25: 1391929 | H25: 0 | I25: 500780 | J25: 0 | K25: 0 | L25: 109471
B26: Ordinary Shares Unquoted | C26: 0 | D26: 0 | E26: 0 | F26: 0 | G26: 11882 | H26: 0 | I26: 20236 | J26: 0 | K26: 788 | L26: 0
B27: Preference Shares Quoted | C27: 0 | D27: 0 | E27: 0 | F27: 0 | G27: 0 | H27: 0 | I27: 0 | J27: 0 | K27: 0 | L27: 0
B28: Preference Shares Unquoted | C28: 0 | D28: 0 | E28: 0 | F28: 0 | G28: 0 | H28: 0 | I28: 0 | J28: 0 | K28: 0 | L28: 0
B29: Loans Secured & Unsecured | C29: 0 | D29: 7889 | E29: 11321 | F29: 0 | G29: 41003 | H29: 0 | I29: 700000 | J29: 5319 | K29: 0 | L29: 729482
B30: Mortgages | C30: 0 | D30: 0 | E30: 0 | F30: 0 | G30: 76850 | H30: 0 | I30: 60521 | J30: 2991 | K30: 0 | L30: 0
B31: Term Deposits | C31: 1324303 | D31: 290445 | E31: 2057 | F31: 268011 | G31: 1319255 | H31: 1761801 | I31: 1605152 | J31: 172313 | K31: 3088 | L31: 408490
B32: Cash and Cash Balances | C32: 423772 | D32: 29070 | E32: 225608 | F32: 146853 | G32: 74839 | H32: 347989 | I32: 536184 | J32: 18274 | K32: 11331 | L32: 142951
B33: Outstanding Premiums | C33: 264786 | D33: 867589 | E33: 662275 | F33: 56610 | G33: 996425 | H33: 996299 | I33: 2397696 | J33: 844000 | K33: 408155 | L33: 170753
B34: Other Receivables | C34: 615597 | D34: 16372 | E34: 34380 | F34: 196573 | G34: 48633 | H34: 11 | I34: 425713 | J34: 0 | K34: 27444 | L34: 0
B35: Other Assets | C35: 122164 | D35: 267717 | E35: 318892 | F35: 35937 | G35: 806903 | H35: 926477 | I35: 947557 | J35: 621667 | K35: 161504 | L35: 1414517
B36: Intangible Assets | C36: 158795 | D36: 43842 | E36: 9282 | F36: 372850 | G36: 318065 | H36: 593143 | I36: 105849 | J36: 434105 | K36: 44211 | L36: 64751
B37: Total Assets | C37: 4028310 | D37: 3404894 | E37: 5197753 | F37: 2033485 | G37: 13450749 | H37: 10330217 | I37: 12061657 | J37: 3165155 | K37: 1497014 | L37: 5557667
B38: Amounts in thousand Shillings | J38: Continued next page

Sheet APPENDIX 5 II
B3: Continued from previous page
B4: APPENDIX 5: SUMMARY OF GENERAL INSURANCE BUSINESS BALANCE SHEETS AS AT 31.12.2019
B5: Company | C5: EAST AFRICA REINSURANCE COMPANY | D5: FIDELITY SHIELD INSURANCE COMPANY | E5: FIRST ASSURANCE COMPANY | F5: GA GENERAL INSURANCE COMPANY | G5: GEMINIA INSURANCE COMPANY LIMITED | H5: GHANA REINSURANCE COMPANY LIMITED | I5: HERITAGE INSURANCE COMPANY | J5: ICEA LION GENERAL INSURANCE COMPANY | K5: INTRA-AFRICA ASSURANCE COMPANY | L5: INVESCO ASSURANCE COMPANY | M5: JUBILEE GENERAL INSURANCE
B6: Share Capital | C6: 1000000 | D6: 600000 | E6: 810000 | F6: 700000 | G6: 550000 | H6: 1000000 | I6: 1000000 | J6: 1000000 | K6: 500000 | L6: 0 | M6: 2307000
B7: Share Premium | C7: 0 | D7: 0 | E7: 512139 | F7: 0 | G7: 0 | H7: 10871 | I7: 0 | J7: 0 | K7: 0 | L7: 0 | M7: 0
B8: Revaluation Reserves | C8: 281068 | D8: 106980 | E8: 256865 | F8: 872516 | G8: 0 | H8: 0 | I8: 0 | J8: -13216 | K8: 357572 | L8: 0 | M8: 0
B9: Statutory Reserves | C9: 0 | D9: 0 | E9: 0 | F9: 0 | G9: 0 | H9: 0 | I9: 0 | J9: 0 | K9: 0 | L9: 0 | M9: 0
B10: Retained Earnings | C10: 2794949 | D10: 459803 | E10: 94377 | F10: 3052614 | G10: 1456194 | H10: 121459 | I10: 2471899 | J10: 3819538 | K10: 81256 | L10: 0 | M10: 0
B11: Other Reserves | C11: 3950 | D11: 0 | E11: 0 | F11: 377479 | G11: 220193 | H11: 0 | I11: 0 | J11: 150000 | K11: 0 | L11: 0 | M11: 0
B12: Total Equity | C12: 4079967 | D12: 1166783 | E12: 1673380 | F12: 5002609 | G12: 2226387 | H12: 1132330 | I12: 3471899 | J12: 4956322 | K12: 938828 | L12: 0 | M12: 2307000
B13: Underwriting Provisions | C13: 2684286 | D13: 1780852 | E13: 1976771 | F13: 4850612 | G13: 3556255 | H13: 298338 | I13: 3473159 | J13: 4125019 | K13: 1021290 | L13: 0 | M13: 3693179
B14: Actuarial Contract Liabilities | C14: 0 | D14: 0 | E14: 0 | F14: 0 | G14: 0 | H14: 0 | I14: 0 | J14: 0 | K14: 0 | L14: 0 | M14: 0
B15: LongTerm Liabilities | C15: 124674 | D15: 0 | E15: 0 | F15: 5561 | G15: 0 | H15: 0 | I15: 0 | J15: 306019 | K15: 65677 | L15: 0 | M15: 0
B16: Current Liabilities | C16: 1070453 | D16: 156979 | E16: 1126321 | F16: 1671379 | G16: 457942 | H16: 75648 | I16: 930633 | J16: 1536148 | K16: 57889 | L16: 0 | M16: 505013
B17: Total Equity And Liabilities | C17: 7959381 | D17: 3104614 | E17: 4776472 | F17: 11530161 | G17: 6240584 | H17: 1506317 | I17: 7875691 | J17: 10923507 | K17: 2083684 | L17: 0 | M17: 6505191
B18: Land And Buildings | C18: 480407 | D18: 272117 | E18: 439000 | F18: 1170000 | G18: 380000 | H18: 30789 | I18: 0 | J18: 0 | K18: 134775 | L18: 0 | M18: 0
B19: Investment Property | C19: 800000 | D19: 1015883 | E19: 1450000 | F19: 1663413 | G19: 1009000 | H19: 0 | I19: 0 | J19: 2765000 | K19: 321725 | L19: 0 | M19: 0
B20: Other Fixed Assets | C20: 9179 | D20: 6590 | E20: 32298 | F20: 48239 | G20: 250369 | H20: 7320 | I20: 61991 | J20: 69778 | K20: 25818 | L20: 0 | M20: 25735
B21: Government Securities | C21: 2245671 | D21: 893196 | E21: 1141673 | F21: 3923483 | G21: 889003 | H21: 987453 | I21: 4429968 | J21: 4832722 | K21: 336855 | L21: 0 | M21: 2463793
B22: Other Securities | C22: 0 | D22: 0 | E22: 0 | F22: 0 | G22: 0 | H22: 0 | I22: 0 | J22: 50510 | K22: 0 | L22: 0 | M22: 0
B23: Investment in Related Companies | C23: 0 | D23: 0 | E23: 0 | F23: 566621 | G23: 86571 | H23: 0 | I23: 146557 | J23: 50147 | K23: 0 | L23: 0 | M23: 0
B24: Corporate Bonds | C24: 192805 | D24: 0 | E24: 20785 | F24: 43353 | G24: 0 | H24: 0 | I24: 28693 | J24: 156832 | K24: 0 | L24: 0 | M24: 0
B25: Commercial Papers | C25: 0 | D25: 0 | E25: 0 | F25: 0 | G25: 0 | H25: 0 | I25: 0 | J25: 0 | K25: 0 | L25: 0 | M25: 0
B26: Debentures | C26: 0 | D26: 0 | E26: 0 | F26: 0 | G26: 0 | H26: 0 | I26: 0 | J26: 0 | K26: 0 | L26: 0 | M26: 0
B27: Ordinary Shares Quoted | C27: 45335 | D27: 52063 | E27: 0 | F27: 439970 | G27: 174054 | H27: 0 | I27: 11304 | J27: 1004468 | K27: 58156 | L27: 0 | M27: 0
B28: Ordinary Shares Unquoted | C28: 0 | D28: 0 | E28: 0 | F28: 364931 | G28: 7647 | H28: 0 | I28: 0 | J28: 7568 | K28: 0 | L28: 0 | M28: 0
B29: Preference Shares Quoted | C29: 0 | D29: 0 | E29: 0 | F29: 0 | G29: 0 | H29: 0 | I29: 0 | J29: 0 | K29: 0 | L29: 0 | M29: 0
B30: Preference Shares Unquoted | C30: 0 | D30: 0 | E30: 0 | F30: 0 | G30: 0 | H30: 0 | I30: 0 | J30: 0 | K30: 0 | L30: 0 | M30: 0
B31: Loans Secured & Unsecured | C31: 13575 | D31: 19 | E31: 21896 | F31: 244802 | G31: 141989 | H31: 1350 | I31: 40397 | J31: 26775 | K31: 30141 | L31: 0 | M31: 0
B32: Mortgages | C32: 75819 | D32: 6583 | E32: 0 | F32: 0 | G32: 0 | H32: 0 | I32: 216203 | J32: 0 | K32: 12733 | L32: 0 | M32: 0
B33: Term Deposits | C33: 1863533 | D33: 233184 | E33: 447393 | F33: 762507 | G33: 1321736 | H33: 89258 | I33: 1161266 | J33: 335800 | K33: 302429 | L33: 0 | M33: 446956
B34: Cash and Cash Balances | C34: 243512 | D34: 108888 | E34: 110445 | F34: 121800 | G34: 232358 | H34: 29605 | I34: 490459 | J34: 21779 | K34: 44606 | L34: 0 | M34: 1260404
B35: Outstanding Premiums | C35: 389073 | D35: 257734 | E35: 672084 | F35: 1637892 | G35: 1191557 | H35: 301760 | I35: 616706 | J35: 655041 | K35: 613438 | L35: 0 | M35: 1971898
B36: Other Receivables | C36: 928054 | D36: 0 | E36: 0 | F36: 18228 | G36: 0 | H36: 0 | I36: 6688 | J36: 94909 | K36: 90368 | L36: 0 | M36: -94414
B37: Other Assets | C37: 265267 | D37: 194225 | E37: 341412 | F37: 129816 | G37: 161946 | H37: 21123 | I37: 561545 | J37: 605576 | K37: 0 | L37: 0 | M37: 212883
B38: Intangible Assets | C38: 407152 | D38: 64132 | E38: 99486 | F38: 395105 | G38: 394354 | H38: 37658 | I38: 103915 | J38: 246602 | K38: 112642 | L38: 0 | M38: 217937
B39: Total Assets | C39: 7959381 | D39: 3104614 | E39: 4776472 | F39: 11530161 | G39: 6240584 | H39: 1506317 | I39: 7875691 | J39: 10923507 | K39: 2083684 | L39: 0 | M39: 6505191
B40: Amounts in thousand Shillings | K40: Continued next page

Sheet APPENDIX 5 III
B3: Continued from previous page
B4: APPENDIX 5: SUMMARY OF GENERAL INSURANCE BUSINESS BALANCE SHEETS AS AT 31.12.2019
B5: Company | C5: JUBILEE HEALTH INSURANCE | D5: KENINDIA ASSURANCE COMPANY | E5: KENYA ORIENT INSURANCE COMPANY | F5: KENYA REINSURANCE CORPORATION | G5: MADISON GENERAL INSURANCE COMPANY | H5: MAYFAIR INSURANCE COMPANY | I5: METROPOLITAN CANNON INSURANCE | J5: MUA INSURANCE COMPANY | K5: OCCIDENTAL INSURANCE COMPANY | L5: PACIS INSURANCE COMPANY | M5: PIONEER GENERAL INSURANCE
B6: Share Capital | C6: 2763720 | D6: 400000 | E6: 810721 | F6: 6499491 | G6: 605000 | H6: 1000000 | I6: 453960 | J6: 300000 | K6: 693000 | L6: 617350 | M6: 700000
B7: Share Premium | C7: 0 | D7: 1198 | E7: 0 | F7: 0 | G7: 0 | H7: 0 | I7: 583040 | J7: 0 | K7: 0 | L7: 5712 | M7: 0
B8: Revaluation Reserves | C8: 0 | D8: 376628 | E8: -79171 | F8: 17530 | G8: 0 | H8: 456658 | I8: 0 | J8: 9981 | K8: 51465 | L8: 0 | M8: 0
B9: Statutory Reserves | C9: 0 | D9: 0 | E9: 0 | F9: 0 | G9: 0 | H9: 0 | I9: 0 | J9: 0 | K9: 0 | L9: 0 | M9: 0
B10: Retained Earnings | C10: 0 | D10: 1846602 | E10: -1065981 | F10: 19011449 | G10: 565602 | H10: 1449530 | I10: -143067 | J10: 553834 | K10: 730430 | L10: 110008 | M10: -2411
B11: Other Reserves | C11: 0 | D11: 427860 | E11: 382000 | F11: 208339 | G11: 0 | H11: 0 | I11: 0 | J11: 0 | K11: 85010 | L11: 0 | M11: 0
B12: Total Equity | C12: 2763720 | D12: 3052288 | E12: 47569 | F12: 25736809 | G12: 1170602 | H12: 2906188 | I12: 893933 | J12: 863816 | K12: 1559905 | L12: 733070 | M12: 697589
B13: Underwriting Provisions | C13: 2403928 | D13: 3052903 | E13: 1415877 | F13: 11116138 | G13: 2850764 | H13: 2262240 | I13: 1063047 | J13: 469141 | K13: 1825376 | L13: 1132995 | M13: 581793
B14: Actuarial Contract Liabilities | C14: 0 | D14: 0 | E14: 0 | F14: 0 | G14: 0 | H14: 0 | I14: 0 | J14: 0 | K14: 0 | L14: 0 | M14: 0
B15: LongTerm Liabilities | C15: 0 | D15: 310714 | E15: 203668 | F15: 0 | G15: 0 | H15: 0 | I15: 0 | J15: 0 | K15: 0 | L15: 0 | M15: 0
B16: Current Liabilities | C16: 482683 | D16: 1460216 | E16: 598127 | F16: 840485 | G16: 421944 | H16: 445194 | I16: 289399 | J16: 215564 | K16: 457021 | L16: 412905 | M16: 125739
B17: Total Equity And Liabilities | C17: 5650330 | D17: 7876121 | E17: 2265242 | F17: 37693433 | G17: 4443310 | H17: 5613622 | I17: 2246378 | J17: 1548520 | K17: 3842302 | L17: 2278970 | M17: 1405120
B18: Land And Buildings | C18: 0 | D18: 790571 | E18: 108000 | F18: 0 | G18: 0 | H18: 265885 | I18: 92500 | J18: 0 | K18: 0 | L18: 113850 | M18: 0
B19: Investment Property | C19: 0 | D19: 1272800 | E19: 194500 | F19: 10330225 | G19: 650000 | H19: 426088 | I19: 264000 | J19: 0 | K19: 410000 | L19: 730000 | M19: 300000
B20: Other Fixed Assets | C20: 25913 | D20: 62360 | E20: 16833 | F20: 66794 | G20: 39388 | H20: 96990 | I20: 16293 | J20: 12533 | K20: 69257 | L20: 30620 | M20: 14360
B21: Government Securities | C21: 957323 | D21: 2752720 | E21: 153297 | F21: 13069364 | G21: 459561 | H21: 1588695 | I21: 1134797 | J21: 607456 | K21: 1485648 | L21: 238076 | M21: 79266
B22: Other Securities | C22: 0 | D22: 0 | E22: 0 | F22: 0 | G22: 0 | H22: 0 | I22: 0 | J22: 0 | K22: 0 | L22: 0 | M22: 0
B23: Investment in Related Companies | C23: 1407975 | D23: 105612 | E23: 134000 | F23: 5633316 | G23: 0 | H23: 710899 | I23: 18526 | J23: 143807 | K23: 0 | L23: 0 | M23: 0
B24: Corporate Bonds | C24: 0 | D24: 52799 | E24: 0 | F24: 156450 | G24: 0 | H24: 0 | I24: 0 | J24: 0 | K24: 7251 | L24: 0 | M24: 0
B25: Commercial Papers | C25: 0 | D25: 0 | E25: 0 | F25: 0 | G25: 0 | H25: 0 | I25: 0 | J25: 0 | K25: 0 | L25: 0 | M25: 0
B26: Debentures | C26: 0 | D26: 0 | E26: 0 | F26: 0 | G26: 0 | H26: 0 | I26: 0 | J26: 0 | K26: 0 | L26: 0 | M26: 0
B27: Ordinary Shares Quoted | C27: 466792 | D27: 41393 | E27: 9819 | F27: 1218978 | G27: 1319 | H27: 159880 | I27: 0 | J27: 64274 | K27: 262421 | L27: 38412 | M27: 0
B28: Ordinary Shares Unquoted | C28: 696556 | D28: 624274 | E28: 332029 | F28: 205733 | G28: 490000 | H28: 659168 | I28: 42675 | J28: 0 | K28: 825 | L28: 177009 | M28: 0
B29: Preference Shares Quoted | C29: 402 | D29: 0 | E29: 0 | F29: 81 | G29: 0 | H29: 0 | I29: 0 | J29: 0 | K29: 0 | L29: 0 | M29: 0
B30: Preference Shares Unquoted | C30: 0 | D30: 0 | E30: 0 | F30: 0 | G30: 0 | H30: 0 | I30: 0 | J30: 0 | K30: 0 | L30: 0 | M30: 0
B31: Loans Secured & Unsecured | C31: 0 | D31: 13030 | E31: 0 | F31: 0 | G31: 0 | H31: 9846 | I31: 425 | J31: 2157 | K31: 0 | L31: 0 | M31: 870
B32: Mortgages | C32: 36923 | D32: 0 | E32: 0 | F32: 668076 | G32: 0 | H32: 0 | I32: 31699 | J32: 0 | K32: 0 | L32: 0 | M32: 0
B33: Term Deposits | C33: 56645 | D33: 359659 | E33: 41605 | F33: 1231788 | G33: 1130167 | H33: 975933 | I33: 294775 | J33: 115553 | K33: 238943 | L33: 93514 | M33: 390368
B34: Cash and Cash Balances | C34: 448495 | D34: 84323 | E34: 81423 | F34: 346207 | G34: 135349 | H34: 63810 | I34: 32654 | J34: 11948 | K34: 108790 | L34: 17621 | M34: 137165
B35: Outstanding Premiums | C35: 797808 | D35: 344121 | E35: 631791 | F35: 1951838 | G35: 724747 | H35: 517279 | I35: 89286 | J35: 468154 | K35: 739334 | L35: 601175 | M35: 295359
B36: Other Receivables | C36: 214279 | D36: 0 | E36: 75373 | F36: 602478 | G36: 436074 | H36: 0 | I36: 18519 | J36: 9901 | K36: 206204 | L36: 0 | M36: 104526
B37: Other Assets | C37: 447263 | D37: 1342809 | E37: 402810 | F37: 746512 | G37: 0 | H37: 132330 | I37: 147907 | J37: 68245 | K37: 188149 | L37: 172017 | M37: 20900
B38: Intangible Assets | C38: 93956 | D38: 29650 | E38: 83762 | F38: 1465592 | G38: 376704 | H38: 6820 | I38: 62322 | J38: 44492 | K38: 125479 | L38: 66675 | M38: 62306
B39: Total Assets | C39: 5650330 | D39: 7876121 | E39: 2265242 | F39: 37693433 | G39: 4443310 | H39: 5613622 | I39: 2246378 | J39: 1548520 | K39: 3842302 | L39: 2278970 | M39: 1405120
B40: Amounts in thousand Shillings | K40: Continued next page

Sheet APPENDIX5 IV
B3: Continued from previous page
B4: APPENDIX 5: SUMMARY OF GENERAL INSURANCE BUSINESS BALANCE SHEETS AS AT 31.12.2019
B5: Company | C5: RESOLUTION INSURANCE COMPANY | D5: SAHAM INSURANCE COMPANY | E5: SANLAM INSURANCE COMPANY | F5: TAKAFUL INSURANCE OF AFRICA | G5: TAUSI ASSURANCE COMPANY | H5: THE KENYAN ALLIANCE INSURANCE COMPANY | I5: THE MONARCH INSURANCE COMPANY | J5: TRIDENT INSURANCE COMPANY | K5: UAP INSURANCE COMPANY | L5: WAICA REINSURANCE KENYA LIMITED | M5: XPLICO INSURANCE COMPANY | N5: TOTAL
B6: Share Capital | C6: 410000 | D6: 402000 | E6: 1028998 | F6: 486804 | G6: 600000 | H6: 300000 | I6: 445024 | J6: 500000 | K6: 1000000 | L6: 1102550 | M6: 887500 | N6: 41868795
B7: Share Premium | C7: 1490000 | D7: 0 | E7: 100361 | F7: 66601 | G7: 0 | H7: 0 | I7: 0 | J7: 0 | K7: 0 | L7: 0 | M7: 0 | N7: 3430445
B8: Revaluation Reserves | C8: 2815 | D8: -10654 | E8: 0 | F8: 25539 | G8: 191593 | H8: 0 | I8: 0 | J8: 184225 | K8: 0 | L8: 0 | M8: 0 | N8: 2946734
B9: Statutory Reserves | C9: 0 | D9: 0 | E9: 0 | F9: 0 | G9: 0 | H9: 2750 | I9: 0 | J9: 0 | K9: 0 | L9: 0 | M9: 0 | N9: 2750
B10: Retained Earnings | C10: -2340216 | D10: 306886 | E10: -84829 | F10: -250787 | G10: 910126 | H10: 1011705 | I10: 244049 | J10: 1013134 | K10: 5219001 | L10: -52321 | M10: 105763 | N10: 51860021
B11: Other Reserves | C11: 0 | D11: 0 | E11: 0 | F11: 0 | G11: 50821 | H11: -5958 | I11: 0 | J11: 25000 | K11: 900000 | L11: 0 | M11: 220000 | N11: 3992617
B12: Total Equity | C12: -437401 | D12: 698232 | E12: 1044531 | F12: 328157 | G12: 1752540 | H12: 1308497 | I12: 689073 | J12: 1722359 | K12: 7119001 | L12: 1050229 | M12: 1213263 | N12: 104101362
B13: Underwriting Provisions | C13: 1880010 | D13: 855969 | E13: 1605246 | F13: 1192346 | G13: 755457 | H13: 1323634 | I13: 1332222 | J13: 1898818 | K13: 6032467 | L13: 113598 | M13: 1299011 | N13: 106172927
B14: Actuarial Contract Liabilities | C14: 0 | D14: 0 | E14: 0 | F14: 0 | G14: 0 | H14: 0 | I14: 0 | J14: 0 | K14: 0 | L14: 0 | M14: 0 | N14: 0
B15: LongTerm Liabilities | C15: 0 | D15: 101336 | E15: 0 | F15: 30000 | G15: 68230 | H15: 302170 | I15: 0 | J15: 0 | K15: 0 | L15: 0 | M15: 0 | N15: 1518048
B16: Current Liabilities | C16: 3732035 | D16: 436294 | E16: 255711 | F16: 648135 | G16: 133365 | H16: 993547 | I16: 69978 | J16: 494701 | K16: 1484132 | L16: 217087 | M16: 271951 | N16: 30319444
B17: Total Equity And Liabilities | C17: 5174644 | D17: 2091830 | E17: 2905488 | F17: 2198639 | G17: 2709592 | H17: 3927848 | I17: 2091273 | J17: 4115877 | K17: 14635600 | L17: 1380914 | M17: 2784224 | N17: 242111781
B18: Land And Buildings | C18: 0 | D18: 0 | E18: 0 | F18: 0 | G18: 317500 | H18: 290266 | I18: 0 | J18: 240660 | K18: 0 | L18: 0 | M18: 0 | N18: 6466513
B19: Investment Property | C19: 0 | D19: 80000 | E19: 490000 | F19: 24500 | G19: 0 | H19: 1101091 | I19: 737018 | J19: 1716399 | K19: 3657700 | L19: 0 | M19: 722200 | N19: 36797581
B20: Other Fixed Assets | C20: 117423 | D20: 8570 | E20: 89105 | F20: 48228 | G20: 26361 | H20: 58883 | I20: 30810 | J20: 7369 | K20: 132824 | L20: 47124 | M20: 84830 | N20: 2352193
B21: Government Securities | C21: 264583 | D21: 596717 | E21: 856050 | F21: 11711 | G21: 1444822 | H21: 332165 | I21: 112474 | J21: 243050 | K21: 4638628 | L21: 193506 | M21: 137400 | N21: 75868925
B22: Other Securities | C22: 0 | D22: 0 | E22: 0 | F22: 19747 | G22: 0 | H22: 0 | I22: 0 | J22: 15000 | K22: 0 | L22: 0 | M22: 57938 | N22: 359061
B23: Investment in Related Companies | C23: 0 | D23: 0 | E23: 0 | F23: 0 | G23: 0 | H23: 0 | I23: 0 | J23: 615600 | K23: 0 | L23: 0 | M23: 245251 | N23: 11043973
B24: Corporate Bonds | C24: 0 | D24: 36642 | E24: 0 | F24: 49701 | G24: 0 | H24: 0 | I24: 0 | J24: 0 | K24: 161136 | L24: 0 | M24: 0 | N24: 1503927
B25: Commercial Papers | C25: 0 | D25: 0 | E25: 0 | F25: 0 | G25: 0 | H25: 0 | I25: 0 | J25: 0 | K25: 0 | L25: 0 | M25: 0 | N25: 66412
B26: Debentures | C26: 0 | D26: 0 | E26: 0 | F26: 0 | G26: 0 | H26: 0 | I26: 0 | J26: 0 | K26: 0 | L26: 0 | M26: 0 | N26: 0
B27: Ordinary Shares Quoted | C27: 0 | D27: 26433 | E27: 0 | F27: 0 | G27: 218739 | H27: 16639 | I27: 0 | J27: 6510 | K27: 1390589 | L27: 0 | M27: 0 | N27: 7711956
B28: Ordinary Shares UnQuoted | C28: 0 | D28: 0 | E28: 0 | F28: 0 | G28: 6755 | H28: 35846 | I28: 59 | J28: 29446 | K28: 106664 | L28: 0 | M28: 0 | N28: 3820091
B29: Preference Shares Quoted | C29: 0 | D29: 0 | E29: 754 | F29: 0 | G29: 0 | H29: 0 | I29: 0 | J29: 0 | K29: 0 | L29: 0 | M29: 0 | N29: 1237
B30: Preference Shares Unquoted | C30: 0 | D30: 0 | E30: 0 | F30: 0 | G30: 0 | H30: 0 | I30: 0 | J30: 0 | K30: 0 | L30: 0 | M30: 0 | N30: 0
B31: Loans Secured & Unsecured | C31: 0 | D31: 0 | E31: 501 | F31: 0 | G31: 4915 | H31: 125647 | I31: 0 | J31: 910348 | K31: 599079 | L31: 0 | M31: 20034 | N31: 3702808
B32: Mortgages | C32: 0 | D32: 4801 | E32: 0 | F32: 0 | G32: 76383 | H32: 0 | I32: 0 | J32: 0 | K32: 300450 | L32: 0 | M32: 0 | N32: 1570032
B33: Term Deposits | C33: 726726 | D33: 434485 | E33: 96742 | F33: 289272 | G33: 390406 | H33: 267279 | I33: 184406 | J33: 0 | K33: 555258 | L33: 818055 | M33: 214108 | N33: 23024663
B34: Cash and Cash Balances | C34: 250349 | D34: 210414 | E34: 155341 | F34: 189166 | G34: 37567 | H34: 37352 | I34: 8587 | J34: 47937 | K34: 300024 | L34: 21030 | M34: 76977 | N34: 7423257
B35: Outstanding Premiums | C35: 1142994 | D35: 213588 | E35: 765303 | F35: 432803 | G35: 77507 | H35: 937588 | I35: 786682 | J35: 145780 | K35: 1307183 | L35: 201333 | M35: 778479 | N35: 29921902
B36: Other Receivables | C36: 1571878 | D36: 4563 | E36: 8390 | F36: 8017 | G36: 0 | H36: 453686 | I36: 9773 | J36: 31888 | K36: 225636 | L36: 15010 | M36: 123178 | N36: 6527928
B37: Other Assets | C37: 900713 | D37: 371846 | E37: 336043 | F37: 1019235 | G37: 50633 | H37: 187680 | I37: 134633 | J37: 105806 | K37: 941347 | L37: 27068 | M37: 271784 | N37: 16132860
B38: Intangible Assets | C38: 199978 | D38: 103771 | E38: 107258 | F38: 106260 | G38: 58002 | H38: 83727 | I38: 86831 | J38: 85 | K38: 319083 | L38: 57789 | M38: 52046 | N38: 7816462
B39: Total Assets | C39: 5174644 | D39: 2091830 | E39: 2905488 | F39: 2198639 | G39: 2709592 | H39: 3927848 | I39: 2091273 | J39: 4115877 | K39: 14635600 | L39: 1380914 | M39: 2784224 | N39: 242111781
B40: Amounts in thousand Shillings

Sheet template L (hidden)
B2: APPENDIX 2: SUMMARY OF PROFIT & LOSS ACCOUNTS UNDER LIFE INSURANCE BUSINESS FOR THE YEAR ENDED 31.12.2013
B3: Company | C3: Profit Transferred from Revenue | D3: Investment Income | E3: Other Income | F3: Total Income | G3: Loss Transferred From Revenue | H3: Management Expenses | I3: Total Outgo | J3: Profit / (Loss) Before Taxation | K3: Provision for Taxation | L3: Profit/(Loss) After Taxation | M3: Unappropriated Profit/(Loss) BF | N3: Transfer To Reserves | O3: Other Appropriations | P3: Dividend | Q3: Unappropriated Profit /(Loss) CF
B4: APA LIFE ASSURANCE COMPANY | C4: 28949 | D4: 14187 | E4: 0 | F4: 43137 | G4: 0 | H4: 1000 | I4: 3573 | J4: 39564 | K4: 10169 | L4: 29394 | M4: 41950 | N4: 0 | O4: 0 | P4: 30000 | Q4: 41345
B5: BRITISH AMERICAN INSURANCE | C5: 1797417 | D5: 154508 | E5: 0 | F5: 1951925 | G5: 0 | H5: 0 | I5: 0 | J5: 1951925 | K5: 300000 | L5: 1651925 | M5: 0 | N5: 1651925 | O5: 0 | P5: 0 | Q5: 0
B6: CANNON ASSURANCE COMPANY | C6: 180000 | D6: 0 | E6: 0 | F6: 180000 | G6: 0 | H6: 0 | I6: 0 | J6: 180000 | K6: 56883 | L6: 123117 | M6: 357165 | N6: 0 | O6: 0 | P6: 0 | Q6: 480281
B7: CAPEX LIFE ASSURANCE COMPANY | C7: 4927 | D7: 0 | E7: 0 | F7: 4927 | G7: 0 | H7: 0 | I7: 0 | J7: 4927 | K7: 2217 | L7: 2710 | M7: 39084 | N7: 0 | O7: 0 | P7: 0 | Q7: 41794
B8: CFC LIFE ASSURANCE COMPANY | C8: 436635 | D8: 0 | E8: 0 | F8: 436635 | G8: 0 | H8: 0 | I8: 0 | J8: 436635 | K8: 20176 | L8: 416459 | M8: -356061 | N8: 401761 | O8: 0 | P8: 0 | Q8: -341363
B9: CIC LIFE ASSURANCE COMPANY | C9: 437815 | D9: 0 | E9: 0 | F9: 437815 | G9: 0 | H9: 0 | I9: 0 | J9: 437815 | K9: 0 | L9: 437815 | M9: 0 | N9: 0 | O9: 0 | P9: 0 | Q9: 437815
B10: CONTINENTAL REINSURANCE | C10: 17799 | D10: 17039 | E10: 51 | F10: 34889 | G10: 0 | H10: 0 | I10: 0 | J10: 34889 | K10: 0 | L10: 34889 | M10: 0 | N10: 0 | O10: 0 | P10: 0 | Q10: 34889
B11: CORPORATE INSURANCE COMPANY | C11: 27119 | D11: 0 | E11: 0 | F11: 27119 | G11: 0 | H11: 0 | I11: 0 | J11: 27119 | K11: 873 | L11: 26245 | M11: 51378 | N11: 0 | O11: 0 | P11: 0 | Q11: 77623
B12: EAST AFRICAN REINSURANCE | C12: 40405 | D12: 74104 | E12: 21 | F12: 114530 | G12: 0 | H12: 0 | I12: 0 | J12: 114530 | K12: 24297 | L12: 90234 | M12: 268920 | N12: 65265 | O12: 0 | P12: 0 | Q12: 293888
B13: FIRST ASSURANCE COMPANY | C13: 33467 | D13: 0 | E13: 4675 | F13: 38142 | G13: 0 | H13: 0 | I13: 0 | J13: 38142 | K13: 0 | L13: 38142 | M13: 0 | N13: 38142 | O13: 0 | P13: 0 | Q13: 0
B14: GA LIFE ASSURANCE COMPANY | C14: 10056 | D14: 0 | E14: 0 | F14: 10056 | G14: 0 | H14: 0 | I14: 0 | J14: 10056 | K14: 2325 | L14: 7731 | M14: 0 | N14: 0 | O14: 0 | P14: 0 | Q14: 7731
B15: GEMINIA INSURANCE COMPANY | C15: 0 | D15: 0 | E15: 0 | F15: 0 | G15: 0 | H15: 0 | I15: 0 | J15: 0 | K15: 0 | L15: 0 | M15: 0 | N15: 0 | O15: 0 | P15: 0 | Q15: 0
B16: ICEA LION LIFE ASSURANCE | C16: 210000 | D16: 128425 | E16: 88545 | F16: 426970 | G16: 0 | H16: 21078 | I16: 37906 | J16: 389064 | K16: 7458 | L16: 381606 | M16: 1949933 | N16: 0 | O16: 0 | P16: 680000 | Q16: 1651539
B17: JUBILEE INSURANCE COMPANY | C17: 310093 | D17: 0 | E17: 0 | F17: 310093 | G17: 0 | H17: 0 | I17: 0 | J17: 310093 | K17: 0 | L17: 310093 | M17: 0 | N17: 0 | O17: 0 | P17: 0 | Q17: 310093
B18: KENINDIA ASSURANCE COMPANY | C18: 123084 | D18: 2050638 | E18: 7530 | F18: 2181252 | G18: 0 | H18: 0 | I18: 0 | J18: 2181252 | K18: 0 | L18: 2181252 | M18: 0 | N18: 30000 | O18: 0 | P18: 0 | Q18: 2151252
B19: KENYA REINSURANCE CORPORATION | C19: 720393 | D19: 0 | E19: 0 | F19: 720393 | G19: 0 | H19: 0 | I19: 0 | J19: 720393 | K19: 27175 | L19: 693218 | M19: 2402630 | N19: 0 | O19: 0 | P19: 0 | Q19: 3095848
B20: MADISON INSURANCE COMPANY | C20: -138857 | D20: 963368 | E20: 0 | F20: 824511 | G20: 0 | H20: 0 | I20: 0 | J20: 824511 | K20: 0 | L20: 824511 | M20: 3948660 | N20: 0 | O20: 0 | P20: 0 | Q20: 4773172
B21: MERCANTILE INSURANCE COMPANY | C21: 0 | D21: 31153 | E21: 0 | F21: 31153 | G21: 18758 | H21: 0 | I21: 18758 | J21: 12394 | K21: 4652 | L21: 7743 | M21: 0 | N21: 0 | O21: 243 | P21: 7500 | Q21: 0
B22: METROPOLITAN INSURANCE | C22: 0 | D22: 27832 | E22: 106 | F22: 27938 | G22: 91342 | H22: 2037 | I22: 93379 | J22: -65441 | K22: 10858 | L22: -76299 | M22: -581879 | N22: 0 | O22: 0 | P22: 0 | Q22: -658178
B23: OLD MUTUAL LIFE ASSURANCE | C23: 0 | D23: 115392 | E23: 0 | F23: 115392 | G23: 250554 | H23: 2349 | I23: 252903 | J23: -137511 | K23: 0 | L23: -137511 | M23: -1004640 | N23: 0 | O23: 0 | P23: 0 | Q23: -1142151
B24: PAN AFRICA INSURANCE COMPANY | C24: 7120396 | D24: 0 | E24: 0 | F24: 7120396 | G24: 6698303 | H24: 0 | I24: 6698303 | J24: 422093 | K24: 126628 | L24: 295466 | M24: -276167 | N24: 422093 | O24: 0 | P24: 0 | Q24: -402795
B25: PIONEER ASSURANCE COMPANY | C25: 24753 | D25: 3808 | E25: 0 | F25: 28561 | G25: 0 | H25: 0 | I25: 0 | J25: 28561 | K25: 10500 | L25: 18061 | M25: 111875 | N25: 0 | O25: 0 | P25: 0 | Q25: 129936
B26: SHIELD ASSURANCE COMPANY | C26: 0 | D26: 0 | E26: 2896 | F26: 2896 | G26: 0 | H26: 0 | I26: 0 | J26: 2896 | K26: 6376 | L26: -3480 | M26: 0 | N26: 0 | O26: 0 | P26: 0 | Q26: -3480
B27: THE KENYAN ALLIANCE INSURANCE | C27: 10278 | D27: 0 | E27: 0 | F27: 10278 | G27: 0 | H27: 0 | I27: 0 | J27: 10278 | K27: 0 | L27: 10278 | M27: 35058 | N27: 0 | O27: 0 | P27: 0 | Q27: 45335
B28: THE MONARCH INSURANCE | C28: 26987 | D28: 0 | E28: 0 | F28: 26987 | G28: 0 | H28: 0 | I28: 0 | J28: 26987 | K28: 0 | L28: 26987 | M28: 93127 | N28: 0 | O28: 0 | P28: 0 | Q28: 120114
B29: UAP LIFE ASSURANCE COMPANY | C29: 279122 | D29: 0 | E29: 0 | F29: 279122 | G29: 0 | H29: 0 | I29: 0 | J29: 279122 | K29: 473 | L29: 278648 | M29: -151962 | N29: 126686 | O29: 0 | P29: 0 | Q29: 0
B30: TOTAL | C30: =SUM(C4:C29) -> 11700838 | D30: =SUM(D4:D29) -> 3580454 | E30: 103824 | F30: 15385117 | G30: 7058957 | H30: 26464 | I30: 7104822 | J30: 8280294 | K30: 611060 | L30: 7669234 | M30: 6929071 | N30: 2735872 | O30: 243 | P30: 717500 | Q30: 11144688
B31: Amounts in Thousand Shillings

Sheet APPENDIX 6
B3: APPENDIX 6: SUMMARY OF LONG TERM BUSINESS GROSS DIRECT PREMIUM FOR THE YEAR ENDED 31.12.2019
B4: Company | C4: Life Assurances | D4: Annuities | E4: Pensions | F4: Group Life | G4: Group Credit | H4: Permanent Health | I4: Investments | J4: Total | K4: Market Share (%)
B5: INSURERS
B6: ABSA LIFE ASSURANCE KENYA | C6: ='APPENDIX 9'!D6 -> 662445 | D6: ='APPENDIX 10'!D6 -> 0 | E6: ='APPENDIX 12'!D6 -> 0 | F6: ='APPENDIX 11'!D6 -> 809652 | G6: ='APPENDIX 13'!D6 -> 903615 | H6: ='APPENDIX 14'!D6 -> 0 | I6: ='APPENDIX 15'!D6 -> 0 | J6: =SUM(C6:I6) -> 2375712 | K6: =IFERROR(J6/$J$32*100,0) -> 2.439241809
B7: APA LIFE ASSURANCE COMPANY | C7: ='APPENDIX 9'!D7 -> 148535 | D7: ='APPENDIX 10'!D7 -> 25211 | E7: ='APPENDIX 12'!D7 -> 609152 | F7: ='APPENDIX 11'!D7 -> 501961 | G7: ='APPENDIX 13'!D7 -> 232735 | H7: ='APPENDIX 14'!D7 -> 0 | I7: ='APPENDIX 15'!D7 -> 129 | J7: =SUM(C7:I7) -> 1517723 | K7: 1.558309002
B8: BRITAM LIFE INSURANCE COMPANY | C8: ='APPENDIX 9'!D8 -> 8756095 | D8: ='APPENDIX 10'!D8 -> 3046542 | E8: ='APPENDIX 12'!D8 -> 9413229 | F8: ='APPENDIX 11'!D8 -> 550270 | G8: ='APPENDIX 13'!D8 -> 1488870 | H8: ='APPENDIX 14'!D8 -> 0 | I8: ='APPENDIX 15'!D8 -> 686681 | J8: 23941687 | K8: 24.58192067
B9: CAPEX LIFE ASSURANCE COMPANY | C9: ='APPENDIX 9'!D9 -> 136055 | D9: ='APPENDIX 10'!D9 -> 0 | E9: ='APPENDIX 12'!D9 -> 0 | F9: ='APPENDIX 11'!D9 -> 174456 | G9: ='APPENDIX 13'!D9 -> 0 | H9: ='APPENDIX 14'!D9 -> 0 | I9: ='APPENDIX 15'!D9 -> 0 | J9: 310511 | K9: 0.3188144916
B10: CIC LIFE ASSURANCE COMPANY | C10: ='APPENDIX 9'!D10 -> 1139444 | D10: ='APPENDIX 10'!D10 -> 298679 | E10: ='APPENDIX 12'!D10 -> 1074234 | F10: ='APPENDIX 11'!D10 -> 439694 | G10: ='APPENDIX 13'!D10 -> 3120076 | H10: ='APPENDIX 14'!D10 -> 0 | I10: ='APPENDIX 15'!D10 -> 0 | J10: 6072127 | K10: 6.234504034
B11: CORPORATE INSURANCE COMPANY | C11: ='APPENDIX 9'!D11 -> 280275 | D11: ='APPENDIX 10'!D11 -> 0 | E11: ='APPENDIX 12'!D11 -> 0 | F11: ='APPENDIX 11'!D11 -> 14044 | G11: ='APPENDIX 13'!D11 -> 0 | H11: ='APPENDIX 14'!D11 -> 0 | I11: ='APPENDIX 15'!D11 -> 0 | J11: 294319 | K11: 0.3021894952
B12: FIRST ASSURANCE COMPANY | C12: ='APPENDIX 9'!D12 -> 0 | D12: ='APPENDIX 10'!D12 -> 0 | E12: ='APPENDIX 12'!D12 -> 0 | F12: ='APPENDIX 11'!D12 -> 85777 | G12: ='APPENDIX 13'!D12 -> 7459 | H12: ='APPENDIX 14'!D12 -> 0 | I12: ='APPENDIX 15'!D12 -> 0 | J12: =SUM(C12:I12) -> 93236 | K12: 0.09572925898
B13: GA LIFE ASSURANCE COMPANY | C13: ='APPENDIX 9'!D13 -> 313331 | D13: ='APPENDIX 10'!D13 -> 0 | E13: ='APPENDIX 12'!D13 -> 2573676 | F13: ='APPENDIX 11'!D13 -> 32445 | G13: ='APPENDIX 13'!D13 -> 4567 | H13: ='APPENDIX 14'!D13 -> 0 | I13: ='APPENDIX 15'!D13 -> 0 | J13: 2924019 | K13: 3.002211293
B14: GEMINIA INSURANCE COMPANY | C14: ='APPENDIX 9'!D14 -> 56083 | D14: ='APPENDIX 10'!D14 -> 0 | E14: ='APPENDIX 12'!D14 -> 0 | F14: ='APPENDIX 11'!D14 -> 848772 | G14: ='APPENDIX 13'!D14 -> 91702 | H14: ='APPENDIX 14'!D14 -> 0 | I14: ='APPENDIX 15'!D14 -> 0 | J14: 996557 | K14: 1.023206306
B15: ICEA LION LIFE ASSURANCE | C15: ='APPENDIX 9'!D15 -> 3302679 | D15: ='APPENDIX 10'!D15 -> 529785 | E15: ='APPENDIX 12'!D15 -> 8660744 | F15: ='APPENDIX 11'!D15 -> 318592 | G15: ='APPENDIX 13'!D15 -> 200821 | H15: ='APPENDIX 14'!D15 -> 0 | I15: ='APPENDIX 15'!D15 -> 28279 | J15: 13040900 | K15: 13.38963162
B16: JUBILEE INSURANCE COMPANY | C16: ='APPENDIX 9'!D16 -> 3685536 | D16: ='APPENDIX 10'!D16 -> 1085109 | E16: ='APPENDIX 12'!D16 -> 8277933 | F16: ='APPENDIX 11'!D16 -> 964614 | G16: ='APPENDIX 13'!D16 -> 120594 | H16: ='APPENDIX 14'!D16 -> 0 | I16: ='APPENDIX 15'!D16 -> 0 | J16: 14133786 | K16: 14.51174289
B17: KENINDIA ASSURANCE COMPANY | C17: ='APPENDIX 9'!D17 -> 1614208 | D17: ='APPENDIX 10'!D17 -> 412487 | E17: ='APPENDIX 12'!D17 -> 3535194 | F17: ='APPENDIX 11'!D17 -> 50283 | G17: ='APPENDIX 13'!D17 -> 0 | H17: ='APPENDIX 14'!D17 -> 0 | I17: ='APPENDIX 15'!D17 -> 0 | J17: 5612172 | K17: 5.762249204
B18: KENYA ORIENT LIFE ASSURANCE | C18: ='APPENDIX 9'!D18 -> 47843 | D18: ='APPENDIX 10'!D18 -> 200061 | E18: ='APPENDIX 12'!D18 -> 100344 | F18: ='APPENDIX 11'!D18 -> 20569 | G18: ='APPENDIX 13'!D18 -> 329124 | H18: ='APPENDIX 14'!D18 -> 0 | I18: ='APPENDIX 15'!D18 -> 0 | J18: 697941 | K18: 0.716604903
B19: KUSCCO MUTUAL ASSURANCE LIMITED | C19: ='APPENDIX 9'!D19 -> 0 | D19: ='APPENDIX 10'!D19 -> 0 | E19: ='APPENDIX 12'!D19 -> 0 | F19: ='APPENDIX 11'!D19 -> 12216 | G19: ='APPENDIX 13'!D19 -> 437416 | H19: ='APPENDIX 14'!D19 -> 0 | I19: ='APPENDIX 15'!D19 -> 0 | J19: 449632 | K19: 0.4616557786
B20: LIBERTY LIFE ASSURANCE COMPANY | C20: ='APPENDIX 9'!D20 -> 1332429 | D20: ='APPENDIX 10'!D20 -> 57219 | E20: ='APPENDIX 12'!D20 -> 1481785 | F20: ='APPENDIX 11'!D20 -> 561081 | G20: ='APPENDIX 13'!D20 -> 561121 | H20: ='APPENDIX 14'!D20 -> 0 | I20: ='APPENDIX 15'!D20 -> 1071055 | J20: 5064690 | K20: 5.200126782
B21: MADISON INSURANCE COMPANY | C21: ='APPENDIX 9'!D21 -> 1451627 | D21: ='APPENDIX 10'!D21 -> 1294739 | E21: ='APPENDIX 12'!D21 -> 334285 | F21: ='APPENDIX 11'!D21 -> 412423 | G21: ='APPENDIX 13'!D21 -> 182258 | H21: ='APPENDIX 14'!D21 -> 0 | I21: ='APPENDIX 15'!D21 -> 7686 | J21: 3683018 | K21: 3.781506971
B22: METROPOLITAN CANNON INSURANCE | C22: ='APPENDIX 9'!D22 -> 0 | D22: ='APPENDIX 10'!D22 -> 0 | E22: ='APPENDIX 12'!D22 -> 0 | F22: ='APPENDIX 11'!D22 -> 0 | G22: ='APPENDIX 13'!D22 -> 0 | H22: ='APPENDIX 14'!D22 -> 0 | I22: ='APPENDIX 15'!D22 -> 0 | J22: 0 | K22: 0
B23: OLD MUTUAL LIFE ASSURANCE | C23: ='APPENDIX 9'!D23 -> 981472 | D23: ='APPENDIX 10'!D23 -> 0 | E23: ='APPENDIX 12'!D23 -> 0 | F23: ='APPENDIX 11'!D23 -> 328287 | G23: ='APPENDIX 13'!D23 -> 0 | H23: ='APPENDIX 14'!D23 -> 0 | I23: ='APPENDIX 15'!D23 -> 853381 | J23: 2163140 | K23: 2.220985341
B24: PIONEER ASSURANCE COMPANY | C24: ='APPENDIX 9'!D24 -> 968911 | D24: ='APPENDIX 10'!D24 -> 22826 | E24: ='APPENDIX 12'!D24 -> 369793 | F24: ='APPENDIX 11'!D24 -> 3389458 | G24: ='APPENDIX 13'!D24 -> 647118 | H24: ='APPENDIX 14'!D24 -> 0 | I24: ='APPENDIX 15'!D24 -> 81379 | J24: 5479485 | K24: 5.626013971
B25: PRUDENTIAL LIFE ASSURANCE | C25: ='APPENDIX 9'!D25 -> 251490 | D25: ='APPENDIX 10'!D25 -> 0 | E25: ='APPENDIX 12'!D25 -> 21781 | F25: ='APPENDIX 11'!D25 -> 115652 | G25: ='APPENDIX 13'!D25 -> 249852 | H25: ='APPENDIX 14'!D25 -> 0 | I25: ='APPENDIX 15'!D25 -> 0 | J25: 638775 | K25: 0.6558567228
B26: SAHAM ASSURANCE | C26: ='APPENDIX 9'!D26 -> 29649 | D26: ='APPENDIX 10'!D26 -> 0 | E26: ='APPENDIX 12'!D26 -> 25633 | F26: ='APPENDIX 11'!D26 -> 2953 | G26: ='APPENDIX 13'!D26 -> 0 | H26: ='APPENDIX 14'!D26 -> 0 | I26: ='APPENDIX 15'!D26 -> 0 | J26: 58235 | K26: 0.05979228406
B27: SANLAM LIFE INSURANCE | C27: ='APPENDIX 9'!D27 -> 2063121 | D27: ='APPENDIX 10'!D27 -> 457202 | E27: ='APPENDIX 12'!D27 -> 192425 | F27: ='APPENDIX 11'!D27 -> 591909 | G27: ='APPENDIX 13'!D27 -> 619915 | H27: ='APPENDIX 14'!D27 -> 0 | I27: ='APPENDIX 15'!D27 -> 655146 | J27: 4579718 | K27: 4.702185963
B28: TAKAFUL INSURANCE OF AFRICA | C28: ='APPENDIX 9'!D28 -> 0 | D28: ='APPENDIX 10'!D28 -> 0 | E28: ='APPENDIX 12'!D28 -> 0 | F28: ='APPENDIX 11'!D28 -> 1663 | G28: ='APPENDIX 13'!D28 -> 6897 | H28: ='APPENDIX 14'!D28 -> 0 | I28: ='APPENDIX 15'!D28 -> 0 | J28: 8560 | K28: 0.008788906183
B29: THE KENYAN ALLIANCE INSURANCE | C29: ='APPENDIX 9'!D29 -> 52975 | D29: ='APPENDIX 10'!D29 -> 22044 | E29: ='APPENDIX 12'!D29 -> 336833 | F29: ='APPENDIX 11'!D29 -> 222488 | G29: ='APPENDIX 13'!D29 -> 6490 | H29: ='APPENDIX 14'!D29 -> 0 | I29: ='APPENDIX 15'!D29 -> 147801 | J29: 788631 | K29: 0.8097200785
B30: THE MONARCH INSURANCE | C30: ='APPENDIX 9'!D30 -> 24122 | D30: ='APPENDIX 10'!D30 -> 0 | E30: ='APPENDIX 12'!D30 -> 0 | F30: ='APPENDIX 11'!D30 -> 47185 | G30: ='APPENDIX 13'!D30 -> 0 | H30: ='APPENDIX 14'!D30 -> 0 | I30: ='APPENDIX 15'!D30 -> 0 | J30: 71307 | K30: 0.07321384733
B31: UAP LIFE ASSURANCE COMPANY | C31: ='APPENDIX 9'!D31 -> 888700 | D31: ='APPENDIX 10'!D31 -> 0 | E31: ='APPENDIX 12'!D31 -> 716510 | F31: ='APPENDIX 11'!D31 -> 461245 | G31: ='APPENDIX 13'!D31 -> 305973 | H31: ='APPENDIX 14'!D31 -> 0 | I31: ='APPENDIX 15'!D31 -> 27201 | J31: 2399629 | K31: 2.463798382
B32: TOTAL | C32: =SUM(C6:C31) -> 28187025 | D32: 7451904 | E32: 37723551 | F32: 10957689 | G32: 9516603 | H32: 0 | I32: 3558738 | J32: 97395510 | K32: 100
B33: REINSURERS
B34: CONTINENTAL REINSURANCE
B35: EAST AFRICA REINSURANCE
B36: KENYA REINSURANCE CORPORATION
B37: TOTAL | C37: =SUM(C34:C36) -> 0 | D37: =SUM(D34:D36) -> 0 | E37: 0 | F37: 0 | G37: 0 | H37: 0 | I37: 0 | J37: 0 | K37: =SUM(K34:K36) -> 0
B38: Amounts in Thousand Shillings

Sheet APPENDIX 7
B3: APPENDIX 7: SUMMARY OF LONG TERM BUSINESS INWARD REINSURANCE PREMIUM FOR THE YEAR ENDED 31.12.2019
B4: Company | C4: Life Assurances | D4: Annuities | E4: Pensions | F4: Group Life | G4: Group Credit | H4: Permanent Health | I4: Investments | J4: Total | K4: Market Share (%)
B5: INSURERS
B6: ABSA LIFE ASSURANCE KENYA | C6: 0 | D6: 0 | E6: 0 | F6: 0 | G6: 0 | H6: 0 | I6: 0 | J6: 0
B7: APA LIFE ASSURANCE COMPANY | C7: 0 | D7: 0 | E7: 0 | F7: 0 | G7: 0 | H7: 0 | I7: 0 | J7: 0
B8: BRITAM LIFE INSURANCE COMPANY | C8: 0 | D8: 0 | E8: 0 | F8: 0 | G8: 0 | H8: 0 | I8: 0 | J8: 0
B9: CAPEX LIFE ASSURANCE COMPANY | C9: 0 | D9: 0 | E9: 0 | F9: 0 | G9: 0 | H9: 0 | I9: 0 | J9: 0
B10: CIC LIFE ASSURANCE COMPANY | C10: 0 | D10: 0 | E10: 0 | F10: 0 | G10: 0 | H10: 0 | I10: 0 | J10: 0
B11: CORPORATE INSURANCE COMPANY | C11: 0 | D11: 0 | E11: 0 | F11: 0 | G11: 0 | H11: 0 | I11: 0 | J11: 0
B12: FIRST ASSURANCE COMPANY | C12: 0 | D12: 0 | E12: 0 | F12: 0 | G12: 0 | H12: 0 | I12: 0 | J12: 0
B13: GA LIFE ASSURANCE COMPANY | C13: 0 | D13: 0 | E13: 0 | F13: 0 | G13: 0 | H13: 0 | I13: 0 | J13: 0
B14: GEMINIA INSURANCE COMPANY | C14: 0 | D14: 0 | E14: 0 | F14: 0 | G14: 0 | H14: 0 | I14: 0 | J14: 0
B15: ICEA LION LIFE ASSURANCE | C15: 0 | D15: 0 | E15: 0 | F15: 0 | G15: 0 | H15: 0 | I15: 0 | J15: 0
B16: JUBILEE INSURANCE COMPANY | C16: 0 | D16: 0 | E16: 0 | F16: 0 | G16: 0 | H16: 0 | I16: 0 | J16: 0
B17: KENINDIA ASSURANCE COMPANY | C17: 0 | D17: 0 | E17: 0 | F17: 0 | G17: 0 | H17: 0 | I17: 0 | J17: 0
B18: KENYA ORIENT LIFE ASSURANCE | C18: 0 | D18: 0 | E18: 0 | F18: 0 | G18: 0 | H18: 0 | I18: 0 | J18: 0
B19: KUSCCO MUTUAL ASSURANCE LIMITED | C19: 0 | D19: 0 | E19: 0 | F19: 0 | G19: 0 | H19: 0 | I19: 0 | J19: 0
B20: LIBERTY LIFE ASSURANCE COMPANY | C20: 0 | D20: 0 | E20: 0 | F20: 0 | G20: 0 | H20: 0 | I20: 0 | J20: 0
B21: MADISON INSURANCE COMPANY | C21: 0 | D21: 0 | E21: 0 | F21: 0 | G21: 0 | H21: 0 | I21: 0 | J21: 0
B22: METROPOLITAN CANNON INSURANCE | C22: 0 | D22: 0 | E22: 0 | F22: 0 | G22: 0 | H22: 0 | I22: 0 | J22: 0
B23: OLD MUTUAL LIFE ASSURANCE | C23: 0 | D23: 0 | E23: 0 | F23: 0 | G23: 0 | H23: 0 | I23: 0 | J23: 0
B24: PIONEER ASSURANCE COMPANY | C24: 0 | D24: 0 | E24: 0 | F24: 0 | G24: 0 | H24: 0 | I24: 0 | J24: 0
B25: PRUDENTIAL LIFE ASSURANCE | C25: 0 | D25: 0 | E25: 0 | F25: 0 | G25: 0 | H25: 0 | I25: 0 | J25: 0
B26: SAHAM ASSURANCE | C26: 0 | D26: 0 | E26: 0 | F26: 0 | G26: 0 | H26: 0 | I26: 0 | J26: 0
B27: SANLAM LIFE INSURANCE | C27: 0 | D27: 0 | E27: 0 | F27: 0 | G27: 0 | H27: 0 | I27: 0 | J27: 0
B28: TAKAFUL INSURANCE OF AFRICA | C28: 0 | D28: 0 | E28: 0 | F28: 0 | G28: 0 | H28: 0 | I28: 0 | J28: 0
B29: THE KENYAN ALLIANCE INSURANCE | C29: 0 | D29: 0 | E29: 0 | F29: 0 | G29: 0 | H29: 0 | I29: 0 | J29: 0
B30: THE MONARCH INSURANCE | C30: 0 | D30: 0 | E30: 0 | F30: 0 | G30: 0 | H30: 0 | I30: 0 | J30: 0
B31: UAP LIFE ASSURANCE COMPANY | C31: 0 | D31: 0 | E31: 0 | F31: 0 | G31: 0 | H31: 0 | I31: 0 | J31: 0
B32: TOTAL | C32: =SUM(C6:C31) -> 0 | D32: 0 | E32: 0 | F32: 0 | G32: 0 | H32: 0 | I32: 0 | J32: 0
B33: REINSURERS
B34: CONTINENTAL REINSURANCE | C34: ='APPENDIX 9'!D34 -> 3608 | D34: 0 | E34: 0 | F34: ='APPENDIX 11'!D34 -> 464585 | G34: 0 | H34: 0 | I34: 0 | J34: =SUM(C34:I34) -> 468193 | K34: =J34/$J$37*100 -> 12.34840862
B35: EAST AFRICA REINSURANCE | C35: ='APPENDIX 9'!D35 -> 38643 | D35: 0 | E35: 0 | F35: ='APPENDIX 11'!D35 -> 1244033 | G35: 0 | H35: 0 | I35: 0 | J35: =SUM(C35:I35) -> 1282676 | K35: =J35/$J$37*100 -> 33.83008156
B36: KENYA REINSURANCE CORPORATION | C36: ='APPENDIX 9'!D36 -> 204066 | D36: 0 | E36: 0 | F36: ='APPENDIX 11'!D36 -> 1836590 | G36: 0 | H36: 0 | I36: 0 | J36: =SUM(C36:I36) -> 2040656 | K36: =J36/$J$37*100 -> 53.82150981
B37: TOTAL | C37: =SUM(C34:C36) -> 246317 | D37: =SUM(D34:D36) -> 0 | E37: 0 | F37: 3545208 | G37: 0 | H37: 0 | I37: 0 | J37: =SUM(J34:J36) -> 3791525 | K37: =SUM(K34:K36) -> 100
B38: Amounts in Thousand Shillings

Sheet APPENDIX 8
B3: APPENDIX 8: SUMMARY OF LONG TERM BUSINESS OUTWARD REINSURANCE PREMIUM FOR THE YEAR ENDED 31.12.2019
B4: Company | C4: Life Assurances | D4: Annuities | E4: Pensions | F4: Group Life | G4: Group Credit | H4: Permanent Health | I4: Investments | J4: Total
B5: INSURERS
B6: ABSA LIFE ASSURANCE KENYA | C6: ='APPENDIX 9'!D6-'APPENDIX 9'!E6 -> 0 | D6: ='APPENDIX 10'!D6-'APPENDIX 10'!E6 -> 0 | E6: ='APPENDIX 12'!D6-'APPENDIX 12'!E6 -> 0 | F6: ='APPENDIX 11'!D6-'APPENDIX 11'!E6 -> 622213 | G6: ='APPENDIX 13'!D6-'APPENDIX 13'!E6 -> 343481 | H6: ='APPENDIX 14'!D6-'APPENDIX 14'!E6 -> 0 | I6: ='APPENDIX 15'!D6-'APPENDIX 15'!E6 -> 0 | J6: =SUM(C6:I6) -> 965694
B7: APA LIFE ASSURANCE COMPANY | C7: ='APPENDIX 9'!D7-'APPENDIX 9'!E7 -> 8922 | D7: ='APPENDIX 10'!D7-'APPENDIX 10'!E7 -> 0 | E7: ='APPENDIX 12'!D7-'APPENDIX 12'!E7 -> 0 | F7: ='APPENDIX 11'!D7-'APPENDIX 11'!E7 -> 392609 | G7: ='APPENDIX 13'!D7-'APPENDIX 13'!E7 -> 16536 | H7: ='APPENDIX 14'!D7-'APPENDIX 14'!E7 -> 0 | I7: ='APPENDIX 15'!D7-'APPENDIX 15'!E7 -> 0 | J7: =SUM(C7:I7) -> 418067
B8: BRITAM LIFE INSURANCE COMPANY | C8: ='APPENDIX 9'!D8-'APPENDIX 9'!E8 -> 5686 | D8: ='APPENDIX 10'!D8-'APPENDIX 10'!E8 -> 0 | E8: ='APPENDIX 12'!D8-'APPENDIX 12'!E8 -> 0 | F8: ='APPENDIX 11'!D8-'APPENDIX 11'!E8 -> 169138 | G8: ='APPENDIX 13'!D8-'APPENDIX 13'!E8 -> 79813 | H8: ='APPENDIX 14'!D8-'APPENDIX 14'!E8 -> 0 | I8: ='APPENDIX 15'!D8-'APPENDIX 15'!E8 -> 0 | J8: 254637
B9: CAPEX LIFE ASSURANCE COMPANY | C9: ='APPENDIX 9'!D9-'APPENDIX 9'!E9 -> 0 | D9: ='APPENDIX 10'!D9-'APPENDIX 10'!E9 -> 0 | E9: ='APPENDIX 12'!D9-'APPENDIX 12'!E9 -> 0 | F9: ='APPENDIX 11'!D9-'APPENDIX 11'!E9 -> 29925 | G9: ='APPENDIX 13'!D9-'APPENDIX 13'!E9 -> 0 | H9: ='APPENDIX 14'!D9-'APPENDIX 14'!E9 -> 0 | I9: ='APPENDIX 15'!D9-'APPENDIX 15'!E9 -> 0 | J9: 29925
B10: CIC LIFE ASSURANCE COMPANY | C10: ='APPENDIX 9'!D10-'APPENDIX 9'!E10 -> 16519 | D10: ='APPENDIX 10'!D10-'APPENDIX 10'!E10 -> 0 | E10: ='APPENDIX 12'!D10-'APPENDIX 12'!E10 -> 0 | F10: ='APPENDIX 11'!D10-'APPENDIX 11'!E10 -> 127065 | G10: ='APPENDIX 13'!D10-'APPENDIX 13'!E10 -> 824728 | H10: ='APPENDIX 14'!D10-'APPENDIX 14'!E10 -> 0 | I10: ='APPENDIX 15'!D10-'APPENDIX 15'!E10 -> 0 | J10: 968312
B11: CORPORATE INSURANCE COMPANY | C11: ='APPENDIX 9'!D11-'APPENDIX 9'!E11 -> 2974 | D11: ='APPENDIX 10'!D11-'APPENDIX 10'!E11 -> 0 | E11: ='APPENDIX 12'!D11-'APPENDIX 12'!E11 -> 0 | F11: ='APPENDIX 11'!D11-'APPENDIX 11'!E11 -> 1618 | G11: ='APPENDIX 13'!D11-'APPENDIX 13'!E11 -> 0 | H11: ='APPENDIX 14'!D11-'APPENDIX 14'!E11 -> 0 | I11: ='APPENDIX 15'!D11-'APPENDIX 15'!E11 -> 0 | J11: 4592
B12: FIRST ASSURANCE COMPANY | C12: ='APPENDIX 9'!D12-'APPENDIX 9'!E12 -> 0 | D12: ='APPENDIX 10'!D12-'APPENDIX 10'!E12 -> 0 | E12: ='APPENDIX 12'!D12-'APPENDIX 12'!E12 -> 0 | F12: ='APPENDIX 11'!D12-'APPENDIX 11'!E12 -> 76587 | G12: ='APPENDIX 13'!D12-'APPENDIX 13'!E12 -> 6660 | H12: ='APPENDIX 14'!D12-'APPENDIX 14'!E12 -> 0 | I12: ='APPENDIX 15'!D12-'APPENDIX 15'!E12 -> 0 | J12: 83247
B13: GA LIFE ASSURANCE COMPANY | C13: ='APPENDIX 9'!D13-'APPENDIX 9'!E13 -> 0 | D13: ='APPENDIX 10'!D13-'APPENDIX 10'!E13 -> 0 | E13: ='APPENDIX 12'!D13-'APPENDIX 12'!E13 -> 0 | F13: ='APPENDIX 11'!D13-'APPENDIX 11'!E13 -> 30699 | G13: ='APPENDIX 13'!D13-'APPENDIX 13'!E13 -> 3761 | H13: ='APPENDIX 14'!D13-'APPENDIX 14'!E13 -> 0 | I13: ='APPENDIX 15'!D13-'APPENDIX 15'!E13 -> 0 | J13: 34460
B14: GEMINIA INSURANCE COMPANY | C14: ='APPENDIX 9'!D14-'APPENDIX 9'!E14 -> 0 | D14: ='APPENDIX 10'!D14-'APPENDIX 10'!E14 -> 0 | E14: ='APPENDIX 12'!D14-'APPENDIX 12'!E14 -> 0 | F14: ='APPENDIX 11'!D14-'APPENDIX 11'!E14 -> 481603 | G14: ='APPENDIX 13'!D14-'APPENDIX 13'!E14 -> 0 | H14: ='APPENDIX 14'!D14-'APPENDIX 14'!E14 -> 0 | I14: ='APPENDIX 15'!D14-'APPENDIX 15'!E14 -> 0 | J14: 481603
B15: ICEA LION LIFE ASSURANCE | C15: ='APPENDIX 9'!D15-'APPENDIX 9'!E15 -> 44929 | D15: ='APPENDIX 10'!D15-'APPENDIX 10'!E15 -> 0 | E15: ='APPENDIX 12'!D15-'APPENDIX 12'!E15 -> 0 | F15: ='APPENDIX 11'!D15-'APPENDIX 11'!E15 -> 172968 | G15: ='APPENDIX 13'!D15-'APPENDIX 13'!E15 -> 65684 | H15: ='APPENDIX 14'!D15-'APPENDIX 14'!E15 -> 0 | I15: ='APPENDIX 15'!D15-'APPENDIX 15'!E15 -> 0 | J15: 283581
B16: JUBILEE INSURANCE COMPANY | C16: ='APPENDIX 9'!D16-'APPENDIX 9'!E16 -> 5506 | D16: ='APPENDIX 10'!D16-'APPENDIX 10'!E16 -> 0 | E16: ='APPENDIX 12'!D16-'APPENDIX 12'!E16 -> 0 | F16: ='APPENDIX 11'!D16-'APPENDIX 11'!E16 -> 543437 | G16: ='APPENDIX 13'!D16-'APPENDIX 13'!E16 -> 44951 | H16: ='APPENDIX 14'!D16-'APPENDIX 14'!E16 -> 0 | I16: ='APPENDIX 15'!D16-'APPENDIX 15'!E16 -> 0 | J16: 593894
B17: KENINDIA ASSURANCE COMPANY | C17: ='APPENDIX 9'!D17-'APPENDIX 9'!E17 -> 8472 | D17: ='APPENDIX 10'!D17-'APPENDIX 10'!E17 -> 0 | E17: ='APPENDIX 12'!D17-'APPENDIX 12'!E17 -> 0 | F17: ='APPENDIX 11'!D17-'APPENDIX 11'!E17 -> 24964 | G17: ='APPENDIX 13'!D17-'APPENDIX 13'!E17 -> 0 | H17: ='APPENDIX 14'!D17-'APPENDIX 14'!E17 -> 0 | I17: ='APPENDIX 15'!D17-'APPENDIX 15'!E17 -> 0 | J17: 33436
B18: KENYA ORIENT LIFE ASSURANCE | C18: ='APPENDIX 9'!D18-'APPENDIX 9'!E18 -> 22 | D18: ='APPENDIX 10'!D18-'APPENDIX 10'!E18 -> 0 | E18: ='APPENDIX 12'!D18-'APPENDIX 12'!E18 -> 0 | F18: ='APPENDIX 11'!D18-'APPENDIX 11'!E18 -> 8574 | G18: ='APPENDIX 13'!D18-'APPENDIX 13'!E18 -> 25472 | H18: ='APPENDIX 14'!D18-'APPENDIX 14'!E18 -> 0 | I18: ='APPENDIX 15'!D18-'APPENDIX 15'!E18 -> 0 | J18: 34068
B19: KUSCCO MUTUAL ASSURANCE LIMITED | C19: ='APPENDIX 9'!D19-'APPENDIX 9'!E19 -> 0 | D19: ='APPENDIX 10'!D19-'APPENDIX 10'!E19 -> 0 | E19: ='APPENDIX 12'!D19-'APPENDIX 12'!E19 -> 0 | F19: ='APPENDIX 11'!D19-'APPENDIX 11'!E19 -> 3665 | G19: ='APPENDIX 13'!D19-'APPENDIX 13'!E19 -> 122363 | H19: ='APPENDIX 14'!D19-'APPENDIX 14'!E19 -> 0 | I19: ='APPENDIX 15'!D19-'APPENDIX 15'!E19 -> 0 | J19: 126028
B20: LIBERTY LIFE ASSURANCE COMPANY | C20: ='APPENDIX 9'!D20-'APPENDIX 9'!E20 -> -3894 | D20: ='APPENDIX 10'!D20-'APPENDIX 10'!E20 -> 0 | E20: ='APPENDIX 12'!D20-'APPENDIX 12'!E20 -> 0 | F20: ='APPENDIX 11'!D20-'APPENDIX 11'!E20 -> 112322 | G20: ='APPENDIX 13'!D20-'APPENDIX 13'!E20 -> 96512 | H20: ='APPENDIX 14'!D20-'APPENDIX 14'!E20 -> 0 | I20: ='APPENDIX 15'!D20-'APPENDIX 15'!E20 -> 132 | J20: 205072
B21: MADISON INSURANCE COMPANY | C21: ='APPENDIX 9'!D21-'APPENDIX 9'!E21 -> 0 | D21: ='APPENDIX 10'!D21-'APPENDIX 10'!E21 -> 0 | E21: ='APPENDIX 12'!D21-'APPENDIX 12'!E21 -> 0 | F21: ='APPENDIX 11'!D21-'APPENDIX 11'!E21 -> 84708 | G21: ='APPENDIX 13'!D21-'APPENDIX 13'!E21 -> 0 | H21: ='APPENDIX 14'!D21-'APPENDIX 14'!E21 -> 0 | I21: ='APPENDIX 15'!D21-'APPENDIX 15'!E21 -> 0 | J21: 84708
B22: METROPOLITAN CANNON INSURANCE | C22: ='APPENDIX 9'!D22-'APPENDIX 9'!E22 -> 0 | D22: ='APPENDIX 10'!D22-'APPENDIX 10'!E22 -> 0 | E22: ='APPENDIX 12'!D22-'APPENDIX 12'!E22 -> 0 | F22: ='APPENDIX 11'!D22-'APPENDIX 11'!E22 -> 0 | G22: ='APPENDIX 13'!D22-'APPENDIX 13'!E22 -> 0 | H22: ='APPENDIX 14'!D22-'APPENDIX 14'!E22 -> 0 | I22: ='APPENDIX 15'!D22-'APPENDIX 15'!E22 -> 0 | J22: 0
B23: OLD MUTUAL LIFE ASSURANCE | C23: ='APPENDIX 9'!D23-'APPENDIX 9'!E23 -> 88132 | D23: ='APPENDIX 10'!D23-'APPENDIX 10'!E23 -> 0 | E23: ='APPENDIX 12'!D23-'APPENDIX 12'!E23 -> 0 | F23: ='APPENDIX 11'!D23-'APPENDIX 11'!E23 -> 104276 | G23: ='APPENDIX 13'!D23-'APPENDIX 13'!E23 -> 0 | H23: ='APPENDIX 14'!D23-'APPENDIX 14'!E23 -> 0 | I23: ='APPENDIX 15'!D23-'APPENDIX 15'!E23 -> 0 | J23: 192408
B24: PIONEER ASSURANCE COMPANY | C24: ='APPENDIX 9'!D24-'APPENDIX 9'!E24 -> 1968 | D24: ='APPENDIX 10'!D24-'APPENDIX 10'!E24 -> 0 | E24: ='APPENDIX 12'!D24-'APPENDIX 12'!E24 -> 0 | F24: ='APPENDIX 11'!D24-'APPENDIX 11'!E24 -> 1689547 | G24: ='APPENDIX 13'!D24-'APPENDIX 13'!E24 -> 129423 | H24: ='APPENDIX 14'!D24-'APPENDIX 14'!E24 -> 0 | I24: ='APPENDIX 15'!D24-'APPENDIX 15'!E24 -> 0 | J24: 1820938
B25: PRUDENTIAL LIFE ASSURANCE | C25: ='APPENDIX 9'!D25-'APPENDIX 9'!E25 -> 0 | D25: ='APPENDIX 10'!D25-'APPENDIX 10'!E25 -> 0 | E25: ='APPENDIX 12'!D25-'APPENDIX 12'!E25 -> 0 | F25: ='APPENDIX 11'!D25-'APPENDIX 11'!E25 -> 54741 | G25: ='APPENDIX 13'!D25-'APPENDIX 13'!E25 -> 1358 | H25: ='APPENDIX 14'!D25-'APPENDIX 14'!E25 -> 0 | I25: ='APPENDIX 15'!D25-'APPENDIX 15'!E25 -> 0 | J25: 56099
B26: SAHAM ASSURANCE | C26: ='APPENDIX 9'!D26-'APPENDIX 9'!E26 -> 6268 | D26: ='APPENDIX 10'!D26-'APPENDIX 10'!E26 -> 0 | E26: ='APPENDIX 12'!D26-'APPENDIX 12'!E26 -> 0 | F26: ='APPENDIX 11'!D26-'APPENDIX 11'!E26 -> 1563 | G26: ='APPENDIX 13'!D26-'APPENDIX 13'!E26 -> 0 | H26: ='APPENDIX 14'!D26-'APPENDIX 14'!E26 -> 0 | I26: ='APPENDIX 15'!D26-'APPENDIX 15'!E26 -> 0 | J26: 7831
B27: SANLAM LIFE INSURANCE | C27: ='APPENDIX 9'!D27-'APPENDIX 9'!E27 -> 30891 | D27: ='APPENDIX 10'!D27-'APPENDIX 10'!E27 -> 0 | E27: ='APPENDIX 12'!D27-'APPENDIX 12'!E27 -> 0 | F27: ='APPENDIX 11'!D27-'APPENDIX 11'!E27 -> 253938 | G27: ='APPENDIX 13'!D27-'APPENDIX 13'!E27 -> 151008 | H27: ='APPENDIX 14'!D27-'APPENDIX 14'!E27 -> 0 | I27: ='APPENDIX 15'!D27-'APPENDIX 15'!E27 -> 0 | J27: 435837
B28: TAKAFUL INSURANCE OF AFRICA | C28: ='APPENDIX 9'!D28-'APPENDIX 9'!E28 -> 0 | D28: ='APPENDIX 10'!D28-'APPENDIX 10'!E28 -> 0 | E28: ='APPENDIX 12'!D28-'APPENDIX 12'!E28 -> 0 | F28: ='APPENDIX 11'!D28-'APPENDIX 11'!E28 -> 0 | G28: ='APPENDIX 13'!D28-'APPENDIX 13'!E28 -> 5037 | H28: ='APPENDIX 14'!D28-'APPENDIX 14'!E28 -> 0 | I28: ='APPENDIX 15'!D28-'APPENDIX 15'!E28 -> 0 | J28: 5037
B29: THE KENYAN ALLIANCE INSURANCE | C29: ='APPENDIX 9'!D29-'APPENDIX 9'!E29 -> 0 | D29: ='APPENDIX 10'!D29-'APPENDIX 10'!E29 -> 0 | E29: ='APPENDIX 12'!D29-'APPENDIX 12'!E29 -> 0 | F29: ='APPENDIX 11'!D29-'APPENDIX 11'!E29 -> 87912 | G29: ='APPENDIX 13'!D29-'APPENDIX 13'!E29 -> 0 | H29: ='APPENDIX 14'!D29-'APPENDIX 14'!E29 -> 0 | I29: ='APPENDIX 15'!D29-'APPENDIX 15'!E29 -> 0 | J29: 87912
B30: THE MONARCH INSURANCE | C30: ='APPENDIX 9'!D30-'APPENDIX 9'!E30 -> 70 | D30: ='APPENDIX 10'!D30-'APPENDIX 10'!E30 -> 0 | E30: ='APPENDIX 12'!D30-'APPENDIX 12'!E30 -> 0 | F30: ='APPENDIX 11'!D30-'APPENDIX 11'!E30 -> 26491 | G30: ='APPENDIX 13'!D30-'APPENDIX 13'!E30 -> 0 | H30: ='APPENDIX 14'!D30-'APPENDIX 14'!E30 -> 0 | I30: ='APPENDIX 15'!D30-'APPENDIX 15'!E30 -> 0 | J30: 26561
B31: UAP LIFE ASSURANCE COMPANY | C31: ='APPENDIX 9'!D31-'APPENDIX 9'!E31 -> 0 | D31: ='APPENDIX 10'!D31-'APPENDIX 10'!E31 -> 0 | E31: ='APPENDIX 12'!D31-'APPENDIX 12'!E31 -> 0 | F31: ='APPENDIX 11'!D31-'APPENDIX 11'!E31 -> 295664 | G31: ='APPENDIX 13'!D31-'APPENDIX 13'!E31 -> 0 | H31: ='APPENDIX 14'!D31-'APPENDIX 14'!E31 -> 0 | I31: ='APPENDIX 15'!D31-'APPENDIX 15'!E31 -> 0 | J31: 295664
B32: TOTAL | C32: =SUM(C6:C31) -> 216465 | D32: 0 | E32: 0 | F32: 5396227 | G32: 1916787 | H32: 0 | I32: 132 | J32: 7529611
B33: REINSURERS
B34: CONTINENTAL REINSURANCE | C34: ='APPENDIX 9'!D34-'APPENDIX 9'!E34 -> 985 | D34: ='APPENDIX 10'!D34-'APPENDIX 10'!E34 -> 0 | E34: ='APPENDIX 12'!D34-'APPENDIX 12'!E34 -> 0 | F34: ='APPENDIX 11'!D34-'APPENDIX 11'!E34 -> 89763 | G34: ='APPENDIX 13'!D34-'APPENDIX 13'!E34 -> 0 | H34: ='APPENDIX 14'!D33-'APPENDIX 14'!E33 -> 0 | I34: ='APPENDIX 15'!D34-'APPENDIX 15'!E34 -> 0 | J34: =SUM(C34:I34) -> 90748
B35: EAST AFRICA REINSURANCE | C35: ='APPENDIX 9'!D35-'APPENDIX 9'!E35 -> 0 | D35: ='APPENDIX 10'!D35-'APPENDIX 10'!E35 -> 0 | E35: ='APPENDIX 12'!D35-'APPENDIX 12'!E35 -> 0 | F35: ='APPENDIX 11'!D35-'APPENDIX 11'!E35 -> 209610 | G35: ='APPENDIX 13'!D35-'APPENDIX 13'!E35 -> 0 | H35: ='APPENDIX 14'!D34-'APPENDIX 14'!E34 -> 0 | I35: ='APPENDIX 15'!D35-'APPENDIX 15'!E35 -> 0 | J35: =SUM(C35:I35) -> 209610
B36: KENYA REINSURANCE CORPORATION | C36: ='APPENDIX 9'!D36-'APPENDIX 9'!E36 -> 9841 | D36: ='APPENDIX 10'!D36-'APPENDIX 10'!E36 -> 0 | E36: ='APPENDIX 12'!D36-'APPENDIX 12'!E36 -> 0 | F36: ='APPENDIX 11'!D36-'APPENDIX 11'!E36 -> 88561 | G36: ='APPENDIX 13'!D36-'APPENDIX 13'!E36 -> 0 | H36: ='APPENDIX 14'!D35-'APPENDIX 14'!E35 -> 0 | I36: ='APPENDIX 15'!D36-'APPENDIX 15'!E36 -> 0 | J36: =SUM(C36:I36) -> 98402
B37: TOTAL | C37: =SUM(C34:C36) -> 10826 | D37: =SUM(D34:D36) -> 0 | E37: 0 | F37: 387934 | G37: 0 | H37: 0 | I37: 0 | J37: 398760
B38: Amounts in Thousand Shillings

Sheet APPENDIX 9
B3: APPENDIX 9: SUMMARY OF LIFE ASSURANCES BUSINESS REVENUE ACCOUNTS FOR THE YEAR ENDED 31.12.2019
B4: Company | C4: Life Fund BF | D4: Gross Premium | E4: Net Premium | F4: Other (Fee) Income | G4: Total Benefits | H4: Claims | I4: Surrenders | J4: Bonuses Paid | K4: Annuities Paid | L4: Net Commisions | M4: Expense of Management | N4: Investment Income | O4: Investment Expenses | P4: Transfer To (From) P & L | Q4: Life Fund CF
B5: INSURERS
B6: ABSA LIFE ASSURANCE KENYA | C6: -766831 | D6: 662445 | E6: 662445 | F6: 0 | G6: 60296 | H6: 478347 | I6: 0 | J6: 0 | K6: 0 | L6: 130282 | M6: 291983 | N6: 159795 | O6: -5907 | P6: -221035 | Q6: -618260
B7: APA LIFE ASSURANCE COMPANY | C7: 261850 | D7: 148535 | E7: 139613 | F7: 0 | G7: 34631 | H7: 32759 | I7: 0 | J7: 0 | K7: 0 | L7: 63365 | M7: 102808 | N7: 43230 | O7: 1580 | P7: -80000 | Q7: 324181
B8: BRITAM LIFE INSURANCE COMPANY | C8: 23933916 | D8: 8756095 | E8: 8750409 | F8: -1026 | G8: 3384959 | H8: 539045 | I8: 1285690 | J8: 1554745 | K8: 0 | L8: 1244792 | M8: 2107108 | N8: 3365112 | O8: 144265 | P8: 2338807 | Q8: 26833960
B9: CAPEX LIFE ASSURANCE COMPANY | C9: 411647 | D9: 136055 | E9: 136055 | F9: 0 | G9: 160469 | H9: 15854 | I9: 364 | J9: 0 | K9: 0 | L9: 0 | M9: 150374 | N9: 94459 | O9: 0 | P9: 0 | Q9: 475569
B10: CIC LIFE ASSURANCE COMPANY | C10: 955956 | D10: 1139444 | E10: 1122925 | F10: 0 | G10: 410552 | H10: 789207 | I10: 0 | J10: 0 | K10: 0 | L10: 106187 | M10: 251160 | N10: 143761 | O10: 0 | P10: 0 | Q10: 1076088
B11: CORPORATE INSURANCE COMPANY | C11: 612193 | D11: 280275 | E11: 277301 | F11: 0 | G11: 222823 | H11: 267825 | I11: 0 | J11: 0 | K11: 0 | L11: 57411 | M11: 100656 | N11: 117079 | O11: 0 | P11: 0 | Q11: 580682
B12: FIRST ASSURANCE COMPANY | C12: 0 | D12: 0 | E12: 0 | F12: 0 | G12: 0 | H12: 0 | I12: 0 | J12: 0 | K12: 0 | L12: 0 | M12: 0 | N12: 0 | O12: 0 | P12: 0 | Q12: 0
B13: GA LIFE ASSURANCE COMPANY | C13: 0 | D13: 313331 | E13: 313331 | F13: 0 | G13: 17460 | H13: 17460 | I13: 0 | J13: 0 | K13: 0 | L13: 6267 | M13: 11 | N13: 30753 | O13: 0 | P13: 1723 | Q13: 318623
B14: GEMINIA INSURANCE COMPANY | C14: 473726 | D14: 56083 | E14: 56083 | F14: 0 | G14: 185289 | H14: 185289 | I14: 0 | J14: 0 | K14: 0 | L14: 7133 | M14: 146559 | N14: 123487 | O14: 0 | P14: 0 | Q14: 314314
B15: ICEA LION LIFE ASSURANCE | C15: 9719554 | D15: 3302679 | E15: 3257750 | F15: 0 | G15: 1383597 | H15: 869333 | I15: 537880 | J15: 0 | K15: 0 | L15: 557491 | M15: 715705 | N15: 1346664 | O15: 0 | P15: 103878 | Q15: 11539680
B16: JUBILEE INSURANCE COMPANY | C16: 8499237 | D16: 3685536 | E16: 3680030 | F16: 0 | G16: 1911902 | H16: 1361525 | I16: 589048 | J16: 0 | K16: 0 | L16: 688290 | M16: 542937 | N16: 1103938 | O16: 2823 | P16: 365496 | Q16: 9733087
B17: KENINDIA ASSURANCE COMPANY | C17: 8306070 | D17: 1614208 | E17: 1605736 | F17: 0 | G17: 728431 | H17: 746007 | I17: 0 | J17: 0 | K17: 0 | L17: 100187 | M17: 284830 | N17: 1160401 | O17: 0 | P17: 241610 | Q17: 9699573
B18: KENYA ORIENT LIFE ASSURANCE | C18: 11373 | D18: 47843 | E18: 47821 | F18: 0 | G18: 1232 | H18: 50 | I18: 1020 | J18: 0 | K18: 0 | L18: 9203 | M18: 74881 | N18: 856 | O18: 0 | P18: 0 | Q18: -25104
B19: KUSCCO MUTUAL ASSURANCE LIMITED | C19: 0 | D19: 0 | E19: 0 | F19: 0 | G19: 0 | H19: 0 | I19: 0 | J19: 0 | K19: 0 | L19: 0 | M19: 0 | N19: 0 | O19: 0 | P19: 0 | Q19: 0
B20: LIBERTY LIFE ASSURANCE COMPANY | C20: 7401363 | D20: 1332429 | E20: 1336323 | F20: 0 | G20: 442534 | H20: 335236 | I20: 0 | J20: 0 | K20: 0 | L20: 27087 | M20: 200578 | N20: 874597 | O20: 0 | P20: 0 | Q20: 9049382
B21: MADISON INSURANCE COMPANY | C21: 3616157 | D21: 1451627 | E21: 1451627 | F21: 0 | G21: 517466 | H21: 517466 | I21: 0 | J21: 0 | K21: 0 | L21: 246657 | M21: 590395 | N21: 236395 | O21: 0 | P21: 0 | Q21: 3949661
B22: METROPOLITAN CANNON INSURANCE | C22: 0 | D22: 0 | E22: 0 | F22: 0 | G22: 0 | H22: 0 | I22: 0 | J22: 0 | K22: 0 | L22: 0 | M22: 0 | N22: 0 | O22: 0 | P22: 0 | Q22: 0
B23: OLD MUTUAL LIFE ASSURANCE | C23: 4472928 | D23: 981472 | E23: 893340 | F23: 445952 | G23: 1016230 | H23: 876537 | I23: 101515 | J23: 0 | K23: 0 | L23: 306192 | M23: 718126 | N23: 801506 | O23: 22072 | P23: -152829 | Q23: 4742115
B24: PIONEER ASSURANCE COMPANY | C24: 180083 | D24: 968911 | E24: 966943 | F24: 0 | G24: 402656 | H24: 377467 | I24: 0 | J24: 0 | K24: 0 | L24: 250799 | M24: 375562 | N24: 0 | O24: 0 | P24: 0 | Q24: 143198
B25: PRUDENTIAL LIFE ASSURANCE | C25: 374437 | D25: 251490 | E25: 251490 | F25: 14137 | G25: 124314 | H25: 106129 | I25: 3342 | J25: 376 | K25: 0 | L25: 59776 | M25: 161404 | N25: 67799 | O25: 2998 | P25: 0 | Q25: 373837
B26: SAHAM ASSURANCE | C26: 217175 | D26: 29649 | E26: 23381 | F26: 0 | G26: 32489 | H26: 32489 | I26: 0 | J26: 0 | K26: 0 | L26: 2074 | M26: 16621 | N26: 60868 | O26: 0 | P26: 22103 | Q26: 228138
B27: SANLAM LIFE INSURANCE | C27: 5628360 | D27: 2063121 | E27: 2032230 | F27: 0 | G27: 299113 | H27: 299204 | I27: 0 | J27: 0 | K27: 0 | L27: 267243 | M27: 747516 | N27: 325296 | O27: 0 | P27: 0 | Q27: 6671922
B28: TAKAFUL INSURANCE OF AFRICA | C28: 0 | D28: 0 | E28: 0 | F28: 0 | G28: 0 | H28: 0 | I28: 0 | J28: 0 | K28: 0 | L28: 0 | M28: 0 | N28: 0 | O28: 0 | P28: 0 | Q28: 0
B29: THE KENYAN ALLIANCE INSURANCE | C29: 68289 | D29: 52975 | E29: 52975 | F29: 0 | G29: 4465 | H29: 4465 | I29: 0 | J29: 0 | K29: 0 | L29: 12180 | M29: 7264 | N29: 8446 | O29: 0 | P29: 0 | Q29: 105801
B30: THE MONARCH INSURANCE | C30: 51685 | D30: 24122 | E30: 24052 | F30: 0 | G30: 0 | H30: -3045 | I30: 0 | J30: 0 | K30: 0 | L30: 3479 | M30: 18227 | N30: 6126 | O30: 0 | P30: 0 | Q30: 63203
B31: UAP LIFE ASSURANCE COMPANY | C31: 1004644 | D31: 888700 | E31: 888700 | F31: 0 | G31: 142914 | H31: 58447 | I31: 84333 | J31: 0 | K31: 0 | L31: 32096 | M31: 390614 | N31: 295114 | O31: 0 | P31: 0 | Q31: 1622968
B32: TOTAL | C32: =SUM(C6:C31) -> 75433812 | D32: 28187025 | E32: 27970560 | F32: 459063 | G32: 11483822 | H32: 7907096 | I32: 2603192 | J32: 1555121 | K32: 0 | L32: 4178191 | M32: 7995319 | N32: 10365682 | O32: 167831 | P32: 2619753 | Q32: 87202618
B33: REINSURERS
B34: CONTINENTAL REINSURANCE | C34: 0 | D34: 3608 | E34: 2623 | F34: 0 | G34: 602 | H34: 0 | I34: 0 | J34: 0 | K34: 0 | L34: 1059 | M34: 327 | N34: 406 | O34: 0 | P34: 0 | Q34: 1642
B35: EAST AFRICA REINSURANCE | C35: 0 | D35: 38643 | E35: 38643 | F35: -13 | G35: 1965 | H35: 0 | I35: 0 | J35: 0 | K35: 0 | L35: 4911 | M35: 2960 | N35: 0 | O35: 0 | P35: 0 | Q35: 30759
B36: KENYA REINSURANCE CORPORATION | C36: 1354345 | D36: 204066 | E36: 194225 | F36: 0 | G36: 89797 | H36: 89797 | I36: 0 | J36: 0 | K36: 0 | L36: 56962 | M36: 24006 | N36: 86311 | O36: 0 | P36: 0 | Q36: 1464116
B37: TOTAL | C37: =SUM(C34:C36) -> 1354345 | D37: =SUM(D34:D36) -> 246317 | E37: =SUM(E34:E36) -> 235491 | F37: -13 | G37: 92364 | H37: 89797 | I37: 0 | J37: 0 | K37: 0 | L37: 62932 | M37: 27293 | N37: 86717 | O37: 0 | P37: =SUM(P34:P36) -> 0 | Q37: =SUM(Q34:Q36) -> 1496517
B38: Amounts in Thousand Shillings

Sheet APPENDIX 10
B3: APPENDIX 10: SUMMARY OF ANNUITIES BUSINESS REVENUE ACCOUNTS FOR THE YEAR ENDED 31.12.2019
B4: Company | C4: Life Fund BF | D4: Gross Premium | E4: Net Premium | F4: Other (Fee) Income | G4: Total Benefits | H4: Claims | I4: Surrenders | J4: Bonuses Paid | K4: Annuities Paid | L4: Net Commisions | M4: Expense of Management | N4: Investment Income | O4: Investment Expenses | P4: Transfer To (From) P & L | Q4: Life Fund CF
B5: INSURERS
B6: ABSA LIFE ASSURANCE KENYA | C6: 0 | D6: 0 | E6: 0 | F6: 0 | G6: 0 | H6: 0 | I6: 0 | J6: 0 | K6: 0 | L6: 0 | M6: 0 | N6: 0 | O6: 0 | P6: 0 | Q6: 0
B7: APA LIFE ASSURANCE COMPANY | C7: 487598 | D7: 25211 | E7: 25211 | F7: 0 | G7: 59863 | H7: 0 | I7: 0 | J7: 0 | K7: 59863 | L7: 0 | M7: 5002 | N7: 38137 | O7: 1823 | P7: 0 | Q7: 484256
B8: BRITAM LIFE INSURANCE COMPANY | C8: 3870706 | D8: 3046542 | E8: 3046542 | F8: 0 | G8: 744002 | H8: 0 | I8: 0 | J8: 0 | K8: 787927 | L8: 61754 | M8: 43469 | N8: 753960 | O8: 27289 | P8: 110487 | Q8: 6640282
B9: CAPEX LIFE ASSURANCE COMPANY | C9: 0 | D9: 0 | E9: 0 | F9: 0 | G9: 0 | H9: 2961 | I9: 0 | J9: 0 | K9: 87930 | L9: 0 | M9: 0 | N9: 0 | O9: 0 | P9: 0 | Q9: -90891
B10: CIC LIFE ASSURANCE COMPANY | C10: -291510 | D10: 298679 | E10: 298679 | F10: 0 | G10: 194266 | H10: 475278 | I10: 0 | J10: 0 | K10: 0 | L10: 5678 | M10: 22176 | N10: 171900 | O10: 0 | P10: 0 | Q10: -324063
B11: CORPORATE INSURANCE COMPANY | C11: 0 | D11: 0 | E11: 0 | F11: 0 | G11: 0 | H11: 0 | I11: 0 | J11: 0 | K11: 0 | L11: 0 | M11: 0 | N11: 0 | O11: 0 | P11: 0 | Q11: 0
B12: FIRST ASSURANCE COMPANY | C12: 0 | D12: 0 | E12: 0 | F12: 0 | G12: 0 | H12: 0 | I12: 0 | J12: 0 | K12: 0 | L12: 0 | M12: 0 | N12: 0 | O12: 0 | P12: 0 | Q12: 0
B13: GA LIFE ASSURANCE COMPANY | C13: 0 | D13: 0 | E13: 0 | F13: 0 | G13: 0 | H13: 0 | I13: 0 | J13: 0 | K13: 0 | L13: 0 | M13: 0 | N13: 0 | O13: 0 | P13: 0 | Q13: 0
B14: GEMINIA INSURANCE COMPANY | C14: 0 | D14: 0 | E14: 0 | F14: 0 | G14: 0 | H14: 0 | I14: 0 | J14: 0 | K14: 0 | L14: 0 | M14: 0 | N14: 0 | O14: 0 | P14: 0 | Q14: 0
B15: ICEA LION LIFE ASSURANCE | C15: 10423588 | D15: 529785 | E15: 529785 | F15: 0 | G15: 1182791 | H15: 0 | I15: 0 | J15: 0 | K15: 1183684 | L15: 14660 | M15: 23993 | N15: 1640277 | O15: 0 | P15: 201600 | Q15: 11169713
B16: JUBILEE INSURANCE COMPANY | C16: 8816107 | D16: 1085109 | E16: 1085109 | F16: 0 | G16: 1041068 | H16: 1041068 | I16: 0 | J16: 0 | K16: 0 | L16: 17872 | M16: 36686 | N16: 2034344 | O16: 2336 | P16: 291978 | Q16: 10545619
B17: KENINDIA ASSURANCE COMPANY | C17: 1226564 | D17: 412487 | E17: 412487 | F17: 0 | G17: 142826 | H17: 142826 | I17: 0 | J17: 0 | K17: 0 | L17: 7949 | M17: 0 | N17: 166138 | O17: 0 | P17: 0 | Q17: 1654415
B18: KENYA ORIENT LIFE ASSURANCE | C18: 294551 | D18: 200061 | E18: 200061 | F18: 0 | G18: 57383 | H18: 0 | I18: 0 | J18: 0 | K18: 57383 | L18: 7890 | M18: 14709 | N18: 3592 | O18: 0 | P18: 0 | Q18: 418222
B19: KUSCCO MUTUAL ASSURANCE LIMITED | C19: 0 | D19: 0 | E19: 0 | F19: 0 | G19: 0 | H19: 0 | I19: 0 | J19: 0 | K19: 0 | L19: 0 | M19: 0 | N19: 0 | O19: 0 | P19: 0 | Q19: 0
B20: LIBERTY LIFE ASSURANCE COMPANY | C20: 283026 | D20: 57219 | E20: 57219 | F20: 0 | G20: 0 | H20: 0 | I20: 0 | J20: 0 | K20: 0 | L20: 0 | M20: 1323 | N20: 30467 | O20: 0 | P20: 0 | Q20: 369388
B21: MADISON INSURANCE COMPANY | C21: 4614967 | D21: 1294739 | E21: 1294739 | F21: 0 | G21: 760094 | H21: 760094 | I21: 0 | J21: 0 | K21: 0 | L21: 28459 | M21: 87317 | N21: 408946 | O21: 0 | P21: 0 | Q21: 5442782
B22: METROPOLITAN CANNON INSURANCE | C22: 0 | D22: 0 | E22: 0 | F22: 0 | G22: 0 | H22: 0 | I22: 0 | J22: 0 | K22: 0 | L22: 0 | M22: 0 | N22: 0 | O22: 0 | P22: 0 | Q22: 0
B23: OLD MUTUAL LIFE ASSURANCE | C23: -1123 | D23: 0 | E23: 0 | F23: 0 | G23: 816 | H23: 0 | I23: 0 | J23: 0 | K23: 816 | L23: 0 | M23: 0 | N23: 185 | O23: 5 | P23: 0 | Q23: -1758
B24: PIONEER ASSURANCE COMPANY | C24: 207396 | D24: 22826 | E24: 22826 | F24: 0 | G24: 0 | H24: 0 | I24: 0 | J24: 0 | K24: 0 | L24: 626 | M24: 0 | N24: 0 | O24: 0 | P24: 0 | Q24: 229596
B25: PRUDENTIAL LIFE ASSURANCE | C25: 0 | D25: 0 | E25: 0 | F25: 0 | G25: 0 | H25: 0 | I25: 0 | J25: 0 | K25: 0 | L25: 0 | M25: 0 | N25: 0 | O25: 0 | P25: 0 | Q25: 0
B26: SAHAM ASSURANCE | C26: 0 | D26: 0 | E26: 0 | F26: 0 | G26: 136 | H26: 136 | I26: 0 | J26: 0 | K26: 0 | L26: 0 | M26: 0 | N26: 0 | O26: 0 | P26: 0 | Q26: -136
B27: SANLAM LIFE INSURANCE | C27: 8448916 | D27: 457202 | E27: 457202 | F27: 0 | G27: 1044334 | H27: 0 | I27: 0 | J27: 0 | K27: 1044334 | L27: 9144 | M27: 11394 | N27: 1176775 | O27: 0 | P27: 0 | Q27: 9018022
B28: TAKAFUL INSURANCE OF AFRICA | C28: 0 | D28: 0 | E28: 0 | F28: 0 | G28: 0 | H28: 0 | I28: 0 | J28: 0 | K28: 0 | L28: 0 | M28: 0 | N28: 0 | O28: 0 | P28: 0 | Q28: 0
B29: THE KENYAN ALLIANCE INSURANCE | C29: 1259129 | D29: 22044 | E29: 22044 | F29: 0 | G29: 112686 | H29: 112686 | I29: 0 | J29: 0 | K29: 0 | L29: 2011 | M29: 3023 | N29: 3515 | O29: 0 | P29: -27774 | Q29: 1194742
B30: THE MONARCH INSURANCE | C30: 0 | D30: 0 | E30: 0 | F30: 0 | G30: 0 | H30: 0 | I30: 0 | J30: 0 | K30: 0 | L30: 0 | M30: 0 | N30: 0 | O30: 0 | P30: 0 | Q30: 0
B31: UAP LIFE ASSURANCE COMPANY | C31: 1161033 | D31: 0 | E31: 0 | F31: 0 | G31: 144821 | H31: 0 | I31: 0 | J31: 0 | K31: 144821 | L31: 0 | M31: 0 | N31: 166269 | O31: 0 | P31: 0 | Q31: 1182481
B32: TOTAL | C32: =SUM(C6:C31) -> 40800948 | D32: 7451904 | E32: 7451904 | F32: 0 | G32: 5485086 | H32: 2535049 | I32: 0 | J32: 0 | K32: 3366758 | L32: 156043 | M32: 249092 | N32: 6594505 | O32: 31453 | P32: 576291 | Q32: 47932670
B33: REINSURERS
B34: CONTINENTAL REINSURANCE | C34: 0 | D34: 0 | E34: 0 | F34: 0 | G34: 0 | H34: 0 | I34: 0 | J34: 0 | K34: 0 | L34: 0 | M34: 0 | N34: 0 | O34: 0 | P34: 0 | Q34: 0
B35: EAST AFRICA REINSURANCE | C35: 0 | D35: 0 | E35: 0 | F35: 0 | G35: 0 | H35: 0 | I35: 0 | J35: 0 | K35: 0 | L35: 0 | M35: 0 | N35: 0 | O35: 0 | P35: 0 | Q35: 0
B36: KENYA REINSURANCE CORPORATION | C36: 0 | D36: 0 | E36: 0 | F36: 0 | G36: 0 | H36: 0 | I36: 0 | J36: 0 | K36: 0 | L36: 0 | M36: 0 | N36: 0 | O36: 0 | P36: 0 | Q36: 0
B37: TOTAL | C37: =SUM(C34:C36) -> 0 | D37: =SUM(D34:D36) -> 0 | E37: 0 | F37: 0 | G37: 0 | H37: 0 | I37: 0 | J37: 0 | K37: 0 | L37: 0 | M37: 0 | N37: 0 | O37: 0 | P37: 0 | Q37: 0
B38: Amounts in Thousand Shillings

Sheet APPENDIX 11
B3: APPENDIX 11: SUMMARY OF GROUP LIFE BUSINESS REVENUE ACCOUNTS FOR THE YEAR ENDED 31.12.2019
B4: Company | C4: Life Fund BF | D4: Gross Premium | E4: Net Premium | F4: Other (Fee) Income | G4: Total Benefits | H4: Claims | I4: Surrenders | J4: Bonuses Paid | K4: Annuities Paid | L4: Net Commisions | M4: Expense of Management | N4: Investment Income | O4: Investment Expenses | P4: Transfer To (From) P & L | Q4: Life Fund CF
B5: INSURERS
B6: ABSA LIFE ASSURANCE KENYA | C6: 134486 | D6: 809652 | E6: 187439 | F6: 0 | G6: 154170 | H6: 160366 | I6: 0 | J6: 0 | K6: 0 | L6: -22562 | M6: 145991 | N6: 27311 | O6: -1477 | P6: -344507 | Q6: 411425
B7: APA LIFE ASSURANCE COMPANY | C7: -23440 | D7: 501961 | E7: 109352 | F7: 0 | G7: 167569 | H7: 150819 | I7: 0 | J7: 0 | K7: 0 | L7: -2358 | M7: 100009 | N7: 26631 | O7: 1273 | P7: 29806 | Q7: -167006
B8: BRITAM LIFE INSURANCE COMPANY | C8: 1946127 | D8: 550270 | E8: 381132 | F8: 0 | G8: 463483 | H8: 409023 | I8: 0 | J8: 0 | K8: 0 | L8: 39379 | M8: 219920 | N8: 493303 | O8: 6091 | P8: 178612 | Q8: 1967537
B9: CAPEX LIFE ASSURANCE COMPANY | C9: 0 | D9: 174456 | E9: 144531 | F9: 0 | G9: 0 | H9: 53794 | I9: 0 | J9: 0 | K9: 0 | L9: 680 | M9: 0 | N9: 0 | O9: 0 | P9: 0 | Q9: 90056
B10: CIC LIFE ASSURANCE COMPANY | C10: -121293 | D10: 439694 | E10: 312629 | F10: 0 | G10: 318199 | H10: 392011 | I10: 0 | J10: 0 | K10: 0 | L10: -3382 | M10: 148169 | N10: 51508 | O10: 0 | P10: 0 | Q10: -293953
B11: CORPORATE INSURANCE COMPANY | C11: 19710 | D11: 14044 | E11: 12426 | F11: 0 | G11: 5939 | H11: 5939 | I11: 0 | J11: 0 | K11: 0 | L11: 2548 | M11: 1739 | N11: 5538 | O11: 0 | P11: 0 | Q11: 27449
B12: FIRST ASSURANCE COMPANY | C12: 397697 | D12: 85777 | E12: 9190 | F12: 0 | G12: -14990 | H12: 13760 | I12: 0 | J12: 0 | K12: 0 | L12: -12352 | M12: 7759 | N12: 14675 | O12: 0 | P12: 0 | Q12: 412396
B13: GA LIFE ASSURANCE COMPANY | C13: 5519 | D13: 32445 | E13: 1746 | F13: 0 | G13: 2000 | H13: 1800 | I13: 0 | J13: 0 | K13: 0 | L13: -16373 | M13: 8024 | N13: 1899 | O13: 0 | P13: 4786 | Q13: 10928
B14: GEMINIA INSURANCE COMPANY | C14: 102661 | D14: 848772 | E14: 367169 | F14: 0 | G14: 457945 | H14: 261579 | I14: 0 | J14: 0 | K14: 0 | L14: -32971 | M14: 16765 | N14: 0 | O14: 0 | P14: 0 | Q14: 224457
B15: ICEA LION LIFE ASSURANCE | C15: 135560 | D15: 318592 | E15: 145624 | F15: 0 | G15: 76841 | H15: 59466 | I15: 0 | J15: 0 | K15: 0 | L15: -80768 | M15: 84910 | N15: 30213 | O15: 0 | P15: 16800 | Q15: 230989
B16: JUBILEE INSURANCE COMPANY | C16: 177115 | D16: 964614 | E16: 421177 | F16: 0 | G16: 266584 | H16: 242815 | I16: 0 | J16: 0 | K16: 0 | L16: 45400 | M16: 191138 | N16: 104388 | O16: 660 | P16: 83183 | Q16: 139484
B17: KENINDIA ASSURANCE COMPANY | C17: 52652 | D17: 50283 | E17: 25319 | F17: 0 | G17: 3598 | H17: 3697 | I17: 0 | J17: 0 | K17: 0 | L17: 4354 | M17: 2730 | N17: 12288 | O17: 0 | P17: 40099 | Q17: 39380
B18: KENYA ORIENT LIFE ASSURANCE | C18: 8051 | D18: 20569 | E18: 11995 | F18: 0 | G18: 1200 | H18: 1200 | I18: 0 | J18: 0 | K18: 0 | L18: -1158 | M18: 19509 | N18: 369 | O18: 0 | P18: 0 | Q18: 865
B19: KUSCCO MUTUAL ASSURANCE LIMITED | C19: 0 | D19: 12216 | E19: 8551 | F19: 0 | G19: 0 | H19: 0 | I19: 0 | J19: 0 | K19: 0 | L19: 156 | M19: 2854 | N19: 278 | O19: 0 | P19: 0 | Q19: 5819
B20: LIBERTY LIFE ASSURANCE COMPANY | C20: 295572 | D20: 561081 | E20: 448759 | F20: 0 | G20: 264966 | H20: 209194 | I20: 0 | J20: 0 | K20: 0 | L20: 81943 | M20: 214070 | N20: 60580 | O20: 0 | P20: 0 | Q20: 299704
B21: MADISON INSURANCE COMPANY | C21: -131221 | D21: 412423 | E21: 327715 | F21: 0 | G21: 49149 | H21: 49149 | I21: 0 | J21: 0 | K21: 0 | L21: -10812 | M21: 20940 | N21: 0 | O21: 0 | P21: 0 | Q21: 137217
B22: METROPOLITAN CANNON INSURANCE | C22: 0 | D22: 0 | E22: 0 | F22: 0 | G22: 0 | H22: 0 | I22: 0 | J22: 0 | K22: 0 | L22: 0 | M22: 0 | N22: 0 | O22: 0 | P22: 0 | Q22: 0
B23: OLD MUTUAL LIFE ASSURANCE | C23: 166168 | D23: 328287 | E23: 224011 | F23: 0 | G23: 94838 | H23: 138196 | I23: 0 | J23: 0 | K23: 0 | L23: 27228 | M23: 68656 | N23: 79868 | O23: 1284 | P23: 90719 | Q23: 143965
B24: PIONEER ASSURANCE COMPANY | C24: 2009661 | D24: 3389458 | E24: 1699911 | F24: 0 | G24: 2416471 | H24: 1928082 | I24: 0 | J24: 0 | K24: 0 | L24: -353449 | M24: 160955 | N24: 0 | O24: 0 | P24: 142488 | Q24: 1831495
B25: PRUDENTIAL LIFE ASSURANCE | C25: 44296 | D25: 115652 | E25: 60911 | F25: 17576 | G25: 26832 | H25: 26832 | I25: 0 | J25: 0 | K25: 0 | L25: 11352 | M25: 42345 | N25: 4224 | O25: 1860 | P25: 0 | Q25: 44619
B26: SAHAM ASSURANCE | C26: 11830 | D26: 2953 | E26: 1390 | F26: 0 | G26: 2963 | H26: 2963 | I26: 0 | J26: 0 | K26: 0 | L26: 307 | M26: 1637 | N26: 3413 | O26: 0 | P26: 2067 | Q26: 9660
B27: SANLAM LIFE INSURANCE | C27: -608949 | D27: 591909 | E27: 337971 | F27: 0 | G27: 260816 | H27: 313874 | I27: 0 | J27: 0 | K27: 0 | L27: -10056 | M27: 114052 | N27: 27910 | O27: 0 | P27: 0 | Q27: -660940
B28: TAKAFUL INSURANCE OF AFRICA | C28: 0 | D28: 1663 | E28: 1663 | F28: 0 | G28: 0 | H28: 4511 | I28: 0 | J28: 0 | K28: 0 | L28: 0 | M28: 6119 | N28: 3412 | O28: 0 | P28: 0 | Q28: -5555
B29: THE KENYAN ALLIANCE INSURANCE | C29: 624984 | D29: 222488 | E29: 134576 | F29: 0 | G29: 119141 | H29: 139927 | I29: 0 | J29: 0 | K29: 0 | L29: -12939 | M29: 31260 | N29: 36398 | O29: 0 | P29: 0 | Q29: 637710
B30: THE MONARCH INSURANCE | C30: -25668 | D30: 47185 | E30: 20694 | F30: 0 | G30: 55687 | H30: 15629 | I30: 0 | J30: 0 | K30: 0 | L30: -1181 | M30: 16473 | N30: 10920 | O30: 0 | P30: 0 | Q30: -24975
B31: UAP LIFE ASSURANCE COMPANY | C31: 1995539 | D31: 461245 | E31: 165581 | F31: 0 | G31: 349374 | H31: 207982 | I31: 0 | J31: 0 | K31: 0 | L31: 8364 | M31: 201226 | N31: 313842 | O31: 0 | P31: 0 | Q31: 2057390
B32: TOTAL | C32: =SUM(C6:C31) -> 7217057 | D32: 10957689 | E32: 5561462 | F32: 17576 | G32: 5542775 | H32: 4792608 | I32: 0 | J32: 0 | K32: 0 | L32: -338650 | M32: 1827250 | N32: 1308968 | O32: 9691 | P32: 244053 | Q32: =SUM(Q6:Q31) -> 7570116
B33: REINSURERS
B34: CONTINENTAL REINSURANCE | C34: 0 | D34: 464585 | E34: 374822 | F34: 0 | G34: 81536 | H34: 162611 | I34: 0 | J34: 0 | K34: 0 | L34: 111266 | M34: 42127 | N34: 54148 | O34: 0 | P34: 0 | Q34: 112966
B35: EAST AFRICA REINSURANCE | C35: 0 | D35: 1244033 | E35: 1034423 | F35: -247 | G35: 576781 | H35: 581444 | I35: 0 | J35: 0 | K35: 0 | L35: 272710 | M35: 95716 | N35: 0 | O35: 0 | P35: 0 | Q35: 84307
B36: KENYA REINSURANCE CORPORATION | C36: 6187532 | D36: 1836590 | E36: 1748029 | F36: 0 | G36: 808175 | H36: 808175 | I36: 0 | J36: 0 | K36: 0 | L36: 512658 | M36: 216054 | N36: 776803 | O36: 0 | P36: 0 | Q36: 7175477
B37: TOTAL | C37: =SUM(C34:C36) -> 6187532 | D37: =SUM(D34:D36) -> 3545208 | E37: 3157274 | F37: -247 | G37: 1466492 | H37: 1552230 | I37: 0 | J37: 0 | K37: 0 | L37: 896634 | M37: 353897 | N37: 830951 | O37: 0 | P37: 0 | Q37: 7372750
B38: Amounts in Thousand Shillings

Sheet PP (hidden)
B3: APPENDIX 12: SUMMARY OF PENSIONS BUSINESS REVENUE ACCOUNTS FOR THE YEAR ENDED 31.12.2019
B4: Company | C4: Life Fund BF | D4: Gross Premium | E4: Net Premium | F4: Other (Fee) Income | G4: Total Benefits | H4: Claims | I4: Surrenders | J4: Bonuses Paid | K4: Annuities Paid | L4: Net Commisions | M4: Expense of Management | N4: Investment Income | O4: Investment Expenses | P4: Transfer To (From) P & L | Q4: Life Fund CF
B5: INSURERS
B6: ABSA LIFE ASSURANCE KENYA | C6: 0 | D6: 0 | E6: 0 | F6: 0 | G6: 0 | H6: 0 | I6: 0 | J6: 0 | K6: 0 | L6: 0 | M6: 0 | N6: 0 | O6: 0 | P6: 0 | Q6: 0
B7: APA LIFE ASSURANCE COMPANY | C7: 104011 | D7: 59349 | E7: 59349 | F7: 0 | G7: 23632 | H7: 23632 | I7: 0 | J7: 0 | K7: 0 | L7: 0 | M7: 0 | N7: 0 | O7: 0 | P7: 0 | Q7: 139728
B8: BRITAM LIFE INSURANCE COMPANY | C8: 0 | D8: 0 | E8: 0 | F8: 0 | G8: 0 | H8: 0 | I8: 0 | J8: 0 | K8: 0 | L8: 0 | M8: 0 | N8: 0 | O8: 0 | P8: 0 | Q8: 0
B9: CAPEX LIFE ASSURANCE COMPANY | C9: 0 | D9: 0 | E9: 0 | F9: 0 | G9: 0 | H9: 0 | I9: 0 | J9: 0 | K9: 0 | L9: 0 | M9: 0 | N9: 0 | O9: 0 | P9: 0 | Q9: 0
B10: CIC LIFE ASSURANCE COMPANY | C10: 0 | D10: 0 | E10: 0 | F10: 0 | G10: 0 | H10: 0 | I10: 0 | J10: 0 | K10: 0 | L10: 0 | M10: 0 | N10: 0 | O10: 0 | P10: 0 | Q10: 0
B11: CORPORATE INSURANCE COMPANY | C11: 0 | D11: 0 | E11: 0 | F11: 0 | G11: 0 | H11: 0 | I11: 0 | J11: 0 | K11: 0 | L11: 0 | M11: 0 | N11: 0 | O11: 0 | P11: 0 | Q11: 0
B12: FIRST ASSURANCE COMPANY | C12: 0 | D12: 0 | E12: 0 | F12: 0 | G12: 0 | H12: 0 | I12: 0 | J12: 0 | K12: 0 | L12: 0 | M12: 0 | N12: 0 | O12: 0 | P12: 0 | Q12: 0
B13: GA LIFE ASSURANCE COMPANY | C13: 0 | D13: 0 | E13: 0 | F13: 0 | G13: 0 | H13: 0 | I13: 0 | J13: 0 | K13: 0 | L13: 0 | M13: 0 | N13: 0 | O13: 0 | P13: 0 | Q13: 0
B14: GEMINIA INSURANCE COMPANY | C14: 0 | D14: 0 | E14: 0 | F14: 0 | G14: 0 | H14: 0 | I14: 0 | J14: 0 | K14: 0 | L14: 0 | M14: 0 | N14: 0 | O14: 0 | P14: 0 | Q14: 0
B15: ICEA LION LIFE ASSURANCE | C15: 13351884 | D15: 3957878 | E15: 3957878 | F15: 0 | G15: 1588686 | H15: 0 | I15: 1588686 | J15: 0 | K15: 0 | L15: 46255 | M15: 156947 | N15: 2201043 | O15: 0 | P15: 0 | Q15: 17718917
B16: JUBILEE INSURANCE COMPANY | C16: 5384362 | D16: 1167737 | E16: 1167737 | F16: 0 | G16: 664338 | H16: 0 | I16: 0 | J16: 0 | K16: 0 | L16: 13711 | M16: 37686 | N16: 50402 | O16: 229 | P16: 0 | Q16: 6550873
B17: KENINDIA ASSURANCE COMPANY | C17: 0 | D17: 0 | E17: 0 | F17: 0 | G17: 0 | H17: 0 | I17: 0 | J17: 0 | K17: 0 | L17: 0 | M17: 0 | N17: 0 | O17: 0 | P17: 0 | Q17: 0
B18: KENYA ORIENT LIFE ASSURANCE | C18: 0 | D18: 0 | E18: 0 | F18: 0 | G18: 0 | H18: 0 | I18: 0 | J18: 0 | K18: 0 | L18: 0 | M18: 0 | N18: 0 | O18: 0 | P18: 0 | Q18: 0
B19: KUSCCO MUTUAL ASSURANCE LIMITED | C19: 0 | D19: 0 | E19: 0 | F19: 0 | G19: 0 | H19: 0 | I19: 0 | J19: 0 | K19: 0 | L19: 0 | M19: 0 | N19: 0 | O19: 0 | P19: 0 | Q19: 0
B20: LIBERTY LIFE ASSURANCE COMPANY | C20: 0 | D20: 0 | E20: 0 | F20: 0 | G20: 0 | H20: 0 | I20: 0 | J20: 0 | K20: 0 | L20: 0 | M20: 0 | N20: 0 | O20: 0 | P20: 0 | Q20: 0
B21: MADISON INSURANCE COMPANY | C21: 905087 | D21: 136739 | E21: 136739 | F21: 0 | G21: 0 | H21: 0 | I21: 0 | J21: 0 | K21: 0 | L21: 572 | M21: 12193 | N21: 0 | O21: 0 | P21: 0 | Q21: 1029061
B22: METROPOLITAN CANNON INSURANCE | C22: 0 | D22: 0 | E22: 0 | F22: 0 | G22: 0 | H22: 0 | I22: 0 | J22: 0 | K22: 0 | L22: 0 | M22: 0 | N22: 0 | O22: 0 | P22: 0 | Q22: 0
B23: OLD MUTUAL LIFE ASSURANCE | C23: 0 | D23: 0 | E23: 0 | F23: 0 | G23: 0 | H23: 0 | I23: 0 | J23: 0 | K23: 0 | L23: 0 | M23: 0 | N23: 0 | O23: 0 | P23: 0 | Q23: 0
B24: PIONEER ASSURANCE COMPANY | C24: 0 | D24: 0 | E24: 0 | F24: 0 | G24: 0 | H24: 0 | I24: 0 | J24: 0 | K24: 0 | L24: 0 | M24: 0 | N24: 0 | O24: 0 | P24: 0 | Q24: 0
B25: PRUDENTIAL LIFE ASSURANCE | C25: 0 | D25: 0 | E25: 0 | F25: 0 | G25: 0 | H25: 0 | I25: 0 | J25: 0 | K25: 0 | L25: 0 | M25: 0 | N25: 0 | O25: 0 | P25: 0 | Q25: 0
B26: SAHAM ASSURANCE | C26: 0 | D26: 0 | E26: 0 | F26: 0 | G26: 0 | H26: 0 | I26: 0 | J26: 0 | K26: 0 | L26: 0 | M26: 0 | N26: 0 | O26: 0 | P26: 0 | Q26: 0
B27: SANLAM LIFE INSURANCE | C27: 0 | D27: 0 | E27: 0 | F27: 0 | G27: 0 | H27: 0 | I27: 0 | J27: 0 | K27: 0 | L27: 0 | M27: 0 | N27: 0 | O27: 0 | P27: 0 | Q27: 0
B28: TAKAFUL INSURANCE OF AFRICA | C28: 0 | D28: 0 | E28: 0 | F28: 0 | G28: 0 | H28: 0 | I28: 0 | J28: 0 | K28: 0 | L28: 0 | M28: 0 | N28: 0 | O28: 0 | P28: 0 | Q28: 0
B29: THE KENYAN ALLIANCE INSURANCE | C29: 177844 | D29: 164776 | E29: 164776 | F29: 0 | G29: 69672 | H29: 63355 | I29: 0 | J29: 0 | K29: 0 | L29: 0 | M29: 22595 | N29: 26271 | O29: 0 | P29: 0 | Q29: 282941
B30: THE MONARCH INSURANCE | C30: 27763 | D30: 0 | E30: 0 | F30: 0 | G30: 0 | H30: 0 | I30: 0 | J30: 0 | K30: 0 | L30: 661 | M30: 25955 | N30: 15155 | O30: 0 | P30: 0 | Q30: 16301
B31: UAP LIFE ASSURANCE COMPANY | C31: -281217 | D31: 0 | E31: 0 | F31: 0 | G31: 0 | H31: 223923 | I31: 0 | J31: 0 | K31: 0 | L31: 0 | M31: 0 | N31: 0 | O31: 0 | P31: 0 | Q31: -505139
B32: TOTAL | C32: =SUM(C6:C31) -> 19669734 | D32: 5486479 | E32: 5486479 | F32: 0 | G32: 2346328 | H32: 310910 | I32: 1588686 | J32: 0 | K32: 0 | L32: 61199 | M32: 255376 | N32: 2292871 | O32: 229 | P32: 0 | Q32: 25232682
B33: REINSURERS
B34: CONTINENTAL REINSURANCE | C34: 0 | D34: 0 | E34: 0 | F34: 0 | G34: 0 | H34: 0 | I34: 0 | J34: 0 | K34: 0 | L34: 0 | M34: 0 | N34: 0 | O34: 0 | P34: 0 | Q34: 0
B35: EAST AFRICA REINSURANCE | C35: 0 | D35: 0 | E35: 0 | F35: 0 | G35: 0 | H35: 0 | I35: 0 | J35: 0 | K35: 0 | L35: 0 | M35: 0 | N35: 0 | O35: 0 | P35: 0 | Q35: 0
B36: KENYA REINSURANCE CORPORATION | C36: 0 | D36: 0 | E36: 0 | F36: 0 | G36: 0 | H36: 0 | I36: 0 | J36: 0 | K36: 0 | L36: 0 | M36: 0 | N36: 0 | O36: 0 | P36: 0 | Q36: 0
B37: TOTAL | C37: =SUM(C34:C36) -> 0 | D37: =SUM(D34:D36) -> 0 | E37: 0 | F37: 0 | G37: 0 | H37: 0 | I37: 0 | J37: 0 | K37: 0 | L37: 0 | M37: 0 | N37: 0 | O37: 0 | P37: 0 | Q37: 0
B38: Amounts in Thousand Shillings

Sheet DA (hidden)
B3: APPENDIX 12: SUMMARY OF PENSIONS BUSINESS REVENUE ACCOUNTS FOR THE YEAR ENDED 31.12.2019
B4: Company | C4: Life Fund BF | D4: Gross Premium | E4: Net Premium | F4: Other (Fee) Income | G4: Total Benefits | H4: Claims | I4: Surrenders | J4: Bonuses Paid | K4: Annuities Paid | L4: Net Commisions | M4: Expense of Management | N4: Investment Income | O4: Investment Expenses | P4: Transfer To (From) P & L | Q4: Life Fund CF
B5: INSURERS
B6: ABSA LIFE ASSURANCE KENYA | C6: 0 | D6: 0 | E6: 0 | F6: 0 | G6: 0 | H6: 0 | I6: 0 | J6: 0 | K6: 0 | L6: 0 | M6: 0 | N6: 0 | O6: 0 | P6: 0 | Q6: 0
B7: APA LIFE ASSURANCE COMPANY | C7: 3412462 | D7: 549803 | E7: 549803 | F7: 0 | G7: 360564 | H7: 360564 | I7: 0 | J7: 0 | K7: 0 | L7: 11185 | M7: 26576 | N7: 473527 | O7: 19999 | P7: 17792 | Q7: 3999677
B8: BRITAM LIFE INSURANCE COMPANY | C8: 33194940 | D8: 9413229 | E8: 9413229 | F8: 10726 | G8: 4683235 | H8: 4683235 | I8: 0 | J8: 0 | K8: 0 | L8: 62381 | M8: 479219 | N8: 4560134 | O8: 8075 | P8: 209217 | Q8: 41736902
B9: CAPEX LIFE ASSURANCE COMPANY | C9: 0 | D9: 0 | E9: 0 | F9: 0 | G9: 0 | H9: 659 | I9: 0 | J9: 0 | K9: 0 | L9: 0 | M9: 0 | N9: 0 | O9: 0 | P9: 0 | Q9: -659
B10: CIC LIFE ASSURANCE COMPANY | C10: 1664127 | D10: 1074234 | E10: 1074234 | F10: 0 | G10: 0 | H10: 0 | I10: 0 | J10: 0 | K10: 0 | L10: 8821 | M10: 30333 | N10: 2141 | O10: 0 | P10: 0 | Q10: 2701348
B11: CORPORATE INSURANCE COMPANY | C11: 5968 | D11: 0 | E11: 0 | F11: 0 | G11: 0 | H11: 0 | I11: 0 | J11: 0 | K11: 0 | L11: 0 | M11: 0 | N11: 0 | O11: 0 | P11: 0 | Q11: 5968
B12: FIRST ASSURANCE COMPANY | C12: 0 | D12: 0 | E12: 0 | F12: 0 | G12: 0 | H12: 0 | I12: 0 | J12: 0 | K12: 0 | L12: 0 | M12: 0 | N12: 0 | O12: 0 | P12: 0 | Q12: 0
B13: GA LIFE ASSURANCE COMPANY | C13: 7501665 | D13: 2573676 | E13: 2573676 | F13: 0 | G13: 594990 | H13: 594990 | I13: 0 | J13: 0 | K13: 0 | L13: 17928 | M13: 62535 | N13: 1120643 | O13: 0 | P13: 60070 | Q13: 10460462
B14: GEMINIA INSURANCE COMPANY | C14: 165157 | D14: 0 | E14: 0 | F14: 0 | G14: 0 | H14: 0 | I14: 0 | J14: 0 | K14: 0 | L14: 0 | M14: 7 | N14: 8026 | O14: 8962 | P14: 0 | Q14: 164215
B15: ICEA LION LIFE ASSURANCE | C15: 34460778 | D15: 4702866 | E15: 4702866 | F15: 0 | G15: 3634486 | H15: 0 | I15: 3634486 | J15: 0 | K15: 0 | L15: 68825 | M15: 242325 | N15: 5385018 | O15: 0 | P15: 224000 | Q15: 40379026
B16: JUBILEE INSURANCE COMPANY | C16: 41315461 | D16: 7110196 | E16: 7110196 | F16: 0 | G16: 4969573 | H16: 5633911 | I16: 0 | J16: 0 | K16: 0 | L16: 88378 | M16: 259136 | N16: 5597074 | O16: 15576 | P16: 509937 | Q16: 47515792
B17: KENINDIA ASSURANCE COMPANY | C17: 23238229 | D17: 3535194 | E17: 3535194 | F17: 0 | G17: 2596568 | H17: 2633236 | I17: 0 | J17: 0 | K17: 0 | L17: 41167 | M17: 160295 | N17: 2874838 | O17: 0 | P17: 0 | Q17: 26813564
B18: KENYA ORIENT LIFE ASSURANCE | C18: 116473 | D18: 100344 | E18: 100344 | F18: 0 | G18: 51111 | H18: 103064 | I18: 0 | J18: 0 | K18: 0 | L18: 0 | M18: 1981 | N18: 20637 | O18: 0 | P18: 0 | Q18: 132409
B19: KUSCCO MUTUAL ASSURANCE LIMITED | C19: 0 | D19: 0 | E19: 0 | F19: 0 | G19: 0 | H19: 0 | I19: 0 | J19: 0 | K19: 0 | L19: 0 | M19: 0 | N19: 0 | O19: 0 | P19: 0 | Q19: 0
B20: LIBERTY LIFE ASSURANCE COMPANY | C20: 8435253 | D20: 1481785 | E20: 1481785 | F20: 0 | G20: 2053296 | H20: 2053296 | I20: 0 | J20: 0 | K20: 0 | L20: 20045 | M20: 344938 | N20: 1176176 | O20: 0 | P20: 0 | Q20: 8674935
B21: MADISON INSURANCE COMPANY | C21: 2632875 | D21: 197546 | E21: 197546 | F21: 0 | G21: 130202 | H21: 130202 | I21: 0 | J21: 0 | K21: 0 | L21: 337 | M21: 22097 | N21: 153232 | O21: 0 | P21: 0 | Q21: 2831017
B22: METROPOLITAN CANNON INSURANCE | C22: 0 | D22: 0 | E22: 0 | F22: 0 | G22: 0 | H22: 0 | I22: 0 | J22: 0 | K22: 0 | L22: 0 | M22: 0 | N22: 0 | O22: 0 | P22: 0 | Q22: 0
B23: OLD MUTUAL LIFE ASSURANCE | C23: 0 | D23: 0 | E23: 0 | F23: 0 | G23: 0 | H23: 0 | I23: 0 | J23: 0 | K23: 0 | L23: 0 | M23: 0 | N23: 0 | O23: 0 | P23: 0 | Q23: 0
B24: PIONEER ASSURANCE COMPANY | C24: 469710 | D24: 369793 | E24: 369793 | F24: 0 | G24: 0 | H24: 0 | I24: 0 | J24: 0 | K24: 0 | L24: 6952 | M24: 0 | N24: 0 | O24: 0 | P24: 0 | Q24: 832551
B25: PRUDENTIAL LIFE ASSURANCE | C25: 0 | D25: 21781 | E25: 21781 | F25: 0 | G25: 0 | H25: 0 | I25: 0 | J25: 0 | K25: 0 | L25: 0 | M25: 0 | N25: 0 | O25: 0 | P25: 0 | Q25: 21781
B26: SAHAM ASSURANCE | C26: 650084 | D26: 25633 | E26: 25633 | F26: 0 | G26: 565299 | H26: 565299 | I26: 0 | J26: 0 | K26: 0 | L26: 0 | M26: 14208 | N26: 37621 | O26: 0 | P26: -3945 | Q26: 137775
B27: SANLAM LIFE INSURANCE | C27: 1107372 | D27: 192425 | E27: 192425 | F27: 0 | G27: 309183 | H27: 309183 | I27: 0 | J27: 0 | K27: 0 | L27: 888 | M27: 25990 | N27: 167983 | O27: 0 | P27: 0 | Q27: 1131719
B28: TAKAFUL INSURANCE OF AFRICA | C28: 0 | D28: 0 | E28: 0 | F28: 0 | G28: 0 | H28: 0 | I28: 0 | J28: 0 | K28: 0 | L28: 0 | M28: 0 | N28: 0 | O28: 0 | P28: 0 | Q28: 0
B29: THE KENYAN ALLIANCE INSURANCE | C29: 411169 | D29: 172057 | E29: 172057 | F29: 0 | G29: 111437 | H29: 109401 | I29: 0 | J29: 0 | K29: 0 | L29: 2436 | M29: 23593 | N29: 27432 | O29: 0 | P29: 0 | Q29: 475227
B30: THE MONARCH INSURANCE | C30: 0 | D30: 0 | E30: 0 | F30: 0 | G30: 0 | H30: 0 | I30: 0 | J30: 0 | K30: 0 | L30: 0 | M30: 0 | N30: 0 | O30: 0 | P30: 0 | Q30: 0
B31: UAP LIFE ASSURANCE COMPANY | C31: 4895203 | D31: 716510 | E31: 716510 | F31: 26712 | G31: 818224 | H31: 594301 | I31: 0 | J31: 0 | K31: 0 | L31: 3301 | M31: 0 | N31: 587256 | O31: 0 | P31: 0 | Q31: 5628078
B32: TOTAL | C32: =SUM(C6:C31) -> 163676926 | D32: 32237072 | E32: 32237072 | F32: 37438 | G32: 20878168 | H32: 17771341 | I32: 3634486 | J32: 0 | K32: 0 | L32: 332644 | M32: 1693233 | N32: 22191738 | O32: 52612 | P32: 1017071 | Q32: 193641787
B33: REINSURERS
B34: CONTINENTAL REINSURANCE | C34: 0 | D34: 0 | E34: 0 | F34: 0 | G34: 0 | H34: 0 | I34: 0 | J34: 0 | K34: 0 | L34: 0 | M34: 0 | N34: 0 | O34: 0 | P34: 0 | Q34: 0
B35: EAST AFRICA REINSURANCE | C35: 0 | D35: 0 | E35: 0 | F35: 0 | G35: 0 | H35: 0 | I35: 0 | J35: 0 | K35: 0 | L35: 0 | M35: 0 | N35: 0 | O35: 0 | P35: 0 | Q35: 0
B36: KENYA REINSURANCE CORPORATION | C36: 0 | D36: 0 | E36: 0 | F36: 0 | G36: 0 | H36: 0 | I36: 0 | J36: 0 | K36: 0 | L36: 0 | M36: 0 | N36: 0 | O36: 0 | P36: 0 | Q36: 0
B37: TOTAL | C37: =SUM(C34:C36) -> 0 | D37: =SUM(D34:D36) -> 0 | E37: 0 | F37: 0 | G37: 0 | H37: 0 | I37: 0 | J37: 0 | K37: 0 | L37: 0 | M37: 0 | N37: 0 | O37: 0 | P37: 0 | Q37: 0
B38: Amounts in Thousand Shillings

Sheet APPENDIX 12
B3: APPENDIX 12: SUMMARY OF PENSIONS BUSINESS REVENUE ACCOUNTS FOR THE YEAR ENDED 31.12.2019
B4: Company | C4: Life Fund BF | D4: Gross Premium | E4: Net Premium | F4: Other (Fee) Income | G4: Total Benefits | H4: Claims | I4: Surrenders | J4: Bonuses Paid | K4: Annuities Paid | L4: Net Commisions | M4: Expense of Management | N4: Investment Income | O4: Investment Expenses | P4: Transfer To (From) P & L | Q4: Life Fund CF
B5: INSURERS
B6: ABSA LIFE ASSURANCE KENYA | C6: =+PP!C6+DA!C6 -> 0 | D6: =+PP!D6+DA!D6 -> 0 | E6: =+PP!E6+DA!E6 -> 0 | F6: =+PP!F6+DA!F6 -> 0 | G6: =+PP!G6+DA!G6 -> 0 | H6: =+PP!H6+DA!H6 -> 0 | I6: =+PP!I6+DA!I6 -> 0 | J6: =+PP!J6+DA!J6 -> 0 | K6: =+PP!K6+DA!K6 -> 0 | L6: =+PP!L6+DA!L6 -> 0 | M6: =+PP!M6+DA!M6 -> 0 | N6: =+PP!N6+DA!N6 -> 0 | O6: =+PP!O6+DA!O6 -> 0 | P6: =+PP!P6+DA!P6 -> 0 | Q6: =+PP!Q6+DA!Q6 -> 0
B7: APA LIFE ASSURANCE COMPANY | C7: =+PP!C7+DA!C7 -> 3516473 | D7: =+PP!D7+DA!D7 -> 609152 | E7: =+PP!E7+DA!E7 -> 609152 | F7: =+PP!F7+DA!F7 -> 0 | G7: =+PP!G7+DA!G7 -> 384196 | H7: =+PP!H7+DA!H7 -> 384196 | I7: =+PP!I7+DA!I7 -> 0 | J7: =+PP!J7+DA!J7 -> 0 | K7: =+PP!K7+DA!K7 -> 0 | L7: =+PP!L7+DA!L7 -> 11185 | M7: =+PP!M7+DA!M7 -> 26576 | N7: =+PP!N7+DA!N7 -> 473527 | O7: =+PP!O7+DA!O7 -> 19999 | P7: =+PP!P7+DA!P7 -> 17792 | Q7: =+PP!Q7+DA!Q7 -> 4139405
B8: BRITAM LIFE INSURANCE COMPANY | C8: =+PP!C8+DA!C8 -> 33194940 | D8: =+PP!D8+DA!D8 -> 9413229 | E8: =+PP!E8+DA!E8 -> 9413229 | F8: =+PP!F8+DA!F8 -> 10726 | G8: =+PP!G8+DA!G8 -> 4683235 | H8: =+PP!H8+DA!H8 -> 4683235 | I8: =+PP!I8+DA!I8 -> 0 | J8: =+PP!J8+DA!J8 -> 0 | K8: =+PP!K8+DA!K8 -> 0 | L8: =+PP!L8+DA!L8 -> 62381 | M8: =+PP!M8+DA!M8 -> 479219 | N8: =+PP!N8+DA!N8 -> 4560134 | O8: =+PP!O8+DA!O8 -> 8075 | P8: =+PP!P8+DA!P8 -> 209217 | Q8: =+PP!Q8+DA!Q8 -> 41736902
B9: CAPEX LIFE ASSURANCE COMPANY | C9: =+PP!C9+DA!C9 -> 0 | D9: =+PP!D9+DA!D9 -> 0 | E9: =+PP!E9+DA!E9 -> 0 | F9: =+PP!F9+DA!F9 -> 0 | G9: =+PP!G9+DA!G9 -> 0 | H9: =+PP!H9+DA!H9 -> 659 | I9: =+PP!I9+DA!I9 -> 0 | J9: =+PP!J9+DA!J9 -> 0 | K9: =+PP!K9+DA!K9 -> 0 | L9: =+PP!L9+DA!L9 -> 0 | M9: =+PP!M9+DA!M9 -> 0 | N9: =+PP!N9+DA!N9 -> 0 | O9: =+PP!O9+DA!O9 -> 0 | P9: =+PP!P9+DA!P9 -> 0 | Q9: =+PP!Q9+DA!Q9 -> -659
B10: CIC LIFE ASSURANCE COMPANY | C10: =+PP!C10+DA!C10 -> 1664127 | D10: =+PP!D10+DA!D10 -> 1074234 | E10: =+PP!E10+DA!E10 -> 1074234 | F10: =+PP!F10+DA!F10 -> 0 | G10: =+PP!G10+DA!G10 -> 0 | H10: =+PP!H10+DA!H10 -> 0 | I10: =+PP!I10+DA!I10 -> 0 | J10: =+PP!J10+DA!J10 -> 0 | K10: =+PP!K10+DA!K10 -> 0 | L10: =+PP!L10+DA!L10 -> 8821 | M10: =+PP!M10+DA!M10 -> 30333 | N10: =+PP!N10+DA!N10 -> 2141 | O10: =+PP!O10+DA!O10 -> 0 | P10: =+PP!P10+DA!P10 -> 0 | Q10: =+PP!Q10+DA!Q10 -> 2701348
B11: CORPORATE INSURANCE COMPANY | C11: =+PP!C11+DA!C11 -> 5968 | D11: =+PP!D11+DA!D11 -> 0 | E11: =+PP!E11+DA!E11 -> 0 | F11: =+PP!F11+DA!F11 -> 0 | G11: =+PP!G11+DA!G11 -> 0 | H11: =+PP!H11+DA!H11 -> 0 | I11: =+PP!I11+DA!I11 -> 0 | J11: =+PP!J11+DA!J11 -> 0 | K11: =+PP!K11+DA!K11 -> 0 | L11: =+PP!L11+DA!L11 -> 0 | M11: =+PP!M11+DA!M11 -> 0 | N11: =+PP!N11+DA!N11 -> 0 | O11: =+PP!O11+DA!O11 -> 0 | P11: =+PP!P11+DA!P11 -> 0 | Q11: =+PP!Q11+DA!Q11 -> 5968
B12: FIRST ASSURANCE COMPANY | C12: =+PP!C12+DA!C12 -> 0 | D12: =+PP!D12+DA!D12 -> 0 | E12: =+PP!E12+DA!E12 -> 0 | F12: =+PP!F12+DA!F12 -> 0 | G12: =+PP!G12+DA!G12 -> 0 | H12: =+PP!H12+DA!H12 -> 0 | I12: =+PP!I12+DA!I12 -> 0 | J12: =+PP!J12+DA!J12 -> 0 | K12: =+PP!K12+DA!K12 -> 0 | L12: =+PP!L12+DA!L12 -> 0 | M12: =+PP!M12+DA!M12 -> 0 | N12: =+PP!N12+DA!N12 -> 0 | O12: =+PP!O12+DA!O12 -> 0 | P12: =+PP!P12+DA!P12 -> 0 | Q12: =+PP!Q12+DA!Q12 -> 0
B13: GA LIFE ASSURANCE COMPANY | C13: =+PP!C13+DA!C13 -> 7501665 | D13: =+PP!D13+DA!D13 -> 2573676 | E13: =+PP!E13+DA!E13 -> 2573676 | F13: =+PP!F13+DA!F13 -> 0 | G13: =+PP!G13+DA!G13 -> 594990 | H13: =+PP!H13+DA!H13 -> 594990 | I13: =+PP!I13+DA!I13 -> 0 | J13: =+PP!J13+DA!J13 -> 0 | K13: =+PP!K13+DA!K13 -> 0 | L13: =+PP!L13+DA!L13 -> 17928 | M13: =+PP!M13+DA!M13 -> 62535 | N13: =+PP!N13+DA!N13 -> 1120643 | O13: =+PP!O13+DA!O13 -> 0 | P13: =+PP!P13+DA!P13 -> 60070 | Q13: =+PP!Q13+DA!Q13 -> 10460462
B14: GEMINIA INSURANCE COMPANY | C14: =+PP!C14+DA!C14 -> 165157 | D14: =+PP!D14+DA!D14 -> 0 | E14: =+PP!E14+DA!E14 -> 0 | F14: =+PP!F14+DA!F14 -> 0 | G14: =+PP!G14+DA!G14 -> 0 | H14: =+PP!H14+DA!H14 -> 0 | I14: =+PP!I14+DA!I14 -> 0 | J14: =+PP!J14+DA!J14 -> 0 | K14: =+PP!K14+DA!K14 -> 0 | L14: =+PP!L14+DA!L14 -> 0 | M14: =+PP!M14+DA!M14 -> 7 | N14: =+PP!N14+DA!N14 -> 8026 | O14: =+PP!O14+DA!O14 -> 8962 | P14: =+PP!P14+DA!P14 -> 0 | Q14: =+PP!Q14+DA!Q14 -> 164215
B15: ICEA LION LIFE ASSURANCE | C15: =+PP!C15+DA!C15 -> 47812662 | D15: =+PP!D15+DA!D15 -> 8660744 | E15: =+PP!E15+DA!E15 -> 8660744 | F15: =+PP!F15+DA!F15 -> 0 | G15: =+PP!G15+DA!G15 -> 5223172 | H15: =+PP!H15+DA!H15 -> 0 | I15: =+PP!I15+DA!I15 -> 5223172 | J15: =+PP!J15+DA!J15 -> 0 | K15: =+PP!K15+DA!K15 -> 0 | L15: =+PP!L15+DA!L15 -> 115080 | M15: =+PP!M15+DA!M15 -> 399272 | N15: =+PP!N15+DA!N15 -> 7586061 | O15: =+PP!O15+DA!O15 -> 0 | P15: =+PP!P15+DA!P15 -> 224000 | Q15: =+PP!Q15+DA!Q15 -> 58097943
B16: JUBILEE INSURANCE COMPANY | C16: =+PP!C16+DA!C16 -> 46699823 | D16: =+PP!D16+DA!D16 -> 8277933 | E16: =+PP!E16+DA!E16 -> 8277933 | F16: =+PP!F16+DA!F16 -> 0 | G16: =+PP!G16+DA!G16 -> 5633911 | H16: =+PP!H16+DA!H16 -> 5633911 | I16: =+PP!I16+DA!I16 -> 0 | J16: =+PP!J16+DA!J16 -> 0 | K16: =+PP!K16+DA!K16 -> 0 | L16: =+PP!L16+DA!L16 -> 102089 | M16: =+PP!M16+DA!M16 -> 296822 | N16: =+PP!N16+DA!N16 -> 5647476 | O16: =+PP!O16+DA!O16 -> 15805 | P16: =+PP!P16+DA!P16 -> 509937 | Q16: =+PP!Q16+DA!Q16 -> 54066665
B17: KENINDIA ASSURANCE COMPANY | C17: =+PP!C17+DA!C17 -> 23238229 | D17: =+PP!D17+DA!D17 -> 3535194 | E17: =+PP!E17+DA!E17 -> 3535194 | F17: =+PP!F17+DA!F17 -> 0 | G17: =+PP!G17+DA!G17 -> 2596568 | H17: =+PP!H17+DA!H17 -> 2633236 | I17: =+PP!I17+DA!I17 -> 0 | J17: =+PP!J17+DA!J17 -> 0 | K17: =+PP!K17+DA!K17 -> 0 | L17: =+PP!L17+DA!L17 -> 41167 | M17: =+PP!M17+DA!M17 -> 160295 | N17: =+PP!N17+DA!N17 -> 2874838 | O17: =+PP!O17+DA!O17 -> 0 | P17: =+PP!P17+DA!P17 -> 0 | Q17: =+PP!Q17+DA!Q17 -> 26813564
B18: KENYA ORIENT LIFE ASSURANCE | C18: =+PP!C18+DA!C18 -> 116473 | D18: =+PP!D18+DA!D18 -> 100344 | E18: =+PP!E18+DA!E18 -> 100344 | F18: =+PP!F18+DA!F18 -> 0 | G18: =+PP!G18+DA!G18 -> 51111 | H18: =+PP!H18+DA!H18 -> 103064 | I18: =+PP!I18+DA!I18 -> 0 | J18: =+PP!J18+DA!J18 -> 0 | K18: =+PP!K18+DA!K18 -> 0 | L18: =+PP!L18+DA!L18 -> 0 | M18: =+PP!M18+DA!M18 -> 1981 | N18: =+PP!N18+DA!N18 -> 20637 | O18: =+PP!O18+DA!O18 -> 0 | P18: =+PP!P18+DA!P18 -> 0 | Q18: =+PP!Q18+DA!Q18 -> 132409
B19: KUSCCO MUTUAL ASSURANCE LIMITED | C19: =+PP!C19+DA!C19 -> 0 | D19: =+PP!D19+DA!D19 -> 0 | E19: =+PP!E19+DA!E19 -> 0 | F19: =+PP!F19+DA!F19 -> 0 | G19: =+PP!G19+DA!G19 -> 0 | H19: =+PP!H19+DA!H19 -> 0 | I19: =+PP!I19+DA!I19 -> 0 | J19: =+PP!J19+DA!J19 -> 0 | K19: =+PP!K19+DA!K19 -> 0 | L19: =+PP!L19+DA!L19 -> 0 | M19: =+PP!M19+DA!M19 -> 0 | N19: =+PP!N19+DA!N19 -> 0 | O19: =+PP!O19+DA!O19 -> 0 | P19: =+PP!P19+DA!P19 -> 0 | Q19: =+PP!Q19+DA!Q19 -> 0
B20: LIBERTY LIFE ASSURANCE COMPANY | C20: =+PP!C20+DA!C20 -> 8435253 | D20: =+PP!D20+DA!D20 -> 1481785 | E20: =+PP!E20+DA!E20 -> 1481785 | F20: =+PP!F20+DA!F20 -> 0 | G20: =+PP!G20+DA!G20 -> 2053296 | H20: =+PP!H20+DA!H20 -> 2053296 | I20: =+PP!I20+DA!I20 -> 0 | J20: =+PP!J20+DA!J20 -> 0 | K20: =+PP!K20+DA!K20 -> 0 | L20: =+PP!L20+DA!L20 -> 20045 | M20: =+PP!M20+DA!M20 -> 344938 | N20: =+PP!N20+DA!N20 -> 1176176 | O20: =+PP!O20+DA!O20 -> 0 | P20: =+PP!P20+DA!P20 -> 0 | Q20: =+PP!Q20+DA!Q20 -> 8674935
B21: MADISON INSURANCE COMPANY | C21: =+PP!C21+DA!C21 -> 3537962 | D21: =+PP!D21+DA!D21 -> 334285 | E21: =+PP!E21+DA!E21 -> 334285 | F21: =+PP!F21+DA!F21 -> 0 | G21: =+PP!G21+DA!G21 -> 130202 | H21: =+PP!H21+DA!H21 -> 130202 | I21: =+PP!I21+DA!I21 -> 0 | J21: =+PP!J21+DA!J21 -> 0 | K21: =+PP!K21+DA!K21 -> 0 | L21: =+PP!L21+DA!L21 -> 909 | M21: =+PP!M21+DA!M21 -> 34290 | N21: =+PP!N21+DA!N21 -> 153232 | O21: =+PP!O21+DA!O21 -> 0 | P21: =+PP!P21+DA!P21 -> 0 | Q21: =+PP!Q21+DA!Q21 -> 3860078
B22: METROPOLITAN CANNON INSURANCE | C22: =+PP!C22+DA!C22 -> 0 | D22: =+PP!D22+DA!D22 -> 0 | E22: =+PP!E22+DA!E22 -> 0 | F22: =+PP!F22+DA!F22 -> 0 | G22: =+PP!G22+DA!G22 -> 0 | H22: =+PP!H22+DA!H22 -> 0 | I22: =+PP!I22+DA!I22 -> 0 | J22: =+PP!J22+DA!J22 -> 0 | K22: =+PP!K22+DA!K22 -> 0 | L22: =+PP!L22+DA!L22 -> 0 | M22: =+PP!M22+DA!M22 -> 0 | N22: =+PP!N22+DA!N22 -> 0 | O22: =+PP!O22+DA!O22 -> 0 | P22: =+PP!P22+DA!P22 -> 0 | Q22: =+PP!Q22+DA!Q22 -> 0
B23: OLD MUTUAL LIFE ASSURANCE | C23: =+PP!C23+DA!C23 -> 0 | D23: =+PP!D23+DA!D23 -> 0 | E23: =+PP!E23+DA!E23 -> 0 | F23: =+PP!F23+DA!F23 -> 0 | G23: =+PP!G23+DA!G23 -> 0 | H23: =+PP!H23+DA!H23 -> 0 | I23: =+PP!I23+DA!I23 -> 0 | J23: =+PP!J23+DA!J23 -> 0 | K23: =+PP!K23+DA!K23 -> 0 | L23: =+PP!L23+DA!L23 -> 0 | M23: =+PP!M23+DA!M23 -> 0 | N23: =+PP!N23+DA!N23 -> 0 | O23: =+PP!O23+DA!O23 -> 0 | P23: =+PP!P23+DA!P23 -> 0 | Q23: =+PP!Q23+DA!Q23 -> 0
B24: PIONEER ASSURANCE COMPANY | C24: =+PP!C24+DA!C24 -> 469710 | D24: =+PP!D24+DA!D24 -> 369793 | E24: =+PP!E24+DA!E24 -> 369793 | F24: =+PP!F24+DA!F24 -> 0 | G24: =+PP!G24+DA!G24 -> 0 | H24: =+PP!H24+DA!H24 -> 0 | I24: =+PP!I24+DA!I24 -> 0 | J24: =+PP!J24+DA!J24 -> 0 | K24: =+PP!K24+DA!K24 -> 0 | L24: =+PP!L24+DA!L24 -> 6952 | M24: =+PP!M24+DA!M24 -> 0 | N24: =+PP!N24+DA!N24 -> 0 | O24: =+PP!O24+DA!O24 -> 0 | P24: =+PP!P24+DA!P24 -> 0 | Q24: =+PP!Q24+DA!Q24 -> 832551
B25: PRUDENTIAL LIFE ASSURANCE | C25: =+PP!C25+DA!C25 -> 0 | D25: =+PP!D25+DA!D25 -> 21781 | E25: =+PP!E25+DA!E25 -> 21781 | F25: =+PP!F25+DA!F25 -> 0 | G25: =+PP!G25+DA!G25 -> 0 | H25: =+PP!H25+DA!H25 -> 0 | I25: =+PP!I25+DA!I25 -> 0 | J25: =+PP!J25+DA!J25 -> 0 | K25: =+PP!K25+DA!K25 -> 0 | L25: =+PP!L25+DA!L25 -> 0 | M25: =+PP!M25+DA!M25 -> 0 | N25: =+PP!N25+DA!N25 -> 0 | O25: =+PP!O25+DA!O25 -> 0 | P25: =+PP!P25+DA!P25 -> 0 | Q25: =+PP!Q25+DA!Q25 -> 21781
B26: SAHAM ASSURANCE | C26: =+PP!C26+DA!C26 -> 650084 | D26: =+PP!D26+DA!D26 -> 25633 | E26: =+PP!E26+DA!E26 -> 25633 | F26: =+PP!F26+DA!F26 -> 0 | G26: =+PP!G26+DA!G26 -> 565299 | H26: =+PP!H26+DA!H26 -> 565299 | I26: =+PP!I26+DA!I26 -> 0 | J26: =+PP!J26+DA!J26 -> 0 | K26: =+PP!K26+DA!K26 -> 0 | L26: =+PP!L26+DA!L26 -> 0 | M26: =+PP!M26+DA!M26 -> 14208 | N26: =+PP!N26+DA!N26 -> 37621 | O26: =+PP!O26+DA!O26 -> 0 | P26: =+PP!P26+DA!P26 -> -3945 | Q26: =+PP!Q26+DA!Q26 -> 137775
B27: SANLAM LIFE INSURANCE | C27: =+PP!C27+DA!C27 -> 1107372 | D27: =+PP!D27+DA!D27 -> 192425 | E27: =+PP!E27+DA!E27 -> 192425 | F27: =+PP!F27+DA!F27 -> 0 | G27: =+PP!G27+DA!G27 -> 309183 | H27: =+PP!H27+DA!H27 -> 309183 | I27: =+PP!I27+DA!I27 -> 0 | J27: =+PP!J27+DA!J27 -> 0 | K27: =+PP!K27+DA!K27 -> 0 | L27: =+PP!L27+DA!L27 -> 888 | M27: =+PP!M27+DA!M27 -> 25990 | N27: =+PP!N27+DA!N27 -> 167983 | O27: =+PP!O27+DA!O27 -> 0 | P27: =+PP!P27+DA!P27 -> 0 | Q27: =+PP!Q27+DA!Q27 -> 1131719
B28: TAKAFUL INSURANCE OF AFRICA | C28: =+PP!C28+DA!C28 -> 0 | D28: =+PP!D28+DA!D28 -> 0 | E28: =+PP!E28+DA!E28 -> 0 | F28: =+PP!F28+DA!F28 -> 0 | G28: =+PP!G28+DA!G28 -> 0 | H28: =+PP!H28+DA!H28 -> 0 | I28: =+PP!I28+DA!I28 -> 0 | J28: =+PP!J28+DA!J28 -> 0 | K28: =+PP!K28+DA!K28 -> 0 | L28: =+PP!L28+DA!L28 -> 0 | M28: =+PP!M28+DA!M28 -> 0 | N28: =+PP!N28+DA!N28 -> 0 | O28: =+PP!O28+DA!O28 -> 0 | P28: =+PP!P28+DA!P28 -> 0 | Q28: =+PP!Q28+DA!Q28 -> 0
B29: THE KENYAN ALLIANCE INSURANCE | C29: =+PP!C29+DA!C29 -> 589013 | D29: =+PP!D29+DA!D29 -> 336833 | E29: =+PP!E29+DA!E29 -> 336833 | F29: =+PP!F29+DA!F29 -> 0 | G29: =+PP!G29+DA!G29 -> 181109 | H29: =+PP!H29+DA!H29 -> 172756 | I29: =+PP!I29+DA!I29 -> 0 | J29: =+PP!J29+DA!J29 -> 0 | K29: =+PP!K29+DA!K29 -> 0 | L29: =+PP!L29+DA!L29 -> 2436 | M29: =+PP!M29+DA!M29 -> 46188 | N29: =+PP!N29+DA!N29 -> 53703 | O29: =+PP!O29+DA!O29 -> 0 | P29: =+PP!P29+DA!P29 -> 0 | Q29: =+PP!Q29+DA!Q29 -> 758168
B30: THE MONARCH INSURANCE | C30: =+PP!C30+DA!C30 -> 27763 | D30: =+PP!D30+DA!D30 -> 0 | E30: =+PP!E30+DA!E30 -> 0 | F30: =+PP!F30+DA!F30 -> 0 | G30: =+PP!G30+DA!G30 -> 0 | H30: =+PP!H30+DA!H30 -> 0 | I30: =+PP!I30+DA!I30 -> 0 | J30: =+PP!J30+DA!J30 -> 0 | K30: =+PP!K30+DA!K30 -> 0 | L30: =+PP!L30+DA!L30 -> 661 | M30: =+PP!M30+DA!M30 -> 25955 | N30: =+PP!N30+DA!N30 -> 15155 | O30: =+PP!O30+DA!O30 -> 0 | P30: =+PP!P30+DA!P30 -> 0 | Q30: =+PP!Q30+DA!Q30 -> 16301
B31: UAP LIFE ASSURANCE COMPANY | C31: =+PP!C31+DA!C31 -> 4613986 | D31: =+PP!D31+DA!D31 -> 716510 | E31: =+PP!E31+DA!E31 -> 716510 | F31: =+PP!F31+DA!F31 -> 26712 | G31: =+PP!G31+DA!G31 -> 818224 | H31: =+PP!H31+DA!H31 -> 818224 | I31: =+PP!I31+DA!I31 -> 0 | J31: =+PP!J31+DA!J31 -> 0 | K31: =+PP!K31+DA!K31 -> 0 | L31: =+PP!L31+DA!L31 -> 3301 | M31: =+PP!M31+DA!M31 -> 0 | N31: =+PP!N31+DA!N31 -> 587256 | O31: =+PP!O31+DA!O31 -> 0 | P31: =+PP!P31+DA!P31 -> 0 | Q31: =+PP!Q31+DA!Q31 -> 5122939
B32: TOTAL | C32: =SUM(C6:C31) -> 183346660 | D32: 37723551 | E32: 37723551 | F32: 37438 | G32: 23224496 | H32: 18082251 | I32: 5223172 | J32: 0 | K32: 0 | L32: 393843 | M32: 1948609 | N32: 24484609 | O32: 52841 | P32: 1017071 | Q32: 218874469
B33: REINSURERS
B34: CONTINENTAL REINSURANCE | C34: 0 | D34: 0 | E34: 0 | F34: 0 | G34: 0 | H34: 0 | I34: 0 | J34: 0 | K34: 0 | L34: 0 | M34: 0 | N34: 0 | O34: 0 | P34: 0 | Q34: 0
B35: EAST AFRICA REINSURANCE | C35: 0 | D35: 0 | E35: 0 | F35: 0 | G35: 0 | H35: 0 | I35: 0 | J35: 0 | K35: 0 | L35: 0 | M35: 0 | N35: 0 | O35: 0 | P35: 0 | Q35: 0
B36: KENYA REINSURANCE CORPORATION | C36: 0 | D36: 0 | E36: 0 | F36: 0 | G36: 0 | H36: 0 | I36: 0 | J36: 0 | K36: 0 | L36: 0 | M36: 0 | N36: 0 | O36: 0 | P36: 0 | Q36: 0
B37: TOTAL | C37: =SUM(C34:C36) -> 0 | D37: =SUM(D34:D36) -> 0 | E37: 0 | F37: 0 | G37: 0 | H37: 0 | I37: 0 | J37: 0 | K37: 0 | L37: 0 | M37: 0 | N37: 0 | O37: 0 | P37: 0 | Q37: 0
B38: Amounts in Thousand Shillings

Sheet APPENDIX 13
B3: APPENDIX 13: SUMMARY OF GROUP CREDIT BUSINESS REVENUE ACCOUNTS FOR THE YEAR ENDED 31.12.2019
B4: Company | C4: Life Fund BF | D4: Gross Premium | E4: Net Premium | F4: Other (Fee) Income | G4: Total Benefits | H4: Claims | I4: Surrenders | J4: Bonuses Paid | K4: Annuities Paid | L4: Net Commisions | M4: Expense of Management | N4: Investment Income | O4: Investment Expenses | P4: Transfer To (From) P & L | Q4: Life Fund CF
B5: INSURERS
B6: ABSA LIFE ASSURANCE KENYA | C6: 27587 | D6: 903615 | E6: 560134 | F6: 0 | G6: 172564 | H6: 251581 | I6: 0 | J6: 0 | K6: 0 | L6: 117275 | M6: 145991 | N6: 170153 | O6: -1477 | P6: -221035 | Q6: 465539
B7: APA LIFE ASSURANCE COMPANY | C7: 176081 | D7: 232735 | E7: 216199 | F7: 0 | G7: 48022 | H7: 50258 | I7: 0 | J7: 0 | K7: 0 | L7: 17788 | M7: 5439 | N7: 7220 | O7: 345 | P7: 0 | Q7: 325671
B8: BRITAM LIFE INSURANCE COMPANY | C8: 390375 | D8: 1488870 | E8: 1409057 | F8: 0 | G8: 313993 | H8: 38534 | I8: 0 | J8: 0 | K8: 0 | L8: 30489 | M8: 595039 | N8: 290819 | O8: 0 | P8: 637837 | Q8: 788351
B9: CAPEX LIFE ASSURANCE COMPANY | C9: 0 | D9: 0 | E9: 0 | F9: 0 | G9: 0 | H9: 622 | I9: 0 | J9: 0 | K9: 0 | L9: 0 | M9: 0 | N9: 0 | O9: 0 | P9: 0 | Q9: -622
B10: CIC LIFE ASSURANCE COMPANY | C10: 503865 | D10: 3120076 | E10: 2295348 | F10: 0 | G10: 982425 | H10: 1231292 | I10: 0 | J10: 0 | K10: 0 | L10: -23998 | M10: 1086569 | N10: 234673 | O10: 0 | P10: 0 | Q10: 740022
B11: CORPORATE INSURANCE COMPANY | C11: 0 | D11: 0 | E11: 0 | F11: 0 | G11: 0 | H11: 0 | I11: 0 | J11: 0 | K11: 0 | L11: 0 | M11: 0 | N11: 0 | O11: 0 | P11: 0 | Q11: 0
B12: FIRST ASSURANCE COMPANY | C12: 12803 | D12: 7459 | E12: 799 | F12: 0 | G12: 145 | H12: 0 | I12: 0 | J12: 0 | K12: 0 | L12: -1074 | M12: 675 | N12: 1276 | O12: 0 | P12: 0 | Q12: 15277
B13: GA LIFE ASSURANCE COMPANY | C13: 1371 | D13: 4567 | E13: 806 | F13: 0 | G13: 0 | H13: 0 | I13: 0 | J13: 0 | K13: 0 | L13: -1889 | M13: 1242 | N13: 267 | O13: 0 | P13: 715 | Q13: 2375
B14: GEMINIA INSURANCE COMPANY | C14: 283475 | D14: 91702 | E14: 91702 | F14: 0 | G14: 122642 | H14: 1803 | I14: 0 | J14: 0 | K14: 0 | L14: 8217 | M14: 0 | N14: 0 | O14: 0 | P14: 0 | Q14: 365157
B15: ICEA LION LIFE ASSURANCE | C15: 92538 | D15: 200821 | E15: 135137 | F15: 0 | G15: 71677 | H15: 50878 | I15: 26163 | J15: 0 | K15: 0 | L15: 1115 | M15: 72390 | N15: 18888 | O15: 0 | P15: 10080 | Q15: 85937
B16: JUBILEE INSURANCE COMPANY | C16: 111660 | D16: 120594 | E16: 75643 | F16: 0 | G16: 48859 | H16: 0 | I16: 0 | J16: 0 | K16: 0 | L16: 38676 | M16: 23896 | N16: 15513 | O16: 98 | P16: 0 | Q16: 140146
B17: KENINDIA ASSURANCE COMPANY | C17: 0 | D17: 0 | E17: 0 | F17: 0 | G17: 0 | H17: 0 | I17: 0 | J17: 0 | K17: 0 | L17: 0 | M17: 0 | N17: 0 | O17: 0 | P17: 0 | Q17: 0
B18: KENYA ORIENT LIFE ASSURANCE | C18: 386426 | D18: 329124 | E18: 303652 | F18: 0 | G18: 48095 | H18: 59174 | I18: 0 | J18: 0 | K18: 0 | L18: 19345 | M18: 136836 | N18: 5912 | O18: 0 | P18: 0 | Q18: 480635
B19: KUSCCO MUTUAL ASSURANCE LIMITED | C19: 0 | D19: 437416 | E19: 315053 | F19: 0 | G19: 14563 | H19: 210916 | I19: 0 | J19: 0 | K19: 0 | L19: 5598 | M19: 102191 | N19: 9964 | O19: 0 | P19: 0 | Q19: 6312
B20: LIBERTY LIFE ASSURANCE COMPANY | C20: 493447 | D20: 561121 | E20: 464609 | F20: 0 | G20: 122157 | H20: 155142 | I20: 0 | J20: 0 | K20: 0 | L20: 66913 | M20: 0 | N20: 0 | O20: 0 | P20: 0 | Q20: 736002
B21: MADISON INSURANCE COMPANY | C21: 317665 | D21: 182258 | E21: 182258 | F21: 0 | G21: 97993 | H21: 97993 | I21: 0 | J21: 0 | K21: 0 | L21: 31002 | M21: 70030 | N21: 19841 | O21: 0 | P21: 0 | Q21: 320739
B22: METROPOLITAN CANNON INSURANCE | C22: 0 | D22: 0 | E22: 0 | F22: 0 | G22: 0 | H22: 0 | I22: 0 | J22: 0 | K22: 0 | L22: 0 | M22: 0 | N22: 0 | O22: 0 | P22: 0 | Q22: 0
B23: OLD MUTUAL LIFE ASSURANCE | C23: 0 | D23: 0 | E23: 0 | F23: 0 | G23: 0 | H23: 0 | I23: 0 | J23: 0 | K23: 0 | L23: 0 | M23: 0 | N23: 0 | O23: 0 | P23: 0 | Q23: 0
B24: PIONEER ASSURANCE COMPANY | C24: 877596 | D24: 647118 | E24: 517695 | F24: 0 | G24: 670610 | H24: 802247 | I24: 0 | J24: 0 | K24: 0 | L24: 22065 | M24: 0 | N24: 0 | O24: 0 | P24: 0 | Q24: 570979
B25: PRUDENTIAL LIFE ASSURANCE | C25: 146684 | D25: 249852 | E25: 248494 | F25: 406 | G25: 55449 | H25: 55449 | I25: 0 | J25: 0 | K25: 0 | L25: 90308 | M25: 117044 | N25: 22983 | O25: 465 | P25: 0 | Q25: 155302
B26: SAHAM ASSURANCE | C26: 0 | D26: 0 | E26: 0 | F26: 0 | G26: 0 | H26: 0 | I26: 0 | J26: 0 | K26: 0 | L26: 0 | M26: 0 | N26: 0 | O26: 0 | P26: 0 | Q26: 0
B27: SANLAM LIFE INSURANCE | C27: 1653721 | D27: 619915 | E27: 468907 | F27: 0 | G27: 349084 | H27: 353885 | I27: 0 | J27: 0 | K27: 0 | L27: 84683 | M27: 133888 | N27: 100048 | O27: 0 | P27: 0 | Q27: 1650221
B28: TAKAFUL INSURANCE OF AFRICA | C28: 0 | D28: 6897 | E28: 1860 | F28: 0 | G28: 0 | H28: 0 | I28: 0 | J28: 0 | K28: 0 | L28: 4931 | M28: 26751 | N28: 14914 | O28: 0 | P28: 0 | Q28: -14908
B29: THE KENYAN ALLIANCE INSURANCE | C29: 12226 | D29: 6490 | E29: 6490 | F29: 0 | G29: 0 | H29: 0 | I29: 0 | J29: 0 | K29: 0 | L29: 466 | M29: 1082 | N29: 1035 | O29: 0 | P29: 0 | Q29: 18202
B30: THE MONARCH INSURANCE | C30: 0 | D30: 0 | E30: 0 | F30: 0 | G30: 0 | H30: 0 | I30: 0 | J30: 0 | K30: 0 | L30: 0 | M30: 0 | N30: 0 | O30: 0 | P30: 0 | Q30: 0
B31: UAP LIFE ASSURANCE COMPANY | C31: 563560 | D31: 305973 | E31: 305973 | F31: 0 | G31: 95262 | H31: 67809 | I31: 0 | J31: 0 | K31: 0 | L31: 0 | M31: 0 | N31: 0 | O31: 0 | P31: 0 | Q31: 801725
B32: TOTAL | C32: =SUM(C6:C31) -> 6051080 | D32: 9516603 | E32: 7599816 | F32: 406 | G32: 3213540 | H32: 3427583 | I32: 26163 | J32: 0 | K32: 0 | L32: 511910 | M32: 2519063 | N32: 913506 | O32: -569 | P32: 427597 | Q32: 7653062
B33: REINSURERS
B34: CONTINENTAL REINSURANCE | C34: 0 | D34: 0 | E34: 0 | F34: 0 | G34: 0 | H34: 0 | I34: 0 | J34: 0 | K34: 0 | L34: 0 | M34: 0 | N34: 0 | O34: 0 | P34: 0 | Q34: 0
B35: EAST AFRICA REINSURANCE | C35: 0 | D35: 0 | E35: 0 | F35: 0 | G35: 0 | H35: 0 | I35: 0 | J35: 0 | K35: 0 | L35: 0 | M35: 0 | N35: 0 | O35: 0 | P35: 0 | Q35: 0
B36: KENYA REINSURANCE CORPORATION | C36: 0 | D36: 0 | E36: 0 | F36: 0 | G36: 0 | H36: 0 | I36: 0 | J36: 0 | K36: 0 | L36: 0 | M36: 0 | N36: 0 | O36: 0 | P36: 0 | Q36: 0
B37: TOTAL | C37: =SUM(C34:C36) -> 0 | D37: =SUM(D34:D36) -> 0 | E37: 0 | F37: 0 | G37: 0 | H37: 0 | I37: 0 | J37: 0 | K37: 0 | L37: 0 | M37: 0 | N37: 0 | O37: 0 | P37: 0 | Q37: 0
B38: Amounts in Thousand Shillings

Sheet APPENDIX 14
B3: APPENDIX 14: SUMMARY OF PERMANENT HEALTH BUSINESS REVENUE ACCOUNTS FOR THE YEAR ENDED 31.12.2019
B4: Company | C4: Life Fund BF | D4: Gross Premium | E4: Net Premium | F4: Other (Fee) Income | G4: Total Benefits | H4: Claims | I4: Surrenders | J4: Bonuses Paid | K4: Annuities Paid | L4: Net Commisions | M4: Expense of Management | N4: Investment Income | O4: Investment Expenses | P4: Transfer To (From) P & L | Q4: Life Fund CF
B5: INSURERS
B6: ABSA LIFE ASSURANCE KENYA | C6: 0 | D6: 0 | E6: 0 | F6: 0 | G6: 0 | H6: 0 | I6: 0 | J6: 0 | K6: 0 | L6: 0 | M6: 0 | N6: 0 | O6: 0 | P6: 0 | Q6: 0
B7: APA LIFE ASSURANCE COMPANY | C7: 0 | D7: 0 | E7: 0 | F7: 0 | G7: 0 | H7: 0 | I7: 0 | J7: 0 | K7: 0 | L7: 0 | M7: 0 | N7: 0 | O7: 0 | P7: 0 | Q7: 0
B8: BRITAM LIFE INSURANCE COMPANY | C8: 0 | D8: 0 | E8: 0 | F8: 0 | G8: 0 | H8: 0 | I8: 0 | J8: 0 | K8: 0 | L8: 0 | M8: 0 | N8: 0 | O8: 0 | P8: 0 | Q8: 0
B9: CAPEX LIFE ASSURANCE COMPANY | C9: 0 | D9: 0 | E9: 0 | F9: 0 | G9: 0 | H9: 0 | I9: 0 | J9: 0 | K9: 0 | L9: 0 | M9: 0 | N9: 0 | O9: 0 | P9: 0 | Q9: 0
B10: CIC LIFE ASSURANCE COMPANY | C10: 0 | D10: 0 | E10: 0 | F10: 0 | G10: 0 | H10: 0 | I10: 0 | J10: 0 | K10: 0 | L10: 0 | M10: 0 | N10: 0 | O10: 0 | P10: 0 | Q10: 0
B11: CORPORATE INSURANCE COMPANY | C11: 0 | D11: 0 | E11: 0 | F11: 0 | G11: 0 | H11: 0 | I11: 0 | J11: 0 | K11: 0 | L11: 0 | M11: 0 | N11: 0 | O11: 0 | P11: 0 | Q11: 0
B12: FIRST ASSURANCE COMPANY | C12: 0 | D12: 0 | E12: 0 | F12: 0 | G12: 0 | H12: 0 | I12: 0 | J12: 0 | K12: 0 | L12: 0 | M12: 0 | N12: 0 | O12: 0 | P12: 0 | Q12: 0
B13: GA LIFE ASSURANCE COMPANY | C13: 0 | D13: 0 | E13: 0 | F13: 0 | G13: 0 | H13: 0 | I13: 0 | J13: 0 | K13: 0 | L13: 0 | M13: 0 | N13: 0 | O13: 0 | P13: 0 | Q13: 0
B14: GEMINIA INSURANCE COMPANY | C14: 0 | D14: 0 | E14: 0 | F14: 0 | G14: 0 | H14: 0 | I14: 0 | J14: 0 | K14: 0 | L14: 0 | M14: 0 | N14: 0 | O14: 0 | P14: 0 | Q14: 0
B15: ICEA LION LIFE ASSURANCE | C15: 0 | D15: 0 | E15: 0 | F15: 0 | G15: 0 | H15: 0 | I15: 0 | J15: 0 | K15: 0 | L15: 0 | M15: 0 | N15: 0 | O15: 0 | P15: 0 | Q15: 0
B16: JUBILEE INSURANCE COMPANY | C16: 0 | D16: 0 | E16: 0 | F16: 0 | G16: 0 | H16: 0 | I16: 0 | J16: 0 | K16: 0 | L16: 0 | M16: 0 | N16: 0 | O16: 0 | P16: 0 | Q16: 0
B17: KENINDIA ASSURANCE COMPANY | C17: 0 | D17: 0 | E17: 0 | F17: 0 | G17: 0 | H17: 0 | I17: 0 | J17: 0 | K17: 0 | L17: 0 | M17: 0 | N17: 0 | O17: 0 | P17: 0 | Q17: 0
B18: KENYA ORIENT LIFE ASSURANCE | C18: 0 | D18: 0 | E18: 0 | F18: 0 | G18: 0 | H18: 0 | I18: 0 | J18: 0 | K18: 0 | L18: 0 | M18: 0 | N18: 0 | O18: 0 | P18: 0 | Q18: 0
B19: KUSCCO MUTUAL ASSURANCE LIMITED | C19: 0 | D19: 0 | E19: 0 | F19: 0 | G19: 0 | H19: 0 | I19: 0 | J19: 0 | K19: 0 | L19: 0 | M19: 0 | N19: 0 | O19: 0 | P19: 0 | Q19: 0
B20: LIBERTY LIFE ASSURANCE COMPANY | C20: 0 | D20: 0 | E20: 0 | F20: 0 | G20: 0 | H20: 0 | I20: 0 | J20: 0 | K20: 0 | L20: 0 | M20: 0 | N20: 0 | O20: 0 | P20: 0 | Q20: 0
B21: MADISON INSURANCE COMPANY | C21: 0 | D21: 0 | E21: 0 | F21: 0 | G21: 118490 | H21: 0 | I21: 0 | J21: 0 | K21: 0 | L21: 0 | M21: 0 | N21: 63810 | O21: 0 | P21: 0 | Q21: 63810
B22: METROPOLITAN CANNON INSURANCE | C22: 0 | D22: 0 | E22: 0 | F22: 0 | G22: 0 | H22: 0 | I22: 0 | J22: 0 | K22: 0 | L22: 0 | M22: 0 | N22: 0 | O22: 0 | P22: 0 | Q22: 0
B23: OLD MUTUAL LIFE ASSURANCE | C23: 0 | D23: 0 | E23: 0 | F23: 0 | G23: 0 | H23: 0 | I23: 0 | J23: 0 | K23: 0 | L23: 0 | M23: 0 | N23: 0 | O23: 0 | P23: 0 | Q23: 0
B24: PIONEER ASSURANCE COMPANY | C24: 0 | D24: 0 | E24: 0 | F24: 0 | G24: 0 | H24: 0 | I24: 0 | J24: 0 | K24: 0 | L24: 0 | M24: 0 | N24: 0 | O24: 0 | P24: 0 | Q24: 0
B25: PRUDENTIAL LIFE ASSURANCE | C25: 0 | D25: 0 | E25: 0 | F25: 0 | G25: 0 | H25: 0 | I25: 0 | J25: 0 | K25: 0 | L25: 0 | M25: 0 | N25: 0 | O25: 0 | P25: 0 | Q25: 0
B26: SAHAM ASSURANCE | C26: 0 | D26: 0 | E26: 0 | F26: 0 | G26: 0 | H26: 0 | I26: 0 | J26: 0 | K26: 0 | L26: 0 | M26: 0 | N26: 0 | O26: 0 | P26: 0 | Q26: 0
B27: SANLAM LIFE INSURANCE | C27: 0 | D27: 0 | E27: 0 | F27: 0 | G27: 0 | H27: 0 | I27: 0 | J27: 0 | K27: 0 | L27: 0 | M27: 0 | N27: 0 | O27: 0 | P27: 0 | Q27: 0
B28: TAKAFUL INSURANCE OF AFRICA | C28: 0 | D28: 0 | E28: 0 | F28: 0 | G28: 0 | H28: 0 | I28: 0 | J28: 0 | K28: 0 | L28: 0 | M28: 0 | N28: 0 | O28: 0 | P28: 0 | Q28: 0
B29: THE KENYAN ALLIANCE INSURANCE | C29: 0 | D29: 0 | E29: 0 | F29: 0 | G29: 0 | H29: 0 | I29: 0 | J29: 0 | K29: 0 | L29: 0 | M29: 0 | N29: 0 | O29: 0 | P29: 0 | Q29: 0
B30: THE MONARCH INSURANCE | C30: 0 | D30: 0 | E30: 0 | F30: 0 | G30: 0 | H30: 0 | I30: 0 | J30: 0 | K30: 0 | L30: 0 | M30: 0 | N30: 0 | O30: 0 | P30: 0 | Q30: 0
B31: UAP LIFE ASSURANCE COMPANY | C31: 0 | D31: 0 | E31: 0 | F31: 0 | G31: 0 | H31: 0 | I31: 0 | J31: 0 | K31: 0 | L31: 0 | M31: 0 | N31: 0 | O31: 0 | P31: 0 | Q31: 0
B32: TOTAL | C32: =SUM(C6:C31) -> 0 | D32: 0 | E32: 0 | F32: 0 | G32: 118490 | H32: 0 | I32: 0 | J32: 0 | K32: 0 | L32: 0 | M32: 0 | N32: 63810 | O32: 0 | P32: 0 | Q32: 63810
B33: REINSURERS
B34: CONTINENTAL REINSURANCE | C34: 0 | D34: 0 | E34: 0 | F34: 0 | G34: 0 | H34: 0 | I34: 0 | J34: 0 | K34: 0 | L34: 0 | M34: 0 | N34: 0 | O34: 0 | P34: 0 | Q34: 0
B35: EAST AFRICA REINSURANCE | C35: 0 | D35: 0 | E35: 0 | F35: 0 | G35: 0 | H35: 0 | I35: 0 | J35: 0 | K35: 0 | L35: 0 | M35: 0 | N35: 0 | O35: 0 | P35: 0 | Q35: 0
B36: KENYA REINSURANCE CORPORATION | C36: 0 | D36: 0 | E36: 0 | F36: 0 | G36: 0 | H36: 0 | I36: 0 | J36: 0 | K36: 0 | L36: 0 | M36: 0 | N36: 0 | O36: 0 | P36: 0 | Q36: 0
B37: TOTAL | C37: =SUM(C34:C36) -> 0 | D37: =SUM(D34:D36) -> 0 | E37: 0 | F37: 0 | G37: 0 | H37: 0 | I37: 0 | J37: 0 | K37: 0 | L37: 0 | M37: 0 | N37: 0 | O37: 0 | P37: 0 | Q37: 0
B38: Amounts in Thousand Shillings

Sheet Linked (hidden)
B3: APPENDIX 15: SUMMARY OF INVESTMENTS BUSINESS REVENUE ACCOUNTS FOR THE YEAR ENDED 31.12.2019
B4: Company | C4: Life Fund BF | D4: Gross Premium | E4: Net Premium | F4: Other (Fee) Income | G4: Total Benefits | H4: Claims | I4: Surrenders | J4: Bonuses Paid | K4: Annuities Paid | L4: Net Commisions | M4: Expense of Management | N4: Investment Income | O4: Investment Expenses | P4: Transfer To (From) P & L | Q4: Life Fund CF
B5: INSURERS
B6: ABSA LIFE ASSURANCE KENYA | C6: 0 | D6: 0 | E6: 0 | F6: 0 | G6: 0 | H6: 0 | I6: 0 | J6: 0 | K6: 0 | L6: 0 | M6: 0 | N6: 0 | O6: 0 | P6: 0 | Q6: 0
B7: APA LIFE ASSURANCE COMPANY | C7: 1008 | D7: 129 | E7: 129 | F7: 0 | G7: 0 | H7: 0 | I7: 0 | J7: 0 | K7: 0 | L7: 0 | M7: 0 | N7: 0 | O7: 0 | P7: 0 | Q7: 1137
B8: BRITAM LIFE INSURANCE COMPANY | C8: 2460327 | D8: 686681 | E8: 686681 | F8: 0 | G8: 992382 | H8: 559391 | I8: 222609 | J8: 211964 | K8: 0 | L8: 18233 | M8: 65168 | N8: 278425 | O8: 0 | P8: 165261 | Q8: 2182806
B9: CAPEX LIFE ASSURANCE COMPANY | C9: 0 | D9: 0 | E9: 0 | F9: 0 | G9: 0 | H9: 0 | I9: 0 | J9: 0 | K9: 0 | L9: 0 | M9: 0 | N9: 0 | O9: 0 | P9: 0 | Q9: 0
B10: CIC LIFE ASSURANCE COMPANY | C10: 0 | D10: 0 | E10: 0 | F10: 0 | G10: 0 | H10: 0 | I10: 0 | J10: 0 | K10: 0 | L10: 0 | M10: 0 | N10: 0 | O10: 0 | P10: 0 | Q10: 0
B11: CORPORATE INSURANCE COMPANY | C11: 0 | D11: 0 | E11: 0 | F11: 0 | G11: 0 | H11: 0 | I11: 0 | J11: 0 | K11: 0 | L11: 0 | M11: 0 | N11: 0 | O11: 0 | P11: 0 | Q11: 0
B12: FIRST ASSURANCE COMPANY | C12: 0 | D12: 0 | E12: 0 | F12: 0 | G12: 0 | H12: 0 | I12: 0 | J12: 0 | K12: 0 | L12: 0 | M12: 0 | N12: 0 | O12: 0 | P12: 0 | Q12: 0
B13: GA LIFE ASSURANCE COMPANY | C13: 0 | D13: 0 | E13: 0 | F13: 0 | G13: 0 | H13: 0 | I13: 0 | J13: 0 | K13: 0 | L13: 0 | M13: 0 | N13: 0 | O13: 0 | P13: 0 | Q13: 0
B14: GEMINIA INSURANCE COMPANY | C14: 0 | D14: 0 | E14: 0 | F14: 0 | G14: 0 | H14: 0 | I14: 0 | J14: 0 | K14: 0 | L14: 0 | M14: 0 | N14: 0 | O14: 0 | P14: 0 | Q14: 0
B15: ICEA LION LIFE ASSURANCE | C15: 307348 | D15: 28279 | E15: 28279 | F15: 0 | G15: 91554 | H15: 60384 | I15: 31170 | J15: 0 | K15: 0 | L15: 0 | M15: 0 | N15: 107495 | O15: 0 | P15: 3642 | Q15: 347926
B16: JUBILEE INSURANCE COMPANY | C16: 0 | D16: 0 | E16: 0 | F16: 0 | G16: 0 | H16: 0 | I16: 0 | J16: 0 | K16: 0 | L16: 0 | M16: 0 | N16: 0 | O16: 0 | P16: 0 | Q16: 0
B17: KENINDIA ASSURANCE COMPANY | C17: 0 | D17: 0 | E17: 0 | F17: 0 | G17: 0 | H17: 0 | I17: 0 | J17: 0 | K17: 0 | L17: 0 | M17: 0 | N17: 0 | O17: 0 | P17: 0 | Q17: 0
B18: KENYA ORIENT LIFE ASSURANCE | C18: 0 | D18: 0 | E18: 0 | F18: 0 | G18: 0 | H18: 0 | I18: 0 | J18: 0 | K18: 0 | L18: 0 | M18: 0 | N18: 0 | O18: 0 | P18: 0 | Q18: 0
B19: KUSCCO MUTUAL ASSURANCE LIMITED | C19: 0 | D19: 0 | E19: 0 | F19: 0 | G19: 0 | H19: 0 | I19: 0 | J19: 0 | K19: 0 | L19: 0 | M19: 0 | N19: 0 | O19: 0 | P19: 0 | Q19: 0
B20: LIBERTY LIFE ASSURANCE COMPANY | C20: 4175496 | D20: 1071055 | E20: 1070923 | F20: 0 | G20: 1889372 | H20: 1886645 | I20: 0 | J20: 0 | K20: 0 | L20: 168361 | M20: 483158 | N20: 784242 | O20: 0 | P20: 0 | Q20: 3492497
B21: MADISON INSURANCE COMPANY | C21: 163039 | D21: 7686 | E21: 7686 | F21: 0 | G21: 42979 | H21: 42979 | I21: 0 | J21: 0 | K21: 0 | L21: 0 | M21: 2383 | N21: 5395 | O21: 0 | P21: 0 | Q21: 130759
B22: METROPOLITAN CANNON INSURANCE | C22: 0 | D22: 0 | E22: 0 | F22: 0 | G22: 0 | H22: 0 | I22: 0 | J22: 0 | K22: 0 | L22: 0 | M22: 0 | N22: 0 | O22: 0 | P22: 0 | Q22: 0
B23: OLD MUTUAL LIFE ASSURANCE | C23: 6363955 | D23: 853381 | E23: 853381 | F23: 0 | G23: 1199637 | H23: 87525 | I23: 1066752 | J23: 0 | K23: 0 | L23: 0 | M23: 0 | N23: 917989 | O23: 28291 | P23: 0 | Q23: 6952756
B24: PIONEER ASSURANCE COMPANY | C24: 189283 | D24: 81379 | E24: 81379 | F24: 0 | G24: 0 | H24: 0 | I24: 0 | J24: 0 | K24: 0 | L24: 0 | M24: 0 | N24: 0 | O24: 0 | P24: 0 | Q24: 270662
B25: PRUDENTIAL LIFE ASSURANCE | C25: 0 | D25: 0 | E25: 0 | F25: 0 | G25: 0 | H25: 0 | I25: 0 | J25: 0 | K25: 0 | L25: 0 | M25: 0 | N25: 0 | O25: 0 | P25: 0 | Q25: 0
B26: SAHAM ASSURANCE | C26: 0 | D26: 0 | E26: 0 | F26: 0 | G26: 0 | H26: 0 | I26: 0 | J26: 0 | K26: 0 | L26: 0 | M26: 0 | N26: 0 | O26: 0 | P26: 0 | Q26: 0
B27: SANLAM LIFE INSURANCE | C27: 4856628 | D27: 655146 | E27: 655146 | F27: 0 | G27: 2086363 | H27: 2060895 | I27: 0 | J27: 0 | K27: 0 | L27: 189781 | M27: 252019 | N27: 992166 | O27: 0 | P27: 0 | Q27: 4001246
B28: TAKAFUL INSURANCE OF AFRICA | C28: 0 | D28: 0 | E28: 0 | F28: 0 | G28: 0 | H28: 0 | I28: 0 | J28: 0 | K28: 0 | L28: 0 | M28: 0 | N28: 0 | O28: 0 | P28: 0 | Q28: 0
B29: THE KENYAN ALLIANCE INSURANCE | C29: 0 | D29: 0 | E29: 0 | F29: 0 | G29: 0 | H29: 0 | I29: 0 | J29: 0 | K29: 0 | L29: 0 | M29: 0 | N29: 0 | O29: 0 | P29: 0 | Q29: 0
B30: THE MONARCH INSURANCE | C30: 0 | D30: 0 | E30: 0 | F30: 0 | G30: 0 | H30: 0 | I30: 0 | J30: 0 | K30: 0 | L30: 0 | M30: 0 | N30: 0 | O30: 0 | P30: 0 | Q30: 0
B31: UAP LIFE ASSURANCE COMPANY | C31: 867854 | D31: 27201 | E31: 27201 | F31: 59608 | G31: 164177 | H31: 87318 | I31: 70186 | J31: 0 | K31: 0 | L31: 0 | M31: 0 | N31: 154256 | O31: 0 | P31: 0 | Q31: 951414
B32: TOTAL | C32: =SUM(C6:C31) -> 19384938 | D32: 3410937 | E32: 3410805 | F32: 59608 | G32: 6466464 | H32: 4785137 | I32: 1390717 | J32: 211964 | K32: 0 | L32: 376375 | M32: 802728 | N32: 3239968 | O32: 28291 | P32: 168903 | Q32: 18331203
B33: REINSURERS
B34: CONTINENTAL REINSURANCE | C34: 0 | D34: 0 | E34: 0 | F34: 0 | G34: 0 | H34: 0 | I34: 0 | J34: 0 | K34: 0 | L34: 0 | M34: 0 | N34: 0 | O34: 0 | P34: 0 | Q34: 0
B35: EAST AFRICA REINSURANCE | C35: 0 | D35: 0 | E35: 0 | F35: 0 | G35: 0 | H35: 0 | I35: 0 | J35: 0 | K35: 0 | L35: 0 | M35: 0 | N35: 0 | O35: 0 | P35: 0 | Q35: 0
B36: KENYA REINSURANCE CORPORATION | C36: 0 | D36: 0 | E36: 0 | F36: 0 | G36: 0 | H36: 0 | I36: 0 | J36: 0 | K36: 0 | L36: 0 | M36: 0 | N36: 0 | O36: 0 | P36: 0 | Q36: 0
B37: TOTAL | C37: =SUM(C34:C36) -> 0 | D37: =SUM(D34:D36) -> 0 | E37: 0 | F37: 0 | G37: 0 | H37: 0 | I37: 0 | J37: 0 | K37: 0 | L37: 0 | M37: 0 | N37: 0 | O37: 0 | P37: 0 | Q37: 0
B38: Amounts in Thousand Shillings

Sheet Non Linked (hidden)
B3: APPENDIX 15: SUMMARY OF INVESTMENTS BUSINESS REVENUE ACCOUNTS FOR THE YEAR ENDED 31.12.2019
B4: Company | C4: Life Fund BF | D4: Gross Premium | E4: Net Premium | F4: Other (Fee) Income | G4: Total Benefits | H4: Claims | I4: Surrenders | J4: Bonuses Paid | K4: Annuities Paid | L4: Net Commisions | M4: Expense of Management | N4: Investment Income | O4: Investment Expenses | P4: Transfer To (From) P & L | Q4: Life Fund CF
B5: INSURERS
B6: ABSA LIFE ASSURANCE KENYA | C6: 0 | D6: 0 | E6: 0 | F6: 0 | G6: 0 | H6: 0 | I6: 0 | J6: 0 | K6: 0 | L6: 0 | M6: 0 | N6: 0 | O6: 0 | P6: 0 | Q6: 0
B7: APA LIFE ASSURANCE COMPANY | C7: 0 | D7: 0 | E7: 0 | F7: 0 | G7: 0 | H7: 0 | I7: 0 | J7: 0 | K7: 0 | L7: 0 | M7: 0 | N7: 0 | O7: 0 | P7: 0 | Q7: 0
B8: BRITAM LIFE INSURANCE COMPANY | C8: 0 | D8: 0 | E8: 0 | F8: 0 | G8: 0 | H8: 0 | I8: 0 | J8: 0 | K8: 0 | L8: 0 | M8: 0 | N8: 0 | O8: 0 | P8: 0 | Q8: 0
B9: CAPEX LIFE ASSURANCE COMPANY | C9: 0 | D9: 0 | E9: 0 | F9: 0 | G9: 0 | H9: 0 | I9: 0 | J9: 0 | K9: 0 | L9: 0 | M9: 0 | N9: 0 | O9: 0 | P9: 0 | Q9: 0
B10: CIC LIFE ASSURANCE COMPANY | C10: 0 | D10: 0 | E10: 0 | F10: 0 | G10: 0 | H10: 0 | I10: 0 | J10: 0 | K10: 0 | L10: 0 | M10: 0 | N10: 0 | O10: 0 | P10: 0 | Q10: 0
B11: CORPORATE INSURANCE COMPANY | C11: 0 | D11: 0 | E11: 0 | F11: 0 | G11: 0 | H11: 0 | I11: 0 | J11: 0 | K11: 0 | L11: 0 | M11: 0 | N11: 0 | O11: 0 | P11: 0 | Q11: 0
B12: FIRST ASSURANCE COMPANY | C12: 0 | D12: 0 | E12: 0 | F12: 0 | G12: 0 | H12: 0 | I12: 0 | J12: 0 | K12: 0 | L12: 0 | M12: 0 | N12: 0 | O12: 0 | P12: 0 | Q12: 0
B13: GA LIFE ASSURANCE COMPANY | C13: 0 | D13: 0 | E13: 0 | F13: 0 | G13: 0 | H13: 0 | I13: 0 | J13: 0 | K13: 0 | L13: 0 | M13: 0 | N13: 0 | O13: 0 | P13: 0 | Q13: 0
B14: GEMINIA INSURANCE COMPANY | C14: 0 | D14: 0 | E14: 0 | F14: 0 | G14: 0 | H14: 0 | I14: 0 | J14: 0 | K14: 0 | L14: 0 | M14: 0 | N14: 0 | O14: 0 | P14: 0 | Q14: 0
B15: ICEA LION LIFE ASSURANCE | C15: 0 | D15: 0 | E15: 0 | F15: 0 | G15: 0 | H15: 0 | I15: 0 | J15: 0 | K15: 0 | L15: 0 | M15: 0 | N15: 0 | O15: 0 | P15: 0 | Q15: 0
B16: JUBILEE INSURANCE COMPANY | C16: 0 | D16: 0 | E16: 0 | F16: 0 | G16: 0 | H16: 0 | I16: 0 | J16: 0 | K16: 0 | L16: 0 | M16: 0 | N16: 0 | O16: 0 | P16: 0 | Q16: 0
B17: KENINDIA ASSURANCE COMPANY | C17: 0 | D17: 0 | E17: 0 | F17: 0 | G17: 0 | H17: 0 | I17: 0 | J17: 0 | K17: 0 | L17: 0 | M17: 0 | N17: 0 | O17: 0 | P17: 0 | Q17: 0
B18: KENYA ORIENT LIFE ASSURANCE | C18: 0 | D18: 0 | E18: 0 | F18: 0 | G18: 0 | H18: 0 | I18: 0 | J18: 0 | K18: 0 | L18: 0 | M18: 0 | N18: 0 | O18: 0 | P18: 0 | Q18: 0
B19: KUSCCO MUTUAL ASSURANCE LIMITED | C19: 0 | D19: 0 | E19: 0 | F19: 0 | G19: 0 | H19: 0 | I19: 0 | J19: 0 | K19: 0 | L19: 0 | M19: 0 | N19: 0 | O19: 0 | P19: 0 | Q19: 0
B20: LIBERTY LIFE ASSURANCE COMPANY | C20: 0 | D20: 0 | E20: 0 | F20: 0 | G20: 0 | H20: 0 | I20: 0 | J20: 0 | K20: 0 | L20: 0 | M20: 0 | N20: 0 | O20: 0 | P20: 0 | Q20: 0
B21: MADISON INSURANCE COMPANY | C21: 0 | D21: 0 | E21: 0 | F21: 0 | G21: 0 | H21: 0 | I21: 0 | J21: 0 | K21: 0 | L21: 0 | M21: 0 | N21: 0 | O21: 0 | P21: 0 | Q21: 0
B22: METROPOLITAN CANNON INSURANCE | C22: 0 | D22: 0 | E22: 0 | F22: 0 | G22: 0 | H22: 0 | I22: 0 | J22: 0 | K22: 0 | L22: 0 | M22: 0 | N22: 0 | O22: 0 | P22: 0 | Q22: 0
B23: OLD MUTUAL LIFE ASSURANCE | C23: 0 | D23: 0 | E23: 0 | F23: 0 | G23: 0 | H23: 0 | I23: 0 | J23: 0 | K23: 0 | L23: 0 | M23: 0 | N23: 0 | O23: 0 | P23: 0 | Q23: 0
B24: PIONEER ASSURANCE COMPANY | C24: 0 | D24: 0 | E24: 0 | F24: 0 | G24: 0 | H24: 0 | I24: 0 | J24: 0 | K24: 0 | L24: 0 | M24: 0 | N24: 0 | O24: 0 | P24: 0 | Q24: 0
B25: PRUDENTIAL LIFE ASSURANCE | C25: 0 | D25: 0 | E25: 0 | F25: 0 | G25: 0 | H25: 0 | I25: 0 | J25: 0 | K25: 0 | L25: 0 | M25: 0 | N25: 0 | O25: 0 | P25: 0 | Q25: 0
B26: SAHAM ASSURANCE | C26: 0 | D26: 0 | E26: 0 | F26: 0 | G26: 0 | H26: 0 | I26: 0 | J26: 0 | K26: 0 | L26: 0 | M26: 0 | N26: 0 | O26: 0 | P26: 0 | Q26: 0
B27: SANLAM LIFE INSURANCE | C27: 0 | D27: 0 | E27: 0 | F27: 0 | G27: 0 | H27: 0 | I27: 0 | J27: 0 | K27: 0 | L27: 0 | M27: 0 | N27: 0 | O27: 0 | P27: 0 | Q27: 0
B28: TAKAFUL INSURANCE OF AFRICA | C28: 0 | D28: 0 | E28: 0 | F28: 0 | G28: 0 | H28: 0 | I28: 0 | J28: 0 | K28: 0 | L28: 0 | M28: 0 | N28: 0 | O28: 0 | P28: 0 | Q28: 0
B29: THE KENYAN ALLIANCE INSURANCE | C29: 15884 | D29: 147801 | E29: 147801 | F29: 0 | G29: 16211 | H29: 16211 | I29: 0 | J29: 0 | K29: 0 | L29: 0 | M29: 20267 | N29: 23565 | O29: 0 | P29: 0 | Q29: 150772
B30: THE MONARCH INSURANCE | C30: 0 | D30: 0 | E30: 0 | F30: 0 | G30: 0 | H30: 0 | I30: 0 | J30: 0 | K30: 0 | L30: 0 | M30: 0 | N30: 0 | O30: 0 | P30: 0 | Q30: 0
B31: UAP LIFE ASSURANCE COMPANY | C31: 0 | D31: 0 | E31: 0 | F31: 1879 | G31: 0 | H31: 0 | I31: 0 | J31: 0 | K31: 0 | L31: 0 | M31: 0 | N31: 0 | O31: 0 | P31: 0 | Q31: 1879
B32: TOTAL | C32: =SUM(C6:C31) -> 15884 | D32: 147801 | E32: 147801 | F32: 1879 | G32: 16211 | H32: 16211 | I32: 0 | J32: 0 | K32: 0 | L32: 0 | M32: 20267 | N32: 23565 | O32: 0 | P32: 0 | Q32: 152651
B33: REINSURERS
B34: CONTINENTAL REINSURANCE | C34: 0 | D34: 0 | E34: 0 | F34: 0 | G34: 0 | H34: 0 | I34: 0 | J34: 0 | K34: 0 | L34: 0 | M34: 0 | N34: 0 | O34: 0 | P34: 0 | Q34: 0
B35: EAST AFRICA REINSURANCE | C35: 0 | D35: 0 | E35: 0 | F35: 0 | G35: 0 | H35: 0 | I35: 0 | J35: 0 | K35: 0 | L35: 0 | M35: 0 | N35: 0 | O35: 0 | P35: 0 | Q35: 0
B36: KENYA REINSURANCE CORPORATION | C36: 0 | D36: 0 | E36: 0 | F36: 0 | G36: 0 | H36: 0 | I36: 0 | J36: 0 | K36: 0 | L36: 0 | M36: 0 | N36: 0 | O36: 0 | P36: 0 | Q36: 0
B37: TOTAL | C37: =SUM(C34:C36) -> 0 | D37: =SUM(D34:D36) -> 0 | E37: 0 | F37: 0 | G37: 0 | H37: 0 | I37: 0 | J37: 0 | K37: 0 | L37: 0 | M37: 0 | N37: 0 | O37: 0 | P37: 0 | Q37: 0
B38: Amounts in Thousand Shillings

Sheet APPENDIX 15
B3: APPENDIX 15: SUMMARY OF INVESTMENTS BUSINESS REVENUE ACCOUNTS FOR THE YEAR ENDED 31.12.2019
B4: Company | C4: Life Fund BF | D4: Gross Premium | E4: Net Premium | F4: Other (Fee) Income | G4: Total Benefits | H4: Claims | I4: Surrenders | J4: Bonuses Paid | K4: Annuities Paid | L4: Net Commisions | M4: Expense of Management | N4: Investment Income | O4: Investment Expenses | P4: Transfer To (From) P & L | Q4: Life Fund CF
B5: INSURERS
B6: ABSA LIFE ASSURANCE KENYA | C6: =+Linked!C6+'Non Linked'!C6 -> 0 | D6: =+Linked!D6+'Non Linked'!D6 -> 0 | E6: =+Linked!E6+'Non Linked'!E6 -> 0 | F6: =+Linked!F6+'Non Linked'!F6 -> 0 | G6: =+Linked!G6+'Non Linked'!G6 -> 0 | H6: =+Linked!H6+'Non Linked'!H6 -> 0 | I6: =+Linked!I6+'Non Linked'!I6 -> 0 | J6: =+Linked!J6+'Non Linked'!J6 -> 0 | K6: =+Linked!K6+'Non Linked'!K6 -> 0 | L6: =+Linked!L6+'Non Linked'!L6 -> 0 | M6: =+Linked!M6+'Non Linked'!M6 -> 0 | N6: =+Linked!N6+'Non Linked'!N6 -> 0 | O6: =+Linked!O6+'Non Linked'!O6 -> 0 | P6: =+Linked!P6+'Non Linked'!P6 -> 0 | Q6: =+Linked!Q6+'Non Linked'!Q6 -> 0
B7: APA LIFE ASSURANCE COMPANY | C7: =+Linked!C7+'Non Linked'!C7 -> 1008 | D7: =+Linked!D7+'Non Linked'!D7 -> 129 | E7: =+Linked!E7+'Non Linked'!E7 -> 129 | F7: =+Linked!F7+'Non Linked'!F7 -> 0 | G7: =+Linked!G7+'Non Linked'!G7 -> 0 | H7: =+Linked!H7+'Non Linked'!H7 -> 0 | I7: =+Linked!I7+'Non Linked'!I7 -> 0 | J7: =+Linked!J7+'Non Linked'!J7 -> 0 | K7: =+Linked!K7+'Non Linked'!K7 -> 0 | L7: =+Linked!L7+'Non Linked'!L7 -> 0 | M7: =+Linked!M7+'Non Linked'!M7 -> 0 | N7: =+Linked!N7+'Non Linked'!N7 -> 0 | O7: =+Linked!O7+'Non Linked'!O7 -> 0 | P7: =+Linked!P7+'Non Linked'!P7 -> 0 | Q7: =+Linked!Q7+'Non Linked'!Q7 -> 1137
B8: BRITAM LIFE INSURANCE COMPANY | C8: =+Linked!C8+'Non Linked'!C8 -> 2460327 | D8: =+Linked!D8+'Non Linked'!D8 -> 686681 | E8: =+Linked!E8+'Non Linked'!E8 -> 686681 | F8: =+Linked!F8+'Non Linked'!F8 -> 0 | G8: =+Linked!G8+'Non Linked'!G8 -> 992382 | H8: =+Linked!H8+'Non Linked'!H8 -> 559391 | I8: =+Linked!I8+'Non Linked'!I8 -> 222609 | J8: =+Linked!J8+'Non Linked'!J8 -> 211964 | K8: =+Linked!K8+'Non Linked'!K8 -> 0 | L8: =+Linked!L8+'Non Linked'!L8 -> 18233 | M8: =+Linked!M8+'Non Linked'!M8 -> 65168 | N8: =+Linked!N8+'Non Linked'!N8 -> 278425 | O8: =+Linked!O8+'Non Linked'!O8 -> 0 | P8: =+Linked!P8+'Non Linked'!P8 -> 165261 | Q8: =+Linked!Q8+'Non Linked'!Q8 -> 2182806
B9: CAPEX LIFE ASSURANCE COMPANY | C9: =+Linked!C9+'Non Linked'!C9 -> 0 | D9: =+Linked!D9+'Non Linked'!D9 -> 0 | E9: =+Linked!E9+'Non Linked'!E9 -> 0 | F9: =+Linked!F9+'Non Linked'!F9 -> 0 | G9: =+Linked!G9+'Non Linked'!G9 -> 0 | H9: =+Linked!H9+'Non Linked'!H9 -> 0 | I9: =+Linked!I9+'Non Linked'!I9 -> 0 | J9: =+Linked!J9+'Non Linked'!J9 -> 0 | K9: =+Linked!K9+'Non Linked'!K9 -> 0 | L9: =+Linked!L9+'Non Linked'!L9 -> 0 | M9: =+Linked!M9+'Non Linked'!M9 -> 0 | N9: =+Linked!N9+'Non Linked'!N9 -> 0 | O9: =+Linked!O9+'Non Linked'!O9 -> 0 | P9: =+Linked!P9+'Non Linked'!P9 -> 0 | Q9: =+Linked!Q9+'Non Linked'!Q9 -> 0
B10: CIC LIFE ASSURANCE COMPANY | C10: =+Linked!C10+'Non Linked'!C10 -> 0 | D10: =+Linked!D10+'Non Linked'!D10 -> 0 | E10: =+Linked!E10+'Non Linked'!E10 -> 0 | F10: =+Linked!F10+'Non Linked'!F10 -> 0 | G10: =+Linked!G10+'Non Linked'!G10 -> 0 | H10: =+Linked!H10+'Non Linked'!H10 -> 0 | I10: =+Linked!I10+'Non Linked'!I10 -> 0 | J10: =+Linked!J10+'Non Linked'!J10 -> 0 | K10: =+Linked!K10+'Non Linked'!K10 -> 0 | L10: =+Linked!L10+'Non Linked'!L10 -> 0 | M10: =+Linked!M10+'Non Linked'!M10 -> 0 | N10: =+Linked!N10+'Non Linked'!N10 -> 0 | O10: =+Linked!O10+'Non Linked'!O10 -> 0 | P10: =+Linked!P10+'Non Linked'!P10 -> 0 | Q10: =+Linked!Q10+'Non Linked'!Q10 -> 0
B11: CORPORATE INSURANCE COMPANY | C11: =+Linked!C11+'Non Linked'!C11 -> 0 | D11: =+Linked!D11+'Non Linked'!D11 -> 0 | E11: =+Linked!E11+'Non Linked'!E11 -> 0 | F11: =+Linked!F11+'Non Linked'!F11 -> 0 | G11: =+Linked!G11+'Non Linked'!G11 -> 0 | H11: =+Linked!H11+'Non Linked'!H11 -> 0 | I11: =+Linked!I11+'Non Linked'!I11 -> 0 | J11: =+Linked!J11+'Non Linked'!J11 -> 0 | K11: =+Linked!K11+'Non Linked'!K11 -> 0 | L11: =+Linked!L11+'Non Linked'!L11 -> 0 | M11: =+Linked!M11+'Non Linked'!M11 -> 0 | N11: =+Linked!N11+'Non Linked'!N11 -> 0 | O11: =+Linked!O11+'Non Linked'!O11 -> 0 | P11: =+Linked!P11+'Non Linked'!P11 -> 0 | Q11: =+Linked!Q11+'Non Linked'!Q11 -> 0
B12: FIRST ASSURANCE COMPANY
B13: GA LIFE ASSURANCE COMPANY | C13: =+Linked!C13+'Non Linked'!C13 -> 0 | D13: =+Linked!D13+'Non Linked'!D13 -> 0 | E13: =+Linked!E13+'Non Linked'!E13 -> 0 | F13: =+Linked!F13+'Non Linked'!F13 -> 0 | G13: =+Linked!G13+'Non Linked'!G13 -> 0 | H13: =+Linked!H13+'Non Linked'!H13 -> 0 | I13: =+Linked!I13+'Non Linked'!I13 -> 0 | J13: =+Linked!J13+'Non Linked'!J13 -> 0 | K13: =+Linked!K13+'Non Linked'!K13 -> 0 | L13: =+Linked!L13+'Non Linked'!L13 -> 0 | M13: =+Linked!M13+'Non Linked'!M13 -> 0 | N13: =+Linked!N13+'Non Linked'!N13 -> 0 | O13: =+Linked!O13+'Non Linked'!O13 -> 0 | P13: =+Linked!P13+'Non Linked'!P13 -> 0 | Q13: =+Linked!Q13+'Non Linked'!Q13 -> 0
B14: GEMINIA INSURANCE COMPANY | C14: =+Linked!C14+'Non Linked'!C14 -> 0 | D14: =+Linked!D14+'Non Linked'!D14 -> 0 | E14: =+Linked!E14+'Non Linked'!E14 -> 0 | F14: =+Linked!F14+'Non Linked'!F14 -> 0 | G14: =+Linked!G14+'Non Linked'!G14 -> 0 | H14: =+Linked!H14+'Non Linked'!H14 -> 0 | I14: =+Linked!I14+'Non Linked'!I14 -> 0 | J14: =+Linked!J14+'Non Linked'!J14 -> 0 | K14: =+Linked!K14+'Non Linked'!K14 -> 0 | L14: =+Linked!L14+'Non Linked'!L14 -> 0 | M14: =+Linked!M14+'Non Linked'!M14 -> 0 | N14: =+Linked!N14+'Non Linked'!N14 -> 0 | O14: =+Linked!O14+'Non Linked'!O14 -> 0 | P14: =+Linked!P14+'Non Linked'!P14 -> 0 | Q14: =+Linked!Q14+'Non Linked'!Q14 -> 0
B15: ICEA LION LIFE ASSURANCE | C15: =+Linked!C15+'Non Linked'!C15 -> 307348 | D15: =+Linked!D15+'Non Linked'!D15 -> 28279 | E15: =+Linked!E15+'Non Linked'!E15 -> 28279 | F15: =+Linked!F15+'Non Linked'!F15 -> 0 | G15: =+Linked!G15+'Non Linked'!G15 -> 91554 | H15: =+Linked!H15+'Non Linked'!H15 -> 60384 | I15: =+Linked!I15+'Non Linked'!I15 -> 31170 | J15: =+Linked!J15+'Non Linked'!J15 -> 0 | K15: =+Linked!K15+'Non Linked'!K15 -> 0 | L15: =+Linked!L15+'Non Linked'!L15 -> 0 | M15: =+Linked!M15+'Non Linked'!M15 -> 0 | N15: =+Linked!N15+'Non Linked'!N15 -> 107495 | O15: =+Linked!O15+'Non Linked'!O15 -> 0 | P15: =+Linked!P15+'Non Linked'!P15 -> 3642 | Q15: =+Linked!Q15+'Non Linked'!Q15 -> 347926
B16: JUBILEE INSURANCE COMPANY | C16: =+Linked!C16+'Non Linked'!C16 -> 0 | D16: =+Linked!D16+'Non Linked'!D16 -> 0 | E16: =+Linked!E16+'Non Linked'!E16 -> 0 | F16: =+Linked!F16+'Non Linked'!F16 -> 0 | G16: =+Linked!G16+'Non Linked'!G16 -> 0 | H16: =+Linked!H16+'Non Linked'!H16 -> 0 | I16: =+Linked!I16+'Non Linked'!I16 -> 0 | J16: =+Linked!J16+'Non Linked'!J16 -> 0 | K16: =+Linked!K16+'Non Linked'!K16 -> 0 | L16: =+Linked!L16+'Non Linked'!L16 -> 0 | M16: =+Linked!M16+'Non Linked'!M16 -> 0 | N16: =+Linked!N16+'Non Linked'!N16 -> 0 | O16: =+Linked!O16+'Non Linked'!O16 -> 0 | P16: =+Linked!P16+'Non Linked'!P16 -> 0 | Q16: =+Linked!Q16+'Non Linked'!Q16 -> 0
B17: KENINDIA ASSURANCE COMPANY | C17: =+Linked!C17+'Non Linked'!C17 -> 0 | D17: =+Linked!D17+'Non Linked'!D17 -> 0 | E17: =+Linked!E17+'Non Linked'!E17 -> 0 | F17: =+Linked!F17+'Non Linked'!F17 -> 0 | G17: =+Linked!G17+'Non Linked'!G17 -> 0 | H17: =+Linked!H17+'Non Linked'!H17 -> 0 | I17: =+Linked!I17+'Non Linked'!I17 -> 0 | J17: =+Linked!J17+'Non Linked'!J17 -> 0 | K17: =+Linked!K17+'Non Linked'!K17 -> 0 | L17: =+Linked!L17+'Non Linked'!L17 -> 0 | M17: =+Linked!M17+'Non Linked'!M17 -> 0 | N17: =+Linked!N17+'Non Linked'!N17 -> 0 | O17: =+Linked!O17+'Non Linked'!O17 -> 0 | P17: =+Linked!P17+'Non Linked'!P17 -> 0 | Q17: =+Linked!Q17+'Non Linked'!Q17 -> 0
B18: KENYA ORIENT LIFE ASSURANCE | C18: =+Linked!C18+'Non Linked'!C18 -> 0 | D18: =+Linked!D18+'Non Linked'!D18 -> 0 | E18: =+Linked!E18+'Non Linked'!E18 -> 0 | F18: =+Linked!F18+'Non Linked'!F18 -> 0 | G18: =+Linked!G18+'Non Linked'!G18 -> 0 | H18: =+Linked!H18+'Non Linked'!H18 -> 0 | I18: =+Linked!I18+'Non Linked'!I18 -> 0 | J18: =+Linked!J18+'Non Linked'!J18 -> 0 | K18: =+Linked!K18+'Non Linked'!K18 -> 0 | L18: =+Linked!L18+'Non Linked'!L18 -> 0 | M18: =+Linked!M18+'Non Linked'!M18 -> 0 | N18: =+Linked!N18+'Non Linked'!N18 -> 0 | O18: =+Linked!O18+'Non Linked'!O18 -> 0 | P18: =+Linked!P18+'Non Linked'!P18 -> 0 | Q18: =+Linked!Q18+'Non Linked'!Q18 -> 0
B19: KUSCCO MUTUAL ASSURANCE LIMITED | C19: =+Linked!C19+'Non Linked'!C19 -> 0 | D19: =+Linked!D19+'Non Linked'!D19 -> 0 | E19: =+Linked!E19+'Non Linked'!E19 -> 0 | F19: =+Linked!F19+'Non Linked'!F19 -> 0 | G19: =+Linked!G19+'Non Linked'!G19 -> 0 | H19: =+Linked!H19+'Non Linked'!H19 -> 0 | I19: =+Linked!I19+'Non Linked'!I19 -> 0 | J19: =+Linked!J19+'Non Linked'!J19 -> 0 | K19: =+Linked!K19+'Non Linked'!K19 -> 0 | L19: =+Linked!L19+'Non Linked'!L19 -> 0 | M19: =+Linked!M19+'Non Linked'!M19 -> 0 | N19: =+Linked!N19+'Non Linked'!N19 -> 0 | O19: =+Linked!O19+'Non Linked'!O19 -> 0 | P19: =+Linked!P19+'Non Linked'!P19 -> 0 | Q19: =+Linked!Q19+'Non Linked'!Q19 -> 0
B20: LIBERTY LIFE ASSURANCE COMPANY | C20: =+Linked!C20+'Non Linked'!C20 -> 4175496 | D20: =+Linked!D20+'Non Linked'!D20 -> 1071055 | E20: =+Linked!E20+'Non Linked'!E20 -> 1070923 | F20: =+Linked!F20+'Non Linked'!F20 -> 0 | G20: =+Linked!G20+'Non Linked'!G20 -> 1889372 | H20: =+Linked!H20+'Non Linked'!H20 -> 1886645 | I20: =+Linked!I20+'Non Linked'!I20 -> 0 | J20: =+Linked!J20+'Non Linked'!J20 -> 0 | K20: =+Linked!K20+'Non Linked'!K20 -> 0 | L20: =+Linked!L20+'Non Linked'!L20 -> 168361 | M20: =+Linked!M20+'Non Linked'!M20 -> 483158 | N20: =+Linked!N20+'Non Linked'!N20 -> 784242 | O20: =+Linked!O20+'Non Linked'!O20 -> 0 | P20: =+Linked!P20+'Non Linked'!P20 -> 0 | Q20: =+Linked!Q20+'Non Linked'!Q20 -> 3492497
B21: MADISON INSURANCE COMPANY | C21: =+Linked!C21+'Non Linked'!C21 -> 163039 | D21: =+Linked!D21+'Non Linked'!D21 -> 7686 | E21: =+Linked!E21+'Non Linked'!E21 -> 7686 | F21: =+Linked!F21+'Non Linked'!F21 -> 0 | G21: =+Linked!G21+'Non Linked'!G21 -> 42979 | H21: =+Linked!H21+'Non Linked'!H21 -> 42979 | I21: =+Linked!I21+'Non Linked'!I21 -> 0 | J21: =+Linked!J21+'Non Linked'!J21 -> 0 | K21: =+Linked!K21+'Non Linked'!K21 -> 0 | L21: =+Linked!L21+'Non Linked'!L21 -> 0 | M21: =+Linked!M21+'Non Linked'!M21 -> 2383 | N21: =+Linked!N21+'Non Linked'!N21 -> 5395 | O21: =+Linked!O21+'Non Linked'!O21 -> 0 | P21: =+Linked!P21+'Non Linked'!P21 -> 0 | Q21: =+Linked!Q21+'Non Linked'!Q21 -> 130759
B22: METROPOLITAN CANNON INSURANCE | C22: =+Linked!C22+'Non Linked'!C22 -> 0 | D22: =+Linked!D22+'Non Linked'!D22 -> 0 | E22: =+Linked!E22+'Non Linked'!E22 -> 0 | F22: =+Linked!F22+'Non Linked'!F22 -> 0 | G22: =+Linked!G22+'Non Linked'!G22 -> 0 | H22: =+Linked!H22+'Non Linked'!H22 -> 0 | I22: =+Linked!I22+'Non Linked'!I22 -> 0 | J22: =+Linked!J22+'Non Linked'!J22 -> 0 | K22: =+Linked!K22+'Non Linked'!K22 -> 0 | L22: =+Linked!L22+'Non Linked'!L22 -> 0 | M22: =+Linked!M22+'Non Linked'!M22 -> 0 | N22: =+Linked!N22+'Non Linked'!N22 -> 0 | O22: =+Linked!O22+'Non Linked'!O22 -> 0 | P22: =+Linked!P22+'Non Linked'!P22 -> 0 | Q22: =+Linked!Q22+'Non Linked'!Q22 -> 0
B23: OLD MUTUAL LIFE ASSURANCE | C23: =+Linked!C23+'Non Linked'!C23 -> 6363955 | D23: =+Linked!D23+'Non Linked'!D23 -> 853381 | E23: =+Linked!E23+'Non Linked'!E23 -> 853381 | F23: =+Linked!F23+'Non Linked'!F23 -> 0 | G23: =+Linked!G23+'Non Linked'!G23 -> 1199637 | H23: =+Linked!H23+'Non Linked'!H23 -> 87525 | I23: =+Linked!I23+'Non Linked'!I23 -> 1066752 | J23: =+Linked!J23+'Non Linked'!J23 -> 0 | K23: =+Linked!K23+'Non Linked'!K23 -> 0 | L23: =+Linked!L23+'Non Linked'!L23 -> 0 | M23: =+Linked!M23+'Non Linked'!M23 -> 0 | N23: =+Linked!N23+'Non Linked'!N23 -> 917989 | O23: =+Linked!O23+'Non Linked'!O23 -> 28291 | P23: =+Linked!P23+'Non Linked'!P23 -> 0 | Q23: =+Linked!Q23+'Non Linked'!Q23 -> 6952756
B24: PIONEER ASSURANCE COMPANY | C24: =+Linked!C24+'Non Linked'!C24 -> 189283 | D24: =+Linked!D24+'Non Linked'!D24 -> 81379 | E24: =+Linked!E24+'Non Linked'!E24 -> 81379 | F24: =+Linked!F24+'Non Linked'!F24 -> 0 | G24: =+Linked!G24+'Non Linked'!G24 -> 0 | H24: =+Linked!H24+'Non Linked'!H24 -> 0 | I24: =+Linked!I24+'Non Linked'!I24 -> 0 | J24: =+Linked!J24+'Non Linked'!J24 -> 0 | K24: =+Linked!K24+'Non Linked'!K24 -> 0 | L24: =+Linked!L24+'Non Linked'!L24 -> 0 | M24: =+Linked!M24+'Non Linked'!M24 -> 0 | N24: =+Linked!N24+'Non Linked'!N24 -> 0 | O24: =+Linked!O24+'Non Linked'!O24 -> 0 | P24: =+Linked!P24+'Non Linked'!P24 -> 0 | Q24: =+Linked!Q24+'Non Linked'!Q24 -> 270662
B25: PRUDENTIAL LIFE ASSURANCE | C25: =+Linked!C25+'Non Linked'!C25 -> 0 | D25: =+Linked!D25+'Non Linked'!D25 -> 0 | E25: =+Linked!E25+'Non Linked'!E25 -> 0 | F25: =+Linked!F25+'Non Linked'!F25 -> 0 | G25: =+Linked!G25+'Non Linked'!G25 -> 0 | H25: =+Linked!H25+'Non Linked'!H25 -> 0 | I25: =+Linked!I25+'Non Linked'!I25 -> 0 | J25: =+Linked!J25+'Non Linked'!J25 -> 0 | K25: =+Linked!K25+'Non Linked'!K25 -> 0 | L25: =+Linked!L25+'Non Linked'!L25 -> 0 | M25: =+Linked!M25+'Non Linked'!M25 -> 0 | N25: =+Linked!N25+'Non Linked'!N25 -> 0 | O25: =+Linked!O25+'Non Linked'!O25 -> 0 | P25: =+Linked!P25+'Non Linked'!P25 -> 0 | Q25: =+Linked!Q25+'Non Linked'!Q25 -> 0
B26: SAHAM ASSURANCE | C26: =+Linked!C26+'Non Linked'!C26 -> 0 | D26: =+Linked!D26+'Non Linked'!D26 -> 0 | E26: =+Linked!E26+'Non Linked'!E26 -> 0 | F26: =+Linked!F26+'Non Linked'!F26 -> 0 | G26: =+Linked!G26+'Non Linked'!G26 -> 0 | H26: =+Linked!H26+'Non Linked'!H26 -> 0 | I26: =+Linked!I26+'Non Linked'!I26 -> 0 | J26: =+Linked!J26+'Non Linked'!J26 -> 0 | K26: =+Linked!K26+'Non Linked'!K26 -> 0 | L26: =+Linked!L26+'Non Linked'!L26 -> 0 | M26: =+Linked!M26+'Non Linked'!M26 -> 0 | N26: =+Linked!N26+'Non Linked'!N26 -> 0 | O26: =+Linked!O26+'Non Linked'!O26 -> 0 | P26: =+Linked!P26+'Non Linked'!P26 -> 0 | Q26: =+Linked!Q26+'Non Linked'!Q26 -> 0
B27: SANLAM LIFE INSURANCE | C27: =+Linked!C27+'Non Linked'!C27 -> 4856628 | D27: =+Linked!D27+'Non Linked'!D27 -> 655146 | E27: =+Linked!E27+'Non Linked'!E27 -> 655146 | F27: =+Linked!F27+'Non Linked'!F27 -> 0 | G27: =+Linked!G27+'Non Linked'!G27 -> 2086363 | H27: =+Linked!H27+'Non Linked'!H27 -> 2060895 | I27: =+Linked!I27+'Non Linked'!I27 -> 0 | J27: =+Linked!J27+'Non Linked'!J27 -> 0 | K27: =+Linked!K27+'Non Linked'!K27 -> 0 | L27: =+Linked!L27+'Non Linked'!L27 -> 189781 | M27: =+Linked!M27+'Non Linked'!M27 -> 252019 | N27: =+Linked!N27+'Non Linked'!N27 -> 992166 | O27: =+Linked!O27+'Non Linked'!O27 -> 0 | P27: =+Linked!P27+'Non Linked'!P27 -> 0 | Q27: =+Linked!Q27+'Non Linked'!Q27 -> 4001246
B28: TAKAFUL INSURANCE OF AFRICA | C28: =+Linked!C28+'Non Linked'!C28 -> 0 | D28: =+Linked!D28+'Non Linked'!D28 -> 0 | E28: =+Linked!E28+'Non Linked'!E28 -> 0 | F28: =+Linked!F28+'Non Linked'!F28 -> 0 | G28: =+Linked!G28+'Non Linked'!G28 -> 0 | H28: =+Linked!H28+'Non Linked'!H28 -> 0 | I28: =+Linked!I28+'Non Linked'!I28 -> 0 | J28: =+Linked!J28+'Non Linked'!J28 -> 0 | K28: =+Linked!K28+'Non Linked'!K28 -> 0 | L28: =+Linked!L28+'Non Linked'!L28 -> 0 | M28: =+Linked!M28+'Non Linked'!M28 -> 0 | N28: =+Linked!N28+'Non Linked'!N28 -> 0 | O28: =+Linked!O28+'Non Linked'!O28 -> 0 | P28: =+Linked!P28+'Non Linked'!P28 -> 0 | Q28: =+Linked!Q28+'Non Linked'!Q28 -> 0
B29: THE KENYAN ALLIANCE INSURANCE | C29: =+Linked!C29+'Non Linked'!C29 -> 15884 | D29: =+Linked!D29+'Non Linked'!D29 -> 147801 | E29: =+Linked!E29+'Non Linked'!E29 -> 147801 | F29: =+Linked!F29+'Non Linked'!F29 -> 0 | G29: =+Linked!G29+'Non Linked'!G29 -> 16211 | H29: =+Linked!H29+'Non Linked'!H29 -> 16211 | I29: =+Linked!I29+'Non Linked'!I29 -> 0 | J29: =+Linked!J29+'Non Linked'!J29 -> 0 | K29: =+Linked!K29+'Non Linked'!K29 -> 0 | L29: =+Linked!L29+'Non Linked'!L29 -> 0 | M29: =+Linked!M29+'Non Linked'!M29 -> 20267 | N29: =+Linked!N29+'Non Linked'!N29 -> 23565 | O29: =+Linked!O29+'Non Linked'!O29 -> 0 | P29: =+Linked!P29+'Non Linked'!P29 -> 0 | Q29: =+Linked!Q29+'Non Linked'!Q29 -> 150772
B30: THE MONARCH INSURANCE | C30: =+Linked!C30+'Non Linked'!C30 -> 0 | D30: =+Linked!D30+'Non Linked'!D30 -> 0 | E30: =+Linked!E30+'Non Linked'!E30 -> 0 | F30: =+Linked!F30+'Non Linked'!F30 -> 0 | G30: =+Linked!G30+'Non Linked'!G30 -> 0 | H30: =+Linked!H30+'Non Linked'!H30 -> 0 | I30: =+Linked!I30+'Non Linked'!I30 -> 0 | J30: =+Linked!J30+'Non Linked'!J30 -> 0 | K30: =+Linked!K30+'Non Linked'!K30 -> 0 | L30: =+Linked!L30+'Non Linked'!L30 -> 0 | M30: =+Linked!M30+'Non Linked'!M30 -> 0 | N30: =+Linked!N30+'Non Linked'!N30 -> 0 | O30: =+Linked!O30+'Non Linked'!O30 -> 0 | P30: =+Linked!P30+'Non Linked'!P30 -> 0 | Q30: =+Linked!Q30+'Non Linked'!Q30 -> 0
B31: UAP LIFE ASSURANCE COMPANY | C31: =+Linked!C31+'Non Linked'!C31 -> 867854 | D31: =+Linked!D31+'Non Linked'!D31 -> 27201 | E31: =+Linked!E31+'Non Linked'!E31 -> 27201 | F31: =+Linked!F31+'Non Linked'!F31 -> 61487 | G31: =+Linked!G31+'Non Linked'!G31 -> 164177 | H31: =+Linked!H31+'Non Linked'!H31 -> 87318 | I31: =+Linked!I31+'Non Linked'!I31 -> 70186 | J31: =+Linked!J31+'Non Linked'!J31 -> 0 | K31: =+Linked!K31+'Non Linked'!K31 -> 0 | L31: =+Linked!L31+'Non Linked'!L31 -> 0 | M31: =+Linked!M31+'Non Linked'!M31 -> 0 | N31: =+Linked!N31+'Non Linked'!N31 -> 154256 | O31: =+Linked!O31+'Non Linked'!O31 -> 0 | P31: =+Linked!P31+'Non Linked'!P31 -> 0 | Q31: =+Linked!Q31+'Non Linked'!Q31 -> 953293
B32: TOTAL | C32: =SUM(C6:C31) -> 19400822 | D32: 3558738 | E32: 3558606 | F32: 61487 | G32: 6482675 | H32: 4801348 | I32: 1390717 | J32: 211964 | K32: 0 | L32: 376375 | M32: 822995 | N32: 3263533 | O32: 28291 | P32: 168903 | Q32: 18483854
B33: REINSURERS
B34: CONTINENTAL REINSURANCE | C34: 0 | D34: 0 | E34: 0 | F34: 0 | G34: 0 | H34: 0 | I34: 0 | J34: 0 | K34: 0 | L34: 0 | M34: 0 | N34: 0 | O34: 0 | P34: 0 | Q34: 0
B35: EAST AFRICA REINSURANCE | C35: 0 | D35: 0 | E35: 0 | F35: 0 | G35: 0 | H35: 0 | I35: 0 | J35: 0 | K35: 0 | L35: 0 | M35: 0 | N35: 0 | O35: 0 | P35: 0 | Q35: 0
B36: KENYA REINSURANCE CORPORATION | C36: 0 | D36: 0 | E36: 0 | F36: 0 | G36: 0 | H36: 0 | I36: 0 | J36: 0 | K36: 0 | L36: 0 | M36: 0 | N36: 0 | O36: 0 | P36: 0 | Q36: 0
B37: TOTAL | C37: =SUM(C34:C36) -> 0 | D37: =SUM(D34:D36) -> 0 | E37: 0 | F37: 0 | G37: 0 | H37: 0 | I37: 0 | J37: 0 | K37: 0 | L37: 0 | M37: 0 | N37: 0 | O37: 0 | P37: 0 | Q37: 0
B38: Amounts in Thousand Shillings

Sheet APPENDIX 16
B3: APPENDIX 16: SUMMARY OF COMBINED LONG TERM BUSINESS REVENUE ACCOUNTS FOR THE YEAR ENDED 31.12.2019
B4: Company | C4: Life Fund BF | D4: Gross Premium | E4: Net Premium | F4: Other (Fee) Income | G4: Total Benefits | H4: Claims | I4: Surrenders | J4: Bonuses Paid | K4: Annuities Paid | L4: Net Commisions | M4: Expense of Management | N4: Investment Income | O4: Investment Expenses | P4: Transfer To (From) P & L | Q4: Life Fund CF
B5: INSURERS
B6: ABSA LIFE ASSURANCE KENYA | C6: ='APPENDIX 9'!C6+'APPENDIX 10'!C6+'APPENDIX 11'!C6+'APPENDIX 12'!C6+'APPENDIX 13'!C6+'APPENDIX 14'!C6+'APPENDIX 15'!C6 -> -604758 | D6: ='APPENDIX 9'!D6+'APPENDIX 10'!D6+'APPENDIX 11'!D6+'APPENDIX 12'!D6+'APPENDIX 13'!D6+'APPENDIX 14'!D6+'APPENDIX 15'!D6 -> 2375712 | E6: ='APPENDIX 9'!E6+'APPENDIX 10'!E6+'APPENDIX 11'!E6+'APPENDIX 12'!E6+'APPENDIX 13'!E6+'APPENDIX 14'!E6+'APPENDIX 15'!E6 -> 1410018 | F6: ='APPENDIX 9'!F6+'APPENDIX 10'!F6+'APPENDIX 11'!F6+'APPENDIX 12'!F6+'APPENDIX 13'!F6+'APPENDIX 14'!F6+'APPENDIX 15'!F6 -> 0 | G6: ='APPENDIX 9'!G6+'APPENDIX 10'!G6+'APPENDIX 11'!G6+'APPENDIX 12'!G6+'APPENDIX 13'!G6+'APPENDIX 14'!G6+'APPENDIX 15'!G6 -> 387030 | H6: ='APPENDIX 9'!H6+'APPENDIX 10'!H6+'APPENDIX 11'!H6+'APPENDIX 12'!H6+'APPENDIX 13'!H6+'APPENDIX 14'!H6+'APPENDIX 15'!H6 -> 890294 | I6: ='APPENDIX 9'!I6+'APPENDIX 10'!I6+'APPENDIX 11'!I6+'APPENDIX 12'!I6+'APPENDIX 13'!I6+'APPENDIX 14'!I6+'APPENDIX 15'!I6 -> 0 | J6: ='APPENDIX 9'!J6+'APPENDIX 10'!J6+'APPENDIX 11'!J6+'APPENDIX 12'!J6+'APPENDIX 13'!J6+'APPENDIX 14'!J6+'APPENDIX 15'!J6 -> 0 | K6: ='APPENDIX 9'!K6+'APPENDIX 10'!K6+'APPENDIX 11'!K6+'APPENDIX 12'!K6+'APPENDIX 13'!K6+'APPENDIX 14'!K6+'APPENDIX 15'!K6 -> 0 | L6: ='APPENDIX 9'!L6+'APPENDIX 10'!L6+'APPENDIX 11'!L6+'APPENDIX 12'!L6+'APPENDIX 13'!L6+'APPENDIX 14'!L6+'APPENDIX 15'!L6 -> 224995 | M6: ='APPENDIX 9'!M6+'APPENDIX 10'!M6+'APPENDIX 11'!M6+'APPENDIX 12'!M6+'APPENDIX 13'!M6+'APPENDIX 14'!M6+'APPENDIX 15'!M6 -> 583965 | N6: ='APPENDIX 9'!N6+'APPENDIX 10'!N6+'APPENDIX 11'!N6+'APPENDIX 12'!N6+'APPENDIX 13'!N6+'APPENDIX 14'!N6+'APPENDIX 15'!N6 -> 357259 | O6: ='APPENDIX 9'!O6+'APPENDIX 10'!O6+'APPENDIX 11'!O6+'APPENDIX 12'!O6+'APPENDIX 13'!O6+'APPENDIX 14'!O6+'APPENDIX 15'!O6 -> -8861 | P6: ='APPENDIX 9'!P6+'APPENDIX 10'!P6+'APPENDIX 11'!P6+'APPENDIX 12'!P6+'APPENDIX 13'!P6+'APPENDIX 14'!P6+'APPENDIX 15'!P6 -> -786577 | Q6: ='APPENDIX 9'!Q6+'APPENDIX 10'!Q6+'APPENDIX 11'!Q6+'APPENDIX 12'!Q6+'APPENDIX 13'!Q6+'APPENDIX 14'!Q6+'APPENDIX 15'!Q6 -> 258704
B7: APA LIFE ASSURANCE COMPANY | C7: ='APPENDIX 9'!C7+'APPENDIX 10'!C7+'APPENDIX 11'!C7+'APPENDIX 12'!C7+'APPENDIX 13'!C7+'APPENDIX 14'!C7+'APPENDIX 15'!C7 -> 4419570 | D7: ='APPENDIX 9'!D7+'APPENDIX 10'!D7+'APPENDIX 11'!D7+'APPENDIX 12'!D7+'APPENDIX 13'!D7+'APPENDIX 14'!D7+'APPENDIX 15'!D7 -> 1517723 | E7: ='APPENDIX 9'!E7+'APPENDIX 10'!E7+'APPENDIX 11'!E7+'APPENDIX 12'!E7+'APPENDIX 13'!E7+'APPENDIX 14'!E7+'APPENDIX 15'!E7 -> 1099656 | F7: ='APPENDIX 9'!F7+'APPENDIX 10'!F7+'APPENDIX 11'!F7+'APPENDIX 12'!F7+'APPENDIX 13'!F7+'APPENDIX 14'!F7+'APPENDIX 15'!F7 -> 0 | G7: ='APPENDIX 9'!G7+'APPENDIX 10'!G7+'APPENDIX 11'!G7+'APPENDIX 12'!G7+'APPENDIX 13'!G7+'APPENDIX 14'!G7+'APPENDIX 15'!G7 -> 694281 | H7: ='APPENDIX 9'!H7+'APPENDIX 10'!H7+'APPENDIX 11'!H7+'APPENDIX 12'!H7+'APPENDIX 13'!H7+'APPENDIX 14'!H7+'APPENDIX 15'!H7 -> 618032 | I7: ='APPENDIX 9'!I7+'APPENDIX 10'!I7+'APPENDIX 11'!I7+'APPENDIX 12'!I7+'APPENDIX 13'!I7+'APPENDIX 14'!I7+'APPENDIX 15'!I7 -> 0 | J7: ='APPENDIX 9'!J7+'APPENDIX 10'!J7+'APPENDIX 11'!J7+'APPENDIX 12'!J7+'APPENDIX 13'!J7+'APPENDIX 14'!J7+'APPENDIX 15'!J7 -> 0 | K7: ='APPENDIX 9'!K7+'APPENDIX 10'!K7+'APPENDIX 11'!K7+'APPENDIX 12'!K7+'APPENDIX 13'!K7+'APPENDIX 14'!K7+'APPENDIX 15'!K7 -> 59863 | L7: ='APPENDIX 9'!L7+'APPENDIX 10'!L7+'APPENDIX 11'!L7+'APPENDIX 12'!L7+'APPENDIX 13'!L7+'APPENDIX 14'!L7+'APPENDIX 15'!L7 -> 89980 | M7: ='APPENDIX 9'!M7+'APPENDIX 10'!M7+'APPENDIX 11'!M7+'APPENDIX 12'!M7+'APPENDIX 13'!M7+'APPENDIX 14'!M7+'APPENDIX 15'!M7 -> 239834 | N7: ='APPENDIX 9'!N7+'APPENDIX 10'!N7+'APPENDIX 11'!N7+'APPENDIX 12'!N7+'APPENDIX 13'!N7+'APPENDIX 14'!N7+'APPENDIX 15'!N7 -> 588745 | O7: ='APPENDIX 9'!O7+'APPENDIX 10'!O7+'APPENDIX 11'!O7+'APPENDIX 12'!O7+'APPENDIX 13'!O7+'APPENDIX 14'!O7+'APPENDIX 15'!O7 -> 25020 | P7: ='APPENDIX 9'!P7+'APPENDIX 10'!P7+'APPENDIX 11'!P7+'APPENDIX 12'!P7+'APPENDIX 13'!P7+'APPENDIX 14'!P7+'APPENDIX 15'!P7 -> -32402 | Q7: ='APPENDIX 9'!Q7+'APPENDIX 10'!Q7+'APPENDIX 11'!Q7+'APPENDIX 12'!Q7+'APPENDIX 13'!Q7+'APPENDIX 14'!Q7+'APPENDIX 15'!Q7 -> 5107644
B8: BRITAM LIFE INSURANCE COMPANY | C8: ='APPENDIX 9'!C8+'APPENDIX 10'!C8+'APPENDIX 11'!C8+'APPENDIX 12'!C8+'APPENDIX 13'!C8+'APPENDIX 14'!C8+'APPENDIX 15'!C8 -> 65796391 | D8: ='APPENDIX 9'!D8+'APPENDIX 10'!D8+'APPENDIX 11'!D8+'APPENDIX 12'!D8+'APPENDIX 13'!D8+'APPENDIX 14'!D8+'APPENDIX 15'!D8 -> 23941687 | E8: ='APPENDIX 9'!E8+'APPENDIX 10'!E8+'APPENDIX 11'!E8+'APPENDIX 12'!E8+'APPENDIX 13'!E8+'APPENDIX 14'!E8+'APPENDIX 15'!E8 -> 23687050 | F8: ='APPENDIX 9'!F8+'APPENDIX 10'!F8+'APPENDIX 11'!F8+'APPENDIX 12'!F8+'APPENDIX 13'!F8+'APPENDIX 14'!F8+'APPENDIX 15'!F8 -> 9700 | G8: ='APPENDIX 9'!G8+'APPENDIX 10'!G8+'APPENDIX 11'!G8+'APPENDIX 12'!G8+'APPENDIX 13'!G8+'APPENDIX 14'!G8+'APPENDIX 15'!G8 -> 10582054 | H8: ='APPENDIX 9'!H8+'APPENDIX 10'!H8+'APPENDIX 11'!H8+'APPENDIX 12'!H8+'APPENDIX 13'!H8+'APPENDIX 14'!H8+'APPENDIX 15'!H8 -> 6229228 | I8: ='APPENDIX 9'!I8+'APPENDIX 10'!I8+'APPENDIX 11'!I8+'APPENDIX 12'!I8+'APPENDIX 13'!I8+'APPENDIX 14'!I8+'APPENDIX 15'!I8 -> 1508299 | J8: ='APPENDIX 9'!J8+'APPENDIX 10'!J8+'APPENDIX 11'!J8+'APPENDIX 12'!J8+'APPENDIX 13'!J8+'APPENDIX 14'!J8+'APPENDIX 15'!J8 -> 1766709 | K8: ='APPENDIX 9'!K8+'APPENDIX 10'!K8+'APPENDIX 11'!K8+'APPENDIX 12'!K8+'APPENDIX 13'!K8+'APPENDIX 14'!K8+'APPENDIX 15'!K8 -> 787927 | L8: ='APPENDIX 9'!L8+'APPENDIX 10'!L8+'APPENDIX 11'!L8+'APPENDIX 12'!L8+'APPENDIX 13'!L8+'APPENDIX 14'!L8+'APPENDIX 15'!L8 -> 1457028 | M8: ='APPENDIX 9'!M8+'APPENDIX 10'!M8+'APPENDIX 11'!M8+'APPENDIX 12'!M8+'APPENDIX 13'!M8+'APPENDIX 14'!M8+'APPENDIX 15'!M8 -> 3509923 | N8: ='APPENDIX 9'!N8+'APPENDIX 10'!N8+'APPENDIX 11'!N8+'APPENDIX 12'!N8+'APPENDIX 13'!N8+'APPENDIX 14'!N8+'APPENDIX 15'!N8 -> 9741753 | O8: ='APPENDIX 9'!O8+'APPENDIX 10'!O8+'APPENDIX 11'!O8+'APPENDIX 12'!O8+'APPENDIX 13'!O8+'APPENDIX 14'!O8+'APPENDIX 15'!O8 -> 185720 | P8: ='APPENDIX 9'!P8+'APPENDIX 10'!P8+'APPENDIX 11'!P8+'APPENDIX 12'!P8+'APPENDIX 13'!P8+'APPENDIX 14'!P8+'APPENDIX 15'!P8 -> 3640221 | Q8: ='APPENDIX 9'!Q8+'APPENDIX 10'!Q8+'APPENDIX 11'!Q8+'APPENDIX 12'!Q8+'APPENDIX 13'!Q8+'APPENDIX 14'!Q8+'APPENDIX 15'!Q8 -> 80149838
B9: CAPEX LIFE ASSURANCE COMPANY | C9: ='APPENDIX 9'!C9+'APPENDIX 10'!C9+'APPENDIX 11'!C9+'APPENDIX 12'!C9+'APPENDIX 13'!C9+'APPENDIX 14'!C9+'APPENDIX 15'!C9 -> 411647 | D9: ='APPENDIX 9'!D9+'APPENDIX 10'!D9+'APPENDIX 11'!D9+'APPENDIX 12'!D9+'APPENDIX 13'!D9+'APPENDIX 14'!D9+'APPENDIX 15'!D9 -> 310511 | E9: ='APPENDIX 9'!E9+'APPENDIX 10'!E9+'APPENDIX 11'!E9+'APPENDIX 12'!E9+'APPENDIX 13'!E9+'APPENDIX 14'!E9+'APPENDIX 15'!E9 -> 280586 | F9: ='APPENDIX 9'!F9+'APPENDIX 10'!F9+'APPENDIX 11'!F9+'APPENDIX 12'!F9+'APPENDIX 13'!F9+'APPENDIX 14'!F9+'APPENDIX 15'!F9 -> 0 | G9: ='APPENDIX 9'!G9+'APPENDIX 10'!G9+'APPENDIX 11'!G9+'APPENDIX 12'!G9+'APPENDIX 13'!G9+'APPENDIX 14'!G9+'APPENDIX 15'!G9 -> 160469 | H9: ='APPENDIX 9'!H9+'APPENDIX 10'!H9+'APPENDIX 11'!H9+'APPENDIX 12'!H9+'APPENDIX 13'!H9+'APPENDIX 14'!H9+'APPENDIX 15'!H9 -> 73890 | I9: ='APPENDIX 9'!I9+'APPENDIX 10'!I9+'APPENDIX 11'!I9+'APPENDIX 12'!I9+'APPENDIX 13'!I9+'APPENDIX 14'!I9+'APPENDIX 15'!I9 -> 364 | J9: ='APPENDIX 9'!J9+'APPENDIX 10'!J9+'APPENDIX 11'!J9+'APPENDIX 12'!J9+'APPENDIX 13'!J9+'APPENDIX 14'!J9+'APPENDIX 15'!J9 -> 0 | K9: ='APPENDIX 9'!K9+'APPENDIX 10'!K9+'APPENDIX 11'!K9+'APPENDIX 12'!K9+'APPENDIX 13'!K9+'APPENDIX 14'!K9+'APPENDIX 15'!K9 -> 87930 | L9: ='APPENDIX 9'!L9+'APPENDIX 10'!L9+'APPENDIX 11'!L9+'APPENDIX 12'!L9+'APPENDIX 13'!L9+'APPENDIX 14'!L9+'APPENDIX 15'!L9 -> 680 | M9: ='APPENDIX 9'!M9+'APPENDIX 10'!M9+'APPENDIX 11'!M9+'APPENDIX 12'!M9+'APPENDIX 13'!M9+'APPENDIX 14'!M9+'APPENDIX 15'!M9 -> 150374 | N9: ='APPENDIX 9'!N9+'APPENDIX 10'!N9+'APPENDIX 11'!N9+'APPENDIX 12'!N9+'APPENDIX 13'!N9+'APPENDIX 14'!N9+'APPENDIX 15'!N9 -> 94459 | O9: ='APPENDIX 9'!O9+'APPENDIX 10'!O9+'APPENDIX 11'!O9+'APPENDIX 12'!O9+'APPENDIX 13'!O9+'APPENDIX 14'!O9+'APPENDIX 15'!O9 -> 0 | P9: ='APPENDIX 9'!P9+'APPENDIX 10'!P9+'APPENDIX 11'!P9+'APPENDIX 12'!P9+'APPENDIX 13'!P9+'APPENDIX 14'!P9+'APPENDIX 15'!P9 -> 0 | Q9: ='APPENDIX 9'!Q9+'APPENDIX 10'!Q9+'APPENDIX 11'!Q9+'APPENDIX 12'!Q9+'APPENDIX 13'!Q9+'APPENDIX 14'!Q9+'APPENDIX 15'!Q9 -> 473453
B10: CIC LIFE ASSURANCE COMPANY | C10: ='APPENDIX 9'!C10+'APPENDIX 10'!C10+'APPENDIX 11'!C10+'APPENDIX 12'!C10+'APPENDIX 13'!C10+'APPENDIX 14'!C10+'APPENDIX 15'!C10 -> 2711145 | D10: ='APPENDIX 9'!D10+'APPENDIX 10'!D10+'APPENDIX 11'!D10+'APPENDIX 12'!D10+'APPENDIX 13'!D10+'APPENDIX 14'!D10+'APPENDIX 15'!D10 -> 6072127 | E10: ='APPENDIX 9'!E10+'APPENDIX 10'!E10+'APPENDIX 11'!E10+'APPENDIX 12'!E10+'APPENDIX 13'!E10+'APPENDIX 14'!E10+'APPENDIX 15'!E10 -> 5103815 | F10: ='APPENDIX 9'!F10+'APPENDIX 10'!F10+'APPENDIX 11'!F10+'APPENDIX 12'!F10+'APPENDIX 13'!F10+'APPENDIX 14'!F10+'APPENDIX 15'!F10 -> 0 | G10: ='APPENDIX 9'!G10+'APPENDIX 10'!G10+'APPENDIX 11'!G10+'APPENDIX 12'!G10+'APPENDIX 13'!G10+'APPENDIX 14'!G10+'APPENDIX 15'!G10 -> 1905442 | H10: ='APPENDIX 9'!H10+'APPENDIX 10'!H10+'APPENDIX 11'!H10+'APPENDIX 12'!H10+'APPENDIX 13'!H10+'APPENDIX 14'!H10+'APPENDIX 15'!H10 -> 2887788 | I10: ='APPENDIX 9'!I10+'APPENDIX 10'!I10+'APPENDIX 11'!I10+'APPENDIX 12'!I10+'APPENDIX 13'!I10+'APPENDIX 14'!I10+'APPENDIX 15'!I10 -> 0 | J10: ='APPENDIX 9'!J10+'APPENDIX 10'!J10+'APPENDIX 11'!J10+'APPENDIX 12'!J10+'APPENDIX 13'!J10+'APPENDIX 14'!J10+'APPENDIX 15'!J10 -> 0 | K10: ='APPENDIX 9'!K10+'APPENDIX 10'!K10+'APPENDIX 11'!K10+'APPENDIX 12'!K10+'APPENDIX 13'!K10+'APPENDIX 14'!K10+'APPENDIX 15'!K10 -> 0 | L10: ='APPENDIX 9'!L10+'APPENDIX 10'!L10+'APPENDIX 11'!L10+'APPENDIX 12'!L10+'APPENDIX 13'!L10+'APPENDIX 14'!L10+'APPENDIX 15'!L10 -> 93306 | M10: ='APPENDIX 9'!M10+'APPENDIX 10'!M10+'APPENDIX 11'!M10+'APPENDIX 12'!M10+'APPENDIX 13'!M10+'APPENDIX 14'!M10+'APPENDIX 15'!M10 -> 1538407 | N10: ='APPENDIX 9'!N10+'APPENDIX 10'!N10+'APPENDIX 11'!N10+'APPENDIX 12'!N10+'APPENDIX 13'!N10+'APPENDIX 14'!N10+'APPENDIX 15'!N10 -> 603983 | O10: ='APPENDIX 9'!O10+'APPENDIX 10'!O10+'APPENDIX 11'!O10+'APPENDIX 12'!O10+'APPENDIX 13'!O10+'APPENDIX 14'!O10+'APPENDIX 15'!O10 -> 0 | P10: ='APPENDIX 9'!P10+'APPENDIX 10'!P10+'APPENDIX 11'!P10+'APPENDIX 12'!P10+'APPENDIX 13'!P10+'APPENDIX 14'!P10+'APPENDIX 15'!P10 -> 0 | Q10: ='APPENDIX 9'!Q10+'APPENDIX 10'!Q10+'APPENDIX 11'!Q10+'APPENDIX 12'!Q10+'APPENDIX 13'!Q10+'APPENDIX 14'!Q10+'APPENDIX 15'!Q10 -> 3899442
B11: CORPORATE INSURANCE COMPANY | C11: ='APPENDIX 9'!C11+'APPENDIX 10'!C11+'APPENDIX 11'!C11+'APPENDIX 12'!C11+'APPENDIX 13'!C11+'APPENDIX 14'!C11+'APPENDIX 15'!C11 -> 637871 | D11: ='APPENDIX 9'!D11+'APPENDIX 10'!D11+'APPENDIX 11'!D11+'APPENDIX 12'!D11+'APPENDIX 13'!D11+'APPENDIX 14'!D11+'APPENDIX 15'!D11 -> 294319 | E11: ='APPENDIX 9'!E11+'APPENDIX 10'!E11+'APPENDIX 11'!E11+'APPENDIX 12'!E11+'APPENDIX 13'!E11+'APPENDIX 14'!E11+'APPENDIX 15'!E11 -> 289727 | F11: ='APPENDIX 9'!F11+'APPENDIX 10'!F11+'APPENDIX 11'!F11+'APPENDIX 12'!F11+'APPENDIX 13'!F11+'APPENDIX 14'!F11+'APPENDIX 15'!F11 -> 0 | G11: ='APPENDIX 9'!G11+'APPENDIX 10'!G11+'APPENDIX 11'!G11+'APPENDIX 12'!G11+'APPENDIX 13'!G11+'APPENDIX 14'!G11+'APPENDIX 15'!G11 -> 228762 | H11: ='APPENDIX 9'!H11+'APPENDIX 10'!H11+'APPENDIX 11'!H11+'APPENDIX 12'!H11+'APPENDIX 13'!H11+'APPENDIX 14'!H11+'APPENDIX 15'!H11 -> 273764 | I11: ='APPENDIX 9'!I11+'APPENDIX 10'!I11+'APPENDIX 11'!I11+'APPENDIX 12'!I11+'APPENDIX 13'!I11+'APPENDIX 14'!I11+'APPENDIX 15'!I11 -> 0 | J11: ='APPENDIX 9'!J11+'APPENDIX 10'!J11+'APPENDIX 11'!J11+'APPENDIX 12'!J11+'APPENDIX 13'!J11+'APPENDIX 14'!J11+'APPENDIX 15'!J11 -> 0 | K11: ='APPENDIX 9'!K11+'APPENDIX 10'!K11+'APPENDIX 11'!K11+'APPENDIX 12'!K11+'APPENDIX 13'!K11+'APPENDIX 14'!K11+'APPENDIX 15'!K11 -> 0 | L11: ='APPENDIX 9'!L11+'APPENDIX 10'!L11+'APPENDIX 11'!L11+'APPENDIX 12'!L11+'APPENDIX 13'!L11+'APPENDIX 14'!L11+'APPENDIX 15'!L11 -> 59959 | M11: ='APPENDIX 9'!M11+'APPENDIX 10'!M11+'APPENDIX 11'!M11+'APPENDIX 12'!M11+'APPENDIX 13'!M11+'APPENDIX 14'!M11+'APPENDIX 15'!M11 -> 102395 | N11: ='APPENDIX 9'!N11+'APPENDIX 10'!N11+'APPENDIX 11'!N11+'APPENDIX 12'!N11+'APPENDIX 13'!N11+'APPENDIX 14'!N11+'APPENDIX 15'!N11 -> 122617 | O11: ='APPENDIX 9'!O11+'APPENDIX 10'!O11+'APPENDIX 11'!O11+'APPENDIX 12'!O11+'APPENDIX 13'!O11+'APPENDIX 14'!O11+'APPENDIX 15'!O11 -> 0 | P11: ='APPENDIX 9'!P11+'APPENDIX 10'!P11+'APPENDIX 11'!P11+'APPENDIX 12'!P11+'APPENDIX 13'!P11+'APPENDIX 14'!P11+'APPENDIX 15'!P11 -> 0 | Q11: ='APPENDIX 9'!Q11+'APPENDIX 10'!Q11+'APPENDIX 11'!Q11+'APPENDIX 12'!Q11+'APPENDIX 13'!Q11+'APPENDIX 14'!Q11+'APPENDIX 15'!Q11 -> 614099
B12: FIRST ASSURANCE COMPANY | C12: ='APPENDIX 9'!C12+'APPENDIX 10'!C12+'APPENDIX 11'!C12+'APPENDIX 12'!C12+'APPENDIX 13'!C12+'APPENDIX 14'!C12+'APPENDIX 15'!C12 -> 410500 | D12: ='APPENDIX 9'!D12+'APPENDIX 10'!D12+'APPENDIX 11'!D12+'APPENDIX 12'!D12+'APPENDIX 13'!D12+'APPENDIX 14'!D12+'APPENDIX 15'!D12 -> 93236 | E12: ='APPENDIX 9'!E12+'APPENDIX 10'!E12+'APPENDIX 11'!E12+'APPENDIX 12'!E12+'APPENDIX 13'!E12+'APPENDIX 14'!E12+'APPENDIX 15'!E12 -> 9989 | F12: ='APPENDIX 9'!F12+'APPENDIX 10'!F12+'APPENDIX 11'!F12+'APPENDIX 12'!F12+'APPENDIX 13'!F12+'APPENDIX 14'!F12+'APPENDIX 15'!F12 -> 0 | G12: ='APPENDIX 9'!G12+'APPENDIX 10'!G12+'APPENDIX 11'!G12+'APPENDIX 12'!G12+'APPENDIX 13'!G12+'APPENDIX 14'!G12+'APPENDIX 15'!G12 -> -14845 | H12: ='APPENDIX 9'!H12+'APPENDIX 10'!H12+'APPENDIX 11'!H12+'APPENDIX 12'!H12+'APPENDIX 13'!H12+'APPENDIX 14'!H12+'APPENDIX 15'!H12 -> 13760 | I12: ='APPENDIX 9'!I12+'APPENDIX 10'!I12+'APPENDIX 11'!I12+'APPENDIX 12'!I12+'APPENDIX 13'!I12+'APPENDIX 14'!I12+'APPENDIX 15'!I12 -> 0 | J12: ='APPENDIX 9'!J12+'APPENDIX 10'!J12+'APPENDIX 11'!J12+'APPENDIX 12'!J12+'APPENDIX 13'!J12+'APPENDIX 14'!J12+'APPENDIX 15'!J12 -> 0 | K12: ='APPENDIX 9'!K12+'APPENDIX 10'!K12+'APPENDIX 11'!K12+'APPENDIX 12'!K12+'APPENDIX 13'!K12+'APPENDIX 14'!K12+'APPENDIX 15'!K12 -> 0 | L12: ='APPENDIX 9'!L12+'APPENDIX 10'!L12+'APPENDIX 11'!L12+'APPENDIX 12'!L12+'APPENDIX 13'!L12+'APPENDIX 14'!L12+'APPENDIX 15'!L12 -> -13426 | M12: ='APPENDIX 9'!M12+'APPENDIX 10'!M12+'APPENDIX 11'!M12+'APPENDIX 12'!M12+'APPENDIX 13'!M12+'APPENDIX 14'!M12+'APPENDIX 15'!M12 -> 8434 | N12: ='APPENDIX 9'!N12+'APPENDIX 10'!N12+'APPENDIX 11'!N12+'APPENDIX 12'!N12+'APPENDIX 13'!N12+'APPENDIX 14'!N12+'APPENDIX 15'!N12 -> 15951 | O12: ='APPENDIX 9'!O12+'APPENDIX 10'!O12+'APPENDIX 11'!O12+'APPENDIX 12'!O12+'APPENDIX 13'!O12+'APPENDIX 14'!O12+'APPENDIX 15'!O12 -> 0 | P12: ='APPENDIX 9'!P12+'APPENDIX 10'!P12+'APPENDIX 11'!P12+'APPENDIX 12'!P12+'APPENDIX 13'!P12+'APPENDIX 14'!P12+'APPENDIX 15'!P12 -> 0 | Q12: ='APPENDIX 9'!Q12+'APPENDIX 10'!Q12+'APPENDIX 11'!Q12+'APPENDIX 12'!Q12+'APPENDIX 13'!Q12+'APPENDIX 14'!Q12+'APPENDIX 15'!Q12 -> 427673
B13: GA LIFE ASSURANCE COMPANY | C13: ='APPENDIX 9'!C13+'APPENDIX 10'!C13+'APPENDIX 11'!C13+'APPENDIX 12'!C13+'APPENDIX 13'!C13+'APPENDIX 14'!C13+'APPENDIX 15'!C13 -> 7508555 | D13: ='APPENDIX 9'!D13+'APPENDIX 10'!D13+'APPENDIX 11'!D13+'APPENDIX 12'!D13+'APPENDIX 13'!D13+'APPENDIX 14'!D13+'APPENDIX 15'!D13 -> 2924019 | E13: ='APPENDIX 9'!E13+'APPENDIX 10'!E13+'APPENDIX 11'!E13+'APPENDIX 12'!E13+'APPENDIX 13'!E13+'APPENDIX 14'!E13+'APPENDIX 15'!E13 -> 2889559 | F13: ='APPENDIX 9'!F13+'APPENDIX 10'!F13+'APPENDIX 11'!F13+'APPENDIX 12'!F13+'APPENDIX 13'!F13+'APPENDIX 14'!F13+'APPENDIX 15'!F13 -> 0 | G13: ='APPENDIX 9'!G13+'APPENDIX 10'!G13+'APPENDIX 11'!G13+'APPENDIX 12'!G13+'APPENDIX 13'!G13+'APPENDIX 14'!G13+'APPENDIX 15'!G13 -> 614450 | H13: ='APPENDIX 9'!H13+'APPENDIX 10'!H13+'APPENDIX 11'!H13+'APPENDIX 12'!H13+'APPENDIX 13'!H13+'APPENDIX 14'!H13+'APPENDIX 15'!H13 -> 614250 | I13: ='APPENDIX 9'!I13+'APPENDIX 10'!I13+'APPENDIX 11'!I13+'APPENDIX 12'!I13+'APPENDIX 13'!I13+'APPENDIX 14'!I13+'APPENDIX 15'!I13 -> 0 | J13: ='APPENDIX 9'!J13+'APPENDIX 10'!J13+'APPENDIX 11'!J13+'APPENDIX 12'!J13+'APPENDIX 13'!J13+'APPENDIX 14'!J13+'APPENDIX 15'!J13 -> 0 | K13: ='APPENDIX 9'!K13+'APPENDIX 10'!K13+'APPENDIX 11'!K13+'APPENDIX 12'!K13+'APPENDIX 13'!K13+'APPENDIX 14'!K13+'APPENDIX 15'!K13 -> 0 | L13: ='APPENDIX 9'!L13+'APPENDIX 10'!L13+'APPENDIX 11'!L13+'APPENDIX 12'!L13+'APPENDIX 13'!L13+'APPENDIX 14'!L13+'APPENDIX 15'!L13 -> 5933 | M13: ='APPENDIX 9'!M13+'APPENDIX 10'!M13+'APPENDIX 11'!M13+'APPENDIX 12'!M13+'APPENDIX 13'!M13+'APPENDIX 14'!M13+'APPENDIX 15'!M13 -> 71812 | N13: ='APPENDIX 9'!N13+'APPENDIX 10'!N13+'APPENDIX 11'!N13+'APPENDIX 12'!N13+'APPENDIX 13'!N13+'APPENDIX 14'!N13+'APPENDIX 15'!N13 -> 1153562 | O13: ='APPENDIX 9'!O13+'APPENDIX 10'!O13+'APPENDIX 11'!O13+'APPENDIX 12'!O13+'APPENDIX 13'!O13+'APPENDIX 14'!O13+'APPENDIX 15'!O13 -> 0 | P13: ='APPENDIX 9'!P13+'APPENDIX 10'!P13+'APPENDIX 11'!P13+'APPENDIX 12'!P13+'APPENDIX 13'!P13+'APPENDIX 14'!P13+'APPENDIX 15'!P13 -> 67294 | Q13: ='APPENDIX 9'!Q13+'APPENDIX 10'!Q13+'APPENDIX 11'!Q13+'APPENDIX 12'!Q13+'APPENDIX 13'!Q13+'APPENDIX 14'!Q13+'APPENDIX 15'!Q13 -> 10792388
B14: GEMINIA INSURANCE COMPANY | C14: ='APPENDIX 9'!C14+'APPENDIX 10'!C14+'APPENDIX 11'!C14+'APPENDIX 12'!C14+'APPENDIX 13'!C14+'APPENDIX 14'!C14+'APPENDIX 15'!C14 -> 1025019 | D14: ='APPENDIX 9'!D14+'APPENDIX 10'!D14+'APPENDIX 11'!D14+'APPENDIX 12'!D14+'APPENDIX 13'!D14+'APPENDIX 14'!D14+'APPENDIX 15'!D14 -> 996557 | E14: ='APPENDIX 9'!E14+'APPENDIX 10'!E14+'APPENDIX 11'!E14+'APPENDIX 12'!E14+'APPENDIX 13'!E14+'APPENDIX 14'!E14+'APPENDIX 15'!E14 -> 514954 | F14: ='APPENDIX 9'!F14+'APPENDIX 10'!F14+'APPENDIX 11'!F14+'APPENDIX 12'!F14+'APPENDIX 13'!F14+'APPENDIX 14'!F14+'APPENDIX 15'!F14 -> 0 | G14: ='APPENDIX 9'!G14+'APPENDIX 10'!G14+'APPENDIX 11'!G14+'APPENDIX 12'!G14+'APPENDIX 13'!G14+'APPENDIX 14'!G14+'APPENDIX 15'!G14 -> 765876 | H14: ='APPENDIX 9'!H14+'APPENDIX 10'!H14+'APPENDIX 11'!H14+'APPENDIX 12'!H14+'APPENDIX 13'!H14+'APPENDIX 14'!H14+'APPENDIX 15'!H14 -> 448671 | I14: ='APPENDIX 9'!I14+'APPENDIX 10'!I14+'APPENDIX 11'!I14+'APPENDIX 12'!I14+'APPENDIX 13'!I14+'APPENDIX 14'!I14+'APPENDIX 15'!I14 -> 0 | J14: ='APPENDIX 9'!J14+'APPENDIX 10'!J14+'APPENDIX 11'!J14+'APPENDIX 12'!J14+'APPENDIX 13'!J14+'APPENDIX 14'!J14+'APPENDIX 15'!J14 -> 0 | K14: ='APPENDIX 9'!K14+'APPENDIX 10'!K14+'APPENDIX 11'!K14+'APPENDIX 12'!K14+'APPENDIX 13'!K14+'APPENDIX 14'!K14+'APPENDIX 15'!K14 -> 0 | L14: ='APPENDIX 9'!L14+'APPENDIX 10'!L14+'APPENDIX 11'!L14+'APPENDIX 12'!L14+'APPENDIX 13'!L14+'APPENDIX 14'!L14+'APPENDIX 15'!L14 -> -17621 | M14: ='APPENDIX 9'!M14+'APPENDIX 10'!M14+'APPENDIX 11'!M14+'APPENDIX 12'!M14+'APPENDIX 13'!M14+'APPENDIX 14'!M14+'APPENDIX 15'!M14 -> 163331 | N14: ='APPENDIX 9'!N14+'APPENDIX 10'!N14+'APPENDIX 11'!N14+'APPENDIX 12'!N14+'APPENDIX 13'!N14+'APPENDIX 14'!N14+'APPENDIX 15'!N14 -> 131513 | O14: ='APPENDIX 9'!O14+'APPENDIX 10'!O14+'APPENDIX 11'!O14+'APPENDIX 12'!O14+'APPENDIX 13'!O14+'APPENDIX 14'!O14+'APPENDIX 15'!O14 -> 8962 | P14: ='APPENDIX 9'!P14+'APPENDIX 10'!P14+'APPENDIX 11'!P14+'APPENDIX 12'!P14+'APPENDIX 13'!P14+'APPENDIX 14'!P14+'APPENDIX 15'!P14 -> 0 | Q14: ='APPENDIX 9'!Q14+'APPENDIX 10'!Q14+'APPENDIX 11'!Q14+'APPENDIX 12'!Q14+'APPENDIX 13'!Q14+'APPENDIX 14'!Q14+'APPENDIX 15'!Q14 -> 1068143
B15: ICEA LION LIFE ASSURANCE | C15: ='APPENDIX 9'!C15+'APPENDIX 10'!C15+'APPENDIX 11'!C15+'APPENDIX 12'!C15+'APPENDIX 13'!C15+'APPENDIX 14'!C15+'APPENDIX 15'!C15 -> 68491250 | D15: ='APPENDIX 9'!D15+'APPENDIX 10'!D15+'APPENDIX 11'!D15+'APPENDIX 12'!D15+'APPENDIX 13'!D15+'APPENDIX 14'!D15+'APPENDIX 15'!D15 -> 13040900 | E15: ='APPENDIX 9'!E15+'APPENDIX 10'!E15+'APPENDIX 11'!E15+'APPENDIX 12'!E15+'APPENDIX 13'!E15+'APPENDIX 14'!E15+'APPENDIX 15'!E15 -> 12757319 | F15: ='APPENDIX 9'!F15+'APPENDIX 10'!F15+'APPENDIX 11'!F15+'APPENDIX 12'!F15+'APPENDIX 13'!F15+'APPENDIX 14'!F15+'APPENDIX 15'!F15 -> 0 | G15: ='APPENDIX 9'!G15+'APPENDIX 10'!G15+'APPENDIX 11'!G15+'APPENDIX 12'!G15+'APPENDIX 13'!G15+'APPENDIX 14'!G15+'APPENDIX 15'!G15 -> 8029632 | H15: ='APPENDIX 9'!H15+'APPENDIX 10'!H15+'APPENDIX 11'!H15+'APPENDIX 12'!H15+'APPENDIX 13'!H15+'APPENDIX 14'!H15+'APPENDIX 15'!H15 -> 1040061 | I15: ='APPENDIX 9'!I15+'APPENDIX 10'!I15+'APPENDIX 11'!I15+'APPENDIX 12'!I15+'APPENDIX 13'!I15+'APPENDIX 14'!I15+'APPENDIX 15'!I15 -> 5818385 | J15: ='APPENDIX 9'!J15+'APPENDIX 10'!J15+'APPENDIX 11'!J15+'APPENDIX 12'!J15+'APPENDIX 13'!J15+'APPENDIX 14'!J15+'APPENDIX 15'!J15 -> 0 | K15: ='APPENDIX 9'!K15+'APPENDIX 10'!K15+'APPENDIX 11'!K15+'APPENDIX 12'!K15+'APPENDIX 13'!K15+'APPENDIX 14'!K15+'APPENDIX 15'!K15 -> 1183684 | L15: ='APPENDIX 9'!L15+'APPENDIX 10'!L15+'APPENDIX 11'!L15+'APPENDIX 12'!L15+'APPENDIX 13'!L15+'APPENDIX 14'!L15+'APPENDIX 15'!L15 -> 607578 | M15: ='APPENDIX 9'!M15+'APPENDIX 10'!M15+'APPENDIX 11'!M15+'APPENDIX 12'!M15+'APPENDIX 13'!M15+'APPENDIX 14'!M15+'APPENDIX 15'!M15 -> 1296270 | N15: ='APPENDIX 9'!N15+'APPENDIX 10'!N15+'APPENDIX 11'!N15+'APPENDIX 12'!N15+'APPENDIX 13'!N15+'APPENDIX 14'!N15+'APPENDIX 15'!N15 -> 10729598 | O15: ='APPENDIX 9'!O15+'APPENDIX 10'!O15+'APPENDIX 11'!O15+'APPENDIX 12'!O15+'APPENDIX 13'!O15+'APPENDIX 14'!O15+'APPENDIX 15'!O15 -> 0 | P15: ='APPENDIX 9'!P15+'APPENDIX 10'!P15+'APPENDIX 11'!P15+'APPENDIX 12'!P15+'APPENDIX 13'!P15+'APPENDIX 14'!P15+'APPENDIX 15'!P15 -> 560000 | Q15: ='APPENDIX 9'!Q15+'APPENDIX 10'!Q15+'APPENDIX 11'!Q15+'APPENDIX 12'!Q15+'APPENDIX 13'!Q15+'APPENDIX 14'!Q15+'APPENDIX 15'!Q15 -> 81472188
B16: JUBILEE INSURANCE COMPANY | C16: ='APPENDIX 9'!C16+'APPENDIX 10'!C16+'APPENDIX 11'!C16+'APPENDIX 12'!C16+'APPENDIX 13'!C16+'APPENDIX 14'!C16+'APPENDIX 15'!C16 -> 64303942 | D16: ='APPENDIX 9'!D16+'APPENDIX 10'!D16+'APPENDIX 11'!D16+'APPENDIX 12'!D16+'APPENDIX 13'!D16+'APPENDIX 14'!D16+'APPENDIX 15'!D16 -> 14133786 | E16: ='APPENDIX 9'!E16+'APPENDIX 10'!E16+'APPENDIX 11'!E16+'APPENDIX 12'!E16+'APPENDIX 13'!E16+'APPENDIX 14'!E16+'APPENDIX 15'!E16 -> 13539892 | F16: ='APPENDIX 9'!F16+'APPENDIX 10'!F16+'APPENDIX 11'!F16+'APPENDIX 12'!F16+'APPENDIX 13'!F16+'APPENDIX 14'!F16+'APPENDIX 15'!F16 -> 0 | G16: ='APPENDIX 9'!G16+'APPENDIX 10'!G16+'APPENDIX 11'!G16+'APPENDIX 12'!G16+'APPENDIX 13'!G16+'APPENDIX 14'!G16+'APPENDIX 15'!G16 -> 8902324 | H16: ='APPENDIX 9'!H16+'APPENDIX 10'!H16+'APPENDIX 11'!H16+'APPENDIX 12'!H16+'APPENDIX 13'!H16+'APPENDIX 14'!H16+'APPENDIX 15'!H16 -> 8279319 | I16: ='APPENDIX 9'!I16+'APPENDIX 10'!I16+'APPENDIX 11'!I16+'APPENDIX 12'!I16+'APPENDIX 13'!I16+'APPENDIX 14'!I16+'APPENDIX 15'!I16 -> 589048 | J16: ='APPENDIX 9'!J16+'APPENDIX 10'!J16+'APPENDIX 11'!J16+'APPENDIX 12'!J16+'APPENDIX 13'!J16+'APPENDIX 14'!J16+'APPENDIX 15'!J16 -> 0 | K16: ='APPENDIX 9'!K16+'APPENDIX 10'!K16+'APPENDIX 11'!K16+'APPENDIX 12'!K16+'APPENDIX 13'!K16+'APPENDIX 14'!K16+'APPENDIX 15'!K16 -> 0 | L16: ='APPENDIX 9'!L16+'APPENDIX 10'!L16+'APPENDIX 11'!L16+'APPENDIX 12'!L16+'APPENDIX 13'!L16+'APPENDIX 14'!L16+'APPENDIX 15'!L16 -> 892327 | M16: ='APPENDIX 9'!M16+'APPENDIX 10'!M16+'APPENDIX 11'!M16+'APPENDIX 12'!M16+'APPENDIX 13'!M16+'APPENDIX 14'!M16+'APPENDIX 15'!M16 -> 1091479 | N16: ='APPENDIX 9'!N16+'APPENDIX 10'!N16+'APPENDIX 11'!N16+'APPENDIX 12'!N16+'APPENDIX 13'!N16+'APPENDIX 14'!N16+'APPENDIX 15'!N16 -> 8905659 | O16: ='APPENDIX 9'!O16+'APPENDIX 10'!O16+'APPENDIX 11'!O16+'APPENDIX 12'!O16+'APPENDIX 13'!O16+'APPENDIX 14'!O16+'APPENDIX 15'!O16 -> 21722 | P16: ='APPENDIX 9'!P16+'APPENDIX 10'!P16+'APPENDIX 11'!P16+'APPENDIX 12'!P16+'APPENDIX 13'!P16+'APPENDIX 14'!P16+'APPENDIX 15'!P16 -> 1250594 | Q16: ='APPENDIX 9'!Q16+'APPENDIX 10'!Q16+'APPENDIX 11'!Q16+'APPENDIX 12'!Q16+'APPENDIX 13'!Q16+'APPENDIX 14'!Q16+'APPENDIX 15'!Q16 -> 74625001
B17: KENINDIA ASSURANCE COMPANY | C17: ='APPENDIX 9'!C17+'APPENDIX 10'!C17+'APPENDIX 11'!C17+'APPENDIX 12'!C17+'APPENDIX 13'!C17+'APPENDIX 14'!C17+'APPENDIX 15'!C17 -> 32823515 | D17: ='APPENDIX 9'!D17+'APPENDIX 10'!D17+'APPENDIX 11'!D17+'APPENDIX 12'!D17+'APPENDIX 13'!D17+'APPENDIX 14'!D17+'APPENDIX 15'!D17 -> 5612172 | E17: ='APPENDIX 9'!E17+'APPENDIX 10'!E17+'APPENDIX 11'!E17+'APPENDIX 12'!E17+'APPENDIX 13'!E17+'APPENDIX 14'!E17+'APPENDIX 15'!E17 -> 5578736 | F17: ='APPENDIX 9'!F17+'APPENDIX 10'!F17+'APPENDIX 11'!F17+'APPENDIX 12'!F17+'APPENDIX 13'!F17+'APPENDIX 14'!F17+'APPENDIX 15'!F17 -> 0 | G17: ='APPENDIX 9'!G17+'APPENDIX 10'!G17+'APPENDIX 11'!G17+'APPENDIX 12'!G17+'APPENDIX 13'!G17+'APPENDIX 14'!G17+'APPENDIX 15'!G17 -> 3471423 | H17: ='APPENDIX 9'!H17+'APPENDIX 10'!H17+'APPENDIX 11'!H17+'APPENDIX 12'!H17+'APPENDIX 13'!H17+'APPENDIX 14'!H17+'APPENDIX 15'!H17 -> 3525766 | I17: ='APPENDIX 9'!I17+'APPENDIX 10'!I17+'APPENDIX 11'!I17+'APPENDIX 12'!I17+'APPENDIX 13'!I17+'APPENDIX 14'!I17+'APPENDIX 15'!I17 -> 0 | J17: ='APPENDIX 9'!J17+'APPENDIX 10'!J17+'APPENDIX 11'!J17+'APPENDIX 12'!J17+'APPENDIX 13'!J17+'APPENDIX 14'!J17+'APPENDIX 15'!J17 -> 0 | K17: ='APPENDIX 9'!K17+'APPENDIX 10'!K17+'APPENDIX 11'!K17+'APPENDIX 12'!K17+'APPENDIX 13'!K17+'APPENDIX 14'!K17+'APPENDIX 15'!K17 -> 0 | L17: ='APPENDIX 9'!L17+'APPENDIX 10'!L17+'APPENDIX 11'!L17+'APPENDIX 12'!L17+'APPENDIX 13'!L17+'APPENDIX 14'!L17+'APPENDIX 15'!L17 -> 153657 | M17: ='APPENDIX 9'!M17+'APPENDIX 10'!M17+'APPENDIX 11'!M17+'APPENDIX 12'!M17+'APPENDIX 13'!M17+'APPENDIX 14'!M17+'APPENDIX 15'!M17 -> 447855 | N17: ='APPENDIX 9'!N17+'APPENDIX 10'!N17+'APPENDIX 11'!N17+'APPENDIX 12'!N17+'APPENDIX 13'!N17+'APPENDIX 14'!N17+'APPENDIX 15'!N17 -> 4213665 | O17: ='APPENDIX 9'!O17+'APPENDIX 10'!O17+'APPENDIX 11'!O17+'APPENDIX 12'!O17+'APPENDIX 13'!O17+'APPENDIX 14'!O17+'APPENDIX 15'!O17 -> 0 | P17: ='APPENDIX 9'!P17+'APPENDIX 10'!P17+'APPENDIX 11'!P17+'APPENDIX 12'!P17+'APPENDIX 13'!P17+'APPENDIX 14'!P17+'APPENDIX 15'!P17 -> 281709 | Q17: ='APPENDIX 9'!Q17+'APPENDIX 10'!Q17+'APPENDIX 11'!Q17+'APPENDIX 12'!Q17+'APPENDIX 13'!Q17+'APPENDIX 14'!Q17+'APPENDIX 15'!Q17 -> 38206932
B18: KENYA ORIENT LIFE ASSURANCE | C18: ='APPENDIX 9'!C18+'APPENDIX 10'!C18+'APPENDIX 11'!C18+'APPENDIX 12'!C18+'APPENDIX 13'!C18+'APPENDIX 14'!C18+'APPENDIX 15'!C18 -> 816874 | D18: ='APPENDIX 9'!D18+'APPENDIX 10'!D18+'APPENDIX 11'!D18+'APPENDIX 12'!D18+'APPENDIX 13'!D18+'APPENDIX 14'!D18+'APPENDIX 15'!D18 -> 697941 | E18: ='APPENDIX 9'!E18+'APPENDIX 10'!E18+'APPENDIX 11'!E18+'APPENDIX 12'!E18+'APPENDIX 13'!E18+'APPENDIX 14'!E18+'APPENDIX 15'!E18 -> 663873 | F18: ='APPENDIX 9'!F18+'APPENDIX 10'!F18+'APPENDIX 11'!F18+'APPENDIX 12'!F18+'APPENDIX 13'!F18+'APPENDIX 14'!F18+'APPENDIX 15'!F18 -> 0 | G18: ='APPENDIX 9'!G18+'APPENDIX 10'!G18+'APPENDIX 11'!G18+'APPENDIX 12'!G18+'APPENDIX 13'!G18+'APPENDIX 14'!G18+'APPENDIX 15'!G18 -> 159021 | H18: ='APPENDIX 9'!H18+'APPENDIX 10'!H18+'APPENDIX 11'!H18+'APPENDIX 12'!H18+'APPENDIX 13'!H18+'APPENDIX 14'!H18+'APPENDIX 15'!H18 -> 163488 | I18: ='APPENDIX 9'!I18+'APPENDIX 10'!I18+'APPENDIX 11'!I18+'APPENDIX 12'!I18+'APPENDIX 13'!I18+'APPENDIX 14'!I18+'APPENDIX 15'!I18 -> 1020 | J18: ='APPENDIX 9'!J18+'APPENDIX 10'!J18+'APPENDIX 11'!J18+'APPENDIX 12'!J18+'APPENDIX 13'!J18+'APPENDIX 14'!J18+'APPENDIX 15'!J18 -> 0 | K18: ='APPENDIX 9'!K18+'APPENDIX 10'!K18+'APPENDIX 11'!K18+'APPENDIX 12'!K18+'APPENDIX 13'!K18+'APPENDIX 14'!K18+'APPENDIX 15'!K18 -> 57383 | L18: ='APPENDIX 9'!L18+'APPENDIX 10'!L18+'APPENDIX 11'!L18+'APPENDIX 12'!L18+'APPENDIX 13'!L18+'APPENDIX 14'!L18+'APPENDIX 15'!L18 -> 35280 | M18: ='APPENDIX 9'!M18+'APPENDIX 10'!M18+'APPENDIX 11'!M18+'APPENDIX 12'!M18+'APPENDIX 13'!M18+'APPENDIX 14'!M18+'APPENDIX 15'!M18 -> 247916 | N18: ='APPENDIX 9'!N18+'APPENDIX 10'!N18+'APPENDIX 11'!N18+'APPENDIX 12'!N18+'APPENDIX 13'!N18+'APPENDIX 14'!N18+'APPENDIX 15'!N18 -> 31366 | O18: ='APPENDIX 9'!O18+'APPENDIX 10'!O18+'APPENDIX 11'!O18+'APPENDIX 12'!O18+'APPENDIX 13'!O18+'APPENDIX 14'!O18+'APPENDIX 15'!O18 -> 0 | P18: ='APPENDIX 9'!P18+'APPENDIX 10'!P18+'APPENDIX 11'!P18+'APPENDIX 12'!P18+'APPENDIX 13'!P18+'APPENDIX 14'!P18+'APPENDIX 15'!P18 -> 0 | Q18: ='APPENDIX 9'!Q18+'APPENDIX 10'!Q18+'APPENDIX 11'!Q18+'APPENDIX 12'!Q18+'APPENDIX 13'!Q18+'APPENDIX 14'!Q18+'APPENDIX 15'!Q18 -> 1007027
B19: KUSCCO MUTUAL ASSURANCE LIMITED | C19: ='APPENDIX 9'!C19+'APPENDIX 10'!C19+'APPENDIX 11'!C19+'APPENDIX 12'!C19+'APPENDIX 13'!C19+'APPENDIX 14'!C19+'APPENDIX 15'!C19 -> 0 | D19: ='APPENDIX 9'!D19+'APPENDIX 10'!D19+'APPENDIX 11'!D19+'APPENDIX 12'!D19+'APPENDIX 13'!D19+'APPENDIX 14'!D19+'APPENDIX 15'!D19 -> 449632 | E19: ='APPENDIX 9'!E19+'APPENDIX 10'!E19+'APPENDIX 11'!E19+'APPENDIX 12'!E19+'APPENDIX 13'!E19+'APPENDIX 14'!E19+'APPENDIX 15'!E19 -> 323604 | F19: ='APPENDIX 9'!F19+'APPENDIX 10'!F19+'APPENDIX 11'!F19+'APPENDIX 12'!F19+'APPENDIX 13'!F19+'APPENDIX 14'!F19+'APPENDIX 15'!F19 -> 0 | G19: ='APPENDIX 9'!G19+'APPENDIX 10'!G19+'APPENDIX 11'!G19+'APPENDIX 12'!G19+'APPENDIX 13'!G19+'APPENDIX 14'!G19+'APPENDIX 15'!G19 -> 14563 | H19: ='APPENDIX 9'!H19+'APPENDIX 10'!H19+'APPENDIX 11'!H19+'APPENDIX 12'!H19+'APPENDIX 13'!H19+'APPENDIX 14'!H19+'APPENDIX 15'!H19 -> 210916 | I19: ='APPENDIX 9'!I19+'APPENDIX 10'!I19+'APPENDIX 11'!I19+'APPENDIX 12'!I19+'APPENDIX 13'!I19+'APPENDIX 14'!I19+'APPENDIX 15'!I19 -> 0 | J19: ='APPENDIX 9'!J19+'APPENDIX 10'!J19+'APPENDIX 11'!J19+'APPENDIX 12'!J19+'APPENDIX 13'!J19+'APPENDIX 14'!J19+'APPENDIX 15'!J19 -> 0 | K19: ='APPENDIX 9'!K19+'APPENDIX 10'!K19+'APPENDIX 11'!K19+'APPENDIX 12'!K19+'APPENDIX 13'!K19+'APPENDIX 14'!K19+'APPENDIX 15'!K19 -> 0 | L19: ='APPENDIX 9'!L19+'APPENDIX 10'!L19+'APPENDIX 11'!L19+'APPENDIX 12'!L19+'APPENDIX 13'!L19+'APPENDIX 14'!L19+'APPENDIX 15'!L19 -> 5754 | M19: ='APPENDIX 9'!M19+'APPENDIX 10'!M19+'APPENDIX 11'!M19+'APPENDIX 12'!M19+'APPENDIX 13'!M19+'APPENDIX 14'!M19+'APPENDIX 15'!M19 -> 105045 | N19: ='APPENDIX 9'!N19+'APPENDIX 10'!N19+'APPENDIX 11'!N19+'APPENDIX 12'!N19+'APPENDIX 13'!N19+'APPENDIX 14'!N19+'APPENDIX 15'!N19 -> 10242 | O19: ='APPENDIX 9'!O19+'APPENDIX 10'!O19+'APPENDIX 11'!O19+'APPENDIX 12'!O19+'APPENDIX 13'!O19+'APPENDIX 14'!O19+'APPENDIX 15'!O19 -> 0 | P19: ='APPENDIX 9'!P19+'APPENDIX 10'!P19+'APPENDIX 11'!P19+'APPENDIX 12'!P19+'APPENDIX 13'!P19+'APPENDIX 14'!P19+'APPENDIX 15'!P19 -> 0 | Q19: ='APPENDIX 9'!Q19+'APPENDIX 10'!Q19+'APPENDIX 11'!Q19+'APPENDIX 12'!Q19+'APPENDIX 13'!Q19+'APPENDIX 14'!Q19+'APPENDIX 15'!Q19 -> 12131
B20: LIBERTY LIFE ASSURANCE COMPANY | C20: ='APPENDIX 9'!C20+'APPENDIX 10'!C20+'APPENDIX 11'!C20+'APPENDIX 12'!C20+'APPENDIX 13'!C20+'APPENDIX 14'!C20+'APPENDIX 15'!C20 -> 21084157 | D20: ='APPENDIX 9'!D20+'APPENDIX 10'!D20+'APPENDIX 11'!D20+'APPENDIX 12'!D20+'APPENDIX 13'!D20+'APPENDIX 14'!D20+'APPENDIX 15'!D20 -> 5064690 | E20: ='APPENDIX 9'!E20+'APPENDIX 10'!E20+'APPENDIX 11'!E20+'APPENDIX 12'!E20+'APPENDIX 13'!E20+'APPENDIX 14'!E20+'APPENDIX 15'!E20 -> 4859618 | F20: ='APPENDIX 9'!F20+'APPENDIX 10'!F20+'APPENDIX 11'!F20+'APPENDIX 12'!F20+'APPENDIX 13'!F20+'APPENDIX 14'!F20+'APPENDIX 15'!F20 -> 0 | G20: ='APPENDIX 9'!G20+'APPENDIX 10'!G20+'APPENDIX 11'!G20+'APPENDIX 12'!G20+'APPENDIX 13'!G20+'APPENDIX 14'!G20+'APPENDIX 15'!G20 -> 4772325 | H20: ='APPENDIX 9'!H20+'APPENDIX 10'!H20+'APPENDIX 11'!H20+'APPENDIX 12'!H20+'APPENDIX 13'!H20+'APPENDIX 14'!H20+'APPENDIX 15'!H20 -> 4639513 | I20: ='APPENDIX 9'!I20+'APPENDIX 10'!I20+'APPENDIX 11'!I20+'APPENDIX 12'!I20+'APPENDIX 13'!I20+'APPENDIX 14'!I20+'APPENDIX 15'!I20 -> 0 | J20: ='APPENDIX 9'!J20+'APPENDIX 10'!J20+'APPENDIX 11'!J20+'APPENDIX 12'!J20+'APPENDIX 13'!J20+'APPENDIX 14'!J20+'APPENDIX 15'!J20 -> 0 | K20: ='APPENDIX 9'!K20+'APPENDIX 10'!K20+'APPENDIX 11'!K20+'APPENDIX 12'!K20+'APPENDIX 13'!K20+'APPENDIX 14'!K20+'APPENDIX 15'!K20 -> 0 | L20: ='APPENDIX 9'!L20+'APPENDIX 10'!L20+'APPENDIX 11'!L20+'APPENDIX 12'!L20+'APPENDIX 13'!L20+'APPENDIX 14'!L20+'APPENDIX 15'!L20 -> 364349 | M20: ='APPENDIX 9'!M20+'APPENDIX 10'!M20+'APPENDIX 11'!M20+'APPENDIX 12'!M20+'APPENDIX 13'!M20+'APPENDIX 14'!M20+'APPENDIX 15'!M20 -> 1244067 | N20: ='APPENDIX 9'!N20+'APPENDIX 10'!N20+'APPENDIX 11'!N20+'APPENDIX 12'!N20+'APPENDIX 13'!N20+'APPENDIX 14'!N20+'APPENDIX 15'!N20 -> 2926062 | O20: ='APPENDIX 9'!O20+'APPENDIX 10'!O20+'APPENDIX 11'!O20+'APPENDIX 12'!O20+'APPENDIX 13'!O20+'APPENDIX 14'!O20+'APPENDIX 15'!O20 -> 0 | P20: ='APPENDIX 9'!P20+'APPENDIX 10'!P20+'APPENDIX 11'!P20+'APPENDIX 12'!P20+'APPENDIX 13'!P20+'APPENDIX 14'!P20+'APPENDIX 15'!P20 -> 0 | Q20: ='APPENDIX 9'!Q20+'APPENDIX 10'!Q20+'APPENDIX 11'!Q20+'APPENDIX 12'!Q20+'APPENDIX 13'!Q20+'APPENDIX 14'!Q20+'APPENDIX 15'!Q20 -> 22621908
B21: MADISON INSURANCE COMPANY | C21: ='APPENDIX 9'!C21+'APPENDIX 10'!C21+'APPENDIX 11'!C21+'APPENDIX 12'!C21+'APPENDIX 13'!C21+'APPENDIX 14'!C21+'APPENDIX 15'!C21 -> 12118569 | D21: ='APPENDIX 9'!D21+'APPENDIX 10'!D21+'APPENDIX 11'!D21+'APPENDIX 12'!D21+'APPENDIX 13'!D21+'APPENDIX 14'!D21+'APPENDIX 15'!D21 -> 3683018 | E21: ='APPENDIX 9'!E21+'APPENDIX 10'!E21+'APPENDIX 11'!E21+'APPENDIX 12'!E21+'APPENDIX 13'!E21+'APPENDIX 14'!E21+'APPENDIX 15'!E21 -> 3598310 | F21: ='APPENDIX 9'!F21+'APPENDIX 10'!F21+'APPENDIX 11'!F21+'APPENDIX 12'!F21+'APPENDIX 13'!F21+'APPENDIX 14'!F21+'APPENDIX 15'!F21 -> 0 | G21: ='APPENDIX 9'!G21+'APPENDIX 10'!G21+'APPENDIX 11'!G21+'APPENDIX 12'!G21+'APPENDIX 13'!G21+'APPENDIX 14'!G21+'APPENDIX 15'!G21 -> 1716373 | H21: ='APPENDIX 9'!H21+'APPENDIX 10'!H21+'APPENDIX 11'!H21+'APPENDIX 12'!H21+'APPENDIX 13'!H21+'APPENDIX 14'!H21+'APPENDIX 15'!H21 -> 1597883 | I21: ='APPENDIX 9'!I21+'APPENDIX 10'!I21+'APPENDIX 11'!I21+'APPENDIX 12'!I21+'APPENDIX 13'!I21+'APPENDIX 14'!I21+'APPENDIX 15'!I21 -> 0 | J21: ='APPENDIX 9'!J21+'APPENDIX 10'!J21+'APPENDIX 11'!J21+'APPENDIX 12'!J21+'APPENDIX 13'!J21+'APPENDIX 14'!J21+'APPENDIX 15'!J21 -> 0 | K21: ='APPENDIX 9'!K21+'APPENDIX 10'!K21+'APPENDIX 11'!K21+'APPENDIX 12'!K21+'APPENDIX 13'!K21+'APPENDIX 14'!K21+'APPENDIX 15'!K21 -> 0 | L21: ='APPENDIX 9'!L21+'APPENDIX 10'!L21+'APPENDIX 11'!L21+'APPENDIX 12'!L21+'APPENDIX 13'!L21+'APPENDIX 14'!L21+'APPENDIX 15'!L21 -> 296215 | M21: ='APPENDIX 9'!M21+'APPENDIX 10'!M21+'APPENDIX 11'!M21+'APPENDIX 12'!M21+'APPENDIX 13'!M21+'APPENDIX 14'!M21+'APPENDIX 15'!M21 -> 805355 | N21: ='APPENDIX 9'!N21+'APPENDIX 10'!N21+'APPENDIX 11'!N21+'APPENDIX 12'!N21+'APPENDIX 13'!N21+'APPENDIX 14'!N21+'APPENDIX 15'!N21 -> 887619 | O21: ='APPENDIX 9'!O21+'APPENDIX 10'!O21+'APPENDIX 11'!O21+'APPENDIX 12'!O21+'APPENDIX 13'!O21+'APPENDIX 14'!O21+'APPENDIX 15'!O21 -> 0 | P21: ='APPENDIX 9'!P21+'APPENDIX 10'!P21+'APPENDIX 11'!P21+'APPENDIX 12'!P21+'APPENDIX 13'!P21+'APPENDIX 14'!P21+'APPENDIX 15'!P21 -> 0 | Q21: ='APPENDIX 9'!Q21+'APPENDIX 10'!Q21+'APPENDIX 11'!Q21+'APPENDIX 12'!Q21+'APPENDIX 13'!Q21+'APPENDIX 14'!Q21+'APPENDIX 15'!Q21 -> 13905046
B22: METROPOLITAN CANNON INSURANCE | C22: ='APPENDIX 9'!C22+'APPENDIX 10'!C22+'APPENDIX 11'!C22+'APPENDIX 12'!C22+'APPENDIX 13'!C22+'APPENDIX 14'!C22+'APPENDIX 15'!C22 -> 0 | D22: ='APPENDIX 9'!D22+'APPENDIX 10'!D22+'APPENDIX 11'!D22+'APPENDIX 12'!D22+'APPENDIX 13'!D22+'APPENDIX 14'!D22+'APPENDIX 15'!D22 -> 0 | E22: ='APPENDIX 9'!E22+'APPENDIX 10'!E22+'APPENDIX 11'!E22+'APPENDIX 12'!E22+'APPENDIX 13'!E22+'APPENDIX 14'!E22+'APPENDIX 15'!E22 -> 0 | F22: ='APPENDIX 9'!F22+'APPENDIX 10'!F22+'APPENDIX 11'!F22+'APPENDIX 12'!F22+'APPENDIX 13'!F22+'APPENDIX 14'!F22+'APPENDIX 15'!F22 -> 0 | G22: ='APPENDIX 9'!G22+'APPENDIX 10'!G22+'APPENDIX 11'!G22+'APPENDIX 12'!G22+'APPENDIX 13'!G22+'APPENDIX 14'!G22+'APPENDIX 15'!G22 -> 0 | H22: ='APPENDIX 9'!H22+'APPENDIX 10'!H22+'APPENDIX 11'!H22+'APPENDIX 12'!H22+'APPENDIX 13'!H22+'APPENDIX 14'!H22+'APPENDIX 15'!H22 -> 0 | I22: ='APPENDIX 9'!I22+'APPENDIX 10'!I22+'APPENDIX 11'!I22+'APPENDIX 12'!I22+'APPENDIX 13'!I22+'APPENDIX 14'!I22+'APPENDIX 15'!I22 -> 0 | J22: ='APPENDIX 9'!J22+'APPENDIX 10'!J22+'APPENDIX 11'!J22+'APPENDIX 12'!J22+'APPENDIX 13'!J22+'APPENDIX 14'!J22+'APPENDIX 15'!J22 -> 0 | K22: ='APPENDIX 9'!K22+'APPENDIX 10'!K22+'APPENDIX 11'!K22+'APPENDIX 12'!K22+'APPENDIX 13'!K22+'APPENDIX 14'!K22+'APPENDIX 15'!K22 -> 0 | L22: ='APPENDIX 9'!L22+'APPENDIX 10'!L22+'APPENDIX 11'!L22+'APPENDIX 12'!L22+'APPENDIX 13'!L22+'APPENDIX 14'!L22+'APPENDIX 15'!L22 -> 0 | M22: ='APPENDIX 9'!M22+'APPENDIX 10'!M22+'APPENDIX 11'!M22+'APPENDIX 12'!M22+'APPENDIX 13'!M22+'APPENDIX 14'!M22+'APPENDIX 15'!M22 -> 0 | N22: ='APPENDIX 9'!N22+'APPENDIX 10'!N22+'APPENDIX 11'!N22+'APPENDIX 12'!N22+'APPENDIX 13'!N22+'APPENDIX 14'!N22+'APPENDIX 15'!N22 -> 0 | O22: ='APPENDIX 9'!O22+'APPENDIX 10'!O22+'APPENDIX 11'!O22+'APPENDIX 12'!O22+'APPENDIX 13'!O22+'APPENDIX 14'!O22+'APPENDIX 15'!O22 -> 0 | P22: ='APPENDIX 9'!P22+'APPENDIX 10'!P22+'APPENDIX 11'!P22+'APPENDIX 12'!P22+'APPENDIX 13'!P22+'APPENDIX 14'!P22+'APPENDIX 15'!P22 -> 0 | Q22: ='APPENDIX 9'!Q22+'APPENDIX 10'!Q22+'APPENDIX 11'!Q22+'APPENDIX 12'!Q22+'APPENDIX 13'!Q22+'APPENDIX 14'!Q22+'APPENDIX 15'!Q22 -> 0
B23: OLD MUTUAL LIFE ASSURANCE | C23: ='APPENDIX 9'!C23+'APPENDIX 10'!C23+'APPENDIX 11'!C23+'APPENDIX 12'!C23+'APPENDIX 13'!C23+'APPENDIX 14'!C23+'APPENDIX 15'!C23 -> 11001928 | D23: ='APPENDIX 9'!D23+'APPENDIX 10'!D23+'APPENDIX 11'!D23+'APPENDIX 12'!D23+'APPENDIX 13'!D23+'APPENDIX 14'!D23+'APPENDIX 15'!D23 -> 2163140 | E23: ='APPENDIX 9'!E23+'APPENDIX 10'!E23+'APPENDIX 11'!E23+'APPENDIX 12'!E23+'APPENDIX 13'!E23+'APPENDIX 14'!E23+'APPENDIX 15'!E23 -> 1970732 | F23: ='APPENDIX 9'!F23+'APPENDIX 10'!F23+'APPENDIX 11'!F23+'APPENDIX 12'!F23+'APPENDIX 13'!F23+'APPENDIX 14'!F23+'APPENDIX 15'!F23 -> 445952 | G23: ='APPENDIX 9'!G23+'APPENDIX 10'!G23+'APPENDIX 11'!G23+'APPENDIX 12'!G23+'APPENDIX 13'!G23+'APPENDIX 14'!G23+'APPENDIX 15'!G23 -> 2311521 | H23: ='APPENDIX 9'!H23+'APPENDIX 10'!H23+'APPENDIX 11'!H23+'APPENDIX 12'!H23+'APPENDIX 13'!H23+'APPENDIX 14'!H23+'APPENDIX 15'!H23 -> 1102258 | I23: ='APPENDIX 9'!I23+'APPENDIX 10'!I23+'APPENDIX 11'!I23+'APPENDIX 12'!I23+'APPENDIX 13'!I23+'APPENDIX 14'!I23+'APPENDIX 15'!I23 -> 1168267 | J23: ='APPENDIX 9'!J23+'APPENDIX 10'!J23+'APPENDIX 11'!J23+'APPENDIX 12'!J23+'APPENDIX 13'!J23+'APPENDIX 14'!J23+'APPENDIX 15'!J23 -> 0 | K23: ='APPENDIX 9'!K23+'APPENDIX 10'!K23+'APPENDIX 11'!K23+'APPENDIX 12'!K23+'APPENDIX 13'!K23+'APPENDIX 14'!K23+'APPENDIX 15'!K23 -> 816 | L23: ='APPENDIX 9'!L23+'APPENDIX 10'!L23+'APPENDIX 11'!L23+'APPENDIX 12'!L23+'APPENDIX 13'!L23+'APPENDIX 14'!L23+'APPENDIX 15'!L23 -> 333420 | M23: ='APPENDIX 9'!M23+'APPENDIX 10'!M23+'APPENDIX 11'!M23+'APPENDIX 12'!M23+'APPENDIX 13'!M23+'APPENDIX 14'!M23+'APPENDIX 15'!M23 -> 786782 | N23: ='APPENDIX 9'!N23+'APPENDIX 10'!N23+'APPENDIX 11'!N23+'APPENDIX 12'!N23+'APPENDIX 13'!N23+'APPENDIX 14'!N23+'APPENDIX 15'!N23 -> 1799548 | O23: ='APPENDIX 9'!O23+'APPENDIX 10'!O23+'APPENDIX 11'!O23+'APPENDIX 12'!O23+'APPENDIX 13'!O23+'APPENDIX 14'!O23+'APPENDIX 15'!O23 -> 51652 | P23: ='APPENDIX 9'!P23+'APPENDIX 10'!P23+'APPENDIX 11'!P23+'APPENDIX 12'!P23+'APPENDIX 13'!P23+'APPENDIX 14'!P23+'APPENDIX 15'!P23 -> -62110 | Q23: ='APPENDIX 9'!Q23+'APPENDIX 10'!Q23+'APPENDIX 11'!Q23+'APPENDIX 12'!Q23+'APPENDIX 13'!Q23+'APPENDIX 14'!Q23+'APPENDIX 15'!Q23 -> 11837078
B24: PIONEER ASSURANCE COMPANY | C24: ='APPENDIX 9'!C24+'APPENDIX 10'!C24+'APPENDIX 11'!C24+'APPENDIX 12'!C24+'APPENDIX 13'!C24+'APPENDIX 14'!C24+'APPENDIX 15'!C24 -> 3933729 | D24: ='APPENDIX 9'!D24+'APPENDIX 10'!D24+'APPENDIX 11'!D24+'APPENDIX 12'!D24+'APPENDIX 13'!D24+'APPENDIX 14'!D24+'APPENDIX 15'!D24 -> 5479485 | E24: ='APPENDIX 9'!E24+'APPENDIX 10'!E24+'APPENDIX 11'!E24+'APPENDIX 12'!E24+'APPENDIX 13'!E24+'APPENDIX 14'!E24+'APPENDIX 15'!E24 -> 3658547 | F24: ='APPENDIX 9'!F24+'APPENDIX 10'!F24+'APPENDIX 11'!F24+'APPENDIX 12'!F24+'APPENDIX 13'!F24+'APPENDIX 14'!F24+'APPENDIX 15'!F24 -> 0 | G24: ='APPENDIX 9'!G24+'APPENDIX 10'!G24+'APPENDIX 11'!G24+'APPENDIX 12'!G24+'APPENDIX 13'!G24+'APPENDIX 14'!G24+'APPENDIX 15'!G24 -> 3489737 | H24: ='APPENDIX 9'!H24+'APPENDIX 10'!H24+'APPENDIX 11'!H24+'APPENDIX 12'!H24+'APPENDIX 13'!H24+'APPENDIX 14'!H24+'APPENDIX 15'!H24 -> 3107796 | I24: ='APPENDIX 9'!I24+'APPENDIX 10'!I24+'APPENDIX 11'!I24+'APPENDIX 12'!I24+'APPENDIX 13'!I24+'APPENDIX 14'!I24+'APPENDIX 15'!I24 -> 0 | J24: ='APPENDIX 9'!J24+'APPENDIX 10'!J24+'APPENDIX 11'!J24+'APPENDIX 12'!J24+'APPENDIX 13'!J24+'APPENDIX 14'!J24+'APPENDIX 15'!J24 -> 0 | K24: ='APPENDIX 9'!K24+'APPENDIX 10'!K24+'APPENDIX 11'!K24+'APPENDIX 12'!K24+'APPENDIX 13'!K24+'APPENDIX 14'!K24+'APPENDIX 15'!K24 -> 0 | L24: ='APPENDIX 9'!L24+'APPENDIX 10'!L24+'APPENDIX 11'!L24+'APPENDIX 12'!L24+'APPENDIX 13'!L24+'APPENDIX 14'!L24+'APPENDIX 15'!L24 -> -73007 | M24: ='APPENDIX 9'!M24+'APPENDIX 10'!M24+'APPENDIX 11'!M24+'APPENDIX 12'!M24+'APPENDIX 13'!M24+'APPENDIX 14'!M24+'APPENDIX 15'!M24 -> 536517 | N24: ='APPENDIX 9'!N24+'APPENDIX 10'!N24+'APPENDIX 11'!N24+'APPENDIX 12'!N24+'APPENDIX 13'!N24+'APPENDIX 14'!N24+'APPENDIX 15'!N24 -> 0 | O24: ='APPENDIX 9'!O24+'APPENDIX 10'!O24+'APPENDIX 11'!O24+'APPENDIX 12'!O24+'APPENDIX 13'!O24+'APPENDIX 14'!O24+'APPENDIX 15'!O24 -> 0 | P24: ='APPENDIX 9'!P24+'APPENDIX 10'!P24+'APPENDIX 11'!P24+'APPENDIX 12'!P24+'APPENDIX 13'!P24+'APPENDIX 14'!P24+'APPENDIX 15'!P24 -> 142488 | Q24: ='APPENDIX 9'!Q24+'APPENDIX 10'!Q24+'APPENDIX 11'!Q24+'APPENDIX 12'!Q24+'APPENDIX 13'!Q24+'APPENDIX 14'!Q24+'APPENDIX 15'!Q24 -> 3878481
B25: PRUDENTIAL LIFE ASSURANCE | C25: ='APPENDIX 9'!C25+'APPENDIX 10'!C25+'APPENDIX 11'!C25+'APPENDIX 12'!C25+'APPENDIX 13'!C25+'APPENDIX 14'!C25+'APPENDIX 15'!C25 -> 565417 | D25: ='APPENDIX 9'!D25+'APPENDIX 10'!D25+'APPENDIX 11'!D25+'APPENDIX 12'!D25+'APPENDIX 13'!D25+'APPENDIX 14'!D25+'APPENDIX 15'!D25 -> 638775 | E25: ='APPENDIX 9'!E25+'APPENDIX 10'!E25+'APPENDIX 11'!E25+'APPENDIX 12'!E25+'APPENDIX 13'!E25+'APPENDIX 14'!E25+'APPENDIX 15'!E25 -> 582676 | F25: ='APPENDIX 9'!F25+'APPENDIX 10'!F25+'APPENDIX 11'!F25+'APPENDIX 12'!F25+'APPENDIX 13'!F25+'APPENDIX 14'!F25+'APPENDIX 15'!F25 -> 32119 | G25: ='APPENDIX 9'!G25+'APPENDIX 10'!G25+'APPENDIX 11'!G25+'APPENDIX 12'!G25+'APPENDIX 13'!G25+'APPENDIX 14'!G25+'APPENDIX 15'!G25 -> 206595 | H25: ='APPENDIX 9'!H25+'APPENDIX 10'!H25+'APPENDIX 11'!H25+'APPENDIX 12'!H25+'APPENDIX 13'!H25+'APPENDIX 14'!H25+'APPENDIX 15'!H25 -> 188410 | I25: ='APPENDIX 9'!I25+'APPENDIX 10'!I25+'APPENDIX 11'!I25+'APPENDIX 12'!I25+'APPENDIX 13'!I25+'APPENDIX 14'!I25+'APPENDIX 15'!I25 -> 3342 | J25: ='APPENDIX 9'!J25+'APPENDIX 10'!J25+'APPENDIX 11'!J25+'APPENDIX 12'!J25+'APPENDIX 13'!J25+'APPENDIX 14'!J25+'APPENDIX 15'!J25 -> 376 | K25: ='APPENDIX 9'!K25+'APPENDIX 10'!K25+'APPENDIX 11'!K25+'APPENDIX 12'!K25+'APPENDIX 13'!K25+'APPENDIX 14'!K25+'APPENDIX 15'!K25 -> 0 | L25: ='APPENDIX 9'!L25+'APPENDIX 10'!L25+'APPENDIX 11'!L25+'APPENDIX 12'!L25+'APPENDIX 13'!L25+'APPENDIX 14'!L25+'APPENDIX 15'!L25 -> 161436 | M25: ='APPENDIX 9'!M25+'APPENDIX 10'!M25+'APPENDIX 11'!M25+'APPENDIX 12'!M25+'APPENDIX 13'!M25+'APPENDIX 14'!M25+'APPENDIX 15'!M25 -> 320793 | N25: ='APPENDIX 9'!N25+'APPENDIX 10'!N25+'APPENDIX 11'!N25+'APPENDIX 12'!N25+'APPENDIX 13'!N25+'APPENDIX 14'!N25+'APPENDIX 15'!N25 -> 95006 | O25: ='APPENDIX 9'!O25+'APPENDIX 10'!O25+'APPENDIX 11'!O25+'APPENDIX 12'!O25+'APPENDIX 13'!O25+'APPENDIX 14'!O25+'APPENDIX 15'!O25 -> 5323 | P25: ='APPENDIX 9'!P25+'APPENDIX 10'!P25+'APPENDIX 11'!P25+'APPENDIX 12'!P25+'APPENDIX 13'!P25+'APPENDIX 14'!P25+'APPENDIX 15'!P25 -> 0 | Q25: ='APPENDIX 9'!Q25+'APPENDIX 10'!Q25+'APPENDIX 11'!Q25+'APPENDIX 12'!Q25+'APPENDIX 13'!Q25+'APPENDIX 14'!Q25+'APPENDIX 15'!Q25 -> 595539
B26: SAHAM ASSURANCE | C26: ='APPENDIX 9'!C26+'APPENDIX 10'!C26+'APPENDIX 11'!C26+'APPENDIX 12'!C26+'APPENDIX 13'!C26+'APPENDIX 14'!C26+'APPENDIX 15'!C26 -> 879089 | D26: ='APPENDIX 9'!D26+'APPENDIX 10'!D26+'APPENDIX 11'!D26+'APPENDIX 12'!D26+'APPENDIX 13'!D26+'APPENDIX 14'!D26+'APPENDIX 15'!D26 -> 58235 | E26: ='APPENDIX 9'!E26+'APPENDIX 10'!E26+'APPENDIX 11'!E26+'APPENDIX 12'!E26+'APPENDIX 13'!E26+'APPENDIX 14'!E26+'APPENDIX 15'!E26 -> 50404 | F26: ='APPENDIX 9'!F26+'APPENDIX 10'!F26+'APPENDIX 11'!F26+'APPENDIX 12'!F26+'APPENDIX 13'!F26+'APPENDIX 14'!F26+'APPENDIX 15'!F26 -> 0 | G26: ='APPENDIX 9'!G26+'APPENDIX 10'!G26+'APPENDIX 11'!G26+'APPENDIX 12'!G26+'APPENDIX 13'!G26+'APPENDIX 14'!G26+'APPENDIX 15'!G26 -> 600887 | H26: ='APPENDIX 9'!H26+'APPENDIX 10'!H26+'APPENDIX 11'!H26+'APPENDIX 12'!H26+'APPENDIX 13'!H26+'APPENDIX 14'!H26+'APPENDIX 15'!H26 -> 600887 | I26: ='APPENDIX 9'!I26+'APPENDIX 10'!I26+'APPENDIX 11'!I26+'APPENDIX 12'!I26+'APPENDIX 13'!I26+'APPENDIX 14'!I26+'APPENDIX 15'!I26 -> 0 | J26: ='APPENDIX 9'!J26+'APPENDIX 10'!J26+'APPENDIX 11'!J26+'APPENDIX 12'!J26+'APPENDIX 13'!J26+'APPENDIX 14'!J26+'APPENDIX 15'!J26 -> 0 | K26: ='APPENDIX 9'!K26+'APPENDIX 10'!K26+'APPENDIX 11'!K26+'APPENDIX 12'!K26+'APPENDIX 13'!K26+'APPENDIX 14'!K26+'APPENDIX 15'!K26 -> 0 | L26: ='APPENDIX 9'!L26+'APPENDIX 10'!L26+'APPENDIX 11'!L26+'APPENDIX 12'!L26+'APPENDIX 13'!L26+'APPENDIX 14'!L26+'APPENDIX 15'!L26 -> 2381 | M26: ='APPENDIX 9'!M26+'APPENDIX 10'!M26+'APPENDIX 11'!M26+'APPENDIX 12'!M26+'APPENDIX 13'!M26+'APPENDIX 14'!M26+'APPENDIX 15'!M26 -> 32466 | N26: ='APPENDIX 9'!N26+'APPENDIX 10'!N26+'APPENDIX 11'!N26+'APPENDIX 12'!N26+'APPENDIX 13'!N26+'APPENDIX 14'!N26+'APPENDIX 15'!N26 -> 101902 | O26: ='APPENDIX 9'!O26+'APPENDIX 10'!O26+'APPENDIX 11'!O26+'APPENDIX 12'!O26+'APPENDIX 13'!O26+'APPENDIX 14'!O26+'APPENDIX 15'!O26 -> 0 | P26: ='APPENDIX 9'!P26+'APPENDIX 10'!P26+'APPENDIX 11'!P26+'APPENDIX 12'!P26+'APPENDIX 13'!P26+'APPENDIX 14'!P26+'APPENDIX 15'!P26 -> 20225 | Q26: ='APPENDIX 9'!Q26+'APPENDIX 10'!Q26+'APPENDIX 11'!Q26+'APPENDIX 12'!Q26+'APPENDIX 13'!Q26+'APPENDIX 14'!Q26+'APPENDIX 15'!Q26 -> 375437
B27: SANLAM LIFE INSURANCE | C27: ='APPENDIX 9'!C27+'APPENDIX 10'!C27+'APPENDIX 11'!C27+'APPENDIX 12'!C27+'APPENDIX 13'!C27+'APPENDIX 14'!C27+'APPENDIX 15'!C27 -> 21086048 | D27: ='APPENDIX 9'!D27+'APPENDIX 10'!D27+'APPENDIX 11'!D27+'APPENDIX 12'!D27+'APPENDIX 13'!D27+'APPENDIX 14'!D27+'APPENDIX 15'!D27 -> 4579718 | E27: ='APPENDIX 9'!E27+'APPENDIX 10'!E27+'APPENDIX 11'!E27+'APPENDIX 12'!E27+'APPENDIX 13'!E27+'APPENDIX 14'!E27+'APPENDIX 15'!E27 -> 4143881 | F27: ='APPENDIX 9'!F27+'APPENDIX 10'!F27+'APPENDIX 11'!F27+'APPENDIX 12'!F27+'APPENDIX 13'!F27+'APPENDIX 14'!F27+'APPENDIX 15'!F27 -> 0 | G27: ='APPENDIX 9'!G27+'APPENDIX 10'!G27+'APPENDIX 11'!G27+'APPENDIX 12'!G27+'APPENDIX 13'!G27+'APPENDIX 14'!G27+'APPENDIX 15'!G27 -> 4348893 | H27: ='APPENDIX 9'!H27+'APPENDIX 10'!H27+'APPENDIX 11'!H27+'APPENDIX 12'!H27+'APPENDIX 13'!H27+'APPENDIX 14'!H27+'APPENDIX 15'!H27 -> 3337041 | I27: ='APPENDIX 9'!I27+'APPENDIX 10'!I27+'APPENDIX 11'!I27+'APPENDIX 12'!I27+'APPENDIX 13'!I27+'APPENDIX 14'!I27+'APPENDIX 15'!I27 -> 0 | J27: ='APPENDIX 9'!J27+'APPENDIX 10'!J27+'APPENDIX 11'!J27+'APPENDIX 12'!J27+'APPENDIX 13'!J27+'APPENDIX 14'!J27+'APPENDIX 15'!J27 -> 0 | K27: ='APPENDIX 9'!K27+'APPENDIX 10'!K27+'APPENDIX 11'!K27+'APPENDIX 12'!K27+'APPENDIX 13'!K27+'APPENDIX 14'!K27+'APPENDIX 15'!K27 -> 1044334 | L27: ='APPENDIX 9'!L27+'APPENDIX 10'!L27+'APPENDIX 11'!L27+'APPENDIX 12'!L27+'APPENDIX 13'!L27+'APPENDIX 14'!L27+'APPENDIX 15'!L27 -> 541683 | M27: ='APPENDIX 9'!M27+'APPENDIX 10'!M27+'APPENDIX 11'!M27+'APPENDIX 12'!M27+'APPENDIX 13'!M27+'APPENDIX 14'!M27+'APPENDIX 15'!M27 -> 1284859 | N27: ='APPENDIX 9'!N27+'APPENDIX 10'!N27+'APPENDIX 11'!N27+'APPENDIX 12'!N27+'APPENDIX 13'!N27+'APPENDIX 14'!N27+'APPENDIX 15'!N27 -> 2790178 | O27: ='APPENDIX 9'!O27+'APPENDIX 10'!O27+'APPENDIX 11'!O27+'APPENDIX 12'!O27+'APPENDIX 13'!O27+'APPENDIX 14'!O27+'APPENDIX 15'!O27 -> 0 | P27: ='APPENDIX 9'!P27+'APPENDIX 10'!P27+'APPENDIX 11'!P27+'APPENDIX 12'!P27+'APPENDIX 13'!P27+'APPENDIX 14'!P27+'APPENDIX 15'!P27 -> 0 | Q27: ='APPENDIX 9'!Q27+'APPENDIX 10'!Q27+'APPENDIX 11'!Q27+'APPENDIX 12'!Q27+'APPENDIX 13'!Q27+'APPENDIX 14'!Q27+'APPENDIX 15'!Q27 -> 21812190
B28: TAKAFUL INSURANCE OF AFRICA | C28: ='APPENDIX 9'!C28+'APPENDIX 10'!C28+'APPENDIX 11'!C28+'APPENDIX 12'!C28+'APPENDIX 13'!C28+'APPENDIX 14'!C28+'APPENDIX 15'!C28 -> 0 | D28: ='APPENDIX 9'!D28+'APPENDIX 10'!D28+'APPENDIX 11'!D28+'APPENDIX 12'!D28+'APPENDIX 13'!D28+'APPENDIX 14'!D28+'APPENDIX 15'!D28 -> 8560 | E28: ='APPENDIX 9'!E28+'APPENDIX 10'!E28+'APPENDIX 11'!E28+'APPENDIX 12'!E28+'APPENDIX 13'!E28+'APPENDIX 14'!E28+'APPENDIX 15'!E28 -> 3523 | F28: ='APPENDIX 9'!F28+'APPENDIX 10'!F28+'APPENDIX 11'!F28+'APPENDIX 12'!F28+'APPENDIX 13'!F28+'APPENDIX 14'!F28+'APPENDIX 15'!F28 -> 0 | G28: ='APPENDIX 9'!G28+'APPENDIX 10'!G28+'APPENDIX 11'!G28+'APPENDIX 12'!G28+'APPENDIX 13'!G28+'APPENDIX 14'!G28+'APPENDIX 15'!G28 -> 0 | H28: ='APPENDIX 9'!H28+'APPENDIX 10'!H28+'APPENDIX 11'!H28+'APPENDIX 12'!H28+'APPENDIX 13'!H28+'APPENDIX 14'!H28+'APPENDIX 15'!H28 -> 4511 | I28: ='APPENDIX 9'!I28+'APPENDIX 10'!I28+'APPENDIX 11'!I28+'APPENDIX 12'!I28+'APPENDIX 13'!I28+'APPENDIX 14'!I28+'APPENDIX 15'!I28 -> 0 | J28: ='APPENDIX 9'!J28+'APPENDIX 10'!J28+'APPENDIX 11'!J28+'APPENDIX 12'!J28+'APPENDIX 13'!J28+'APPENDIX 14'!J28+'APPENDIX 15'!J28 -> 0 | K28: ='APPENDIX 9'!K28+'APPENDIX 10'!K28+'APPENDIX 11'!K28+'APPENDIX 12'!K28+'APPENDIX 13'!K28+'APPENDIX 14'!K28+'APPENDIX 15'!K28 -> 0 | L28: ='APPENDIX 9'!L28+'APPENDIX 10'!L28+'APPENDIX 11'!L28+'APPENDIX 12'!L28+'APPENDIX 13'!L28+'APPENDIX 14'!L28+'APPENDIX 15'!L28 -> 4931 | M28: ='APPENDIX 9'!M28+'APPENDIX 10'!M28+'APPENDIX 11'!M28+'APPENDIX 12'!M28+'APPENDIX 13'!M28+'APPENDIX 14'!M28+'APPENDIX 15'!M28 -> 32870 | N28: ='APPENDIX 9'!N28+'APPENDIX 10'!N28+'APPENDIX 11'!N28+'APPENDIX 12'!N28+'APPENDIX 13'!N28+'APPENDIX 14'!N28+'APPENDIX 15'!N28 -> 18326 | O28: ='APPENDIX 9'!O28+'APPENDIX 10'!O28+'APPENDIX 11'!O28+'APPENDIX 12'!O28+'APPENDIX 13'!O28+'APPENDIX 14'!O28+'APPENDIX 15'!O28 -> 0 | P28: ='APPENDIX 9'!P28+'APPENDIX 10'!P28+'APPENDIX 11'!P28+'APPENDIX 12'!P28+'APPENDIX 13'!P28+'APPENDIX 14'!P28+'APPENDIX 15'!P28 -> 0 | Q28: ='APPENDIX 9'!Q28+'APPENDIX 10'!Q28+'APPENDIX 11'!Q28+'APPENDIX 12'!Q28+'APPENDIX 13'!Q28+'APPENDIX 14'!Q28+'APPENDIX 15'!Q28 -> -20463
B29: THE KENYAN ALLIANCE INSURANCE | C29: ='APPENDIX 9'!C29+'APPENDIX 10'!C29+'APPENDIX 11'!C29+'APPENDIX 12'!C29+'APPENDIX 13'!C29+'APPENDIX 14'!C29+'APPENDIX 15'!C29 -> 2569525 | D29: ='APPENDIX 9'!D29+'APPENDIX 10'!D29+'APPENDIX 11'!D29+'APPENDIX 12'!D29+'APPENDIX 13'!D29+'APPENDIX 14'!D29+'APPENDIX 15'!D29 -> 788631 | E29: ='APPENDIX 9'!E29+'APPENDIX 10'!E29+'APPENDIX 11'!E29+'APPENDIX 12'!E29+'APPENDIX 13'!E29+'APPENDIX 14'!E29+'APPENDIX 15'!E29 -> 700719 | F29: ='APPENDIX 9'!F29+'APPENDIX 10'!F29+'APPENDIX 11'!F29+'APPENDIX 12'!F29+'APPENDIX 13'!F29+'APPENDIX 14'!F29+'APPENDIX 15'!F29 -> 0 | G29: ='APPENDIX 9'!G29+'APPENDIX 10'!G29+'APPENDIX 11'!G29+'APPENDIX 12'!G29+'APPENDIX 13'!G29+'APPENDIX 14'!G29+'APPENDIX 15'!G29 -> 433612 | H29: ='APPENDIX 9'!H29+'APPENDIX 10'!H29+'APPENDIX 11'!H29+'APPENDIX 12'!H29+'APPENDIX 13'!H29+'APPENDIX 14'!H29+'APPENDIX 15'!H29 -> 446045 | I29: ='APPENDIX 9'!I29+'APPENDIX 10'!I29+'APPENDIX 11'!I29+'APPENDIX 12'!I29+'APPENDIX 13'!I29+'APPENDIX 14'!I29+'APPENDIX 15'!I29 -> 0 | J29: ='APPENDIX 9'!J29+'APPENDIX 10'!J29+'APPENDIX 11'!J29+'APPENDIX 12'!J29+'APPENDIX 13'!J29+'APPENDIX 14'!J29+'APPENDIX 15'!J29 -> 0 | K29: ='APPENDIX 9'!K29+'APPENDIX 10'!K29+'APPENDIX 11'!K29+'APPENDIX 12'!K29+'APPENDIX 13'!K29+'APPENDIX 14'!K29+'APPENDIX 15'!K29 -> 0 | L29: ='APPENDIX 9'!L29+'APPENDIX 10'!L29+'APPENDIX 11'!L29+'APPENDIX 12'!L29+'APPENDIX 13'!L29+'APPENDIX 14'!L29+'APPENDIX 15'!L29 -> 4154 | M29: ='APPENDIX 9'!M29+'APPENDIX 10'!M29+'APPENDIX 11'!M29+'APPENDIX 12'!M29+'APPENDIX 13'!M29+'APPENDIX 14'!M29+'APPENDIX 15'!M29 -> 109084 | N29: ='APPENDIX 9'!N29+'APPENDIX 10'!N29+'APPENDIX 11'!N29+'APPENDIX 12'!N29+'APPENDIX 13'!N29+'APPENDIX 14'!N29+'APPENDIX 15'!N29 -> 126662 | O29: ='APPENDIX 9'!O29+'APPENDIX 10'!O29+'APPENDIX 11'!O29+'APPENDIX 12'!O29+'APPENDIX 13'!O29+'APPENDIX 14'!O29+'APPENDIX 15'!O29 -> 0 | P29: ='APPENDIX 9'!P29+'APPENDIX 10'!P29+'APPENDIX 11'!P29+'APPENDIX 12'!P29+'APPENDIX 13'!P29+'APPENDIX 14'!P29+'APPENDIX 15'!P29 -> -27774 | Q29: ='APPENDIX 9'!Q29+'APPENDIX 10'!Q29+'APPENDIX 11'!Q29+'APPENDIX 12'!Q29+'APPENDIX 13'!Q29+'APPENDIX 14'!Q29+'APPENDIX 15'!Q29 -> 2865395
B30: THE MONARCH INSURANCE | C30: ='APPENDIX 9'!C30+'APPENDIX 10'!C30+'APPENDIX 11'!C30+'APPENDIX 12'!C30+'APPENDIX 13'!C30+'APPENDIX 14'!C30+'APPENDIX 15'!C30 -> 53780 | D30: ='APPENDIX 9'!D30+'APPENDIX 10'!D30+'APPENDIX 11'!D30+'APPENDIX 12'!D30+'APPENDIX 13'!D30+'APPENDIX 14'!D30+'APPENDIX 15'!D30 -> 71307 | E30: ='APPENDIX 9'!E30+'APPENDIX 10'!E30+'APPENDIX 11'!E30+'APPENDIX 12'!E30+'APPENDIX 13'!E30+'APPENDIX 14'!E30+'APPENDIX 15'!E30 -> 44746 | F30: ='APPENDIX 9'!F30+'APPENDIX 10'!F30+'APPENDIX 11'!F30+'APPENDIX 12'!F30+'APPENDIX 13'!F30+'APPENDIX 14'!F30+'APPENDIX 15'!F30 -> 0 | G30: ='APPENDIX 9'!G30+'APPENDIX 10'!G30+'APPENDIX 11'!G30+'APPENDIX 12'!G30+'APPENDIX 13'!G30+'APPENDIX 14'!G30+'APPENDIX 15'!G30 -> 55687 | H30: ='APPENDIX 9'!H30+'APPENDIX 10'!H30+'APPENDIX 11'!H30+'APPENDIX 12'!H30+'APPENDIX 13'!H30+'APPENDIX 14'!H30+'APPENDIX 15'!H30 -> 12584 | I30: ='APPENDIX 9'!I30+'APPENDIX 10'!I30+'APPENDIX 11'!I30+'APPENDIX 12'!I30+'APPENDIX 13'!I30+'APPENDIX 14'!I30+'APPENDIX 15'!I30 -> 0 | J30: ='APPENDIX 9'!J30+'APPENDIX 10'!J30+'APPENDIX 11'!J30+'APPENDIX 12'!J30+'APPENDIX 13'!J30+'APPENDIX 14'!J30+'APPENDIX 15'!J30 -> 0 | K30: ='APPENDIX 9'!K30+'APPENDIX 10'!K30+'APPENDIX 11'!K30+'APPENDIX 12'!K30+'APPENDIX 13'!K30+'APPENDIX 14'!K30+'APPENDIX 15'!K30 -> 0 | L30: ='APPENDIX 9'!L30+'APPENDIX 10'!L30+'APPENDIX 11'!L30+'APPENDIX 12'!L30+'APPENDIX 13'!L30+'APPENDIX 14'!L30+'APPENDIX 15'!L30 -> 2959 | M30: ='APPENDIX 9'!M30+'APPENDIX 10'!M30+'APPENDIX 11'!M30+'APPENDIX 12'!M30+'APPENDIX 13'!M30+'APPENDIX 14'!M30+'APPENDIX 15'!M30 -> 60655 | N30: ='APPENDIX 9'!N30+'APPENDIX 10'!N30+'APPENDIX 11'!N30+'APPENDIX 12'!N30+'APPENDIX 13'!N30+'APPENDIX 14'!N30+'APPENDIX 15'!N30 -> 32201 | O30: ='APPENDIX 9'!O30+'APPENDIX 10'!O30+'APPENDIX 11'!O30+'APPENDIX 12'!O30+'APPENDIX 13'!O30+'APPENDIX 14'!O30+'APPENDIX 15'!O30 -> 0 | P30: ='APPENDIX 9'!P30+'APPENDIX 10'!P30+'APPENDIX 11'!P30+'APPENDIX 12'!P30+'APPENDIX 13'!P30+'APPENDIX 14'!P30+'APPENDIX 15'!P30 -> 0 | Q30: ='APPENDIX 9'!Q30+'APPENDIX 10'!Q30+'APPENDIX 11'!Q30+'APPENDIX 12'!Q30+'APPENDIX 13'!Q30+'APPENDIX 14'!Q30+'APPENDIX 15'!Q30 -> 54529
B31: UAP LIFE ASSURANCE COMPANY | C31: ='APPENDIX 9'!C31+'APPENDIX 10'!C31+'APPENDIX 11'!C31+'APPENDIX 12'!C31+'APPENDIX 13'!C31+'APPENDIX 14'!C31+'APPENDIX 15'!C31 -> 10206616 | D31: ='APPENDIX 9'!D31+'APPENDIX 10'!D31+'APPENDIX 11'!D31+'APPENDIX 12'!D31+'APPENDIX 13'!D31+'APPENDIX 14'!D31+'APPENDIX 15'!D31 -> 2399629 | E31: ='APPENDIX 9'!E31+'APPENDIX 10'!E31+'APPENDIX 11'!E31+'APPENDIX 12'!E31+'APPENDIX 13'!E31+'APPENDIX 14'!E31+'APPENDIX 15'!E31 -> 2103965 | F31: ='APPENDIX 9'!F31+'APPENDIX 10'!F31+'APPENDIX 11'!F31+'APPENDIX 12'!F31+'APPENDIX 13'!F31+'APPENDIX 14'!F31+'APPENDIX 15'!F31 -> 88199 | G31: ='APPENDIX 9'!G31+'APPENDIX 10'!G31+'APPENDIX 11'!G31+'APPENDIX 12'!G31+'APPENDIX 13'!G31+'APPENDIX 14'!G31+'APPENDIX 15'!G31 -> 1714772 | H31: ='APPENDIX 9'!H31+'APPENDIX 10'!H31+'APPENDIX 11'!H31+'APPENDIX 12'!H31+'APPENDIX 13'!H31+'APPENDIX 14'!H31+'APPENDIX 15'!H31 -> 1239780 | I31: ='APPENDIX 9'!I31+'APPENDIX 10'!I31+'APPENDIX 11'!I31+'APPENDIX 12'!I31+'APPENDIX 13'!I31+'APPENDIX 14'!I31+'APPENDIX 15'!I31 -> 154519 | J31: ='APPENDIX 9'!J31+'APPENDIX 10'!J31+'APPENDIX 11'!J31+'APPENDIX 12'!J31+'APPENDIX 13'!J31+'APPENDIX 14'!J31+'APPENDIX 15'!J31 -> 0 | K31: ='APPENDIX 9'!K31+'APPENDIX 10'!K31+'APPENDIX 11'!K31+'APPENDIX 12'!K31+'APPENDIX 13'!K31+'APPENDIX 14'!K31+'APPENDIX 15'!K31 -> 144821 | L31: ='APPENDIX 9'!L31+'APPENDIX 10'!L31+'APPENDIX 11'!L31+'APPENDIX 12'!L31+'APPENDIX 13'!L31+'APPENDIX 14'!L31+'APPENDIX 15'!L31 -> 43761 | M31: ='APPENDIX 9'!M31+'APPENDIX 10'!M31+'APPENDIX 11'!M31+'APPENDIX 12'!M31+'APPENDIX 13'!M31+'APPENDIX 14'!M31+'APPENDIX 15'!M31 -> 591840 | N31: ='APPENDIX 9'!N31+'APPENDIX 10'!N31+'APPENDIX 11'!N31+'APPENDIX 12'!N31+'APPENDIX 13'!N31+'APPENDIX 14'!N31+'APPENDIX 15'!N31 -> 1516737 | O31: ='APPENDIX 9'!O31+'APPENDIX 10'!O31+'APPENDIX 11'!O31+'APPENDIX 12'!O31+'APPENDIX 13'!O31+'APPENDIX 14'!O31+'APPENDIX 15'!O31 -> 0 | P31: ='APPENDIX 9'!P31+'APPENDIX 10'!P31+'APPENDIX 11'!P31+'APPENDIX 12'!P31+'APPENDIX 13'!P31+'APPENDIX 14'!P31+'APPENDIX 15'!P31 -> 0 | Q31: ='APPENDIX 9'!Q31+'APPENDIX 10'!Q31+'APPENDIX 11'!Q31+'APPENDIX 12'!Q31+'APPENDIX 13'!Q31+'APPENDIX 14'!Q31+'APPENDIX 15'!Q31 -> 11740796
B32: TOTAL | C32: =SUM(C6:C31) -> 332250379 | D32: 97395510 | E32: 89865899 | F32: 575970 | G32: 55550884 | H32: 41545935 | I32: 9243244 | J32: 1767085 | K32: 3366758 | L32: 5277712 | M32: 15362328 | N32: 46994613 | O32: 289538 | P32: 5053668 | Q32: 387780599
B33: REINSURERS
B34: CONTINENTAL REINSURANCE | C34: ='APPENDIX 9'!C34+'APPENDIX 10'!C34+'APPENDIX 11'!C34+'APPENDIX 12'!C34+'APPENDIX 13'!C34+'APPENDIX 14'!C33+'APPENDIX 15'!C34 -> 0 | D34: ='APPENDIX 9'!D34+'APPENDIX 10'!D34+'APPENDIX 11'!D34+'APPENDIX 12'!D34+'APPENDIX 13'!D34+'APPENDIX 14'!D33+'APPENDIX 15'!D34 -> 468193 | E34: ='APPENDIX 9'!E34+'APPENDIX 10'!E34+'APPENDIX 11'!E34+'APPENDIX 12'!E34+'APPENDIX 13'!E34+'APPENDIX 14'!E33+'APPENDIX 15'!E34 -> 377445 | F34: ='APPENDIX 9'!F34+'APPENDIX 10'!F34+'APPENDIX 11'!F34+'APPENDIX 12'!F34+'APPENDIX 13'!F34+'APPENDIX 14'!F33+'APPENDIX 15'!F34 -> 0 | G34: ='APPENDIX 9'!G34+'APPENDIX 10'!G34+'APPENDIX 11'!G34+'APPENDIX 12'!G34+'APPENDIX 13'!G34+'APPENDIX 14'!G33+'APPENDIX 15'!G34 -> 82138 | H34: ='APPENDIX 9'!H34+'APPENDIX 10'!H34+'APPENDIX 11'!H34+'APPENDIX 12'!H34+'APPENDIX 13'!H34+'APPENDIX 14'!H33+'APPENDIX 15'!H34 -> 162611 | I34: ='APPENDIX 9'!I34+'APPENDIX 10'!I34+'APPENDIX 11'!I34+'APPENDIX 12'!I34+'APPENDIX 13'!I34+'APPENDIX 14'!I33+'APPENDIX 15'!I34 -> 0 | J34: ='APPENDIX 9'!J34+'APPENDIX 10'!J34+'APPENDIX 11'!J34+'APPENDIX 12'!J34+'APPENDIX 13'!J34+'APPENDIX 14'!J33+'APPENDIX 15'!J34 -> 0 | K34: ='APPENDIX 9'!K34+'APPENDIX 10'!K34+'APPENDIX 11'!K34+'APPENDIX 12'!K34+'APPENDIX 13'!K34+'APPENDIX 14'!K33+'APPENDIX 15'!K34 -> 0 | L34: ='APPENDIX 9'!L34+'APPENDIX 10'!L34+'APPENDIX 11'!L34+'APPENDIX 12'!L34+'APPENDIX 13'!L34+'APPENDIX 14'!L33+'APPENDIX 15'!L34 -> 112325 | M34: ='APPENDIX 9'!M34+'APPENDIX 10'!M34+'APPENDIX 11'!M34+'APPENDIX 12'!M34+'APPENDIX 13'!M34+'APPENDIX 14'!M33+'APPENDIX 15'!M34 -> 42454 | N34: ='APPENDIX 9'!N34+'APPENDIX 10'!N34+'APPENDIX 11'!N34+'APPENDIX 12'!N34+'APPENDIX 13'!N34+'APPENDIX 14'!N33+'APPENDIX 15'!N34 -> 54554 | O34: ='APPENDIX 9'!O34+'APPENDIX 10'!O34+'APPENDIX 11'!O34+'APPENDIX 12'!O34+'APPENDIX 13'!O34+'APPENDIX 14'!O33+'APPENDIX 15'!O34 -> 0 | P34: ='APPENDIX 9'!P34+'APPENDIX 10'!P34+'APPENDIX 11'!P34+'APPENDIX 12'!P34+'APPENDIX 13'!P34+'APPENDIX 14'!P33+'APPENDIX 15'!P34 -> 0 | Q34: ='APPENDIX 9'!Q34+'APPENDIX 10'!Q34+'APPENDIX 11'!Q34+'APPENDIX 12'!Q34+'APPENDIX 13'!Q34+'APPENDIX 14'!Q33+'APPENDIX 15'!Q34 -> 114608
B35: EAST AFRICA REINSURANCE | C35: ='APPENDIX 9'!C35+'APPENDIX 10'!C35+'APPENDIX 11'!C35+'APPENDIX 12'!C35+'APPENDIX 13'!C35+'APPENDIX 14'!C34+'APPENDIX 15'!C35 -> 0 | D35: ='APPENDIX 9'!D35+'APPENDIX 10'!D35+'APPENDIX 11'!D35+'APPENDIX 12'!D35+'APPENDIX 13'!D35+'APPENDIX 14'!D34+'APPENDIX 15'!D35 -> 1282676 | E35: ='APPENDIX 9'!E35+'APPENDIX 10'!E35+'APPENDIX 11'!E35+'APPENDIX 12'!E35+'APPENDIX 13'!E35+'APPENDIX 14'!E34+'APPENDIX 15'!E35 -> 1073066 | F35: ='APPENDIX 9'!F35+'APPENDIX 10'!F35+'APPENDIX 11'!F35+'APPENDIX 12'!F35+'APPENDIX 13'!F35+'APPENDIX 14'!F34+'APPENDIX 15'!F35 -> -260 | G35: ='APPENDIX 9'!G35+'APPENDIX 10'!G35+'APPENDIX 11'!G35+'APPENDIX 12'!G35+'APPENDIX 13'!G35+'APPENDIX 14'!G34+'APPENDIX 15'!G35 -> 578746 | H35: ='APPENDIX 9'!H35+'APPENDIX 10'!H35+'APPENDIX 11'!H35+'APPENDIX 12'!H35+'APPENDIX 13'!H35+'APPENDIX 14'!H34+'APPENDIX 15'!H35 -> 581444 | I35: ='APPENDIX 9'!I35+'APPENDIX 10'!I35+'APPENDIX 11'!I35+'APPENDIX 12'!I35+'APPENDIX 13'!I35+'APPENDIX 14'!I34+'APPENDIX 15'!I35 -> 0 | J35: ='APPENDIX 9'!J35+'APPENDIX 10'!J35+'APPENDIX 11'!J35+'APPENDIX 12'!J35+'APPENDIX 13'!J35+'APPENDIX 14'!J34+'APPENDIX 15'!J35 -> 0 | K35: ='APPENDIX 9'!K35+'APPENDIX 10'!K35+'APPENDIX 11'!K35+'APPENDIX 12'!K35+'APPENDIX 13'!K35+'APPENDIX 14'!K34+'APPENDIX 15'!K35 -> 0 | L35: ='APPENDIX 9'!L35+'APPENDIX 10'!L35+'APPENDIX 11'!L35+'APPENDIX 12'!L35+'APPENDIX 13'!L35+'APPENDIX 14'!L34+'APPENDIX 15'!L35 -> 277621 | M35: ='APPENDIX 9'!M35+'APPENDIX 10'!M35+'APPENDIX 11'!M35+'APPENDIX 12'!M35+'APPENDIX 13'!M35+'APPENDIX 14'!M34+'APPENDIX 15'!M35 -> 98676 | N35: ='APPENDIX 9'!N35+'APPENDIX 10'!N35+'APPENDIX 11'!N35+'APPENDIX 12'!N35+'APPENDIX 13'!N35+'APPENDIX 14'!N34+'APPENDIX 15'!N35 -> 0 | O35: ='APPENDIX 9'!O35+'APPENDIX 10'!O35+'APPENDIX 11'!O35+'APPENDIX 12'!O35+'APPENDIX 13'!O35+'APPENDIX 14'!O34+'APPENDIX 15'!O35 -> 0 | P35: ='APPENDIX 9'!P35+'APPENDIX 10'!P35+'APPENDIX 11'!P35+'APPENDIX 12'!P35+'APPENDIX 13'!P35+'APPENDIX 14'!P34+'APPENDIX 15'!P35 -> 0 | Q35: ='APPENDIX 9'!Q35+'APPENDIX 10'!Q35+'APPENDIX 11'!Q35+'APPENDIX 12'!Q35+'APPENDIX 13'!Q35+'APPENDIX 14'!Q34+'APPENDIX 15'!Q35 -> 115066
B36: KENYA REINSURANCE CORPORATION | C36: ='APPENDIX 9'!C36+'APPENDIX 10'!C36+'APPENDIX 11'!C36+'APPENDIX 12'!C36+'APPENDIX 13'!C36+'APPENDIX 14'!C35+'APPENDIX 15'!C36 -> 7541877 | D36: ='APPENDIX 9'!D36+'APPENDIX 10'!D36+'APPENDIX 11'!D36+'APPENDIX 12'!D36+'APPENDIX 13'!D36+'APPENDIX 14'!D35+'APPENDIX 15'!D36 -> 2040656 | E36: ='APPENDIX 9'!E36+'APPENDIX 10'!E36+'APPENDIX 11'!E36+'APPENDIX 12'!E36+'APPENDIX 13'!E36+'APPENDIX 14'!E35+'APPENDIX 15'!E36 -> 1942254 | F36: ='APPENDIX 9'!F36+'APPENDIX 10'!F36+'APPENDIX 11'!F36+'APPENDIX 12'!F36+'APPENDIX 13'!F36+'APPENDIX 14'!F35+'APPENDIX 15'!F36 -> 0 | G36: ='APPENDIX 9'!G36+'APPENDIX 10'!G36+'APPENDIX 11'!G36+'APPENDIX 12'!G36+'APPENDIX 13'!G36+'APPENDIX 14'!G35+'APPENDIX 15'!G36 -> 897972 | H36: ='APPENDIX 9'!H36+'APPENDIX 10'!H36+'APPENDIX 11'!H36+'APPENDIX 12'!H36+'APPENDIX 13'!H36+'APPENDIX 14'!H35+'APPENDIX 15'!H36 -> 897972 | I36: ='APPENDIX 9'!I36+'APPENDIX 10'!I36+'APPENDIX 11'!I36+'APPENDIX 12'!I36+'APPENDIX 13'!I36+'APPENDIX 14'!I35+'APPENDIX 15'!I36 -> 0 | J36: ='APPENDIX 9'!J36+'APPENDIX 10'!J36+'APPENDIX 11'!J36+'APPENDIX 12'!J36+'APPENDIX 13'!J36+'APPENDIX 14'!J35+'APPENDIX 15'!J36 -> 0 | K36: ='APPENDIX 9'!K36+'APPENDIX 10'!K36+'APPENDIX 11'!K36+'APPENDIX 12'!K36+'APPENDIX 13'!K36+'APPENDIX 14'!K35+'APPENDIX 15'!K36 -> 0 | L36: ='APPENDIX 9'!L36+'APPENDIX 10'!L36+'APPENDIX 11'!L36+'APPENDIX 12'!L36+'APPENDIX 13'!L36+'APPENDIX 14'!L35+'APPENDIX 15'!L36 -> 569620 | M36: ='APPENDIX 9'!M36+'APPENDIX 10'!M36+'APPENDIX 11'!M36+'APPENDIX 12'!M36+'APPENDIX 13'!M36+'APPENDIX 14'!M35+'APPENDIX 15'!M36 -> 240060 | N36: ='APPENDIX 9'!N36+'APPENDIX 10'!N36+'APPENDIX 11'!N36+'APPENDIX 12'!N36+'APPENDIX 13'!N36+'APPENDIX 14'!N35+'APPENDIX 15'!N36 -> 863114 | O36: ='APPENDIX 9'!O36+'APPENDIX 10'!O36+'APPENDIX 11'!O36+'APPENDIX 12'!O36+'APPENDIX 13'!O36+'APPENDIX 14'!O35+'APPENDIX 15'!O36 -> 0 | P36: ='APPENDIX 9'!P36+'APPENDIX 10'!P36+'APPENDIX 11'!P36+'APPENDIX 12'!P36+'APPENDIX 13'!P36+'APPENDIX 14'!P35+'APPENDIX 15'!P36 -> 0 | Q36: ='APPENDIX 9'!Q36+'APPENDIX 10'!Q36+'APPENDIX 11'!Q36+'APPENDIX 12'!Q36+'APPENDIX 13'!Q36+'APPENDIX 14'!Q35+'APPENDIX 15'!Q36 -> 8639593
B37: TOTAL | C37: =SUM(C34:C36) -> 7541877 | D37: =SUM(D34:D36) -> 3791525 | E37: 3392765 | F37: -260 | G37: 1558856 | H37: 1642027 | I37: 0 | J37: 0 | K37: 0 | L37: 959566 | M37: 381190 | N37: 917668 | O37: 0 | P37: 0 | Q37: 8869267
B38: Amounts in Thousand Shillings

Sheet APPENDIX 17
B3: APPENDIX 17: SUMMARY OF LONG TERM INSURANCE BUSINESS ACTUARIAL VALUATIONS AS AT 31.12.2019
B4: Company | C4: Life Fund (Before Distribution) | D4: Actuarial Liabilities | E4: Surplus to Policyholders | F4: Surplus to Shareholders | G4: Surplus to Transferred Reserves | H4: Surplus Carried Forward | I4: Total Surplus
B5: INSURERS
B6: ABSA LIFE ASSURANCE KENYA | C6: 1916798 | D6: 1916798 | E6: 0 | F6: -786578 | G6: 0 | H6: 786578 | I6: 0
B7: APA LIFE ASSURANCE COMPANY | C7: 5063686 | D7: 4599679 | E7: 383274 | F7: -32402 | G7: 17968 | H7: 95167 | I7: 464007
B8: BRITAM LIFE INSURANCE COMPANY | C8: 84354254 | D8: 71998988 | E8: 0 | F8: 3640221 | G8: 0 | H8: 8715044 | I8: 12355266
B9: CAPEX LIFE ASSURANCE COMPANY | C9: 505467 | D9: 505467 | E9: 0 | F9: 0 | G9: 0 | H9: 0 | I9: 0
B10: CIC LIFE ASSURANCE COMPANY | C10: 6231942 | D10: 6231942 | E10: 0 | F10: 0 | G10: 0 | H10: 0 | I10: 0
B11: CORPORATE INSURANCE COMPANY | C11: 646955 | D11: 646955 | E11: 0 | F11: 0 | G11: 0 | H11: 0 | I11: 0
B12: FIRST ASSURANCE COMPANY | C12: 21015 | D12: 8993 | E12: 0 | F12: 0 | G12: 0 | H12: 12022 | I12: 12022
B13: GA LIFE ASSURANCE COMPANY | C13: 10873292 | D13: 9717687 | E13: 931291 | F13: 67294 | G13: 0 | H13: 157020 | I13: 1155605
B14: GEMINIA INSURANCE COMPANY | C14: 977068 | D14: 977068 | E14: 0 | F14: 0 | G14: 0 | H14: 0 | I14: 0
B15: ICEA LION LIFE ASSURANCE | C15: 71531770 | D15: 57140421 | E15: 4860882 | F15: 560000 | G15: 0 | H15: 8970467 | I15: 14391349
B16: JUBILEE INSURANCE COMPANY | C16: 83469191 | D16: 73927786 | E16: 5372755 | F16: 1250595 | G16: 0 | H16: 2918055 | I16: 9541405
B17: KENINDIA ASSURANCE COMPANY | C17: 42198060 | D17: 37151619 | E17: 3709420 | F17: 281709 | G17: 1074717 | H17: -19405 | I17: 5046441
B18: KENYA ORIENT LIFE ASSURANCE | C18: 1284074 | D18: 1004438 | E18: 14063 | F18: 0 | G18: 0 | H18: 265573 | I18: 279636
B19: KUSCCO MUTUAL ASSURANCE LIMITED | C19: 200722 | D19: 200722 | E19: 0 | F19: 0 | G19: 0 | H19: 0 | I19: 0
B20: LIBERTY LIFE ASSURANCE COMPANY | C20: 19699225 | D20: 19699225 | E20: 0 | F20: 0 | G20: 0 | H20: 0 | I20: 0
B21: MADISON INSURANCE COMPANY | C21: 12553711 | D21: 12553711 | E21: 0 | F21: 0 | G21: 0 | H21: 0 | I21: 0
B22: METROPOLITAN CANNON INSURANCE | C22: 0 | D22: 0 | E22: 0 | F22: 0 | G22: 0 | H22: 0 | I22: 0
B23: OLD MUTUAL LIFE ASSURANCE | C23: 11660629 | D23: 11660629 | E23: 0 | F23: -62110 | G23: 0 | H23: 62110 | I23: 0
B24: PIONEER ASSURANCE COMPANY | C24: 3705386 | D24: 3705386 | E24: 0 | F24: 142488 | G24: 0 | H24: -142488 | I24: 0
B25: PRUDENTIAL LIFE ASSURANCE | C25: 603391 | D25: 603391 | E25: 0 | F25: 0 | G25: 0 | H25: 0 | I25: 0
B26: SAHAM ASSURANCE | C26: 330585 | D26: 330585 | E26: 0 | F26: 20226 | G26: 0 | H26: -20226 | I26: 0
B27: SANLAM LIFE INSURANCE | C27: 19646788 | D27: 19646788 | E27: 0 | F27: 0 | G27: 0 | H27: 0 | I27: 0
B28: TAKAFUL INSURANCE OF AFRICA | C28: 0 | D28: 0 | E28: 0 | F28: 0 | G28: 0 | H28: 0 | I28: 0
B29: THE KENYAN ALLIANCE INSURANCE | C29: 97741 | D29: 97741 | E29: 0 | F29: -27774 | G29: 0 | H29: 27774 | I29: 0
B30: THE MONARCH INSURANCE | C30: 290872 | D30: 212329 | E30: 19960 | F30: 0 | G30: 0 | H30: 58583 | I30: 78543
B31: UAP LIFE ASSURANCE COMPANY | C31: 10558904 | D31: 10558904 | E31: 0 | F31: 0 | G31: 0 | H31: 0 | I31: 0
B32: TOTAL | C32: =SUM(C6:C31) -> 388421526 | D32: 345097252 | E32: 15291645 | F32: 5053669 | G32: 1092685 | H32: 21886274 | I32: 43324274
B33: REINSURERS
B34: CONTINENTAL REINSURANCE | C34: 0 | D34: 0 | E34: 0 | F34: 0 | G34: 0 | H34: 0 | I34: 0
B35: EAST AFRICA REINSURANCE | C35: 84271 | D35: 84271 | E35: 0 | F35: 0 | G35: 0 | H35: 0 | I35: 0
B36: KENYA REINSURANCE CORPORATION | C36: 2687032 | D36: 2687032 | E36: 0 | F36: 0 | G36: 0 | H36: 0 | I36: 0
B37: TOTAL | C37: =SUM(C34:C36) -> 2771303 | D37: =SUM(D34:D36) -> 2771303 | E37: 0 | F37: 0 | G37: 0 | H37: 0 | I37: 0
B38: GRAND TOTAL | C38: =C32+C37 -> 391192829 | D38: =D32+D37 -> 347868555 | E38: 15291645 | F38: 5053669 | G38: 1092685 | H38: 21886274 | I38: 43324274
B39: Amounts in Thousand Shillings

Sheet APPENDIX 18
B3: APPENDIX 18: SUMMARY OF GROSS DIRECT PREMIUMS UNDER GENERAL INSURANCE BUSINESS FOR THE YEAR ENDED 31.12.2019
B4: Company | C4: Aviation | D4: Engineering | E4: Fire Domestic | F4: Fire Industrial | G4: Liability | H4: Marine | I4: Motor Private | J4: Motor Commercial | K4: Motor Commercial PSV | L4: Personal Accident | M4: Theft | N4: Workmens' Compensation | O4: Medical | P4: Miscellaneous | Q4: Total | R4: Market Share (%)
B5: INSURERS
B6: AAR INSURANCE KENYA | C6: 0 | D6: 330 | E6: 1606 | F6: 7539 | G6: 10334 | H6: 366 | I6: 0 | J6: 0 | K6: 0 | L6: 27023 | M6: 3113 | N6: 87092 | O6: 5703183 | P6: 21332 | Q6: 5861920 | R6: =Q6/$Q$44*100 -> 4.491339959
B7: AFRICAN MERCHANT ASSURANCE | C7: 0 | D7: 45567 | E7: 1943 | F7: 172113 | G7: 15250 | H7: 608 | I7: 602418 | J7: 405833 | K7: 0 | L7: 90462 | M7: 13106 | N7: 58802 | O7: 0 | P7: 68079 | Q7: 1474182 | R7: 1.129502368
B8: AIG INSURANCE COMPANY | C8: 20290 | D8: 45101 | E8: 100569 | F8: 628726 | G8: 859070 | H8: 43735 | I8: 883664 | J8: 181383 | K8: 0 | L8: 230518 | M8: 294377 | N8: 242877 | O8: 0 | P8: 0 | Q8: 3530310 | R8: 2.704885493
B9: ALLIANZ INSURANCE COMPANY | C9: 23588 | D9: 29506 | E9: 29183 | F9: 120371 | G9: 91862 | H9: 53650 | I9: 177191 | J9: 151804 | K9: 0 | L9: 3944 | M9: 25807 | N9: 83750 | O9: 91661 | P9: 28427 | Q9: 910744 | R9: 0.6978022421
B10: APA INSURANCE COMPANY | C10: 23956 | D10: 159547 | E10: 80511 | F10: 760265 | G10: 136681 | H10: 193581 | I10: 1516307 | J10: 1483578 | K10: 0 | L10: 179413 | M10: 219264 | N10: 519507 | O10: 3690218 | P10: 374404 | Q10: 9337232 | R10: 7.154086576
B11: BRITAM GENERAL INSURANCE | C11: 0 | D11: 442130 | E11: 111992 | F11: 708465 | G11: 145814 | H11: 389393 | I11: 1435506 | J11: 1071367 | K11: 0 | L11: 837590 | M11: 215804 | N11: 221880 | O11: 1778485 | P11: 850313 | Q11: 8208739 | R11: 6.289447396
B12: CIC GENERAL INSURANCE COMPANY | C12: 0 | D12: 418674 | E12: 84306 | F12: 691558 | G12: 97955 | H12: 59789 | I12: 2187642 | J12: 2115011 | K12: 0 | L12: 252975 | M12: 594429 | N12: 393101 | O12: 3497363 | P12: 144032 | Q12: 10536834 | R12: 8.073208706
B13: CORPORATE INSURANCE COMPANY | C13: 0 | D13: 35382 | E13: 6045 | F13: 42640 | G13: 6244 | H13: 13668 | I13: 186766 | J13: 120851 | K13: 0 | L13: 6322 | M13: 11752 | N13: 49735 | O13: 0 | P13: 11336 | Q13: 490739 | R13: 0.3759989355
B14: DIRECTLINE ASSURANCE COMPANY | C14: 0 | D14: 0 | E14: 0 | F14: 0 | G14: 0 | H14: 0 | I14: 173129 | J14: 52916 | K14: 3127208 | L14: 0 | M14: 0 | N14: 0 | O14: 0 | P14: 0 | Q14: 3353253 | R14: 2.569226327
B15: FIDELITY SHIELD INSURANCE | C15: 222385 | D15: 76171 | E15: 25755 | F15: 192835 | G15: 25019 | H15: 82508 | I15: 799323 | J15: 605046 | K15: 43300 | L15: 19164 | M15: 95829 | N15: 188377 | O15: 0 | P15: 31150 | Q15: 2406861 | R15: 1.844110971
B16: FIRST ASSURANCE COMPANY | C16: 0 | D16: 137449 | E16: 30754 | F16: 235159 | G16: 34113 | H16: 68882 | I16: 578932 | J16: 594740 | K16: 0 | L16: 94157 | M16: 125059 | N16: 98560 | O16: 1527828 | P16: 71333 | Q16: 3596967 | R16: 2.755957368
B17: GA INSURANCE COMPANY | C17: 136223 | D17: 318640 | E17: 112556 | F17: 1155121 | G17: 89809 | H17: 270080 | I17: 738741 | J17: 657202 | K17: 113645 | L17: 92397 | M17: 349358 | N17: 598968 | O17: 1734652 | P17: 152638 | Q17: 6520029 | R17: 4.995575985
B18: GEMINIA INSURANCE COMPANY | C18: 123109 | D18: 150211 | E18: 68701 | F18: 468398 | G18: 67645 | H18: 180705 | I18: 1462256 | J18: 1645412 | K18: 0 | L18: 52025 | M18: 136048 | N18: 336033 | O18: 0 | P18: 180535 | Q18: 4871078 | R18: 3.732167492
B19: HERITAGE INSURANCE COMPANY | C19: 93330 | D19: 157894 | E19: 182909 | F19: 576118 | G19: 238712 | H19: 102866 | I19: 887818 | J19: 604621 | K19: 57692 | L19: 232383 | M19: 114557 | N19: 373733 | O19: 1740726 | P19: 199227 | Q19: 5562586 | R19: 4.261993472
B20: ICEA LION GENERAL INSURANCE | C20: 1212774 | D20: 165489 | E20: 118828 | F20: 913896 | G20: 164913 | H20: 174844 | I20: 1227281 | J20: 564425 | K20: 0 | L20: 221143 | M20: 287643 | N20: 474501 | O20: 135997 | P20: 121716 | Q20: 5783450 | R20: 4.43121709
B21: INTRA-AFRICA ASSURANCE | C21: 0 | D21: 34983 | E21: 36091 | F21: 133837 | G21: 13533 | H21: 104251 | I21: 346635 | J21: 224133 | K21: 2883 | L21: 25350 | M21: 61884 | N21: 160517 | O21: 0 | P21: 57151 | Q21: 1201248 | R21: 0.9203832776
B22: INVESCO ASSURANCE COMPANY | C22: 0 | D22: 0 | E22: 0 | F22: 0 | G22: 0 | H22: 0 | I22: 0 | J22: 0 | K22: 0 | L22: 0 | M22: 0 | N22: 0 | O22: 0 | P22: 0 | Q22: 0 | R22: 0
B23: JUBILEE GENERAL INSURANCE | C23: 4972 | D23: 154850 | E23: 46274 | F23: 744689 | G23: 300694 | H23: 251997 | I23: 1351421 | J23: 687652 | K23: 0 | L23: 253375 | M23: 50984 | N23: 242780 | O23: 0 | P23: 203652 | Q23: 4293340 | R23: 3.28951086
B24: JUBILEE HEALTH INSURANCE | C24: 0 | D24: 0 | E24: 0 | F24: 0 | G24: 0 | H24: 0 | I24: 0 | J24: 0 | K24: 0 | L24: 0 | M24: 0 | N24: 0 | O24: 7884054 | P24: 0 | Q24: 7884054 | R24: 6.040677247
B25: KENINDIA ASSURANCE COMPANY | C25: 0 | D25: 140069 | E25: 48874 | F25: 489710 | G25: 48715 | H25: 246810 | I25: 312500 | J25: 433849 | K25: 0 | L25: 39837 | M25: 185475 | N25: 324467 | O25: 135916 | P25: 17140 | Q25: 2423362 | R25: 1.85675386
B26: KENYA ORIENT INSURANCE | C26: 0 | D26: 58286 | E26: 24851 | F26: 105123 | G26: 21879 | H26: 14535 | I26: 541617 | J26: 275565 | K26: 43741 | L26: 11199 | M26: 73385 | N26: 42894 | O26: 0 | P26: 80396 | Q26: 1293472 | R26: 0.9910443129
B27: MADISON GENERAL INSURANCE COMPANY | C27: 0 | D27: 72205 | E27: 15886 | F27: 91464 | G27: 259321 | H27: 73555 | I27: 558935 | J27: 896634 | K27: 0 | L27: 21383 | M27: 22606 | N27: 63929 | O27: 2003870 | P27: 122546 | Q27: 4202334 | R27: 3.219783043
B28: MAYFAIR INSURANCE COMPANY | C28: 23011 | D28: 227650 | E28: 73182 | F28: 591733 | G28: 46616 | H28: 204652 | I28: 461206 | J28: 449615 | K28: 0 | L28: 45223 | M28: 115662 | N28: 445158 | O28: 0 | P28: 207682 | Q28: 2891392 | R28: 2.215353404
B29: METROPOLITAN CANNON GENERAL | C29: 0 | D29: 49611 | E29: 13293 | F29: 36860 | G29: 7221 | H29: 23991 | I29: 344657 | J29: 216754 | K29: 0 | L29: 41018 | M29: 28282 | N29: 88317 | O29: 0 | P29: 34756 | Q29: 884760 | R29: 0.6778935812
